{"text_format":"1","workbook":"xlsx","n_sheets":2,"sheets":["DashBoard","Blad1"],"not_rendered":{"charts":0,"images":2,"macros":0,"external_links":0,"defined_names":1,"comments":0,"pivot_tables":0},"unopened":[],"bounds":{"document_bytes":16777216,"sheet_cells":100000,"rows_first":2000,"rows_last":500,"rows_between":2000,"halvings":0,"cell_chars":16384,"cell_head_chars":4096},"cells_cut":0,"cells_raw":0,"read":"whole","date_system":"1900"}

{"sheet":"DashBoard","index":0,"n_rows":789,"n_cols":133,"rows_kept":789,"cut":false,"hidden":false,"merged":[[1,34,2,38],[3,32,3,38],[4,4,8,4],[4,5,8,5],[4,6,8,6],[4,7,8,7],[4,13,8,13],[4,14,8,14],[4,15,8,15],[4,16,8,16],[8,9,8,11],[4,17,8,17],[4,18,8,18],[4,19,8,19],[4,20,8,20],[4,21,8,21],[5,66,8,66],[6,33,6,39],[6,40,8,40],[6,43,8,43],[6,44,8,44],[6,57,8,57],[6,58,8,58],[7,33,7,37],[7,38,8,38],[4,41,8,41],[4,46,4,51],[5,33,5,38],[7,45,7,47],[7,49,7,51],[8,33,8,37],[8,45,8,47],[4,22,8,22],[8,49,8,51],[5,59,8,59],[4,23,8,23],[4,24,8,24],[4,25,8,25],[4,32,4,39]]}
["ComFaC Development",null,null,null,null,null,null,null,null,null,null,null,null,null,null,null,null,null,null,null,null,null,null,null,null,null,null,null,null,0,null,null,null,null,null,null,null,null,{"$f":"COUNTIF(AM$10:AM$789,\">0\")","v":16},null,{"$f":"COUNTIF($AM$10:$AM$789,5)","v":0},null,null,null,null,{"$f":"IF(L6=\"Ja\",1,0)","v":0},null,null,null,null,null,null,null,null,null,null,null,null,null,null,null,null,null,null,null,null,null,null,null,null,null,null,null,null,null,null,null,null,null,{"$f":"IFERROR(_xlfn.UNIQUE(_xlfn._xlws.FILTER(CB10:CB29,CC10:CC29>1)),\"\")","v":""},null,null,null,null,null,{"$f":"_xlfn.XLOOKUP(3,$AP$10:$AP$49,$AN$10:$AN$49)","v":{"$error":"#N/A"}},null,null,null,{"$f":"IFERROR(_xlfn.UNIQUE(_xlfn._xlws.FILTER(CL10:CL29,CK10:CK29>1)),\"\")","v":""},null,null,null,null,null,null,null,null,null,{"$f":"IFERROR(_xlfn.UNIQUE(_xlfn._xlws.FILTER(CV10:CV29,CU10:CU29>1)),\"\")","v":""},null,null,null,null,null,null,null,null,null,{"$f":"IFERROR(_xlfn.UNIQUE(_xlfn._xlws.FILTER(DF10:DF29,DE10:DE29>1)),\"\")","v":""},null,null,null,null,null,null,null,null,null,{"$f":"IFERROR(_xlfn.UNIQUE(_xlfn._xlws.FILTER(DP10:DP29,DO10:DO29>1)),\"\")","v":""},null,null,null,null,null,null,null,null,{"$f":"IFERROR(_xlfn.UNIQUE(_xlfn._xlws.SORT(_xlfn._xlws.FILTER(EC1:EC8,EC1:EC8<>\"\"),1)),\"\")","v":""},{"$f":"IFERROR(_xlfn.UNIQUE(_xlfn._xlws.FILTER(DZ10:DZ29,DY10:DY29>1)),\"\")","v":""},null,null,""]
[null,null,null,null,null,null,null,null,null,"Rondes per sessie:",null,2,null,null,null,null,null,null,null,null,null,null,null,null,null,null,null,null,null,null,null,null,null,null,"3-Banden",null,null,null,null,null,{"$f":"COUNTIF($AM$10:$AM$789,4)","v":1}]
[null,null,null,null,null,null,null,null,null,"Biljarts in gebruik:",null,5,null,null,null,null,null,null,null,null,null,null,null,null,null,null,null,null,null,null,null,null,null,null,null,null,null,null,null,null,{"$f":"COUNTIF($AM$10:$AM$789,3)","v":5}]
[null,null,null,null,null,null,null,null,null,"Te spelen partijen:",null,81,null,null,null,null,null,null,null,null,null,null,null,null,null,null,null,null,null,null,null,null,{"$f":"IF(L4,0,\"Aan deze discipline zijn (nog) geen leden verbonden.\")","v":0},null,null,null,null,null,null,null,{"$f":"COUNTIF($AM$10:$AM$789,2)","v":5}]
[null,null,null,null,"Caramboles","Competitie Deelnemer","Rooster caramboles","Rooster caramboles",null,"Gespeelde partijen:",null,55,null,null,null,null,null,null,null,null,null,null,null,null,null,null,null,null,null,null,null,null,"Maximaal te spelen partijen in deze sessie is bereikt! (16)",null,null,null,null,null,null,null,{"$f":"COUNTIF($AM$10:$AM$789,1)","v":5},{"$f":"IF(COUNTIF($AP$10:$AP$49,\">0\"),\"In Sessie te spelen\",\"\")","v":""},null,null,null,null,null,null,null,null,null,null,null,null,null,null,null,null,null,null,null,null,null,null,null,null,null,null,null,null,null,null,null,null,null,null,null,null,null,null,null,null,null,null,null,null,null,null,null,null,null,null,null,null,null,null,null,null,null,null,null,null,null,null,null,null,null,null,null,null,null,null,null,null,null,null,null,null,null,null,null,null,null,null,null,null,null,null,null,null,null,null,""]
[null,null,null,null,null,null,null,null,null,null,null,null,null,null,null,null,null,null,null,null,null,null,null,null,null,null,null,null,null,null,null,null,null,"",null,null,null,null,null,null,null,null,null,null,null,null,null,null,null,null,null,null,null,null,null,null,null,null,null,{"$f":"IF(BH10=\"\",\"\",\"Sorteervolgorde\")","v":"Sorteervolgorde"}]
[null,null,null,null,null,null,null,null,null,"Arbiter aanwezig:",null,"Ja",null,null,null,null,null,null,null,null,null,null,null,null,null,null,null,null,null,null,null,null,null,{"$f":"IF($L$7=\"Nee\",\"\",IF(AND(CB1<>\"\",CB2<>\"\"),CB1&\" en \"&CB2&\" spelen al een 1e partij\",IF(CB1<>\"\",CB1&\" speelt al een 1e partij\",IF(AND(CL1<>\"\",CL2<>\"\"),CL1&\" en \"&CL2&\" spelen al een 2e partij\",IF(CL1<>\"\",CL1&\" speelt al een 2e partij\",IF(AND(CV1<>\"\",CV2<>\"\"),CV1&\" en \"&CV2&\" spelen al een 3e partij\",IF(CV1<>\"\",CV1&\" speelt al een 3e partij\",IF(AND(DF1<>\"\",DF2<>\"\"),DF1&\" en \"&DF2&\" spelen al een 4e partij\",IF(DF1<>\"\",DF1&\" speelt al een 4e partij\",\"\")))))))))","v":""},null,null,null,null,null,null,{"$f":"IF(COUNTIF($AO$10:$AO$49,\">0\"),\"Reeds gespeeld\",\"\")","v":"Reeds gespeeld"},null,null,{"$f":"IF(AR10=\"\",\"\",\"Ronde\")","v":"Ronde"},{"$f":"IF(AS10=\"\",\"\",\"Speelvolgorde\")","v":"Speelvolgorde"},null,null,null,null,null,null,null,null,null,null,null,null,{"$f":"IFERROR(IF(BF10=0,\"\",\"Aantal Beurten\"),\"\")","v":""},{"$f":"IF(BG10=0,\"\",IF($L$7=\"ja\",\"Arbiters / schrijvers\"& CHAR(10)&\"1e ronde\",0))","v":""}]
[{"$f":"COUNTA(L10:L49)","v":16},null,null,null,null,null,null,null,null,"Beurten-correctie:",null,"Nee",null,null,null,null,null,null,null,null,null,null,null,null,null,null,null,null,null,"Kies partijen",null,null,null,null,null,null,null,null,"Kies partijen"]
["Aantekeningen / Memo",{"$f":"MAX(C10:C49)","v":17},null,"Leden",null,"Competitie Deelnemer",null,null,null,"      Aanwezig: 16",null,null,null,null,null,null,null,null,null,null,null,null,null,null,null,null,null,null,null,null,null,null,{"$f":"COUNTIF($AG$10:$AG$789,\">0\")","v":65},{"$f":"\"Nog te spelen competitie partijen\"","v":"Nog te spelen competitie partijen"},null,null,null,null,null,"            Spelers",null,null,null,null,null,{"$f":"IF(AT10=0,\"      Nog geen partijen gekozen!\"&CHAR(10)& \"<--------  Kies eerst partijen.\",AM1&\" partijen te spelen op\")","v":"16 partijen te spelen op"},null,null,null,"2025-01-23",null,null,null,null,null,null,null,null,null,null,null,null,null,null,null,null,null,null,"Partij","Walter Kruiswijk",null,null,null,null,"Ronde","Kandidaten","Keuze",null,null,"1e ronde",null,null,null,null,null,"Arbiters & spelers 2e ronde",null,null,null,"2e ronde",null,null,null,null,null,null,null,null,null,"3e ronde",null,null,null,null,null,null,null,null,null,"4e ronde",null,null,null,null,null,null,null,null,null,"5e ronde",null,null,null,null,null,null,null,null,null,"*e ronde"]
[null,1,{"$f":"IF(F10<>0,MAX($C$8:$C9)+1,\"\")","v":1},"Gerard Baij",3,"Dlnr.",0.1125,30,null,{"$f":"IF(D10=\"\",\"\",_xlfn.XLOOKUP(B10,$C$10:$C$49,$D$10:$D$49,\"\"))","v":"Gerard Baij"},{"$f":"IF(L10<>0,MAX($K$7:$K9)+1,\"\")","v":1},"Ja",0,null,null,null,null,null,null,null,null,null,null,11,null,null,null,11,{"$f":"IFERROR(_xlfn.XLOOKUP(AG10,$AB$10:$AB$789,$AD$10:$AD$789),\"\")","v":0},null,11,{"$f":"_xlfn.XLOOKUP(AH10,$J$10:$J$49,$M$10:$M$49,\"\")+_xlfn.XLOOKUP(AL10,$J$10:$J$49,$M$10:$M$49,\"\")","v":{"$error":"#VALUE!"}},{"$f":"AE10","v":11},0,{"$f":"IFERROR(IF(AH10=\"\",\"\",IF(OR($L$8=\"Nee\",AF10=0),_xlfn.XLOOKUP(AH10,$D$10:$D$49,$E$10:$E$49),ROUND(_xlfn.XLOOKUP(AH10,$D$10:$D$49,$E$10:$E$49)*AF10,0))),0)","v":0},{"$f":"IF(AG10=\"\",\"\",\"-\")","v":"-"},{"$f":"IFERROR(IF(AH10=\"\",\"\",IF(OR($L$8=\"Nee\",AF10=0),_xlfn.XLOOKUP(AL10,$D$10:$D$49,$E$10:$E$49)*1,ROUND(_xlfn.XLOOKUP(AL10,$D$10:$D$49,$E$10:$E$49)*AF10,0))),0)","v":0},0,0,{"$f":"IF(J10=\"\",\"\",_xlfn.XLOOKUP(B10,$K$10:$K$49,$J$10:$J$49,\"\"))","v":"Gerard Baij"},9,{"$f":"IF(AN10=\"\",\"\",COUNTIF($AT$10:$AT$49,AN10)+COUNTIF($AX$10:$AX$49,AN10))","v":0},null,{"$f":"IF(AY10=0,\"\",AY10)","v":1},{"$f":"_xlfn.SORTBY($BH$10:$BN$789,$BN$10:$BN$789)","v":79},"",0,"-",0,"",1,{"$f":"AW10","v":0},null,null,null,null,null,{"$f":"IFERROR(IF(AS10=0,0,IF($L$8=\"Ja\",_xlfn.XLOOKUP(AS10,$AG$10:$AG$789,$AB$10:$AB$789),0)),0)","v":0},{"$f":"IF($L$7=\"Nee\",0,IFERROR(_xlfn.UNIQUE(_xlfn._xlws.FILTER(CH10:CH49,CH10:CH49<>0)),0))","v":0},{"$f":"IFERROR(_xlfn._xlws.FILTER($AG$10:$AM$789,($AM$10:$AM$789<>0)),\"\")","v":33},"",0,"-",0,"",2,null,null,{"$f":"_xlfn._xlws.FILTER(DashBoard!AG10:AM789,(DashBoard!AH10:AH789=BR9)+(DashBoard!AL10:AL789=BR9))","v":{"$error":"#REF!"}},null,null,null,null,null,null,{"$f":"IFERROR(_xlfn._xlws.FILTER(AN10:AN49,(AP10:AP49<$L$2)*(AN10:AN49<>BR9)),\"\")","v":"Gerard Baij"},{"$f":"IFERROR(IF(IFERROR(_xlfn.XLOOKUP(BX10,$BR$10:$BR$49,$BQ$10:$BQ$49),\"\")=\"\",_xlfn.XLOOKUP(BX10,$BV$10:$BV$49,$BQ$10:$BQ$49),_xlfn.XLOOKUP(BX10,$BR$10:$BR$49,$BQ$10:$BQ$49)),\"\")","v":""},null,null,{"$f":"_xlfn.VSTACK(_xlfn._xlws.FILTER($BI$10:$BI$49,$BN$10:$BN$49=1),_xlfn._xlws.FILTER($BM$10:$BM$49,$BN$10:$BN$49=1))","v":""},{"$f":"COUNTIF($CB$10:$CB$29,CB10)","v":20},null,null,null,null,{"$f":"IFERROR(_xlfn.UNIQUE(_xlfn._xlws.FILTER($CL$10:$CL$49,$CM$10:$CM$49=0)),\"\")","v":0},null,null,{"$f":"COUNTIF(CL10:CL49,CL10)","v":40},{"$f":"_xlfn.VSTACK(_xlfn._xlws.FILTER($BI$10:$BI$49,$BN$10:$BN$49=2),_xlfn._xlws.FILTER($BM$10:$BM$49,$BN$10:$BN$49=2))","v":""},{"$f":"COUNTIF($CB$10:$CB$29,CL10)","v":20},null,null,null,null,null,null,null,{"$f":"COUNTIF(CV10:CV49,CV10)","v":40},{"$f":"_xlfn.VSTACK(_xlfn._xlws.FILTER($BI$10:$BI$49,$BN$10:$BN$49=3),_xlfn._xlws.FILTER($BM$10:$BM$49,$BN$10:$BN$49=3))","v":""},{"$f":"COUNTIF($CB$10:$CB$29,CV10)","v":20},null,null,null,null,null,null,null,{"$f":"COUNTIF(DF10:DF49,DF10)","v":40},{"$f":"_xlfn.VSTACK(_xlfn._xlws.FILTER($BI$10:$BI$49,$BN$10:$BN$49=4),_xlfn._xlws.FILTER($BM$10:$BM$49,$BN$10:$BN$49=4))","v":""},{"$f":"COUNTIF($CB$10:$CB$29,DF10)","v":20},null,null,null,null,null,null,null,{"$f":"COUNTIF(DP10:DP49,DP10)","v":1},{"$f":"_xlfn.VSTACK(_xlfn._xlws.FILTER($BI$10:$BI$49,$BN$10:$BN$49=\"*\"),_xlfn._xlws.FILTER($BM$10:$BM$49,$BN$10:$BN$49=\"*\"))","v":{"$error":"#VALUE!"}},null,null,null,null,null,null,null,null,{"$f":"COUNTIF(DZ10:DZ49,DZ10)","v":1},{"$f":"IF(AT1=1,_xlfn.VSTACK(_xlfn._xlws.FILTER($BQ$10:$BQ$49,$BN$10:$BN$49=\"*\"),_xlfn._xlws.FILTER($BU$10:$BU$49,$BN$10:$BN$49=\"*\")),_xlfn.VSTACK(_xlfn._xlws.FILTER($BI$10:$BI$49,$BN$10:$BN$49=\"*\"),_xlfn._xlws.FILTER($BM$10:$BM$49,$BN$10:$BN$49=\"*\")))","v":{"$error":"#VALUE!"}}]
[null,2,{"$f":"IF(F11<>0,MAX($C$10:$C10)+1,\"\")","v":2},"Ko Bleeker",8,"Dlnr.",0.25882352941176473,30,null,{"$f":"IF(D11=\"\",\"\",_xlfn.XLOOKUP(B11,$C$10:$C$49,$D$10:$D$49,\"\"))","v":"Ko Bleeker"},{"$f":"IF(L11<>0,MAX($K$7:$K10)+1,\"\")","v":2},"Ja",0,null,null,null,null,null,null,null,null,null,null,27,null,null,null,null,"",null,27,{"$f":"_xlfn.XLOOKUP(AH11,$J$10:$J$49,$M$10:$M$49,\"\")+_xlfn.XLOOKUP(AL11,$J$10:$J$49,$M$10:$M$49,\"\")","v":{"$error":"#REF!"}},27,{"$error":"#REF!"},{"$f":"IFERROR(IF(AH11=\"\",\"\",IF(OR($L$8=\"Nee\",AF11=0),_xlfn.XLOOKUP(AH11,$D$10:$D$49,$E$10:$E$49),ROUND(_xlfn.XLOOKUP(AH11,$D$10:$D$49,$E$10:$E$49)*AF11,0))),0)","v":0},"-",{"$f":"IFERROR(IF(AH11=\"\",\"\",IF(OR($L$8=\"Nee\",AF11=0),_xlfn.XLOOKUP(AL11,$D$10:$D$49,$E$10:$E$49)*1,ROUND(_xlfn.XLOOKUP(AL11,$D$10:$D$49,$E$10:$E$49)*AF11,0))),0)","v":0},{"$error":"#REF!"},null,{"$f":"IF(J11=\"\",\"\",_xlfn.XLOOKUP(B11,$K$10:$K$49,$J$10:$J$49,\"\"))","v":"Ko Bleeker"},6,{"$f":"IF(AN11=\"\",\"\",COUNTIF($AT$10:$AT$49,AN11)+COUNTIF($AX$10:$AX$49,AN11))","v":0},null,{"$f":"IF(AY11=\"*\",\"*\",IF(OR(AY11=AY10,AY11=0),\"\",AY11))","v":""},87,"",0,"-",0,"",1,{"$f":"AW11","v":0},null,null,null,null,null,{"$f":"IFERROR(IF(AS11=0,0,IF($L$8=\"Ja\",_xlfn.XLOOKUP(AS11,$AG$10:$AG$789,$AB$10:$AB$789),0)),0)","v":0},null,42,"",0,"-",0,"",2,null,null,null,null,null,null,null,null,null,"Ko Bleeker","",null,null,"",{"$f":"COUNTIF($CB$10:$CB$29,CB11)","v":20},null,null,null,null,null,null,null,{"$f":"COUNTIF(CL11:CL50,CL11)","v":40},"",{"$f":"COUNTIF($CB$10:$CB$29,CL11)","v":20},null,null,null,null,null,null,null,{"$f":"COUNTIF(CV11:CV50,CV11)","v":40},"",{"$f":"COUNTIF($CB$10:$CB$29,CV11)","v":20},null,null,null,null,null,null,null,{"$f":"COUNTIF(DF11:DF50,DF11)","v":40},"",{"$f":"COUNTIF($CV$10:$CV$29,DF11)","v":20},null,null,null,null,null,null,null,{"$f":"COUNTIF(DP11:DP50,DP11)","v":0},null,null,{"$f":"COUNTIF($CB$10:$CB$29,DQ11)","v":0},null,null,null,null,null,null,{"$f":"COUNTIF(DZ11:DZ50,DZ11)","v":0}]
["Nog geen lid",3,{"$f":"IF(F12<>0,MAX($C$10:$C11)+1,\"\")","v":3},"Ko Poelman",16,"Dlnr.",0.54500000000000004,30,null,"Ko Poelman",{"$f":"IF(L12<>0,MAX($K$7:$K11)+1,\"\")","v":""},null,0,null,null,null,null,"Komt voorlopig niet ivm ogen","Komt voorlopig niet ivm ogen",null,null,null,null,33,null,null,null,33,{"$f":"IFERROR(_xlfn.XLOOKUP(AG12,$AB$10:$AB$789,$AD$10:$AD$789),\"\")","v":2},2,33,{"$error":"#REF!"},33,{"$error":"#REF!"},0,"-",0,{"$error":"#REF!"},2,"Hans Hof",8,0,null,{"$f":"IF(AY12=\"*\",\"*\",IF(OR(AY12=AY11,AY12=0),\"\",AY12))","v":""},112,"",0,"-",0,"",1,0,null,null,null,null,null,0,null,44,"",0,"-",0,"",4,null,null,null,null,null,null,null,null,null,"Hans Hof","",null,null,"",20,null,null,null,null,null,null,null,40,"",20,null,null,null,null,null,null,null,40,"",20,null,null,null,null,null,null,null,0,null,0,null,null,null,null,null,null,null,0,null,null,0,null,null,null,null,null,null,0]
[null,4,{"$f":"IF(F13<>0,MAX($C$10:$C12)+1,\"\")","v":4},"Hans Hof",11,"Dlnr.",0.38216560509554143,30,null,"Hans Hof",{"$f":"IF(L13<>0,MAX($K$7:$K12)+1,\"\")","v":3},"Ja",0,null,null,null,null,null,null,null,null,null,null,42,null,null,null,42,{"$f":"IFERROR(_xlfn.XLOOKUP(AG13,$AB$10:$AB$789,$AD$10:$AD$789),\"\")","v":2},2,42,{"$error":"#REF!"},42,{"$error":"#REF!"},0,"-",0,{"$error":"#REF!"},2,"Harry Koeleman",9,0,null,"",131,"",0,"-",0,"",1,0,null,null,null,null,null,0,null,52,"",0,"-",0,"",2,null,null,null,null,null,null,null,null,null,"Harry Koeleman","",null,null,"",20,null,null,null,null,null,null,null,40,"",20,null,null,null,null,null,null,null,40,"",20,null,null,null,null,null,null,null,0,null,0,null,null,null,null,null,null,null,0,null,null,0,null,null,null,null,null,null,0]
[null,5,{"$f":"IF(F14<>0,MAX($C$10:$C13)+1,\"\")","v":5},"Harry Koeleman",7,"Dlnr.",0.23684210526315788,30,null,"Harry Koeleman",{"$f":"IF(L14<>0,MAX($K$7:$K13)+1,\"\")","v":4},"Ja",0,null,null,null,null,null,null,null,null,null,null,44,null,null,null,44,4,4,44,{"$error":"#REF!"},44,{"$error":"#REF!"},0,"-",0,{"$error":"#REF!"},4,"Walter Kruiswijk",8,0,null,"",145,"",0,"-",0,"",1,0,null,null,null,null,null,0,null,77,"",0,"-",0,"",3,null,null,null,null,null,null,null,null,null,"André Molendijk","",null,null,"",20,null,null,null,null,null,null,null,40,"",20,null,null,null,null,null,null,null,40,"",20,null,null,null,null,null,null,null,0,null,0,null,null,null,null,null,null,null,0,null,null,0,null,null,null,null,null,null,0]
[null,6,{"$f":"IF(F15<>0,MAX($C$10:$C14)+1,\"\")","v":6},"Walter Kruiswijk",5,"Dlnr.",0.17647058823529499,30,null,"Walter Kruiswijk",{"$f":"IF(L15<>0,MAX($K$7:$K14)+1,\"\")","v":5},"Ja",0,null,null,null,null,null,null,null,null,null,null,45,null,null,null,0,"",0,45,{"$error":"#REF!"},45,{"$error":"#REF!"},0,"-",0,{"$error":"#REF!"},null,"André Molendijk",8,0,null,2,33,"",0,"-",0,"",2,0,null,null,null,null,null,0,null,79,"",0,"-",0,"",1,null,null,null,null,null,null,null,null,null,"Jos Nijman",{"$f":"IFERROR(IF(IFERROR(_xlfn.XLOOKUP(BX15,$BR$10:$BR$49,$BQ$10:$BQ$49),\"\")=\"\",_xlfn.XLOOKUP(BX15,$BV$10:$BV$49,$BQ$10:$BQ$49),_xlfn.XLOOKUP(BX15,$BR$10:$BR$49,$BQ$10:$BQ$49)),\"\")","v":""},null,null,"",20,null,null,null,null,null,null,null,40,"",20,null,null,null,null,null,null,null,40,"",20,null,null,null,null,null,null,null,0,null,0,null,null,null,null,null,null,null,0,null,null,0,null,null,null,null,null,null,0]
[null,7,{"$f":"IF(F16<>0,MAX($C$10:$C15)+1,\"\")","v":7},"André Molendijk",7,"Dlnr.",0.22047244094488189,30,null,"André Molendijk",{"$f":"IF(L16<>0,MAX($K$7:$K15)+1,\"\")","v":6},"Ja",0,null,null,null,null,null,null,null,null,null,null,47,null,null,null,0,"",0,47,{"$error":"#REF!"},47,{"$error":"#REF!"},0,"-",0,{"$error":"#REF!"},null,"Jos Nijman",8,0,null,"",42,"",0,"-",0,"",2,0,null,null,null,null,null,0,null,84,"",0,"-",0,"",3,null,null,null,null,null,null,null,null,null,"John Peen",{"$f":"IFERROR(IF(IFERROR(_xlfn.XLOOKUP(BX16,$BR$10:$BR$49,$BQ$10:$BQ$49),\"\")=\"\",_xlfn.XLOOKUP(BX16,$BV$10:$BV$49,$BQ$10:$BQ$49),_xlfn.XLOOKUP(BX16,$BR$10:$BR$49,$BQ$10:$BQ$49)),\"\")","v":""},null,null,"",20,null,null,null,null,null,null,null,40,"",20,null,null,null,null,null,null,null,40,"",20,null,null,null,null,null,null,null,0,null,0,null,null,null,null,null,null,null,0,null,null,0,null,null,null,null,null,null,0]
[null,8,{"$f":"IF(F17<>0,MAX($C$10:$C16)+1,\"\")","v":8},"Jos Nijman",8,"Dlnr.",0.27536231884057971,30,null,"Jos Nijman",{"$f":"IF(L17<>0,MAX($K$7:$K16)+1,\"\")","v":7},"Ja",0,null,null,null,null,null,null,null,null,null,null,50,null,null,null,0,"",0,50,{"$error":"#REF!"},50,{"$error":"#REF!"},0,"-",0,{"$error":"#REF!"},null,"John Peen",6,0,null,"",52,"",0,"-",0,"",2,0,null,null,null,null,0,0,null,87,"",0,"-",0,"",1,null,null,null,null,null,null,null,null,null,"Peter van Pinxteren","",null,null,"",20,null,null,null,null,null,null,null,40,"",20,null,null,null,null,null,null,null,40,"",20,null,null,null,null,null,null,null,0,null,0,null,null,null,null,null,null,null,0,null,null,0,null,null,null,null,null,null,0]
[null,9,{"$f":"IF(F18<>0,MAX($C$10:$C17)+1,\"\")","v":9},"John Peen",10,"Dlnr.",0.33333333333333331,30,null,"John Peen",{"$f":"IF(L18<>0,MAX($K$7:$K17)+1,\"\")","v":8},"Ja",0,null,null,null,null,null,null,null,null,null,null,52,null,null,null,52,2,2,52,{"$error":"#REF!"},52,{"$error":"#REF!"},0,"-",0,{"$error":"#REF!"},2,"Peter van Pinxteren",6,0,null,"",115,"",0,"-",0,"",2,0,null,null,null,null,0,0,null,98,"",0,"-",0,"",3,null,null,null,null,null,null,null,null,null,"Kees Snijder","",null,null,"",20,null,null,null,null,null,null,null,40,"",20,null,null,null,null,null,null,null,40,"",20,null,null,null,null,null,null,null,0,null,0,null,null,null,null,null,null,null,0,null,null,0,null,null,null,null,null,null,0]
[null,10,{"$f":"IF(F19<>0,MAX($C$10:$C18)+1,\"\")","v":10},"Peter van Pinxteren",7,"Dlnr.",0.23853211009174313,30,null,"Peter van Pinxteren",{"$f":"IF(L19<>0,MAX($K$7:$K18)+1,\"\")","v":9},"Ja",0,null,null,null,null,null,null,null,null,null,null,53,null,null,null,null,"",null,53,{"$error":"#REF!"},53,{"$error":"#REF!"},0,"-",0,{"$error":"#REF!"},null,"Kees Snijder",4,0,null,"",148,"",0,"-",0,"",2,0,null,null,null,null,0,0,null,110,"",0,"-",0,"",3,null,null,null,null,null,null,null,null,null,"Jan Stroo","",null,null,"",20,null,null,null,null,null,null,null,40,"",20,null,null,null,null,null,null,null,40,"",20,null,null,null,null,null,null,null,0,null,0,null,null,null,null,null,null,null,0,null,null,0,null,null,null,null,null,null,0]
[null,11,{"$f":"IF(F20<>0,MAX($C$10:$C19)+1,\"\")","v":11},"Kees Snijder",5,"Dlnr.",0.17647058823529399,30,null,"Kees Snijder",{"$f":"IF(L20<>0,MAX($K$7:$K19)+1,\"\")","v":10},"Ja",0,null,null,null,null,null,null,null,null,null,null,58,null,null,null,0,"",0,58,{"$error":"#REF!"},58,{"$error":"#REF!"},0,"-",0,{"$error":"#REF!"},null,"Jan Stroo",8,0,null,3,77,"",0,"-",0,"",3,0,null,null,null,null,0,0,null,112,"",0,"-",0,"",1,null,null,null,null,null,null,null,null,null,"Henny Trompé","",null,null,null,0,null,null,null,null,{"$f":"IFERROR(_xlfn.UNIQUE(_xlfn._xlws.FILTER($CV$10:$CV$49,$CW$10:$CW$49=0)),\"\")","v":0},null,null,0,null,0,null,null,null,null,null,null,null,0,null,0,null,null,null,null,null,null,null,0,null,0,null,null,null,null,null,null,null,0,null,null,0,null,null,null,null,null,null,0]
[null,12,{"$f":"IF(F21<>0,MAX($C$10:$C20)+1,\"\")","v":12},"Jan Stroo",15,"Dlnr.",0.48672566371681414,30,null,"Jan Stroo",{"$f":"IF(L21<>0,MAX($K$7:$K20)+1,\"\")","v":11},"Ja",0,null,null,null,null,null,null,null,null,null,null,60,null,null,null,null,"",null,60,{"$error":"#REF!"},60,{"$error":"#REF!"},0,"-",0,{"$error":"#REF!"},null,"Henny Trompé",8,0,null,"",84,"",0,"-",0,"",3,0,null,null,null,null,0,0,null,115,"",0,"-",0,"",2,null,null,null,null,null,null,null,null,null,"Jan Visser","",null,null,null,0,null,null,null,null,null,null,null,0,null,0,null,null,null,null,null,null,null,0,null,0,null,null,null,null,null,null,null,0,null,0,null,null,null,null,null,null,null,0,null,null,0,null,null,null,null,null,null,0]
[null,13,{"$f":"IF(F22<>0,MAX($C$10:$C21)+1,\"\")","v":13},"Henny Trompé",9,"Dlnr.",0.30555555555555558,30,null,"Henny Trompé",{"$f":"IF(L22<>0,MAX($K$7:$K21)+1,\"\")","v":12},"Ja",0,null,null,null,null,null,null,null,null,null,null,62,null,null,null,0,"",0,62,{"$error":"#REF!"},62,{"$error":"#REF!"},0,"-",0,{"$error":"#REF!"},null,"Jan Visser",6,0,null,"",98,"",0,"-",0,"",3,0,null,null,null,null,0,0,null,131,"",0,"-",0,"",1,null,null,null,null,null,null,null,null,null,"Klaas Zwaan","",null,null,null,0,null,null,null,null,null,null,null,0,null,0,null,null,null,null,null,null,null,0,null,0,null,null,null,null,null,null,null,0,null,0,null,null,null,null,null,null,null,0,null,null,0,null,null,null,null,null,null,0]
[null,14,{"$f":"IF(F23<>0,MAX($C$10:$C22)+1,\"\")","v":14},"Jan Visser",8,"Dlnr.",0.27941176470588236,30,null,"Jan Visser",{"$f":"IF(L23<>0,MAX($K$7:$K22)+1,\"\")","v":13},"Ja",0,null,null,null,null,null,null,null,null,null,null,64,null,null,null,0,"",0,64,{"$error":"#REF!"},64,{"$error":"#REF!"},0,"-",0,{"$error":"#REF!"},null,"Klaas Zwaan",8,0,null,"",110,"",0,"-",0,"",3,0,null,null,null,null,0,0,null,142,"",0,"-",0,"",3,null,null,null,null,null,null,null,null,null,"Piet Verweel","",null,null,null,0,null,null,null,null,null,null,null,0,null,0,null,null,null,null,null,null,null,0,null,0,null,null,null,null,null,null,null,0,null,0,null,null,null,null,null,null,null,0,null,null,0,null,null,null,null,null,null,0]
[null,15,{"$f":"IF(F24<>0,MAX($C$10:$C23)+1,\"\")","v":15},"Klaas Zwaan",9,"Dlnr.",0.29203539823008851,30,null,"Klaas Zwaan",{"$f":"IF(L24<>0,MAX($K$7:$K23)+1,\"\")","v":14},"Ja",0,null,null,null,null,null,null,null,null,null,null,65,null,null,null,null,"",null,65,{"$error":"#REF!"},65,{"$error":"#REF!"},0,"-",0,{"$error":"#REF!"},null,"Piet Verweel",6,0,null,"",142,"",0,"-",0,"",3,0,null,null,null,null,0,0,null,145,"",0,"-",0,"",1,null,null,null,null,null,null,null,null,null,"Ron Mölenkamp","",null,null,null,0,null,null,null,null,null,null,null,0,null,0,null,null,null,null,null,null,null,0,null,0,null,null,null,null,null,null,null,0,null,0,null,null,null,null,null,null,null,0,null,null,0,null,null,null,null,null,null,0]
[null,16,{"$f":"IF(F25<>0,MAX($C$10:$C24)+1,\"\")","v":16},"Piet Verweel",8,"Dlnr.",0.25600000000000001,30,null,"Piet Verweel",{"$f":"IF(L25<>0,MAX($K$7:$K24)+1,\"\")","v":15},"Ja",0,null,null,null,null,null,null,null,null,null,null,66,null,null,null,null,"",null,66,{"$error":"#REF!"},66,{"$error":"#REF!"},0,"-",0,{"$error":"#REF!"},null,"Ron Mölenkamp",2,0,null,4,44,"",0,"-",0,"",4,0,null,null,null,null,0,0,null,148,"",0,"-",0,"",2,null,null,null,null,null,null,null,null,null,null,"",null,null,null,0,null,null,null,null,null,null,null,0,null,0,null,null,null,null,null,null,null,0,null,0,null,null,null,null,null,null,null,0,null,0,null,null,null,null,null,null,null,0,null,null,0,null,null,null,null,null,null,0]
[null,17,{"$f":"IF(F26<>0,MAX($C$10:$C25)+1,\"\")","v":17},"Ron Mölenkamp",7,"Dlnr.",0.23599999999999999,30,null,"Ron Mölenkamp",{"$f":"IF(L26<>0,MAX($K$7:$K25)+1,\"\")","v":16},"Ja",0,null,null,null,null,null,null,null,null,null,null,67,null,null,null,null,"",null,67,{"$error":"#REF!"},67,{"$error":"#REF!"},0,"-",0,{"$error":"#REF!"},null,"","","",null,"",0,0,0,0,0,0,0,0,null,null,null,null,0,0,null,null,null,null,null,null,null,null,null,null,null,null,null,null,null,null,null,null,"",null,null,null,0,null,null,null,null,null,null,null,0,null,0,null,null,null,null,null,null,null,0,null,0,null,null,null,null,null,null,null,0,null,0,null,null,null,null,null,null,null,0,null,null,0,null,null,null,null,null,null,0]
[null,18,{"$f":"IF(F27<>0,MAX($C$10:$C26)+1,\"\")","v":""},"",0,0,0,"",null,"",{"$f":"IF(L27<>0,MAX($K$7:$K26)+1,\"\")","v":""},null,0,null,null,null,null,null,null,null,null,null,null,70,null,null,null,0,"",0,70,{"$error":"#REF!"},70,{"$error":"#REF!"},0,"-",0,{"$error":"#REF!"},null,{"$f":"IF(J27=\"\",\"\",_xlfn.XLOOKUP(B27,$K$10:$K$49,$J$10:$J$49,\"\"))","v":""},"","",null,"",0,0,0,0,0,0,0,0,null,null,null,null,0,0,null,null,null,null,null,null,null,null,null,null,null,null,null,null,null,null,null,null,"",null,null,null,0,null,null,null,null,null,null,null,0,null,0,null,null,null,null,null,null,null,0,null,0,null,null,null,null,null,null,null,0,null,0,null,null,null,null,null,null,null,0,null,null,0,null,null,null,null,null,null,0]
[null,19,{"$f":"IF(F28<>0,MAX($C$10:$C27)+1,\"\")","v":""},"",0,0,0,"",null,"",{"$f":"IF(L28<>0,MAX($K$7:$K27)+1,\"\")","v":""},null,0,null,null,null,null,null,null,null,null,null,null,74,null,null,null,0,"",0,74,{"$error":"#REF!"},74,{"$error":"#REF!"},0,"-",0,{"$error":"#REF!"},null,{"$f":"IF(J28=\"\",\"\",_xlfn.XLOOKUP(B28,$K$10:$K$49,$J$10:$J$49,\"\"))","v":""},"","",null,"",0,0,0,0,0,0,0,0,null,null,null,null,0,0,null,null,null,null,null,null,null,null,null,null,null,null,null,null,null,null,null,null,"",null,null,null,0,null,null,null,null,null,null,null,0,null,0,null,null,null,null,null,null,null,0,null,0,null,null,null,null,null,null,null,0,null,0,null,null,null,null,null,null,null,0,null,null,0,null,null,null,null,null,null,0]
[null,20,{"$f":"IF(F29<>0,MAX($C$10:$C28)+1,\"\")","v":""},"","",0,0,"",null,"",{"$f":"IF(L29<>0,MAX($K$7:$K28)+1,\"\")","v":""},null,0,null,null,null,null,null,null,null,null,null,null,77,null,null,null,null,"",null,77,{"$error":"#REF!"},77,{"$error":"#REF!"},0,"-",0,{"$error":"#REF!"},3,"","","",null,"",0,0,0,0,0,0,0,0,null,null,null,null,0,0,null,null,null,null,null,null,null,null,null,null,null,null,null,null,null,null,null,null,"",null,null,null,0,null,null,null,null,null,null,null,0,null,0,null,null,null,null,null,null,null,0,null,0,null,null,null,null,null,null,null,0,null,0,null,null,null,null,null,null,null,0,null,null,0,null,null,null,null,null,null,0]
[null,21,{"$f":"IF(F30<>0,MAX($C$10:$C29)+1,\"\")","v":""},"","",0,0,"",null,"",{"$f":"IF(L30<>0,MAX($K$7:$K29)+1,\"\")","v":""},null,0,null,null,null,null,null,null,null,null,null,null,78,null,null,null,78,0,null,78,{"$error":"#REF!"},78,{"$error":"#REF!"},0,"-",0,{"$error":"#REF!"},null,"","","",null,"",0,0,0,0,0,0,0,0,null,null,null,null,0,0,null,null,null,null,null,null,null,null,null,null,null,null,null,null,null,null,null,null,"",null,null,null,null,null,null,null,null,null,{"$f":"IFERROR(_xlfn.UNIQUE(_xlfn._xlws.FILTER($CY$10:$CY$49,$CZ$10:$CZ$49=1)),\"\")","v":""},null,0,null,null,null,null,null,null,null,null,null,0,null,null,null,null,null,null,null,null,null,0,null,null,null,null,null,null,null,null,null,0,null,null,null,null,null,null,null,null,null,0]
[null,22,{"$f":"IF(F31<>0,MAX($C$10:$C30)+1,\"\")","v":""},"","",0,0,"",null,"",{"$f":"IF(L31<>0,MAX($K$7:$K30)+1,\"\")","v":""},null,0,null,null,null,null,null,null,null,null,null,null,79,null,null,null,79,1,1,79,{"$error":"#REF!"},79,{"$error":"#REF!"},0,"-",0,{"$error":"#REF!"},1,"","","",null,"",0,0,0,0,0,0,0,0,null,null,null,null,0,0,null,null,null,null,null,null,null,null,null,null,null,null,null,null,null,null,null,null,"",null,null,null,null,null,null,null,null,null,null,null,0,null,null,null,null,null,null,null,null,null,0,null,null,null,null,null,null,null,null,null,0,null,null,null,null,null,null,null,null,null,0,null,null,null,null,null,null,null,null,null,0]
[null,23,{"$f":"IF(F32<>0,MAX($C$10:$C31)+1,\"\")","v":""},"","",0,0,"",null,"",{"$f":"IF(L32<>0,MAX($K$7:$K31)+1,\"\")","v":""},null,0,null,null,null,null,null,null,null,null,null,null,80,null,null,null,0,"",0,80,{"$error":"#REF!"},80,{"$error":"#REF!"},0,"-",0,{"$error":"#REF!"},null,"","","",null,"",0,0,0,0,0,0,0,0,null,null,null,null,0,0,null,null,null,null,null,null,null,null,null,null,null,null,null,null,null,null,null,null,"",null,null,null,null,null,null,null,null,null,null,null,0,null,null,null,null,null,null,null,null,null,0,null,null,null,null,null,null,null,null,null,0,null,null,null,null,null,null,null,null,null,0,null,null,null,null,null,null,null,null,null,0]
[null,24,{"$f":"IF(F33<>0,MAX($C$10:$C32)+1,\"\")","v":""},"","",0,0,"",null,"",{"$f":"IF(L33<>0,MAX($K$7:$K32)+1,\"\")","v":""},null,0,null,null,null,null,null,null,null,null,null,null,81,null,null,null,0,"",0,81,{"$error":"#REF!"},81,{"$error":"#REF!"},0,"-",0,{"$error":"#REF!"},null,"","","",null,"",0,0,0,0,0,0,0,0,null,null,null,null,0,0,null,null,null,null,null,null,null,null,null,null,null,null,null,null,null,null,null,null,"",null,null,null,null,null,null,null,null,null,null,null,0,null,null,null,null,null,null,null,null,null,0,null,null,null,null,null,null,null,null,null,0,null,null,null,null,null,null,null,null,null,0,null,null,null,null,null,null,null,null,null,0]
[null,25,{"$f":"IF(F34<>0,MAX($C$10:$C33)+1,\"\")","v":""},"","",0,0,"",null,"",{"$f":"IF(L34<>0,MAX($K$7:$K33)+1,\"\")","v":""},null,0,null,null,null,null,null,null,null,null,null,null,82,null,null,null,0,"",0,82,{"$error":"#REF!"},82,{"$error":"#REF!"},0,"-",0,{"$error":"#REF!"},null,"","","",null,"",0,0,0,0,0,0,0,0,null,null,null,null,0,0,null,null,null,null,null,null,null,null,null,null,null,null,null,null,null,null,null,null,"",null,null,null,null,null,null,null,null,null,null,null,0,null,null,null,null,null,null,null,null,null,0,null,null,null,null,null,null,null,null,null,0,null,null,null,null,null,null,null,null,null,0,null,null,null,null,null,null,null,null,null,0]
[null,26,{"$f":"IF(F35<>0,MAX($C$10:$C34)+1,\"\")","v":""},"","",0,0,"",null,"",{"$f":"IF(L35<>0,MAX($K$7:$K34)+1,\"\")","v":""},null,0,null,null,null,null,null,null,null,null,null,null,84,null,null,null,84,3,3,84,{"$error":"#REF!"},84,{"$error":"#REF!"},0,"-",0,{"$error":"#REF!"},3,"","","",null,"",0,0,0,0,0,0,0,0,null,null,null,null,0,0,null,null,null,null,null,null,null,null,null,null,null,null,null,null,null,null,null,null,"",null,null,null,null,null,null,null,null,null,null,null,0,null,null,null,null,null,null,null,null,null,0,null,null,null,null,null,null,null,null,null,0,null,null,null,null,null,null,null,null,null,0,null,null,null,null,null,null,null,null,null,0]
[null,27,{"$f":"IF(F36<>0,MAX($C$10:$C35)+1,\"\")","v":""},"","",0,0,"",null,"",{"$f":"IF(L36<>0,MAX($K$7:$K35)+1,\"\")","v":""},null,0,null,null,null,null,null,null,null,null,null,null,87,null,null,null,87,1,1,87,{"$error":"#REF!"},87,{"$error":"#REF!"},0,"-",0,{"$error":"#REF!"},1,"","","",null,"",0,0,0,0,0,0,0,0,null,null,null,null,0,0,null,null,null,null,null,null,null,null,null,null,null,null,null,null,null,null,null,null,"",null,null,null,null,null,null,null,null,null,null,null,0,null,null,null,null,null,null,null,null,null,0,null,null,null,null,null,null,null,null,null,0,null,null,null,null,null,null,null,null,null,0,null,null,null,null,null,null,null,null,null,0]
[null,28,{"$f":"IF(F37<>0,MAX($C$10:$C36)+1,\"\")","v":""},"","",0,0,"",null,"",{"$f":"IF(L37<>0,MAX($K$7:$K36)+1,\"\")","v":""},null,0,null,null,null,null,null,null,null,null,null,null,89,null,null,null,0,"",0,89,{"$error":"#REF!"},89,{"$error":"#REF!"},0,"-",0,{"$error":"#REF!"},null,"","","",null,"",0,0,0,0,0,0,0,0,null,null,null,null,0,0,null,null,null,null,null,null,null,null,null,null,null,null,null,null,null,null,null,null,"",null,null,null,null,null,null,null,null,null,null,null,0,null,null,null,null,null,null,null,null,null,0,null,null,null,null,null,null,null,null,null,0,null,null,null,null,null,null,null,null,null,0,null,null,null,null,null,null,null,null,null,0]
[null,29,{"$f":"IF(F38<>0,MAX($C$10:$C37)+1,\"\")","v":""},"","",0,0,"",null,"",{"$f":"IF(L38<>0,MAX($K$7:$K37)+1,\"\")","v":""},null,0,null,null,null,null,null,null,null,null,null,null,91,null,null,null,null,"",null,91,{"$error":"#REF!"},91,{"$error":"#REF!"},0,"-",0,{"$error":"#REF!"},null,"","","",null,"",0,0,0,0,0,0,0,0,null,null,null,null,0,0,null,null,null,null,null,null,null,null,null,null,null,null,null,null,null,null,null,null,"",null,null,null,null,null,null,null,null,null,null,null,0,null,null,null,null,null,null,null,null,null,0,null,null,null,null,null,null,null,null,null,0,null,null,null,null,null,null,null,null,null,0,null,null,null,null,null,null,null,null,null,0]
[null,30,{"$f":"IF(F39<>0,MAX($C$10:$C38)+1,\"\")","v":""},"","",0,0,"",null,"",{"$f":"IF(L39<>0,MAX($K$7:$K38)+1,\"\")","v":""},null,0,null,null,null,null,null,null,null,null,null,null,94,null,null,null,0,"",0,94,{"$error":"#REF!"},94,{"$error":"#REF!"},0,"-",0,{"$error":"#REF!"},null,"","","",null,"",0,0,0,0,0,0,0,0,null,null,null,null,0,0,null,null,null,null,null,null,null,null,null,null,null,null,null,null,null,null,null,null,"",null,null,null,null,null,null,null,null,null,null,null,0,null,null,null,null,null,null,null,null,null,0,null,null,null,null,null,null,null,null,null,0,null,null,null,null,null,null,null,null,null,0,null,null,null,null,null,null,null,null,null,0]
[null,31,{"$f":"IF(F40<>0,MAX($C$10:$C39)+1,\"\")","v":""},"","",0,0,"",null,"",{"$f":"IF(L40<>0,MAX($K$7:$K39)+1,\"\")","v":""},null,0,null,null,null,null,null,null,null,null,null,null,95,null,null,null,0,"",0,95,{"$error":"#REF!"},95,{"$error":"#REF!"},0,"-",0,{"$error":"#REF!"},null,"","","",null,"",0,0,0,0,0,0,0,0,null,null,null,null,0,0,null,null,null,null,null,null,null,null,null,null,null,null,null,null,null,null,null,null,"",null,null,null,null,null,null,null,null,null,{"$f":"IFERROR(_xlfn.UNIQUE(_xlfn._xlws.FILTER($CU$10:$CU$49,$CT$10:$CT$49=1)),\"\")","v":""},null,0,null,null,null,null,null,null,null,null,null,0,null,null,null,null,null,null,null,null,null,0,null,null,null,null,null,null,null,null,null,0,null,null,null,null,null,null,null,null,null,0]
[null,32,{"$f":"IF(F41<>0,MAX($C$10:$C40)+1,\"\")","v":""},"","",0,0,"",null,"",{"$f":"IF(L41<>0,MAX($K$7:$K40)+1,\"\")","v":""},null,0,null,null,null,null,null,null,null,null,null,null,97,null,null,null,0,"",0,97,{"$error":"#REF!"},97,{"$error":"#REF!"},0,"-",0,{"$error":"#REF!"},null,"","","",null,"",0,0,0,0,0,0,0,0,null,null,null,null,0,0,null,null,null,null,null,null,null,null,null,null,null,null,null,null,null,null,null,null,"",null,null,null,null,null,null,null,null,null,null,null,0,null,null,null,null,null,null,null,null,null,0,null,null,null,null,null,null,null,null,null,0,null,null,null,null,null,null,null,null,null,0,null,null,null,null,null,null,null,null,null,0]
[null,33,{"$f":"IF(F42<>0,MAX($C$10:$C41)+1,\"\")","v":""},"","",0,0,"",null,"",{"$f":"IF(L42<>0,MAX($K$7:$K41)+1,\"\")","v":""},null,0,null,null,null,null,null,null,null,null,null,null,98,null,null,null,98,3,3,98,{"$error":"#REF!"},98,{"$error":"#REF!"},0,"-",0,{"$error":"#REF!"},3,"","","",null,"",0,0,0,0,0,0,0,0,null,null,null,null,0,0,null,null,null,null,null,null,null,null,null,null,null,null,null,null,null,null,null,null,"",null,null,null,null,null,null,null,null,null,null,null,0,null,null,null,null,null,null,null,null,null,0,null,null,null,null,null,null,null,null,null,0,null,null,null,null,null,null,null,null,null,0,null,null,null,null,null,null,null,null,null,0]
[null,34,{"$f":"IF(F43<>0,MAX($C$10:$C42)+1,\"\")","v":""},"","",0,0,"",null,"",{"$f":"IF(L43<>0,MAX($K$7:$K42)+1,\"\")","v":""},null,0,null,null,null,null,null,null,null,null,null,null,99,null,null,null,0,"",0,99,{"$error":"#REF!"},99,{"$error":"#REF!"},0,"-",0,{"$error":"#REF!"},null,"","","",null,"",0,0,0,0,0,0,0,0,null,null,null,null,0,0,null,null,null,null,null,null,null,null,null,null,null,null,null,null,null,null,null,null,"",null,null,null,null,null,null,null,null,null,null,null,0,null,null,null,null,null,null,null,null,null,0,null,null,null,null,null,null,null,null,null,0,null,null,null,null,null,null,null,null,null,0,null,null,null,null,null,null,null,null,null,0]
[null,35,{"$f":"IF(F44<>0,MAX($C$10:$C43)+1,\"\")","v":""},"","",0,0,"",null,"",{"$f":"IF(L44<>0,MAX($K$7:$K43)+1,\"\")","v":""},null,0,null,null,null,null,null,null,null,null,null,null,100,null,null,null,0,"",0,100,{"$error":"#REF!"},100,{"$error":"#REF!"},0,"-",0,{"$error":"#REF!"},null,"","","",null,"",0,0,0,0,0,0,0,0,null,null,null,null,0,0,null,null,null,null,null,null,null,null,null,null,null,null,null,null,null,null,null,null,"",null,null,null,null,null,null,null,null,null,null,null,0,null,null,null,null,null,null,null,null,null,0,null,null,null,null,null,null,null,null,null,0,null,null,null,null,null,null,null,null,null,0,null,null,null,null,null,null,null,null,null,0]
[null,36,{"$f":"IF(F45<>0,MAX($C$10:$C44)+1,\"\")","v":""},"","",0,0,"",null,"",{"$f":"IF(L45<>0,MAX($K$7:$K44)+1,\"\")","v":""},null,0,null,null,null,null,null,null,null,null,null,null,101,null,null,null,0,"",0,101,{"$error":"#REF!"},101,{"$error":"#REF!"},0,"-",0,{"$error":"#REF!"},null,"","","",null,"",0,0,0,0,0,0,0,0,null,null,null,null,0,0,null,null,null,null,null,null,null,null,null,null,null,null,null,null,null,null,null,null,"",null,null,null,null,null,null,null,null,null,null,null,0,null,null,null,null,null,null,null,null,null,0,null,null,null,null,null,null,null,null,null,0,null,null,null,null,null,null,null,null,null,0,null,null,null,null,null,null,null,null,null,0]
[null,37,{"$f":"IF(F46<>0,MAX($C$10:$C45)+1,\"\")","v":""},"","",0,0,"",null,"",{"$f":"IF(L46<>0,MAX($K$7:$K45)+1,\"\")","v":""},null,0,null,null,null,null,null,null,null,null,null,null,103,null,null,null,0,"",0,103,{"$error":"#REF!"},103,{"$error":"#REF!"},0,"-",0,{"$error":"#REF!"},null,"","","",null,"",0,0,0,0,0,0,0,0,null,null,null,null,0,0,null,null,null,null,null,null,null,null,null,null,null,null,null,null,null,null,null,null,"",null,null,null,null,null,null,null,null,null,null,null,0,null,null,null,null,null,null,null,null,null,0,null,null,null,null,null,null,null,null,null,0,null,null,null,null,null,null,null,null,null,0,null,null,null,null,null,null,null,null,null,0]
[null,38,{"$f":"IF(F47<>0,MAX($C$10:$C46)+1,\"\")","v":""},"","",0,0,"",null,"",{"$f":"IF(L47<>0,MAX($K$7:$K46)+1,\"\")","v":""},null,0,null,null,null,null,null,null,null,null,null,null,104,null,null,null,0,"",0,104,{"$error":"#REF!"},104,{"$error":"#REF!"},0,"-",0,{"$error":"#REF!"},null,"","","",null,"",0,0,0,0,0,0,0,0,null,null,null,null,0,0,null,null,null,null,null,null,null,null,null,null,null,null,null,null,null,null,null,null,"",null,null,null,null,null,null,null,null,null,null,null,0,null,null,null,null,null,null,null,null,null,0,null,null,null,null,null,null,null,null,null,0,null,null,null,null,null,null,null,null,null,0,null,null,null,null,null,null,null,null,null,0]
[null,39,{"$f":"IF(F48<>0,MAX($C$10:$C47)+1,\"\")","v":""},"","",0,0,"",null,"",{"$f":"IF(L48<>0,MAX($K$7:$K47)+1,\"\")","v":""},null,0,null,null,null,null,null,null,null,null,null,null,106,null,null,null,0,"",0,106,{"$error":"#REF!"},106,{"$error":"#REF!"},0,"-",0,{"$error":"#REF!"},null,"","","",null,"",0,0,0,0,0,0,0,0,null,null,null,null,0,0,null,null,null,null,null,null,null,null,null,null,null,null,null,null,null,null,null,null,"",null,null,null,null,null,null,null,null,null,null,null,0,null,null,null,null,null,null,null,null,null,0,null,null,null,null,null,null,null,null,null,0,null,null,null,null,null,null,null,null,null,0,null,null,null,null,null,null,null,null,null,0]
[null,40,{"$f":"IF(F49<>0,MAX($C$10:$C48)+1,\"\")","v":""},null,null,null,null,"",null,{"$f":"IF(D49=\"\",\"\",_xlfn.XLOOKUP(B49,$C$10:$C$49,$D$10:$D$49,\"\"))","v":""},{"$f":"IF(L49<>0,MAX($K$7:$K48)+1,\"\")","v":""},null,0,null,null,null,null,null,null,null,null,null,null,107,null,null,null,0,"",0,107,{"$error":"#REF!"},107,{"$error":"#REF!"},0,"-",0,{"$error":"#REF!"},null,"","","",null,"",0,0,0,0,0,0,0,0,null,null,null,null,0,0,null,null,null,null,null,null,null,null,null,null,null,null,null,null,null,null,null,null,"",null,null,null,null,null,null,null,null,null,null,null,0,null,null,null,null,null,null,null,null,null,0,null,null,null,null,null,null,null,null,null,0,null,null,null,null,null,null,null,null,null,0,null,null,null,null,null,null,null,null,null,0]
[null,41,{"$f":"IF(F50<>0,MAX($C$10:$C49)+1,\"\")","v":""},null,null,null,null,null,null,null,null,null,null,null,null,null,null,null,null,null,null,null,null,110,null,null,null,110,3,3,110,{"$error":"#REF!"},110,{"$error":"#REF!"},0,"-",0,{"$error":"#REF!"},3,null,null,null,null,null,0,0,0,0,0,0,0,0,null,null,null,0,0]
[null,42,{"$f":"IF(F51<>0,MAX($C$10:$C50)+1,\"\")","v":""},null,null,null,null,null,null,null,null,null,null,null,null,null,null,null,null,null,null,null,null,112,null,null,null,112,1,1,112,{"$error":"#REF!"},112,{"$error":"#REF!"},0,"-",0,{"$error":"#REF!"},1,null,null,null,null,null,0,0,0,0,0,0,0,0,null,null,null,0,0]
[null,43,{"$f":"IF(F52<>0,MAX($C$10:$C51)+1,\"\")","v":""},null,null,null,null,null,null,null,null,null,null,null,null,null,null,null,null,null,null,null,null,114,null,null,null,0,"",0,114,{"$error":"#REF!"},114,{"$error":"#REF!"},0,"-",0,{"$error":"#REF!"},null,null,null,null,null,null,0,0,0,0,0,0,0,0,null,null,null,0,0]
[null,44,{"$f":"IF(F53<>0,MAX($C$10:$C52)+1,\"\")","v":""},null,null,null,null,null,null,null,null,null,null,null,null,null,null,null,null,null,null,null,null,115,null,null,null,115,2,2,115,{"$error":"#REF!"},115,{"$error":"#REF!"},0,"-",0,{"$error":"#REF!"},2,null,null,null,null,null,0,0,0,0,0,0,0,0,null,null,null,0,0]
[null,45,{"$f":"IF(F54<>0,MAX($C$10:$C53)+1,\"\")","v":""},null,null,null,null,null,null,null,null,null,null,null,null,null,null,null,null,null,null,null,null,117,null,null,null,0,"",0,117,{"$error":"#REF!"},117,{"$error":"#REF!"},0,"-",0,{"$error":"#REF!"},null,null,null,null,null,null,0,0,0,0,0,0,0,0,null,null,null,0,0]
[null,46,{"$f":"IF(F55<>0,MAX($C$10:$C54)+1,\"\")","v":""},null,null,null,null,null,null,null,null,null,null,null,null,null,null,null,null,null,null,null,null,118,null,null,null,0,"",0,118,{"$error":"#REF!"},118,{"$error":"#REF!"},0,"-",0,{"$error":"#REF!"},null,null,null,null,null,null,0,0,0,0,0,0,0,0,null,null,null,0,0]
[null,47,{"$f":"IF(F56<>0,MAX($C$10:$C55)+1,\"\")","v":""},null,null,null,null,null,null,null,null,null,null,null,null,null,null,null,null,null,null,null,null,124,null,null,null,0,"",0,124,{"$error":"#REF!"},124,{"$error":"#REF!"},0,"-",0,{"$error":"#REF!"},null,null,null,null,null,null,0,0,0,0,0,0,0,0,null,null,null,0,0]
[null,48,{"$f":"IF(F57<>0,MAX($C$10:$C56)+1,\"\")","v":""},null,null,null,null,null,null,null,null,null,null,null,null,null,null,null,null,null,null,null,null,125,null,null,null,0,"",0,125,{"$error":"#REF!"},125,{"$error":"#REF!"},0,"-",0,{"$error":"#REF!"},null,null,null,null,null,null,0,0,0,0,0,0,0,0,null,null,null,0,0]
[null,49,{"$f":"IF(F58<>0,MAX($C$10:$C57)+1,\"\")","v":""},null,null,null,null,null,null,null,null,null,null,null,null,null,null,null,null,null,null,null,null,127,null,null,null,0,"",0,127,{"$error":"#REF!"},127,{"$error":"#REF!"},0,"-",0,{"$error":"#REF!"},null,null,null,null,null,null,0,0,0,0,0,0,0,0,null,null,null,0,0]
[null,50,{"$f":"IF(F59<>0,MAX($C$10:$C58)+1,\"\")","v":""},null,null,null,null,null,null,null,null,null,null,null,null,null,null,null,null,null,null,null,null,128,null,null,null,0,"",0,128,{"$error":"#REF!"},128,{"$error":"#REF!"},0,"-",0,{"$error":"#REF!"},null,null,null,null,null,null,0,0,0,0,0,0,0,0,null,null,null,0,0]
[null,51,{"$f":"IF(F60<>0,MAX($C$10:$C59)+1,\"\")","v":""},null,null,null,null,null,null,null,null,null,null,null,null,null,null,null,null,null,null,null,null,131,null,null,null,131,1,1,131,{"$error":"#REF!"},131,{"$error":"#REF!"},0,"-",0,{"$error":"#REF!"},1,null,null,null,null,null,0,0,0,0,0,0,0,0,null,null,null,0,0]
[null,52,{"$f":"IF(F61<>0,MAX($C$10:$C60)+1,\"\")","v":""},null,null,null,null,null,null,null,null,null,null,null,null,null,null,null,null,null,null,null,null,133,null,null,null,0,"",0,133,{"$error":"#REF!"},133,{"$error":"#REF!"},0,"-",0,{"$error":"#REF!"},null,null,null,null,null,null,0,0,0,0,0,0,0,0,null,null,null,0,0]
[null,53,{"$f":"IF(F62<>0,MAX($C$10:$C61)+1,\"\")","v":""},null,null,null,null,null,null,null,null,null,null,null,null,null,null,null,null,null,null,null,null,134,null,null,null,0,"",0,134,{"$error":"#REF!"},134,{"$error":"#REF!"},0,"-",0,{"$error":"#REF!"},null,null,null,null,null,null,0,0,0,0,0,0,0,0,null,null,null,0,0]
[null,54,{"$f":"IF(F63<>0,MAX($C$10:$C62)+1,\"\")","v":""},null,null,null,null,null,null,null,null,null,null,null,null,null,null,null,null,null,null,null,null,135,null,null,null,0,"",0,135,{"$error":"#REF!"},135,{"$error":"#REF!"},0,"-",0,{"$error":"#REF!"},null,null,null,null,null,null,0,0,0,0,0,0,0,0,null,null,null,0,0]
[null,55,{"$f":"IF(F64<>0,MAX($C$10:$C63)+1,\"\")","v":""},null,null,null,null,null,null,null,null,null,null,null,null,null,null,null,null,null,null,null,null,137,null,null,null,0,"",0,137,{"$error":"#REF!"},137,{"$error":"#REF!"},0,"-",0,{"$error":"#REF!"},null,null,null,null,null,null,0,0,0,0,0,0,0,0,null,null,null,0,0]
[null,56,{"$f":"IF(F65<>0,MAX($C$10:$C64)+1,\"\")","v":""},null,null,null,null,null,null,null,null,null,null,null,null,null,null,null,null,null,null,null,null,138,null,null,null,0,"",0,138,{"$error":"#REF!"},138,{"$error":"#REF!"},0,"-",0,{"$error":"#REF!"},null,null,null,null,null,null,0,0,0,0,0,0,0,0,null,null,null,0]
[null,57,{"$f":"IF(F66<>0,MAX($C$10:$C65)+1,\"\")","v":""},null,null,null,null,null,null,null,null,null,null,null,null,null,null,null,null,null,null,null,null,140,null,null,null,0,"",0,140,{"$error":"#REF!"},140,{"$error":"#REF!"},0,"-",0,{"$error":"#REF!"},null,null,null,null,null,null,0,0,0,0,0,0,0,0,null,null,null,0]
[null,58,{"$f":"IF(F67<>0,MAX($C$10:$C66)+1,\"\")","v":""},null,null,null,null,null,null,null,null,null,null,null,null,null,null,null,null,null,null,null,null,142,null,null,null,142,3,3,142,{"$error":"#REF!"},142,{"$error":"#REF!"},0,"-",0,{"$error":"#REF!"},3,null,null,null,null,null,0,0,0,0,0,0,0,0,null,null,null,0]
[null,59,{"$f":"IF(F68<>0,MAX($C$10:$C67)+1,\"\")","v":""},null,null,null,null,null,null,null,null,null,null,null,null,null,null,null,null,null,null,null,null,143,null,null,null,0,"",0,143,{"$error":"#REF!"},143,{"$error":"#REF!"},0,"-",0,{"$error":"#REF!"},null,null,null,null,null,null,0,0,0,0,0,0,0,0,null,null,null,0]
[null,60,{"$f":"IF(F69<>0,MAX($C$10:$C68)+1,\"\")","v":""},null,null,null,null,null,null,null,null,null,null,null,null,null,null,null,null,null,null,null,null,145,null,null,null,145,1,1,145,{"$error":"#REF!"},145,{"$error":"#REF!"},0,"-",0,{"$error":"#REF!"},1,null,null,null,null,null,0,0,0,0,0,0,0,0,null,null,null,0]
[null,61,{"$f":"IF(F70<>0,MAX($C$10:$C69)+1,\"\")","v":""},null,null,null,null,null,null,null,null,null,null,null,null,null,null,null,null,null,null,null,null,146,null,null,null,0,"",0,146,{"$error":"#REF!"},146,{"$error":"#REF!"},0,"-",0,{"$error":"#REF!"},null,null,null,null,null,null,0,0,0,0,0,0,0,0,null,null,null,0]
[null,62,{"$f":"IF(F71<>0,MAX($C$10:$C70)+1,\"\")","v":""},null,null,null,null,null,null,null,null,null,null,null,null,null,null,null,null,null,null,null,null,148,null,null,null,148,2,2,148,{"$error":"#REF!"},148,{"$error":"#REF!"},0,"-",0,{"$error":"#REF!"},2,null,null,null,null,null,0,0,0,0,0,0,0,0]
[null,63,{"$f":"IF(F72<>0,MAX($C$10:$C71)+1,\"\")","v":""},null,null,null,null,null,null,null,null,null,null,null,null,null,null,null,null,null,null,null,null,149,null,null,null,0,"",0,149,{"$error":"#REF!"},149,{"$error":"#REF!"},0,"-",0,{"$error":"#REF!"},null,null,null,null,null,null,0,0,0,0,0,0,0,0]
[null,64,{"$f":"IF(F73<>0,MAX($C$10:$C72)+1,\"\")","v":""},null,null,null,null,null,null,null,null,null,null,null,null,null,null,null,null,null,null,null,null,150,null,null,null,null,"",null,150,{"$error":"#REF!"},150,{"$error":"#REF!"},0,"-",0,{"$error":"#REF!"},null,null,null,null,null,null,0,0,0,0,0,0,0,0]
[null,65,{"$f":"IF(F74<>0,MAX($C$10:$C73)+1,\"\")","v":""},null,null,null,null,null,null,null,null,null,null,null,null,null,null,null,null,null,null,null,null,152,null,null,null,0,"",0,152,{"$error":"#REF!"},152,{"$error":"#REF!"},0,{"$f":"IF(AG74=\"\",\"\",\"-\")","v":"-"},0,{"$error":"#REF!"},null,null,null,null,null,null,0,0,0,0,0,0,0,0,null,null,null,0]
[null,66,{"$f":"IF(F75<>0,MAX($C$10:$C74)+1,\"\")","v":""},null,null,null,null,null,null,null,null,null,null,null,null,null,null,null,null,null,null,null,null,null,null,null,null,0,0,0,null,{"$f":"_xlfn.XLOOKUP(AH75,$J$10:$J$49,$M$10:$M$49,\"\")+_xlfn.XLOOKUP(AL75,$J$10:$J$49,$M$10:$M$49,\"\")","v":{"$error":"#REF!"}},{"$f":"AE75","v":0},{"$error":"#REF!"},{"$f":"IFERROR(IF(AH75=\"\",\"\",IF(OR($L$8=\"Nee\",AF75=0),_xlfn.XLOOKUP(AH75,$D$10:$D$49,$E$10:$E$49),ROUND(_xlfn.XLOOKUP(AH75,$D$10:$D$49,$E$10:$E$49)*AF75,0))),0)","v":0},"-",{"$f":"IFERROR(IF(AH75=\"\",\"\",IF(OR($L$8=\"Nee\",AF75=0),_xlfn.XLOOKUP(AL75,$D$10:$D$49,$E$10:$E$49)*1,ROUND(_xlfn.XLOOKUP(AL75,$D$10:$D$49,$E$10:$E$49)*AF75,0))),0)","v":0},{"$error":"#REF!"},0,null,null,null,null,null,0,0,0,0,0,0,0,0,null,null,null,0]
[null,67,{"$f":"IF(F76<>0,MAX($C$10:$C75)+1,\"\")","v":""},null,null,null,null,null,null,null,null,null,null,null,null,null,null,null,null,null,null,null,null,null,null,null,null,0,0,0,null,{"$error":"#REF!"},0,{"$error":"#REF!"},0,"-",0,{"$error":"#REF!"},0,null,null,null,null,null,0,0,0,0,0,0,0,{"$f":"AW76","v":0},null,null,null,0]
[null,68,{"$f":"IF(F77<>0,MAX($C$10:$C76)+1,\"\")","v":""},null,null,null,null,null,null,null,null,null,null,null,null,null,null,null,null,null,null,null,null,null,null,null,null,0,{"$f":"IFERROR(_xlfn.XLOOKUP(AG77,$AB$10:$AB$789,$AD$10:$AD$789),\"\")","v":0},0,null,{"$error":"#REF!"},0,{"$error":"#REF!"},0,"-",0,{"$error":"#REF!"},0,null,null,null,null,null,0,0,0,0,0,0,0,0,null,null,null,0]
[null,69,{"$f":"IF(F78<>0,MAX($C$10:$C77)+1,\"\")","v":""},null,null,null,null,null,null,null,null,null,null,null,null,null,null,null,null,null,null,null,null,null,null,null,null,0,0,0,null,{"$error":"#REF!"},0,{"$error":"#REF!"},0,"-",0,{"$error":"#REF!"},0,null,null,null,null,null,0,0,0,0,0,0,0,0,null,null,null,0]
[null,70,{"$f":"IF(F79<>0,MAX($C$10:$C78)+1,\"\")","v":""},null,null,null,null,null,null,null,null,null,null,null,null,null,null,null,null,null,null,null,null,null,null,null,null,0,0,0,null,{"$error":"#REF!"},0,{"$error":"#REF!"},0,"-",0,{"$error":"#REF!"},0,null,null,null,null,null,0,0,0,0,0,0,0,0,null,null,null,0]
[null,71,{"$f":"IF(F80<>0,MAX($C$10:$C79)+1,\"\")","v":""},null,null,null,null,null,null,null,null,null,null,null,null,null,null,null,null,null,null,null,null,null,null,null,null,0,0,0,null,{"$error":"#REF!"},0,{"$error":"#REF!"},0,"-",0,{"$error":"#REF!"},0,null,null,null,null,null,0,0,0,0,0,0,0,0,null,null,null,0]
[null,72,{"$f":"IF(F81<>0,MAX($C$10:$C80)+1,\"\")","v":""},null,null,null,null,null,null,null,null,null,null,null,null,null,null,null,null,null,null,null,null,null,null,null,null,0,0,0,null,{"$error":"#REF!"},0,{"$error":"#REF!"},0,"-",0,{"$error":"#REF!"},0,null,null,null,null,null,0,0,0,0,0,0,0,0,null,null,null,0]
[null,73,{"$f":"IF(F82<>0,MAX($C$10:$C81)+1,\"\")","v":""},null,null,null,null,null,null,null,null,null,null,null,null,null,null,null,null,null,null,null,null,null,null,null,null,0,0,0,null,{"$error":"#REF!"},0,{"$error":"#REF!"},0,"-",0,{"$error":"#REF!"},0,null,null,null,null,null,0,0,0,0,0,0,0,0,null,null,null,0]
[null,74,{"$f":"IF(F83<>0,MAX($C$10:$C82)+1,\"\")","v":""},null,null,null,null,null,null,null,null,null,null,null,null,null,null,null,null,null,null,null,null,null,null,null,null,0,0,0,null,{"$error":"#REF!"},0,{"$error":"#REF!"},0,"-",0,{"$error":"#REF!"},0,null,null,null,null,null,0,0,0,0,0,0,0,0,null,null,null,0]
[null,75,{"$f":"IF(F84<>0,MAX($C$10:$C83)+1,\"\")","v":""},null,null,null,null,null,null,null,null,null,null,null,null,null,null,null,null,null,null,null,null,null,null,null,null,0,0,0,null,{"$error":"#REF!"},0,{"$error":"#REF!"},0,"-",0,{"$error":"#REF!"},0,null,null,null,null,null,0,0,0,0,0,0,0,0,null,null,null,0]
[null,76,{"$f":"IF(F85<>0,MAX($C$10:$C84)+1,\"\")","v":""},null,null,null,null,null,null,null,null,null,null,null,null,null,null,null,null,null,null,null,null,null,null,null,null,0,0,0,null,{"$error":"#REF!"},0,{"$error":"#REF!"},0,"-",0,{"$error":"#REF!"},0,null,null,null,null,null,0,0,0,0,0,0,0,0,null,null,null,0]
[null,77,{"$f":"IF(F86<>0,MAX($C$10:$C85)+1,\"\")","v":""},null,null,null,null,null,null,null,null,null,null,null,null,null,null,null,null,null,null,null,null,null,null,null,null,0,0,0,null,{"$error":"#REF!"},0,{"$error":"#REF!"},0,"-",0,{"$error":"#REF!"},0,null,null,null,null,null,0,0,0,0,0,0,0,0,null,null,null,0]
[null,78,{"$f":"IF(F87<>0,MAX($C$10:$C86)+1,\"\")","v":""},null,null,null,null,null,null,null,null,null,null,null,null,null,null,null,null,null,null,null,null,null,null,null,null,0,0,0,null,{"$error":"#REF!"},0,{"$error":"#REF!"},0,"-",0,{"$error":"#REF!"},0,null,null,null,null,null,0,0,0,0,0,0,0,0,null,null,null,0]
[null,79,{"$f":"IF(F88<>0,MAX($C$10:$C87)+1,\"\")","v":""},null,null,null,null,null,null,null,null,null,null,null,null,null,null,null,null,null,null,null,null,null,null,null,null,0,0,0,null,{"$error":"#REF!"},0,{"$error":"#REF!"},0,"-",0,{"$error":"#REF!"},0,null,null,null,null,null,0,0,0,0,0,0,0,0,null,null,null,0]
[null,80,{"$f":"IF(F89<>0,MAX($C$10:$C88)+1,\"\")","v":""},null,null,null,null,null,null,null,null,null,null,null,null,null,null,null,null,null,null,null,null,null,null,null,null,0,0,0,null,{"$error":"#REF!"},0,{"$error":"#REF!"},0,"-",0,{"$error":"#REF!"},0,null,null,null,null,null,0,0,0,0,0,0,0,0,null,null,null,0]
[null,81,{"$f":"IF(F90<>0,MAX($C$10:$C89)+1,\"\")","v":""},null,null,null,null,null,null,null,null,null,null,null,null,null,null,null,null,null,null,null,null,null,null,null,null,0,0,0,null,{"$error":"#REF!"},0,{"$error":"#REF!"},0,"-",0,{"$error":"#REF!"},0,null,null,null,null,null,0,0,0,0,0,0,0,0,null,null,null,0]
[null,82,{"$f":"IF(F91<>0,MAX($C$10:$C90)+1,\"\")","v":""},null,null,null,null,null,null,null,null,null,null,null,null,null,null,null,null,null,null,null,null,null,null,null,null,0,0,0,null,{"$error":"#REF!"},0,{"$error":"#REF!"},0,"-",0,{"$error":"#REF!"},0,null,null,null,null,null,0,0,0,0,0,0,0,0,null,null,null,0]
[null,83,{"$f":"IF(F92<>0,MAX($C$10:$C91)+1,\"\")","v":""},null,null,null,null,null,null,null,null,null,null,null,null,null,null,null,null,null,null,null,null,null,null,null,null,0,0,0,null,{"$error":"#REF!"},0,{"$error":"#REF!"},0,"-",0,{"$error":"#REF!"},0,null,null,null,null,null,0,0,0,0,0,0,0,0,null,null,null,0]
[null,84,{"$f":"IF(F93<>0,MAX($C$10:$C92)+1,\"\")","v":""},null,null,null,null,null,null,null,null,null,null,null,null,null,null,null,null,null,null,null,null,null,null,null,null,0,0,0,null,{"$error":"#REF!"},0,{"$error":"#REF!"},0,"-",0,{"$error":"#REF!"},0,null,null,null,null,null,0,0,0,0,0,0,0,0,null,null,null,0]
[null,85,{"$f":"IF(F94<>0,MAX($C$10:$C93)+1,\"\")","v":""},null,null,null,null,null,null,null,null,null,null,null,null,null,null,null,null,null,null,null,null,null,null,null,null,0,0,0,null,{"$error":"#REF!"},0,{"$error":"#REF!"},0,"-",0,{"$error":"#REF!"},0,null,null,null,null,null,0,0,0,0,0,0,0,0,null,null,null,0]
[null,86,{"$f":"IF(F95<>0,MAX($C$10:$C94)+1,\"\")","v":""},null,null,null,null,null,null,null,null,null,null,null,null,null,null,null,null,null,null,null,null,null,null,null,null,0,0,0,null,{"$error":"#REF!"},0,{"$error":"#REF!"},0,"-",0,{"$error":"#REF!"},0,null,null,null,null,null,0,0,0,0,0,0,0,0,null,null,null,0]
[null,87,{"$f":"IF(F96<>0,MAX($C$10:$C95)+1,\"\")","v":""},null,null,null,null,null,null,null,null,null,null,null,null,null,null,null,null,null,null,null,null,null,null,null,null,0,0,0,null,{"$error":"#REF!"},0,{"$error":"#REF!"},0,"-",0,{"$error":"#REF!"},0,null,null,null,null,null,0,0,0,0,0,0,0,0,null,null,null,0]
[null,88,{"$f":"IF(F97<>0,MAX($C$10:$C96)+1,\"\")","v":""},null,null,null,null,null,null,null,null,null,null,null,null,null,null,null,null,null,null,null,null,null,null,null,null,0,0,0,null,{"$error":"#REF!"},0,{"$error":"#REF!"},0,"-",0,{"$error":"#REF!"},0,null,null,null,null,null,0,0,0,0,0,0,0,0,null,null,null,0]
[null,89,{"$f":"IF(F98<>0,MAX($C$10:$C97)+1,\"\")","v":""},null,null,null,null,null,null,null,null,null,null,null,null,null,null,null,null,null,null,null,null,null,null,null,null,0,0,0,null,{"$error":"#REF!"},0,{"$error":"#REF!"},0,"-",0,{"$error":"#REF!"},0,null,null,null,null,null,0,0,0,0,0,0,0,0,null,null,null,0]
[null,90,{"$f":"IF(F99<>0,MAX($C$10:$C98)+1,\"\")","v":""},null,null,null,null,null,null,null,null,null,null,null,null,null,null,null,null,null,null,null,null,null,null,null,null,0,0,0,null,{"$error":"#REF!"},0,{"$error":"#REF!"},0,"-",0,{"$error":"#REF!"},0,null,null,null,null,null,0,0,0,0,0,0,0,0,null,null,null,0]
[null,91,{"$f":"IF(F100<>0,MAX($C$10:$C99)+1,\"\")","v":""},null,null,null,null,null,null,null,null,null,null,null,null,null,null,null,null,null,null,null,null,null,null,null,null,0,0,0,null,{"$error":"#REF!"},0,{"$error":"#REF!"},0,"-",0,{"$error":"#REF!"},0,null,null,null,null,null,0,0,0,0,0,0,0,0,null,null,null,0]
[null,92,{"$f":"IF(F101<>0,MAX($C$10:$C100)+1,\"\")","v":""},null,null,null,null,null,null,null,null,null,null,null,null,null,null,null,null,null,null,null,null,null,null,null,null,0,0,0,null,{"$error":"#REF!"},0,{"$error":"#REF!"},0,"-",0,{"$error":"#REF!"},0,null,null,null,null,null,0,0,0,0,0,0,0,0,null,null,null,0]
[null,93,{"$f":"IF(F102<>0,MAX($C$10:$C101)+1,\"\")","v":""},null,null,null,null,null,null,null,null,null,null,null,null,null,null,null,null,null,null,null,null,null,null,null,null,0,0,0,null,{"$error":"#REF!"},0,{"$error":"#REF!"},0,"-",0,{"$error":"#REF!"},0,null,null,null,null,null,0,0,0,0,0,0,0,0,null,null,null,0]
[null,94,{"$f":"IF(F103<>0,MAX($C$10:$C102)+1,\"\")","v":""},null,null,null,null,null,null,null,null,null,null,null,null,null,null,null,null,null,null,null,null,null,null,null,null,0,0,0,null,{"$error":"#REF!"},0,{"$error":"#REF!"},0,"-",0,{"$error":"#REF!"},0,null,null,null,null,null,0,0,0,0,0,0,0,0,null,null,null,0]
[null,95,{"$f":"IF(F104<>0,MAX($C$10:$C103)+1,\"\")","v":""},null,null,null,null,null,null,null,null,null,null,null,null,null,null,null,null,null,null,null,null,null,null,null,null,0,0,0,null,{"$error":"#REF!"},0,{"$error":"#REF!"},0,"-",0,{"$error":"#REF!"},0,null,null,null,null,null,0,0,0,0,0,0,0,0,null,null,null,0]
[null,96,{"$f":"IF(F105<>0,MAX($C$10:$C104)+1,\"\")","v":""},null,null,null,null,null,null,null,null,null,null,null,null,null,null,null,null,null,null,null,null,null,null,null,null,0,0,0,null,{"$error":"#REF!"},0,{"$error":"#REF!"},0,"-",0,{"$error":"#REF!"},0,null,null,null,null,null,0,0,0,0,0,0,0,0,null,null,null,0]
[null,97,{"$f":"IF(F106<>0,MAX($C$10:$C105)+1,\"\")","v":""},null,null,null,null,null,null,null,null,null,null,null,null,null,null,null,null,null,null,null,null,null,null,null,null,0,0,0,null,{"$error":"#REF!"},0,{"$error":"#REF!"},0,"-",0,{"$error":"#REF!"},0,null,null,null,null,null,0,0,0,0,0,0,0,0,null,null,null,0]
[null,98,{"$f":"IF(F107<>0,MAX($C$10:$C106)+1,\"\")","v":""},null,null,null,null,null,null,null,null,null,null,null,null,null,null,null,null,null,null,null,null,null,null,null,null,0,0,0,null,{"$error":"#REF!"},0,{"$error":"#REF!"},0,"-",0,{"$error":"#REF!"},0,null,null,null,null,null,0,0,0,0,0,0,0,0,null,null,null,0]
[null,99,{"$f":"IF(F108<>0,MAX($C$10:$C107)+1,\"\")","v":""},null,null,null,null,null,null,null,null,null,null,null,null,null,null,null,null,null,null,null,null,null,null,null,null,0,0,0,null,{"$error":"#REF!"},0,{"$error":"#REF!"},0,"-",0,{"$error":"#REF!"},0,null,null,null,null,null,0,0,0,0,0,0,0,0,null,null,null,0]
[null,100,{"$f":"IF(F109<>0,MAX($C$10:$C108)+1,\"\")","v":""},null,null,null,null,null,null,null,null,null,null,null,null,null,null,null,null,null,null,null,null,null,null,null,null,0,0,0,null,{"$error":"#REF!"},0,{"$error":"#REF!"},0,"-",0,{"$error":"#REF!"},0,null,null,null,null,null,0,0,0,0,0,0,0,0,null,null,null,0]
[null,101,{"$f":"IF(F110<>0,MAX($C$10:$C109)+1,\"\")","v":""},null,null,null,null,null,null,null,null,null,null,null,null,null,null,null,null,null,null,null,null,null,null,null,null,0,0,0,null,{"$error":"#REF!"},0,{"$error":"#REF!"},0,"-",0,{"$error":"#REF!"},0,null,null,null,null,null,0,0,0,0,0,0,0,0,null,null,null,0]
[null,102,{"$f":"IF(F111<>0,MAX($C$10:$C110)+1,\"\")","v":""},null,null,null,null,null,null,null,null,null,null,null,null,null,null,null,null,null,null,null,null,null,null,null,null,0,0,0,null,{"$error":"#REF!"},0,{"$error":"#REF!"},0,"-",0,{"$error":"#REF!"},0,null,null,null,null,null,0,0,0,0,0,0,0,0,null,null,null,0]
[null,103,{"$f":"IF(F112<>0,MAX($C$10:$C111)+1,\"\")","v":""},null,null,null,null,null,null,null,null,null,null,null,null,null,null,null,null,null,null,null,null,null,null,null,null,0,0,0,null,{"$error":"#REF!"},0,{"$error":"#REF!"},0,"-",0,{"$error":"#REF!"},0,null,null,null,null,null,0,0,0,0,0,0,0,0,null,null,null,0]
[null,104,{"$f":"IF(F113<>0,MAX($C$10:$C112)+1,\"\")","v":""},null,null,null,null,null,null,null,null,null,null,null,null,null,null,null,null,null,null,null,null,null,null,null,null,0,0,0,null,{"$error":"#REF!"},0,{"$error":"#REF!"},0,"-",0,{"$error":"#REF!"},0,null,null,null,null,null,0,0,0,0,0,0,0,0,null,null,null,0]
[null,105,{"$f":"IF(F114<>0,MAX($C$10:$C113)+1,\"\")","v":""},null,null,null,null,null,null,null,null,null,null,null,null,null,null,null,null,null,null,null,null,null,null,null,null,0,0,0,null,{"$error":"#REF!"},0,{"$error":"#REF!"},0,"-",0,{"$error":"#REF!"},0,null,null,null,null,null,0,0,0,0,0,0,0,0,null,null,null,0]
[null,106,{"$f":"IF(F115<>0,MAX($C$10:$C114)+1,\"\")","v":""},null,null,null,null,null,null,null,null,null,null,null,null,null,null,null,null,null,null,null,null,null,null,null,null,0,0,0,null,{"$error":"#REF!"},0,{"$error":"#REF!"},0,"-",0,{"$error":"#REF!"},0,null,null,null,null,null,0,0,0,0,0,0,0,0,null,null,null,0]
[null,107,{"$f":"IF(F116<>0,MAX($C$10:$C115)+1,\"\")","v":""},null,null,null,null,null,null,null,null,null,null,null,null,null,null,null,null,null,null,null,null,null,null,null,null,0,0,0,null,{"$error":"#REF!"},0,{"$error":"#REF!"},0,"-",0,{"$error":"#REF!"},0,null,null,null,null,null,0,0,0,0,0,0,0,0,null,null,null,0]
[null,108,{"$f":"IF(F117<>0,MAX($C$10:$C116)+1,\"\")","v":""},null,null,null,null,null,null,null,null,null,null,null,null,null,null,null,null,null,null,null,null,null,null,null,null,0,0,0,null,{"$error":"#REF!"},0,{"$error":"#REF!"},0,"-",0,{"$error":"#REF!"},0,null,null,null,null,null,0,0,0,0,0,0,0,0,null,null,null,0]
[null,109,{"$f":"IF(F118<>0,MAX($C$10:$C117)+1,\"\")","v":""},null,null,null,null,null,null,null,null,null,null,null,null,null,null,null,null,null,null,null,null,null,null,null,null,0,0,0,null,{"$error":"#REF!"},0,{"$error":"#REF!"},0,"-",0,{"$error":"#REF!"},0,null,null,null,null,null,0,0,0,0,0,0,0,0,null,null,null,0]
[null,110,{"$f":"IF(F119<>0,MAX($C$10:$C118)+1,\"\")","v":""},null,null,null,null,null,null,null,null,null,null,null,null,null,null,null,null,null,null,null,null,null,null,null,null,0,0,0,null,{"$error":"#REF!"},0,{"$error":"#REF!"},0,"-",0,{"$error":"#REF!"},0,null,null,null,null,null,0,0,0,0,0,0,0,0,null,null,null,0]
[null,111,{"$f":"IF(F120<>0,MAX($C$10:$C119)+1,\"\")","v":""},null,null,null,null,null,null,null,null,null,null,null,null,null,null,null,null,null,null,null,null,null,null,null,null,0,0,0,null,{"$error":"#REF!"},0,{"$error":"#REF!"},0,"-",0,{"$error":"#REF!"},0,null,null,null,null,null,0,0,0,0,0,0,0,0,null,null,null,0]
[null,112,{"$f":"IF(F121<>0,MAX($C$10:$C120)+1,\"\")","v":""},null,null,null,null,null,null,null,null,null,null,null,null,null,null,null,null,null,null,null,null,null,null,null,null,0,0,0,null,{"$error":"#REF!"},0,{"$error":"#REF!"},0,"-",0,{"$error":"#REF!"},0,null,null,null,null,null,0,0,0,0,0,0,0,0,null,null,null,0,null,null,null,null,null,null,null,null,null,null,null,null,null,null,null,null,null,null,null,null,null,null,null,{"$f":"IFERROR(_xlfn._xlws.FILTER(BG121:BR900,(BR121:BR900=2)),\"\")","v":""}]
[null,113,{"$f":"IF(F122<>0,MAX($C$10:$C121)+1,\"\")","v":""},null,null,null,null,null,null,null,null,null,null,null,null,null,null,null,null,null,null,null,null,null,null,null,null,0,0,0,null,{"$error":"#REF!"},0,{"$error":"#REF!"},0,"-",0,{"$error":"#REF!"},0,null,null,null,null,null,0,0,0,0,0,0,0,0,null,null,null,0,null,null,null,null,null,null,null,null,null,null,null,null,null,null,null,null,null,null,null,null,null,null,null,{"$f":"IFERROR(_xlfn._xlws.FILTER(BG122:BR901,(BR122:BR901=2)),\"\")","v":""}]
[null,114,{"$f":"IF(F123<>0,MAX($C$10:$C122)+1,\"\")","v":""},null,null,null,null,null,null,null,null,null,null,null,null,null,null,null,null,null,null,null,null,null,null,null,null,0,0,0,null,{"$error":"#REF!"},0,{"$error":"#REF!"},0,"-",0,{"$error":"#REF!"},0,null,null,null,null,null,0,0,0,0,0,0,0,0,null,null,null,0,null,null,null,null,null,null,null,null,null,null,null,null,null,null,null,null,null,null,null,null,null,null,null,{"$f":"IFERROR(_xlfn._xlws.FILTER(BG123:BR902,(BR123:BR902=2)),\"\")","v":""}]
[null,115,{"$f":"IF(F124<>0,MAX($C$10:$C123)+1,\"\")","v":""},null,null,null,null,null,null,null,null,null,null,null,null,null,null,null,null,null,null,null,null,null,null,null,null,0,0,0,null,{"$error":"#REF!"},0,{"$error":"#REF!"},0,"-",0,{"$error":"#REF!"},0,null,null,null,null,null,0,0,0,0,0,0,0,0,null,null,null,0,null,null,null,null,null,null,null,null,null,null,null,null,null,null,null,null,null,null,null,null,null,null,null,{"$f":"IFERROR(_xlfn._xlws.FILTER(BG124:BR903,(BR124:BR903=2)),\"\")","v":""}]
[null,116,{"$f":"IF(F125<>0,MAX($C$10:$C124)+1,\"\")","v":""},null,null,null,null,null,null,null,null,null,null,null,null,null,null,null,null,null,null,null,null,null,null,null,null,0,0,0,null,{"$error":"#REF!"},0,{"$error":"#REF!"},0,"-",0,{"$error":"#REF!"},0,null,null,null,null,null,0,0,0,0,0,0,0,0,null,null,null,0,null,null,null,null,null,null,null,null,null,null,null,null,null,null,null,null,null,null,null,null,null,null,null,{"$f":"IFERROR(_xlfn._xlws.FILTER(BG125:BR904,(BR125:BR904=2)),\"\")","v":""}]
[null,117,{"$f":"IF(F126<>0,MAX($C$10:$C125)+1,\"\")","v":""},null,null,null,null,null,null,null,null,null,null,null,null,null,null,null,null,null,null,null,null,null,null,null,null,0,0,0,null,{"$error":"#REF!"},0,{"$error":"#REF!"},0,"-",0,{"$error":"#REF!"},0,null,null,null,null,null,0,0,0,0,0,0,0,0,null,null,null,0,null,null,null,null,null,null,null,null,null,null,null,null,null,null,null,null,null,null,null,null,null,null,null,{"$f":"IFERROR(_xlfn._xlws.FILTER(BG126:BR905,(BR126:BR905=2)),\"\")","v":""}]
[null,118,{"$f":"IF(F127<>0,MAX($C$10:$C126)+1,\"\")","v":""},null,null,null,null,null,null,null,null,null,null,null,null,null,null,null,null,null,null,null,null,null,null,null,null,0,0,0,null,{"$error":"#REF!"},0,{"$error":"#REF!"},0,"-",0,{"$error":"#REF!"},0,null,null,null,null,null,0,0,0,0,0,0,0,0,null,null,null,0,null,null,null,null,null,null,null,null,null,null,null,null,null,null,null,null,null,null,null,null,null,null,null,{"$f":"IFERROR(_xlfn._xlws.FILTER(BG127:BR906,(BR127:BR906=2)),\"\")","v":""}]
[null,119,{"$f":"IF(F128<>0,MAX($C$10:$C127)+1,\"\")","v":""},null,null,null,null,null,null,null,null,null,null,null,null,null,null,null,null,null,null,null,null,null,null,null,null,0,0,0,null,{"$error":"#REF!"},0,{"$error":"#REF!"},0,"-",0,{"$error":"#REF!"},0,null,null,null,null,null,0,0,0,0,0,0,0,0,null,null,null,0,null,null,null,null,null,null,null,null,null,null,null,null,null,null,null,null,null,null,null,null,null,null,null,{"$f":"IFERROR(_xlfn._xlws.FILTER(BG128:BR907,(BR128:BR907=2)),\"\")","v":""}]
[null,120,{"$f":"IF(F129<>0,MAX($C$10:$C128)+1,\"\")","v":""},null,null,null,null,null,null,null,null,null,null,null,null,null,null,null,null,null,null,null,null,null,null,null,null,0,0,0,null,{"$error":"#REF!"},0,{"$error":"#REF!"},0,"-",0,{"$error":"#REF!"},0,null,null,null,null,null,0,0,0,0,0,0,0,0,null,null,null,0,null,null,null,null,null,null,null,null,null,null,null,null,null,null,null,null,null,null,null,null,null,null,null,{"$f":"IFERROR(_xlfn._xlws.FILTER(BG129:BR908,(BR129:BR908=2)),\"\")","v":""}]
[null,121,{"$f":"IF(F130<>0,MAX($C$10:$C129)+1,\"\")","v":""},null,null,null,null,null,null,null,null,null,null,null,null,null,null,null,null,null,null,null,null,null,null,null,null,0,0,0,null,{"$error":"#REF!"},0,{"$error":"#REF!"},0,"-",0,{"$error":"#REF!"},0,null,null,null,null,null,0,0,0,0,0,0,0,0,null,null,null,0,null,null,null,null,null,null,null,null,null,null,null,null,null,null,null,null,null,null,null,null,null,null,null,{"$f":"IFERROR(_xlfn._xlws.FILTER(BG130:BR909,(BR130:BR909=2)),\"\")","v":""}]
[null,122,{"$f":"IF(F131<>0,MAX($C$10:$C130)+1,\"\")","v":""},null,null,null,null,null,null,null,null,null,null,null,null,null,null,null,null,null,null,null,null,null,null,null,null,0,0,0,null,{"$error":"#REF!"},0,{"$error":"#REF!"},0,"-",0,{"$error":"#REF!"},0,null,null,null,null,null,0,0,0,0,0,0,0,0,null,null,null,0,null,null,null,null,null,null,null,null,null,null,null,null,null,null,null,null,null,null,null,null,null,null,null,{"$f":"IFERROR(_xlfn._xlws.FILTER(BG131:BR910,(BR131:BR910=2)),\"\")","v":""}]
[null,123,{"$f":"IF(F132<>0,MAX($C$10:$C131)+1,\"\")","v":""},null,null,null,null,null,null,null,null,null,null,null,null,null,null,null,null,null,null,null,null,null,null,null,null,0,0,0,null,{"$error":"#REF!"},0,{"$error":"#REF!"},0,"-",0,{"$error":"#REF!"},0,null,null,null,null,null,0,0,0,0,0,0,0,0,null,null,null,0,null,null,null,null,null,null,null,null,null,null,null,null,null,null,null,null,null,null,null,null,null,null,null,{"$f":"IFERROR(_xlfn._xlws.FILTER(BG132:BR911,(BR132:BR911=2)),\"\")","v":""}]
[null,124,{"$f":"IF(F133<>0,MAX($C$10:$C132)+1,\"\")","v":""},null,null,null,null,null,null,null,null,null,null,null,null,null,null,null,null,null,null,null,null,null,null,null,null,0,0,0,null,{"$error":"#REF!"},0,{"$error":"#REF!"},0,"-",0,{"$error":"#REF!"},0,null,null,null,null,null,0,0,0,0,0,0,0,0,null,null,null,0,null,null,null,null,null,null,null,null,null,null,null,null,null,null,null,null,null,null,null,null,null,null,null,{"$f":"IFERROR(_xlfn._xlws.FILTER(BG133:BR912,(BR133:BR912=2)),\"\")","v":""}]
[null,125,{"$f":"IF(F134<>0,MAX($C$10:$C133)+1,\"\")","v":""},null,null,null,null,null,null,null,null,null,null,null,null,null,null,null,null,null,null,null,null,null,null,null,null,0,0,0,null,{"$error":"#REF!"},0,{"$error":"#REF!"},0,"-",0,{"$error":"#REF!"},0,null,null,null,null,null,0,0,0,0,0,0,0,0,null,null,null,0,null,null,null,null,null,null,null,null,null,null,null,null,null,null,null,null,null,null,null,null,null,null,null,{"$f":"IFERROR(_xlfn._xlws.FILTER(BG134:BR913,(BR134:BR913=2)),\"\")","v":""}]
[null,126,{"$f":"IF(F135<>0,MAX($C$10:$C134)+1,\"\")","v":""},null,null,null,null,null,null,null,null,null,null,null,null,null,null,null,null,null,null,null,null,null,null,null,null,0,0,0,null,{"$error":"#REF!"},0,{"$error":"#REF!"},0,"-",0,{"$error":"#REF!"},0,null,null,null,null,null,0,0,0,0,0,0,0,0,null,null,null,0,null,null,null,null,null,null,null,null,null,null,null,null,null,null,null,null,null,null,null,null,null,null,null,{"$f":"IFERROR(_xlfn._xlws.FILTER(BG135:BR914,(BR135:BR914=2)),\"\")","v":""}]
[null,127,{"$f":"IF(F136<>0,MAX($C$10:$C135)+1,\"\")","v":""},null,null,null,null,null,null,null,null,null,null,null,null,null,null,null,null,null,null,null,null,null,null,null,null,0,0,0,null,{"$error":"#REF!"},0,{"$error":"#REF!"},0,"-",0,{"$error":"#REF!"},0,null,null,null,null,null,0,0,0,0,0,0,0,0,null,null,null,0,null,null,null,null,null,null,null,null,null,null,null,null,null,null,null,null,null,null,null,null,null,null,null,{"$f":"IFERROR(_xlfn._xlws.FILTER(BG136:BR915,(BR136:BR915=2)),\"\")","v":""}]
[null,128,{"$f":"IF(F137<>0,MAX($C$10:$C136)+1,\"\")","v":""},null,null,null,null,null,null,null,null,null,null,null,null,null,null,null,null,null,null,null,null,null,null,null,null,0,0,0,null,{"$error":"#REF!"},0,{"$error":"#REF!"},0,"-",0,{"$error":"#REF!"},0,null,null,null,null,null,0,0,0,0,0,0,0,0,null,null,null,0,null,null,null,null,null,null,null,null,null,null,null,null,null,null,null,null,null,null,null,null,null,null,null,{"$f":"IFERROR(_xlfn._xlws.FILTER(BG137:BR916,(BR137:BR916=2)),\"\")","v":""}]
[null,129,{"$f":"IF(F138<>0,MAX($C$10:$C137)+1,\"\")","v":""},null,null,null,null,null,null,null,null,null,null,null,null,null,null,null,null,null,null,null,null,null,null,null,null,0,0,0,null,{"$error":"#REF!"},0,{"$error":"#REF!"},0,{"$f":"IF(AG138=\"\",\"\",\"-\")","v":"-"},0,{"$error":"#REF!"},0,null,null,null,null,null,0,0,0,0,0,0,0,0,null,null,null,0,null,null,null,null,null,null,null,null,null,null,null,null,null,null,null,null,null,null,null,null,null,null,null,{"$f":"IFERROR(_xlfn._xlws.FILTER(BG138:BR917,(BR138:BR917=2)),\"\")","v":""}]
[null,130,{"$f":"IF(F139<>0,MAX($C$10:$C138)+1,\"\")","v":""},null,null,null,null,null,null,null,null,null,null,null,null,null,null,null,null,null,null,null,null,null,null,null,null,0,0,0,null,{"$f":"_xlfn.XLOOKUP(AH139,$J$10:$J$49,$M$10:$M$49,\"\")+_xlfn.XLOOKUP(AL139,$J$10:$J$49,$M$10:$M$49,\"\")","v":{"$error":"#REF!"}},{"$f":"AE139","v":0},{"$error":"#REF!"},{"$f":"IFERROR(IF(AH139=\"\",\"\",IF(OR($L$8=\"Nee\",AF139=0),_xlfn.XLOOKUP(AH139,$D$10:$D$49,$E$10:$E$49),ROUND(_xlfn.XLOOKUP(AH139,$D$10:$D$49,$E$10:$E$49)*AF139,0))),0)","v":0},"-",{"$f":"IFERROR(IF(AH139=\"\",\"\",IF(OR($L$8=\"Nee\",AF139=0),_xlfn.XLOOKUP(AL139,$D$10:$D$49,$E$10:$E$49)*1,ROUND(_xlfn.XLOOKUP(AL139,$D$10:$D$49,$E$10:$E$49)*AF139,0))),0)","v":0},{"$error":"#REF!"},0,null,null,null,null,null,0,0,0,0,0,0,0,0,null,null,null,0,null,null,null,null,null,null,null,null,null,null,null,null,null,null,null,null,null,null,null,null,null,null,null,{"$f":"IFERROR(_xlfn._xlws.FILTER(BG139:BR918,(BR139:BR918=2)),\"\")","v":""}]
[null,131,{"$f":"IF(F140<>0,MAX($C$10:$C139)+1,\"\")","v":""},null,null,null,null,null,null,null,null,null,null,null,null,null,null,null,null,null,null,null,null,null,null,null,null,0,0,0,null,{"$error":"#REF!"},0,{"$error":"#REF!"},0,"-",0,{"$error":"#REF!"},0,null,null,null,null,null,0,0,0,0,0,0,0,{"$f":"AW140","v":0},null,null,null,0,null,null,null,null,null,null,null,null,null,null,null,null,null,null,null,null,null,null,null,null,null,null,null,{"$f":"IFERROR(_xlfn._xlws.FILTER(BG140:BR919,(BR140:BR919=2)),\"\")","v":""}]
[null,132,{"$f":"IF(F141<>0,MAX($C$10:$C140)+1,\"\")","v":""},null,null,null,null,null,null,null,null,null,null,null,null,null,null,null,null,null,null,null,null,null,null,null,null,0,{"$f":"IFERROR(_xlfn.XLOOKUP(AG141,$AB$10:$AB$789,$AD$10:$AD$789),\"\")","v":0},0,null,{"$error":"#REF!"},0,{"$error":"#REF!"},0,"-",0,{"$error":"#REF!"},0,null,null,null,null,null,0,0,0,0,0,0,0,0,null,null,null,0,null,null,null,null,null,null,null,null,null,null,null,null,null,null,null,null,null,null,null,null,null,null,null,{"$f":"IFERROR(_xlfn._xlws.FILTER(BG141:BR920,(BR141:BR920=2)),\"\")","v":""}]
[null,133,{"$f":"IF(F142<>0,MAX($C$10:$C141)+1,\"\")","v":""},null,null,null,null,null,null,null,null,null,null,null,null,null,null,null,null,null,null,null,null,null,null,null,null,0,0,0,null,{"$error":"#REF!"},0,{"$error":"#REF!"},0,"-",0,{"$error":"#REF!"},0,null,null,null,null,null,0,0,0,0,0,0,0,0,null,null,null,0,null,null,null,null,null,null,null,null,null,null,null,null,null,null,null,null,null,null,null,null,null,null,null,{"$f":"IFERROR(_xlfn._xlws.FILTER(BG142:BR921,(BR142:BR921=2)),\"\")","v":""}]
[null,134,{"$f":"IF(F143<>0,MAX($C$10:$C142)+1,\"\")","v":""},null,null,null,null,null,null,null,null,null,null,null,null,null,null,null,null,null,null,null,null,null,null,null,null,0,0,0,null,{"$error":"#REF!"},0,{"$error":"#REF!"},0,"-",0,{"$error":"#REF!"},0,null,null,null,null,null,0,0,0,0,0,0,0,0,null,null,null,0,null,null,null,null,null,null,null,null,null,null,null,null,null,null,null,null,null,null,null,null,null,null,null,{"$f":"IFERROR(_xlfn._xlws.FILTER(BG143:BR922,(BR143:BR922=2)),\"\")","v":""}]
[null,135,{"$f":"IF(F144<>0,MAX($C$10:$C143)+1,\"\")","v":""},null,null,null,null,null,null,null,null,null,null,null,null,null,null,null,null,null,null,null,null,null,null,null,null,0,0,0,null,{"$error":"#REF!"},0,{"$error":"#REF!"},0,"-",0,{"$error":"#REF!"},0,null,null,null,null,null,0,0,0,0,0,0,0,0,null,null,null,0,null,null,null,null,null,null,null,null,null,null,null,null,null,null,null,null,null,null,null,null,null,null,null,{"$f":"IFERROR(_xlfn._xlws.FILTER(BG144:BR923,(BR144:BR923=2)),\"\")","v":""}]
[null,136,{"$f":"IF(F145<>0,MAX($C$10:$C144)+1,\"\")","v":""},null,null,null,null,null,null,null,null,null,null,null,null,null,null,null,null,null,null,null,null,null,null,null,null,0,0,0,null,{"$error":"#REF!"},0,{"$error":"#REF!"},0,"-",0,{"$error":"#REF!"},0,null,null,null,null,null,0,0,0,0,0,0,0,0,null,null,null,0,null,null,null,null,null,null,null,null,null,null,null,null,null,null,null,null,null,null,null,null,null,null,null,{"$f":"IFERROR(_xlfn._xlws.FILTER(BG145:BR924,(BR145:BR924=2)),\"\")","v":""}]
[null,137,{"$f":"IF(F146<>0,MAX($C$10:$C145)+1,\"\")","v":""},null,null,null,null,null,null,null,null,null,null,null,null,null,null,null,null,null,null,null,null,null,null,null,null,0,0,0,null,{"$error":"#REF!"},0,{"$error":"#REF!"},0,"-",0,{"$error":"#REF!"},0,null,null,null,null,null,0,0,0,0,0,0,0,0,null,null,null,0,null,null,null,null,null,null,null,null,null,null,null,null,null,null,null,null,null,null,null,null,null,null,null,{"$f":"IFERROR(_xlfn._xlws.FILTER(BG146:BR925,(BR146:BR925=2)),\"\")","v":""}]
[null,138,{"$f":"IF(F147<>0,MAX($C$10:$C146)+1,\"\")","v":""},null,null,null,null,null,null,null,null,null,null,null,null,null,null,null,null,null,null,null,null,null,null,null,null,0,0,0,null,{"$error":"#REF!"},0,{"$error":"#REF!"},0,"-",0,{"$error":"#REF!"},0,null,null,null,null,null,0,0,0,0,0,0,0,0,null,null,null,0,null,null,null,null,null,null,null,null,null,null,null,null,null,null,null,null,null,null,null,null,null,null,null,{"$f":"IFERROR(_xlfn._xlws.FILTER(BG147:BR926,(BR147:BR926=2)),\"\")","v":""}]
[null,139,{"$f":"IF(F148<>0,MAX($C$10:$C147)+1,\"\")","v":""},null,null,null,null,null,null,null,null,null,null,null,null,null,null,null,null,null,null,null,null,null,null,null,null,0,0,0,null,{"$error":"#REF!"},0,{"$error":"#REF!"},0,"-",0,{"$error":"#REF!"},0,null,null,null,null,null,0,0,0,0,0,0,0,0,null,null,null,0,null,null,null,null,null,null,null,null,null,null,null,null,null,null,null,null,null,null,null,null,null,null,null,{"$f":"IFERROR(_xlfn._xlws.FILTER(BG148:BR927,(BR148:BR927=2)),\"\")","v":""}]
[null,140,{"$f":"IF(F149<>0,MAX($C$10:$C148)+1,\"\")","v":""},null,null,null,null,null,null,null,null,null,null,null,null,null,null,null,null,null,null,null,null,null,null,null,null,0,0,0,null,{"$error":"#REF!"},0,{"$error":"#REF!"},0,"-",0,{"$error":"#REF!"},0,null,null,null,null,null,0,0,0,0,0,0,0,0,null,null,null,0,null,null,null,null,null,null,null,null,null,null,null,null,null,null,null,null,null,null,null,null,null,null,null,{"$f":"IFERROR(_xlfn._xlws.FILTER(BG149:BR928,(BR149:BR928=2)),\"\")","v":""}]
[null,141,{"$f":"IF(F150<>0,MAX($C$10:$C149)+1,\"\")","v":""},null,null,null,null,null,null,null,null,null,null,null,null,null,null,null,null,null,null,null,null,null,null,null,null,0,0,0,null,{"$error":"#REF!"},0,{"$error":"#REF!"},0,"-",0,{"$error":"#REF!"},0,null,null,null,null,null,0,0,0,0,0,0,0,0,null,null,null,0,null,null,null,null,null,null,null,null,null,null,null,null,null,null,null,null,null,null,null,null,null,null,null,{"$f":"IFERROR(_xlfn._xlws.FILTER(BG150:BR929,(BR150:BR929=2)),\"\")","v":""}]
[null,142,{"$f":"IF(F151<>0,MAX($C$10:$C150)+1,\"\")","v":""},null,null,null,null,null,null,null,null,null,null,null,null,null,null,null,null,null,null,null,null,null,null,null,null,0,0,0,null,{"$error":"#REF!"},0,{"$error":"#REF!"},0,"-",0,{"$error":"#REF!"},0,null,null,null,null,null,0,0,0,0,0,0,0,0,null,null,null,0,null,null,null,null,null,null,null,null,null,null,null,null,null,null,null,null,null,null,null,null,null,null,null,{"$f":"IFERROR(_xlfn._xlws.FILTER(BG151:BR930,(BR151:BR930=2)),\"\")","v":""}]
[null,143,{"$f":"IF(F152<>0,MAX($C$10:$C151)+1,\"\")","v":""},null,null,null,null,null,null,null,null,null,null,null,null,null,null,null,null,null,null,null,null,null,null,null,null,0,0,0,null,{"$error":"#REF!"},0,{"$error":"#REF!"},0,"-",0,{"$error":"#REF!"},0,null,null,null,null,null,0,0,0,0,0,0,0,0,null,null,null,0,null,null,null,null,null,null,null,null,null,null,null,null,null,null,null,null,null,null,null,null,null,null,null,{"$f":"IFERROR(_xlfn._xlws.FILTER(BG152:BR931,(BR152:BR931=2)),\"\")","v":""}]
[null,144,{"$f":"IF(F153<>0,MAX($C$10:$C152)+1,\"\")","v":""},null,null,null,null,null,null,null,null,null,null,null,null,null,null,null,null,null,null,null,null,null,null,null,null,0,0,0,null,{"$error":"#REF!"},0,{"$error":"#REF!"},0,"-",0,{"$error":"#REF!"},0,null,null,null,null,null,0,0,0,0,0,0,0,0,null,null,null,0,null,null,null,null,null,null,null,null,null,null,null,null,null,null,null,null,null,null,null,null,null,null,null,{"$f":"IFERROR(_xlfn._xlws.FILTER(BG153:BR932,(BR153:BR932=2)),\"\")","v":""}]
[null,145,{"$f":"IF(F154<>0,MAX($C$10:$C153)+1,\"\")","v":""},null,null,null,null,null,null,null,null,null,null,null,null,null,null,null,null,null,null,null,null,null,null,null,null,0,0,0,null,{"$error":"#REF!"},0,{"$error":"#REF!"},0,"-",0,{"$error":"#REF!"},0,null,null,null,null,null,0,0,0,0,0,0,0,0,null,null,null,0,null,null,null,null,null,null,null,null,null,null,null,null,null,null,null,null,null,null,null,null,null,null,null,{"$f":"IFERROR(_xlfn._xlws.FILTER(BG154:BR933,(BR154:BR933=2)),\"\")","v":""}]
[null,146,{"$f":"IF(F155<>0,MAX($C$10:$C154)+1,\"\")","v":""},null,null,null,null,null,null,null,null,null,null,null,null,null,null,null,null,null,null,null,null,null,null,null,null,0,0,0,null,{"$error":"#REF!"},0,{"$error":"#REF!"},0,"-",0,{"$error":"#REF!"},0,null,null,null,null,null,0,0,0,0,0,0,0,0,null,null,null,0,null,null,null,null,null,null,null,null,null,null,null,null,null,null,null,null,null,null,null,null,null,null,null,{"$f":"IFERROR(_xlfn._xlws.FILTER(BG155:BR934,(BR155:BR934=2)),\"\")","v":""}]
[null,147,{"$f":"IF(F156<>0,MAX($C$10:$C155)+1,\"\")","v":""},null,null,null,null,null,null,null,null,null,null,null,null,null,null,null,null,null,null,null,null,null,null,null,null,0,0,0,null,{"$error":"#REF!"},0,{"$error":"#REF!"},0,"-",0,{"$error":"#REF!"},0,null,null,null,null,null,0,0,0,0,0,0,0,0,null,null,null,0,null,null,null,null,null,null,null,null,null,null,null,null,null,null,null,null,null,null,null,null,null,null,null,{"$f":"IFERROR(_xlfn._xlws.FILTER(BG156:BR935,(BR156:BR935=2)),\"\")","v":""}]
[null,148,{"$f":"IF(F157<>0,MAX($C$10:$C156)+1,\"\")","v":""},null,null,null,null,null,null,null,null,null,null,null,null,null,null,null,null,null,null,null,null,null,null,null,null,0,0,0,null,{"$error":"#REF!"},0,{"$error":"#REF!"},0,"-",0,{"$error":"#REF!"},0,null,null,null,null,null,0,0,0,0,0,0,0,0,null,null,null,0,null,null,null,null,null,null,null,null,null,null,null,null,null,null,null,null,null,null,null,null,null,null,null,{"$f":"IFERROR(_xlfn._xlws.FILTER(BG157:BR936,(BR157:BR936=2)),\"\")","v":""}]
[null,149,{"$f":"IF(F158<>0,MAX($C$10:$C157)+1,\"\")","v":""},null,null,null,null,null,null,null,null,null,null,null,null,null,null,null,null,null,null,null,null,null,null,null,null,0,0,0,null,{"$error":"#REF!"},0,{"$error":"#REF!"},0,"-",0,{"$error":"#REF!"},0,null,null,null,null,null,0,0,0,0,0,0,0,0,null,null,null,0,null,null,null,null,null,null,null,null,null,null,null,null,null,null,null,null,null,null,null,null,null,null,null,{"$f":"IFERROR(_xlfn._xlws.FILTER(BG158:BR937,(BR158:BR937=2)),\"\")","v":""}]
[null,150,{"$f":"IF(F159<>0,MAX($C$10:$C158)+1,\"\")","v":""},null,null,null,null,null,null,null,null,null,null,null,null,null,null,null,null,null,null,null,null,null,null,null,null,0,0,0,null,{"$error":"#REF!"},0,{"$error":"#REF!"},0,"-",0,{"$error":"#REF!"},0,null,null,null,null,null,0,0,0,0,0,0,0,0,null,null,null,0,null,null,null,null,null,null,null,null,null,null,null,null,null,null,null,null,null,null,null,null,null,null,null,{"$f":"IFERROR(_xlfn._xlws.FILTER(BG159:BR938,(BR159:BR938=2)),\"\")","v":""}]
[null,151,{"$f":"IF(F160<>0,MAX($C$10:$C159)+1,\"\")","v":""},null,null,null,null,null,null,null,null,null,null,null,null,null,null,null,null,null,null,null,null,null,null,null,null,0,0,0,null,{"$error":"#REF!"},0,{"$error":"#REF!"},0,"-",0,{"$error":"#REF!"},0,null,null,null,null,null,0,0,0,0,0,0,0,0,null,null,null,0,null,null,null,null,null,null,null,null,null,null,null,null,null,null,null,null,null,null,null,null,null,null,null,{"$f":"IFERROR(_xlfn._xlws.FILTER(BG160:BR939,(BR160:BR939=2)),\"\")","v":""}]
[null,152,{"$f":"IF(F161<>0,MAX($C$10:$C160)+1,\"\")","v":""},null,null,null,null,null,null,null,null,null,null,null,null,null,null,null,null,null,null,null,null,null,null,null,null,0,0,0,null,{"$error":"#REF!"},0,{"$error":"#REF!"},0,"-",0,{"$error":"#REF!"},0,null,null,null,null,null,0,0,0,0,0,0,0,0,null,null,null,0,null,null,null,null,null,null,null,null,null,null,null,null,null,null,null,null,null,null,null,null,null,null,null,{"$f":"IFERROR(_xlfn._xlws.FILTER(BG161:BR940,(BR161:BR940=2)),\"\")","v":""}]
[null,153,{"$f":"IF(F162<>0,MAX($C$10:$C161)+1,\"\")","v":""},null,null,null,null,null,null,null,null,null,null,null,null,null,null,null,null,null,null,null,null,null,null,null,null,0,0,0,null,{"$error":"#REF!"},0,{"$error":"#REF!"},0,"-",0,{"$error":"#REF!"},0,null,null,null,null,null,0,0,0,0,0,0,0,0,null,null,null,0,null,null,null,null,null,null,null,null,null,null,null,null,null,null,null,null,null,null,null,null,null,null,null,{"$f":"IFERROR(_xlfn._xlws.FILTER(BG162:BR941,(BR162:BR941=2)),\"\")","v":""}]
[null,154,{"$f":"IF(F163<>0,MAX($C$10:$C162)+1,\"\")","v":""},null,null,null,null,null,null,null,null,null,null,null,null,null,null,null,null,null,null,null,null,null,null,null,null,0,0,0,null,0,0,"","","-","","",0,null,null,null,null,null,0,0,0,0,0,0,0,0,null,null,null,null,null,null,null,null,null,null,null,null,null,null,null,null,null,null,null,null,null,null,null,null,null,null,null,{"$f":"IFERROR(_xlfn._xlws.FILTER(BG163:BR942,(BR163:BR942=2)),\"\")","v":""}]
[null,155,{"$f":"IF(F164<>0,MAX($C$10:$C163)+1,\"\")","v":""},null,null,null,null,null,null,null,null,null,null,null,null,null,null,null,null,null,null,null,null,null,null,null,null,0,0,0,null,0,0,"","","-","","",0,null,null,null,null,null,0,0,0,0,0,0,0,0,null,null,null,null,null,null,null,null,null,null,null,null,null,null,null,null,null,null,null,null,null,null,null,null,null,null,null,{"$f":"IFERROR(_xlfn._xlws.FILTER(BG164:BR943,(BR164:BR943=2)),\"\")","v":""}]
[null,156,{"$f":"IF(F165<>0,MAX($C$10:$C164)+1,\"\")","v":""},null,null,null,null,null,null,null,null,null,null,null,null,null,null,null,null,null,null,null,null,null,null,null,null,0,0,0,null,0,0,"","","-","","",0,null,null,null,null,null,0,0,0,0,0,0,0,0,null,null,null,null,null,null,null,null,null,null,null,null,null,null,null,null,null,null,null,null,null,null,null,null,null,null,null,{"$f":"IFERROR(_xlfn._xlws.FILTER(BG165:BR944,(BR165:BR944=2)),\"\")","v":""}]
[null,157,{"$f":"IF(F166<>0,MAX($C$10:$C165)+1,\"\")","v":""},null,null,null,null,null,null,null,null,null,null,null,null,null,null,null,null,null,null,null,null,null,null,null,null,0,0,0,null,0,0,"","","-","","",0,null,null,null,null,null,0,0,0,0,0,0,0,0,null,null,null,null,null,null,null,null,null,null,null,null,null,null,null,null,null,null,null,null,null,null,null,null,null,null,null,{"$f":"IFERROR(_xlfn._xlws.FILTER(BG166:BR945,(BR166:BR945=2)),\"\")","v":""}]
[null,158,{"$f":"IF(F167<>0,MAX($C$10:$C166)+1,\"\")","v":""},null,null,null,null,null,null,null,null,null,null,null,null,null,null,null,null,null,null,null,null,null,null,null,null,0,0,0,null,0,0,"","","-","","",0,null,null,null,null,null,0,0,0,0,0,0,0,0,null,null,null,null,null,null,null,null,null,null,null,null,null,null,null,null,null,null,null,null,null,null,null,null,null,null,null,{"$f":"IFERROR(_xlfn._xlws.FILTER(BG167:BR946,(BR167:BR946=2)),\"\")","v":""}]
[null,159,{"$f":"IF(F168<>0,MAX($C$10:$C167)+1,\"\")","v":""},null,null,null,null,null,null,null,null,null,null,null,null,null,null,null,null,null,null,null,null,null,null,null,null,0,0,0,null,0,0,"","","-","","",0,null,null,null,null,null,0,0,0,0,0,0,0,0,null,null,null,null,null,null,null,null,null,null,null,null,null,null,null,null,null,null,null,null,null,null,null,null,null,null,null,{"$f":"IFERROR(_xlfn._xlws.FILTER(BG168:BR947,(BR168:BR947=2)),\"\")","v":""}]
[null,160,{"$f":"IF(F169<>0,MAX($C$10:$C168)+1,\"\")","v":""},null,null,null,null,null,null,null,null,null,null,null,null,null,null,null,null,null,null,null,null,null,null,null,null,0,0,0,null,0,0,"","","-","","",0,null,null,null,null,null,0,0,0,0,0,0,0,0,null,null,null,null,null,null,null,null,null,null,null,null,null,null,null,null,null,null,null,null,null,null,null,null,null,null,null,{"$f":"IFERROR(_xlfn._xlws.FILTER(BG169:BR948,(BR169:BR948=2)),\"\")","v":""}]
[null,161,{"$f":"IF(F170<>0,MAX($C$10:$C169)+1,\"\")","v":""},null,null,null,null,null,null,null,null,null,null,null,null,null,null,null,null,null,null,null,null,null,null,null,null,0,0,0,null,0,0,"","","-","","",0,null,null,null,null,null,0,0,0,0,0,0,0,0,null,null,null,null,null,null,null,null,null,null,null,null,null,null,null,null,null,null,null,null,null,null,null,null,null,null,null,{"$f":"IFERROR(_xlfn._xlws.FILTER(BG170:BR949,(BR170:BR949=2)),\"\")","v":""}]
[null,162,{"$f":"IF(F171<>0,MAX($C$10:$C170)+1,\"\")","v":""},null,null,null,null,null,null,null,null,null,null,null,null,null,null,null,null,null,null,null,null,null,null,null,null,0,0,0,null,0,0,"","","-","","",0,null,null,null,null,null,0,0,0,0,0,0,0,0,null,null,null,null,null,null,null,null,null,null,null,null,null,null,null,null,null,null,null,null,null,null,null,null,null,null,null,{"$f":"IFERROR(_xlfn._xlws.FILTER(BG171:BR950,(BR171:BR950=2)),\"\")","v":""}]
[null,163,{"$f":"IF(F172<>0,MAX($C$10:$C171)+1,\"\")","v":""},null,null,null,null,null,null,null,null,null,null,null,null,null,null,null,null,null,null,null,null,null,null,null,null,0,0,0,null,0,0,"","","-","","",0,null,null,null,null,null,0,0,0,0,0,0,0,0,null,null,null,null,null,null,null,null,null,null,null,null,null,null,null,null,null,null,null,null,null,null,null,null,null,null,null,{"$f":"IFERROR(_xlfn._xlws.FILTER(BG172:BR951,(BR172:BR951=2)),\"\")","v":""}]
[null,164,{"$f":"IF(F173<>0,MAX($C$10:$C172)+1,\"\")","v":""},null,null,null,null,null,null,null,null,null,null,null,null,null,null,null,null,null,null,null,null,null,null,null,null,0,0,0,null,0,0,"","","-","","",0,null,null,null,null,null,0,0,0,0,0,0,0,0,null,null,null,null,null,null,null,null,null,null,null,null,null,null,null,null,null,null,null,null,null,null,null,null,null,null,null,{"$f":"IFERROR(_xlfn._xlws.FILTER(BG173:BR952,(BR173:BR952=2)),\"\")","v":""}]
[null,165,{"$f":"IF(F174<>0,MAX($C$10:$C173)+1,\"\")","v":""},null,null,null,null,null,null,null,null,null,null,null,null,null,null,null,null,null,null,null,null,null,null,null,null,0,0,0,null,0,0,"","","-","","",0,null,null,null,null,null,0,0,0,0,0,0,0,0,null,null,null,null,null,null,null,null,null,null,null,null,null,null,null,null,null,null,null,null,null,null,null,null,null,null,null,{"$f":"IFERROR(_xlfn._xlws.FILTER(BG174:BR953,(BR174:BR953=2)),\"\")","v":""}]
[null,166,{"$f":"IF(F175<>0,MAX($C$10:$C174)+1,\"\")","v":""},null,null,null,null,null,null,null,null,null,null,null,null,null,null,null,null,null,null,null,null,null,null,null,null,0,0,0,null,0,0,"","","-","","",0,null,null,null,null,null,0,0,0,0,0,0,0,0,null,null,null,null,null,null,null,null,null,null,null,null,null,null,null,null,null,null,null,null,null,null,null,null,null,null,null,{"$f":"IFERROR(_xlfn._xlws.FILTER(BG175:BR954,(BR175:BR954=2)),\"\")","v":""}]
[null,167,{"$f":"IF(F176<>0,MAX($C$10:$C175)+1,\"\")","v":""},null,null,null,null,null,null,null,null,null,null,null,null,null,null,null,null,null,null,null,null,null,null,null,null,0,0,0,null,0,0,"","","-","","",0,null,null,null,null,null,0,0,0,0,0,0,0,0,null,null,null,null,null,null,null,null,null,null,null,null,null,null,null,null,null,null,null,null,null,null,null,null,null,null,null,{"$f":"IFERROR(_xlfn._xlws.FILTER(BG176:BR955,(BR176:BR955=2)),\"\")","v":""}]
[null,168,{"$f":"IF(F177<>0,MAX($C$10:$C176)+1,\"\")","v":""},null,null,null,null,null,null,null,null,null,null,null,null,null,null,null,null,null,null,null,null,null,null,null,null,0,0,0,null,0,0,"","","-","","",0,null,null,null,null,null,0,0,0,0,0,0,0,0,null,null,null,null,null,null,null,null,null,null,null,null,null,null,null,null,null,null,null,null,null,null,null,null,null,null,null,{"$f":"IFERROR(_xlfn._xlws.FILTER(BG177:BR956,(BR177:BR956=2)),\"\")","v":""}]
[null,169,{"$f":"IF(F178<>0,MAX($C$10:$C177)+1,\"\")","v":""},null,null,null,null,null,null,null,null,null,null,null,null,null,null,null,null,null,null,null,null,null,null,null,null,0,0,0,null,0,0,"","","-","","",0,null,null,null,null,null,0,0,0,0,0,0,0,0,null,null,null,null,null,null,null,null,null,null,null,null,null,null,null,null,null,null,null,null,null,null,null,null,null,null,null,{"$f":"IFERROR(_xlfn._xlws.FILTER(BG178:BR957,(BR178:BR957=2)),\"\")","v":""}]
[null,170,{"$f":"IF(F179<>0,MAX($C$10:$C178)+1,\"\")","v":""},null,null,null,null,null,null,null,null,null,null,null,null,null,null,null,null,null,null,null,null,null,null,null,null,0,0,0,null,0,0,"","","-","","",0,null,null,null,null,null,0,0,0,0,0,0,0,0,null,null,null,null,null,null,null,null,null,null,null,null,null,null,null,null,null,null,null,null,null,null,null,null,null,null,null,{"$f":"IFERROR(_xlfn._xlws.FILTER(BG179:BR958,(BR179:BR958=2)),\"\")","v":""}]
[null,171,{"$f":"IF(F180<>0,MAX($C$10:$C179)+1,\"\")","v":""},null,null,null,null,null,null,null,null,null,null,null,null,null,null,null,null,null,null,null,null,null,null,null,null,0,0,0,null,0,0,"","","-","","",0,null,null,null,null,null,0,0,0,0,0,0,0,0,null,null,null,null,null,null,null,null,null,null,null,null,null,null,null,null,null,null,null,null,null,null,null,null,null,null,null,{"$f":"IFERROR(_xlfn._xlws.FILTER(BG180:BR959,(BR180:BR959=2)),\"\")","v":""}]
[null,172,{"$f":"IF(F181<>0,MAX($C$10:$C180)+1,\"\")","v":""},null,null,null,null,null,null,null,null,null,null,null,null,null,null,null,null,null,null,null,null,null,null,null,null,0,0,0,null,0,0,"","","-","","",0,null,null,null,null,null,0,0,0,0,0,0,0,0,null,null,null,null,null,null,null,null,null,null,null,null,null,null,null,null,null,null,null,null,null,null,null,null,null,null,null,{"$f":"IFERROR(_xlfn._xlws.FILTER(BG181:BR960,(BR181:BR960=2)),\"\")","v":""}]
[null,173,{"$f":"IF(F182<>0,MAX($C$10:$C181)+1,\"\")","v":""},null,null,null,null,null,null,null,null,null,null,null,null,null,null,null,null,null,null,null,null,null,null,null,null,0,0,0,null,0,0,"","","-","","",0,null,null,null,null,null,0,0,0,0,0,0,0,0,null,null,null,null,null,null,null,null,null,null,null,null,null,null,null,null,null,null,null,null,null,null,null,null,null,null,null,{"$f":"IFERROR(_xlfn._xlws.FILTER(BG182:BR961,(BR182:BR961=2)),\"\")","v":""}]
[null,174,{"$f":"IF(F183<>0,MAX($C$10:$C182)+1,\"\")","v":""},null,null,null,null,null,null,null,null,null,null,null,null,null,null,null,null,null,null,null,null,null,null,null,null,0,0,0,null,0,0,"","","-","","",0,null,null,null,null,null,0,0,0,0,0,0,0,0,null,null,null,null,null,null,null,null,null,null,null,null,null,null,null,null,null,null,null,null,null,null,null,null,null,null,null,{"$f":"IFERROR(_xlfn._xlws.FILTER(BG183:BR962,(BR183:BR962=2)),\"\")","v":""}]
[null,175,{"$f":"IF(F184<>0,MAX($C$10:$C183)+1,\"\")","v":""},null,null,null,null,null,null,null,null,null,null,null,null,null,null,null,null,null,null,null,null,null,null,null,null,0,0,0,null,0,0,"","","-","","",0,null,null,null,null,null,0,0,0,0,0,0,0,0,null,null,null,null,null,null,null,null,null,null,null,null,null,null,null,null,null,null,null,null,null,null,null,null,null,null,null,{"$f":"IFERROR(_xlfn._xlws.FILTER(BG184:BR963,(BR184:BR963=2)),\"\")","v":""}]
[null,176,{"$f":"IF(F185<>0,MAX($C$10:$C184)+1,\"\")","v":""},null,null,null,null,null,null,null,null,null,null,null,null,null,null,null,null,null,null,null,null,null,null,null,null,0,0,0,null,0,0,"","","-","","",0,null,null,null,null,null,0,0,0,0,0,0,0,0,null,null,null,null,null,null,null,null,null,null,null,null,null,null,null,null,null,null,null,null,null,null,null,null,null,null,null,{"$f":"IFERROR(_xlfn._xlws.FILTER(BG185:BR964,(BR185:BR964=2)),\"\")","v":""}]
[null,177,{"$f":"IF(F186<>0,MAX($C$10:$C185)+1,\"\")","v":""},null,null,null,null,null,null,null,null,null,null,null,null,null,null,null,null,null,null,null,null,null,null,null,null,0,0,0,null,0,0,"","","-","","",0,null,null,null,null,null,0,0,0,0,0,0,0,0,null,null,null,null,null,null,null,null,null,null,null,null,null,null,null,null,null,null,null,null,null,null,null,null,null,null,null,{"$f":"IFERROR(_xlfn._xlws.FILTER(BG186:BR965,(BR186:BR965=2)),\"\")","v":""}]
[null,178,{"$f":"IF(F187<>0,MAX($C$10:$C186)+1,\"\")","v":""},null,null,null,null,null,null,null,null,null,null,null,null,null,null,null,null,null,null,null,null,null,null,null,null,0,0,0,null,0,0,"","","-","","",0,null,null,null,null,null,0,0,0,0,0,0,0,0,null,null,null,null,null,null,null,null,null,null,null,null,null,null,null,null,null,null,null,null,null,null,null,null,null,null,null,{"$f":"IFERROR(_xlfn._xlws.FILTER(BG187:BR966,(BR187:BR966=2)),\"\")","v":""}]
[null,179,{"$f":"IF(F188<>0,MAX($C$10:$C187)+1,\"\")","v":""},null,null,null,null,null,null,null,null,null,null,null,null,null,null,null,null,null,null,null,null,null,null,null,null,0,0,0,null,0,0,"","","-","","",0,null,null,null,null,null,0,0,0,0,0,0,0,0,null,null,null,null,null,null,null,null,null,null,null,null,null,null,null,null,null,null,null,null,null,null,null,null,null,null,null,{"$f":"IFERROR(_xlfn._xlws.FILTER(BG188:BR967,(BR188:BR967=2)),\"\")","v":""}]
[null,180,{"$f":"IF(F189<>0,MAX($C$10:$C188)+1,\"\")","v":""},null,null,null,null,null,null,null,null,null,null,null,null,null,null,null,null,null,null,null,null,null,null,null,null,0,0,0,null,0,0,"","","-","","",0,null,null,null,null,null,0,0,0,0,0,0,0,0,null,null,null,null,null,null,null,null,null,null,null,null,null,null,null,null,null,null,null,null,null,null,null,null,null,null,null,{"$f":"IFERROR(_xlfn._xlws.FILTER(BG189:BR968,(BR189:BR968=2)),\"\")","v":""}]
[null,181,{"$f":"IF(F190<>0,MAX($C$10:$C189)+1,\"\")","v":""},null,null,null,null,null,null,null,null,null,null,null,null,null,null,null,null,null,null,null,null,null,null,null,null,0,0,0,null,0,0,"","","-","","",0,null,null,null,null,null,0,0,0,0,0,0,0,0,null,null,null,null,null,null,null,null,null,null,null,null,null,null,null,null,null,null,null,null,null,null,null,null,null,null,null,{"$f":"IFERROR(_xlfn._xlws.FILTER(BG190:BR969,(BR190:BR969=2)),\"\")","v":""}]
[null,182,{"$f":"IF(F191<>0,MAX($C$10:$C190)+1,\"\")","v":""},null,null,null,null,null,null,null,null,null,null,null,null,null,null,null,null,null,null,null,null,null,null,null,null,0,0,0,null,0,0,"","","-","","",0,null,null,null,null,null,0,0,0,0,0,0,0,0,null,null,null,null,null,null,null,null,null,null,null,null,null,null,null,null,null,null,null,null,null,null,null,null,null,null,null,{"$f":"IFERROR(_xlfn._xlws.FILTER(BG191:BR970,(BR191:BR970=2)),\"\")","v":""}]
[null,183,{"$f":"IF(F192<>0,MAX($C$10:$C191)+1,\"\")","v":""},null,null,null,null,null,null,null,null,null,null,null,null,null,null,null,null,null,null,null,null,null,null,null,null,0,0,0,null,0,0,"","","-","","",0,null,null,null,null,null,0,0,0,0,0,0,0,0,null,null,null,null,null,null,null,null,null,null,null,null,null,null,null,null,null,null,null,null,null,null,null,null,null,null,null,{"$f":"IFERROR(_xlfn._xlws.FILTER(BG192:BR971,(BR192:BR971=2)),\"\")","v":""}]
[null,184,{"$f":"IF(F193<>0,MAX($C$10:$C192)+1,\"\")","v":""},null,null,null,null,null,null,null,null,null,null,null,null,null,null,null,null,null,null,null,null,null,null,null,null,0,0,0,null,0,0,"","","-","","",0,null,null,null,null,null,0,0,0,0,0,0,0,0,null,null,null,null,null,null,null,null,null,null,null,null,null,null,null,null,null,null,null,null,null,null,null,null,null,null,null,{"$f":"IFERROR(_xlfn._xlws.FILTER(BG193:BR972,(BR193:BR972=2)),\"\")","v":""}]
[null,185,{"$f":"IF(F194<>0,MAX($C$10:$C193)+1,\"\")","v":""},null,null,null,null,null,null,null,null,null,null,null,null,null,null,null,null,null,null,null,null,null,null,null,null,0,0,0,null,0,0,"","","-","","",0,null,null,null,null,null,0,0,0,0,0,0,0,0,null,null,null,null,null,null,null,null,null,null,null,null,null,null,null,null,null,null,null,null,null,null,null,null,null,null,null,{"$f":"IFERROR(_xlfn._xlws.FILTER(BG194:BR973,(BR194:BR973=2)),\"\")","v":""}]
[null,186,{"$f":"IF(F195<>0,MAX($C$10:$C194)+1,\"\")","v":""},null,null,null,null,null,null,null,null,null,null,null,null,null,null,null,null,null,null,null,null,null,null,null,null,0,0,0,null,0,0,"","","-","","",0,null,null,null,null,null,0,0,0,0,0,0,0,0,null,null,null,null,null,null,null,null,null,null,null,null,null,null,null,null,null,null,null,null,null,null,null,null,null,null,null,{"$f":"IFERROR(_xlfn._xlws.FILTER(BG195:BR974,(BR195:BR974=2)),\"\")","v":""}]
[null,187,{"$f":"IF(F196<>0,MAX($C$10:$C195)+1,\"\")","v":""},null,null,null,null,null,null,null,null,null,null,null,null,null,null,null,null,null,null,null,null,null,null,null,null,0,0,0,null,0,0,"","","-","","",0,null,null,null,null,null,0,0,0,0,0,0,0,0,null,null,null,null,null,null,null,null,null,null,null,null,null,null,null,null,null,null,null,null,null,null,null,null,null,null,null,{"$f":"IFERROR(_xlfn._xlws.FILTER(BG196:BR975,(BR196:BR975=2)),\"\")","v":""}]
[null,188,{"$f":"IF(F197<>0,MAX($C$10:$C196)+1,\"\")","v":""},null,null,null,null,null,null,null,null,null,null,null,null,null,null,null,null,null,null,null,null,null,null,null,null,0,0,0,null,0,0,"","","-","","",0,null,null,null,null,null,0,0,0,0,0,0,0,0,null,null,null,null,null,null,null,null,null,null,null,null,null,null,null,null,null,null,null,null,null,null,null,null,null,null,null,{"$f":"IFERROR(_xlfn._xlws.FILTER(BG197:BR976,(BR197:BR976=2)),\"\")","v":""}]
[null,189,{"$f":"IF(F198<>0,MAX($C$10:$C197)+1,\"\")","v":""},null,null,null,null,null,null,null,null,null,null,null,null,null,null,null,null,null,null,null,null,null,null,null,null,0,0,0,null,0,0,"","","-","","",0,null,null,null,null,null,0,0,0,0,0,0,0,0,null,null,null,null,null,null,null,null,null,null,null,null,null,null,null,null,null,null,null,null,null,null,null,null,null,null,null,{"$f":"IFERROR(_xlfn._xlws.FILTER(BG198:BR977,(BR198:BR977=2)),\"\")","v":""}]
[null,190,{"$f":"IF(F199<>0,MAX($C$10:$C198)+1,\"\")","v":""},null,null,null,null,null,null,null,null,null,null,null,null,null,null,null,null,null,null,null,null,null,null,null,null,0,0,0,null,0,0,"","","-","","",0,null,null,null,null,null,0,0,0,0,0,0,0,0,null,null,null,null,null,null,null,null,null,null,null,null,null,null,null,null,null,null,null,null,null,null,null,null,null,null,null,{"$f":"IFERROR(_xlfn._xlws.FILTER(BG199:BR978,(BR199:BR978=2)),\"\")","v":""}]
[null,191,{"$f":"IF(F200<>0,MAX($C$10:$C199)+1,\"\")","v":""},null,null,null,null,null,null,null,null,null,null,null,null,null,null,null,null,null,null,null,null,null,null,null,null,0,0,0,null,0,0,"","","-","","",0,null,null,null,null,null,0,0,0,0,0,0,0,0,null,null,null,null,null,null,null,null,null,null,null,null,null,null,null,null,null,null,null,null,null,null,null,null,null,null,null,{"$f":"IFERROR(_xlfn._xlws.FILTER(BG200:BR979,(BR200:BR979=2)),\"\")","v":""}]
[null,192,{"$f":"IF(F201<>0,MAX($C$10:$C200)+1,\"\")","v":""},null,null,null,null,null,null,null,null,null,null,null,null,null,null,null,null,null,null,null,null,null,null,null,null,0,0,0,null,0,0,"","","-","","",0,null,null,null,null,null,0,0,0,0,0,0,0,0,null,null,null,null,null,null,null,null,null,null,null,null,null,null,null,null,null,null,null,null,null,null,null,null,null,null,null,{"$f":"IFERROR(_xlfn._xlws.FILTER(BG201:BR980,(BR201:BR980=2)),\"\")","v":""}]
[null,193,{"$f":"IF(F202<>0,MAX($C$10:$C201)+1,\"\")","v":""},null,null,null,null,null,null,null,null,null,null,null,null,null,null,null,null,null,null,null,null,null,null,null,null,0,0,0,null,0,0,"","",{"$f":"IF(AG202=\"\",\"\",\"-\")","v":"-"},"","",0,null,null,null,null,null,0,0,0,0,0,0,0,0,null,null,null,null,null,null,null,null,null,null,null,null,null,null,null,null,null,null,null,null,null,null,null,null,null,null,null,{"$f":"IFERROR(_xlfn._xlws.FILTER(BG202:BR981,(BR202:BR981=2)),\"\")","v":""}]
[null,194,{"$f":"IF(F203<>0,MAX($C$10:$C202)+1,\"\")","v":""},null,null,null,null,null,null,null,null,null,null,null,null,null,null,null,null,null,null,null,null,null,null,null,null,0,0,0,null,{"$f":"_xlfn.XLOOKUP(AH203,$J$10:$J$49,$M$10:$M$49,\"\")+_xlfn.XLOOKUP(AL203,$J$10:$J$49,$M$10:$M$49,\"\")","v":0},{"$f":"AE203","v":0},"",{"$f":"IFERROR(IF(AH203=\"\",\"\",IF(OR($L$8=\"Nee\",AF203=0),_xlfn.XLOOKUP(AH203,$D$10:$D$49,$E$10:$E$49),ROUND(_xlfn.XLOOKUP(AH203,$D$10:$D$49,$E$10:$E$49)*AF203,0))),0)","v":""},"-",{"$f":"IFERROR(IF(AH203=\"\",\"\",IF(OR($L$8=\"Nee\",AF203=0),_xlfn.XLOOKUP(AL203,$D$10:$D$49,$E$10:$E$49)*1,ROUND(_xlfn.XLOOKUP(AL203,$D$10:$D$49,$E$10:$E$49)*AF203,0))),0)","v":""},"",0,null,null,null,null,null,0,0,0,0,0,0,0,0,null,null,null,null,null,null,null,null,null,null,null,null,null,null,null,null,null,null,null,null,null,null,null,null,null,null,null,{"$f":"IFERROR(_xlfn._xlws.FILTER(BG203:BR982,(BR203:BR982=2)),\"\")","v":""}]
[null,195,{"$f":"IF(F204<>0,MAX($C$10:$C203)+1,\"\")","v":""},null,null,null,null,null,null,null,null,null,null,null,null,null,null,null,null,null,null,null,null,null,null,null,null,0,0,0,null,0,0,"","","-","","",0,null,null,null,null,null,0,0,0,0,0,0,0,{"$f":"AW204","v":0},null,null,null,null,null,null,null,null,null,null,null,null,null,null,null,null,null,null,null,null,null,null,null,null,null,null,null,{"$f":"IFERROR(_xlfn._xlws.FILTER(BG204:BR983,(BR204:BR983=2)),\"\")","v":""}]
[null,196,{"$f":"IF(F205<>0,MAX($C$10:$C204)+1,\"\")","v":""},null,null,null,null,null,null,null,null,null,null,null,null,null,null,null,null,null,null,null,null,null,null,null,null,0,{"$f":"IFERROR(_xlfn.XLOOKUP(AG205,$AB$10:$AB$789,$AD$10:$AD$789),\"\")","v":0},0,null,0,0,"","","-","","",0,null,null,null,null,null,0,0,0,0,0,0,0,0,null,null,null,null,null,null,null,null,null,null,null,null,null,null,null,null,null,null,null,null,null,null,null,null,null,null,null,{"$f":"IFERROR(_xlfn._xlws.FILTER(BG205:BR984,(BR205:BR984=2)),\"\")","v":""}]
[null,197,{"$f":"IF(F206<>0,MAX($C$10:$C205)+1,\"\")","v":""},null,null,null,null,null,null,null,null,null,null,null,null,null,null,null,null,null,null,null,null,null,null,null,null,0,0,0,null,0,0,"","","-","","",0,null,null,null,null,null,0,0,0,0,0,0,0,0,null,null,null,null,null,null,null,null,null,null,null,null,null,null,null,null,null,null,null,null,null,null,null,null,null,null,null,{"$f":"IFERROR(_xlfn._xlws.FILTER(BG206:BR985,(BR206:BR985=2)),\"\")","v":""}]
[null,198,{"$f":"IF(F207<>0,MAX($C$10:$C206)+1,\"\")","v":""},null,null,null,null,null,null,null,null,null,null,null,null,null,null,null,null,null,null,null,null,null,null,null,null,0,0,0,null,0,0,"","","-","","",0,null,null,null,null,null,0,0,0,0,0,0,0,0,null,null,null,null,null,null,null,null,null,null,null,null,null,null,null,null,null,null,null,null,null,null,null,null,null,null,null,{"$f":"IFERROR(_xlfn._xlws.FILTER(BG207:BR986,(BR207:BR986=2)),\"\")","v":""}]
[null,199,{"$f":"IF(F208<>0,MAX($C$10:$C207)+1,\"\")","v":""},null,null,null,null,null,null,null,null,null,null,null,null,null,null,null,null,null,null,null,null,null,null,null,null,0,0,0,null,0,0,"","","-","","",0,null,null,null,null,null,0,0,0,0,0,0,0,0,null,null,null,null,null,null,null,null,null,null,null,null,null,null,null,null,null,null,null,null,null,null,null,null,null,null,null,{"$f":"IFERROR(_xlfn._xlws.FILTER(BG208:BR987,(BR208:BR987=2)),\"\")","v":""}]
[null,200,{"$f":"IF(F209<>0,MAX($C$10:$C208)+1,\"\")","v":""},null,null,null,null,null,null,null,null,null,null,null,null,null,null,null,null,null,null,null,null,null,null,null,null,0,0,0,null,0,0,"","","-","","",0,null,null,null,null,null,0,0,0,0,0,0,0,0,null,null,null,null,null,null,null,null,null,null,null,null,null,null,null,null,null,null,null,null,null,null,null,null,null,null,null,{"$f":"IFERROR(_xlfn._xlws.FILTER(BG209:BR988,(BR209:BR988=2)),\"\")","v":""}]
[null,201,{"$f":"IF(F210<>0,MAX($C$10:$C209)+1,\"\")","v":""},null,null,null,null,null,null,null,null,null,null,null,null,null,null,null,null,null,null,null,null,null,null,null,null,0,0,0,null,0,0,"","","-","","",0,null,null,null,null,null,0,0,0,0,0,0,0,0,null,null,null,null,null,null,null,null,null,null,null,null,null,null,null,null,null,null,null,null,null,null,null,null,null,null,null,{"$f":"IFERROR(_xlfn._xlws.FILTER(BG210:BR989,(BR210:BR989=2)),\"\")","v":""}]
[null,202,{"$f":"IF(F211<>0,MAX($C$10:$C210)+1,\"\")","v":""},null,null,null,null,null,null,null,null,null,null,null,null,null,null,null,null,null,null,null,null,null,null,null,null,0,0,0,null,0,0,"","","-","","",0,null,null,null,null,null,0,0,0,0,0,0,0,0,null,null,null,null,null,null,null,null,null,null,null,null,null,null,null,null,null,null,null,null,null,null,null,null,null,null,null,{"$f":"IFERROR(_xlfn._xlws.FILTER(BG211:BR990,(BR211:BR990=2)),\"\")","v":""}]
[null,203,{"$f":"IF(F212<>0,MAX($C$10:$C211)+1,\"\")","v":""},null,null,null,null,null,null,null,null,null,null,null,null,null,null,null,null,null,null,null,null,null,null,null,null,0,0,0,null,0,0,"","","-","","",0,null,null,null,null,null,0,0,0,0,0,0,0,0,null,null,null,null,null,null,null,null,null,null,null,null,null,null,null,null,null,null,null,null,null,null,null,null,null,null,null,{"$f":"IFERROR(_xlfn._xlws.FILTER(BG212:BR991,(BR212:BR991=2)),\"\")","v":""}]
[null,204,{"$f":"IF(F213<>0,MAX($C$10:$C212)+1,\"\")","v":""},null,null,null,null,null,null,null,null,null,null,null,null,null,null,null,null,null,null,null,null,null,null,null,null,0,0,0,null,0,0,"","","-","","",0,null,null,null,null,null,0,0,0,0,0,0,0,0,null,null,null,null,null,null,null,null,null,null,null,null,null,null,null,null,null,null,null,null,null,null,null,null,null,null,null,{"$f":"IFERROR(_xlfn._xlws.FILTER(BG213:BR992,(BR213:BR992=2)),\"\")","v":""}]
[null,205,{"$f":"IF(F214<>0,MAX($C$10:$C213)+1,\"\")","v":""},null,null,null,null,null,null,null,null,null,null,null,null,null,null,null,null,null,null,null,null,null,null,null,null,0,0,0,null,0,0,"","","-","","",0,null,null,null,null,null,0,0,0,0,0,0,0,0,null,null,null,null,null,null,null,null,null,null,null,null,null,null,null,null,null,null,null,null,null,null,null,null,null,null,null,{"$f":"IFERROR(_xlfn._xlws.FILTER(BG214:BR993,(BR214:BR993=2)),\"\")","v":""}]
[null,206,{"$f":"IF(F215<>0,MAX($C$10:$C214)+1,\"\")","v":""},null,null,null,null,null,null,null,null,null,null,null,null,null,null,null,null,null,null,null,null,null,null,null,null,0,0,0,null,0,0,"","","-","","",0,null,null,null,null,null,0,0,0,0,0,0,0,0,null,null,null,null,null,null,null,null,null,null,null,null,null,null,null,null,null,null,null,null,null,null,null,null,null,null,null,{"$f":"IFERROR(_xlfn._xlws.FILTER(BG215:BR994,(BR215:BR994=2)),\"\")","v":""}]
[null,207,{"$f":"IF(F216<>0,MAX($C$10:$C215)+1,\"\")","v":""},null,null,null,null,null,null,null,null,null,null,null,null,null,null,null,null,null,null,null,null,null,null,null,null,0,0,0,null,0,0,"","","-","","",0,null,null,null,null,null,0,0,0,0,0,0,0,0,null,null,null,null,null,null,null,null,null,null,null,null,null,null,null,null,null,null,null,null,null,null,null,null,null,null,null,{"$f":"IFERROR(_xlfn._xlws.FILTER(BG216:BR995,(BR216:BR995=2)),\"\")","v":""}]
[null,208,{"$f":"IF(F217<>0,MAX($C$10:$C216)+1,\"\")","v":""},null,null,null,null,null,null,null,null,null,null,null,null,null,null,null,null,null,null,null,null,null,null,null,null,0,0,0,null,0,0,"","","-","","",0,null,null,null,null,null,0,0,0,0,0,0,0,0,null,null,null,null,null,null,null,null,null,null,null,null,null,null,null,null,null,null,null,null,null,null,null,null,null,null,null,{"$f":"IFERROR(_xlfn._xlws.FILTER(BG217:BR996,(BR217:BR996=2)),\"\")","v":""}]
[null,209,{"$f":"IF(F218<>0,MAX($C$10:$C217)+1,\"\")","v":""},null,null,null,null,null,null,null,null,null,null,null,null,null,null,null,null,null,null,null,null,null,null,null,null,0,0,0,null,0,0,"","","-","","",0,null,null,null,null,null,0,0,0,0,0,0,0,0,null,null,null,null,null,null,null,null,null,null,null,null,null,null,null,null,null,null,null,null,null,null,null,null,null,null,null,{"$f":"IFERROR(_xlfn._xlws.FILTER(BG218:BR997,(BR218:BR997=2)),\"\")","v":""}]
[null,210,{"$f":"IF(F219<>0,MAX($C$10:$C218)+1,\"\")","v":""},null,null,null,null,null,null,null,null,null,null,null,null,null,null,null,null,null,null,null,null,null,null,null,null,0,0,0,null,0,0,"","","-","","",0,null,null,null,null,null,0,0,0,0,0,0,0,0,null,null,null,null,null,null,null,null,null,null,null,null,null,null,null,null,null,null,null,null,null,null,null,null,null,null,null,{"$f":"IFERROR(_xlfn._xlws.FILTER(BG219:BR998,(BR219:BR998=2)),\"\")","v":""}]
[null,211,{"$f":"IF(F220<>0,MAX($C$10:$C219)+1,\"\")","v":""},null,null,null,null,null,null,null,null,null,null,null,null,null,null,null,null,null,null,null,null,null,null,null,null,0,0,0,null,0,0,"","","-","","",0,null,null,null,null,null,0,0,0,0,0,0,0,0,null,null,null,null,null,null,null,null,null,null,null,null,null,null,null,null,null,null,null,null,null,null,null,null,null,null,null,{"$f":"IFERROR(_xlfn._xlws.FILTER(BG220:BR999,(BR220:BR999=2)),\"\")","v":""}]
[null,212,{"$f":"IF(F221<>0,MAX($C$10:$C220)+1,\"\")","v":""},null,null,null,null,null,null,null,null,null,null,null,null,null,null,null,null,null,null,null,null,null,null,null,null,0,0,0,null,0,0,"","","-","","",0,null,null,null,null,null,0,0,0,0,0,0,0,0,null,null,null,null,null,null,null,null,null,null,null,null,null,null,null,null,null,null,null,null,null,null,null,null,null,null,null,{"$f":"IFERROR(_xlfn._xlws.FILTER(BG221:BR1000,(BR221:BR1000=2)),\"\")","v":""}]
[null,213,{"$f":"IF(F222<>0,MAX($C$10:$C221)+1,\"\")","v":""},null,null,null,null,null,null,null,null,null,null,null,null,null,null,null,null,null,null,null,null,null,null,null,null,0,0,0,null,0,0,"","","-","","",0,null,null,null,null,null,0,0,0,0,0,0,0,0,null,null,null,null,null,null,null,null,null,null,null,null,null,null,null,null,null,null,null,null,null,null,null,null,null,null,null,{"$f":"IFERROR(_xlfn._xlws.FILTER(BG222:BR1001,(BR222:BR1001=2)),\"\")","v":""}]
[null,214,{"$f":"IF(F223<>0,MAX($C$10:$C222)+1,\"\")","v":""},null,null,null,null,null,null,null,null,null,null,null,null,null,null,null,null,null,null,null,null,null,null,null,null,0,0,0,null,0,0,"","","-","","",0,null,null,null,null,null,0,0,0,0,0,0,0,0,null,null,null,null,null,null,null,null,null,null,null,null,null,null,null,null,null,null,null,null,null,null,null,null,null,null,null,{"$f":"IFERROR(_xlfn._xlws.FILTER(BG223:BR1002,(BR223:BR1002=2)),\"\")","v":""}]
[null,215,{"$f":"IF(F224<>0,MAX($C$10:$C223)+1,\"\")","v":""},null,null,null,null,null,null,null,null,null,null,null,null,null,null,null,null,null,null,null,null,null,null,null,null,0,0,0,null,0,0,"","","-","","",0,null,null,null,null,null,0,0,0,0,0,0,0,0,null,null,null,null,null,null,null,null,null,null,null,null,null,null,null,null,null,null,null,null,null,null,null,null,null,null,null,{"$f":"IFERROR(_xlfn._xlws.FILTER(BG224:BR1003,(BR224:BR1003=2)),\"\")","v":""}]
[null,216,{"$f":"IF(F225<>0,MAX($C$10:$C224)+1,\"\")","v":""},null,null,null,null,null,null,null,null,null,null,null,null,null,null,null,null,null,null,null,null,null,null,null,null,0,0,0,null,0,0,"","","-","","",0,null,null,null,null,null,0,0,0,0,0,0,0,0,null,null,null,null,null,null,null,null,null,null,null,null,null,null,null,null,null,null,null,null,null,null,null,null,null,null,null,{"$f":"IFERROR(_xlfn._xlws.FILTER(BG225:BR1004,(BR225:BR1004=2)),\"\")","v":""}]
[null,217,{"$f":"IF(F226<>0,MAX($C$10:$C225)+1,\"\")","v":""},null,null,null,null,null,null,null,null,null,null,null,null,null,null,null,null,null,null,null,null,null,null,null,null,0,0,0,null,0,0,"","","-","","",0,null,null,null,null,null,0,0,0,0,0,0,0,0,null,null,null,null,null,null,null,null,null,null,null,null,null,null,null,null,null,null,null,null,null,null,null,null,null,null,null,{"$f":"IFERROR(_xlfn._xlws.FILTER(BG226:BR1005,(BR226:BR1005=2)),\"\")","v":""}]
[null,218,{"$f":"IF(F227<>0,MAX($C$10:$C226)+1,\"\")","v":""},null,null,null,null,null,null,null,null,null,null,null,null,null,null,null,null,null,null,null,null,null,null,null,null,0,0,0,null,0,0,"","","-","","",0,null,null,null,null,null,0,0,0,0,0,0,0,0,null,null,null,null,null,null,null,null,null,null,null,null,null,null,null,null,null,null,null,null,null,null,null,null,null,null,null,{"$f":"IFERROR(_xlfn._xlws.FILTER(BG227:BR1006,(BR227:BR1006=2)),\"\")","v":""}]
[null,219,{"$f":"IF(F228<>0,MAX($C$10:$C227)+1,\"\")","v":""},null,null,null,null,null,null,null,null,null,null,null,null,null,null,null,null,null,null,null,null,null,null,null,null,0,0,0,null,0,0,"","","-","","",0,null,null,null,null,null,0,0,0,0,0,0,0,0,null,null,null,null,null,null,null,null,null,null,null,null,null,null,null,null,null,null,null,null,null,null,null,null,null,null,null,{"$f":"IFERROR(_xlfn._xlws.FILTER(BG228:BR1007,(BR228:BR1007=2)),\"\")","v":""}]
[null,220,{"$f":"IF(F229<>0,MAX($C$10:$C228)+1,\"\")","v":""},null,null,null,null,null,null,null,null,null,null,null,null,null,null,null,null,null,null,null,null,null,null,null,null,0,0,0,null,0,0,"","","-","","",0,null,null,null,null,null,0,0,0,0,0,0,0,0,null,null,null,null,null,null,null,null,null,null,null,null,null,null,null,null,null,null,null,null,null,null,null,null,null,null,null,{"$f":"IFERROR(_xlfn._xlws.FILTER(BG229:BR1008,(BR229:BR1008=2)),\"\")","v":""}]
[null,221,{"$f":"IF(F230<>0,MAX($C$10:$C229)+1,\"\")","v":""},null,null,null,null,null,null,null,null,null,null,null,null,null,null,null,null,null,null,null,null,null,null,null,null,0,0,0,null,0,0,"","","-","","",0,null,null,null,null,null,0,0,0,0,0,0,0,0,null,null,null,null,null,null,null,null,null,null,null,null,null,null,null,null,null,null,null,null,null,null,null,null,null,null,null,{"$f":"IFERROR(_xlfn._xlws.FILTER(BG230:BR1009,(BR230:BR1009=2)),\"\")","v":""}]
[null,222,{"$f":"IF(F231<>0,MAX($C$10:$C230)+1,\"\")","v":""},null,null,null,null,null,null,null,null,null,null,null,null,null,null,null,null,null,null,null,null,null,null,null,null,0,0,0,null,0,0,"","","-","","",0,null,null,null,null,null,0,0,0,0,0,0,0,0,null,null,null,null,null,null,null,null,null,null,null,null,null,null,null,null,null,null,null,null,null,null,null,null,null,null,null,{"$f":"IFERROR(_xlfn._xlws.FILTER(BG231:BR1010,(BR231:BR1010=2)),\"\")","v":""}]
[null,223,{"$f":"IF(F232<>0,MAX($C$10:$C231)+1,\"\")","v":""},null,null,null,null,null,null,null,null,null,null,null,null,null,null,null,null,null,null,null,null,null,null,null,null,0,0,0,null,0,0,"","","-","","",0,null,null,null,null,null,0,0,0,0,0,0,0,0,null,null,null,null,null,null,null,null,null,null,null,null,null,null,null,null,null,null,null,null,null,null,null,null,null,null,null,{"$f":"IFERROR(_xlfn._xlws.FILTER(BG232:BR1011,(BR232:BR1011=2)),\"\")","v":""}]
[null,224,{"$f":"IF(F233<>0,MAX($C$10:$C232)+1,\"\")","v":""},null,null,null,null,null,null,null,null,null,null,null,null,null,null,null,null,null,null,null,null,null,null,null,null,0,0,0,null,0,0,"","","-","","",0,null,null,null,null,null,0,0,0,0,0,0,0,0,null,null,null,null,null,null,null,null,null,null,null,null,null,null,null,null,null,null,null,null,null,null,null,null,null,null,null,{"$f":"IFERROR(_xlfn._xlws.FILTER(BG233:BR1012,(BR233:BR1012=2)),\"\")","v":""}]
[null,225,{"$f":"IF(F234<>0,MAX($C$10:$C233)+1,\"\")","v":""},null,null,null,null,null,null,null,null,null,null,null,null,null,null,null,null,null,null,null,null,null,null,null,null,0,0,0,null,0,0,"","","-","","",0,null,null,null,null,null,0,0,0,0,0,0,0,0,null,null,null,null,null,null,null,null,null,null,null,null,null,null,null,null,null,null,null,null,null,null,null,null,null,null,null,{"$f":"IFERROR(_xlfn._xlws.FILTER(BG234:BR1013,(BR234:BR1013=2)),\"\")","v":""}]
[null,226,{"$f":"IF(F235<>0,MAX($C$10:$C234)+1,\"\")","v":""},null,null,null,null,null,null,null,null,null,null,null,null,null,null,null,null,null,null,null,null,null,null,null,null,0,0,0,null,0,0,"","","-","","",0,null,null,null,null,null,0,0,0,0,0,0,0,0,null,null,null,null,null,null,null,null,null,null,null,null,null,null,null,null,null,null,null,null,null,null,null,null,null,null,null,{"$f":"IFERROR(_xlfn._xlws.FILTER(BG235:BR1014,(BR235:BR1014=2)),\"\")","v":""}]
[null,227,{"$f":"IF(F236<>0,MAX($C$10:$C235)+1,\"\")","v":""},null,null,null,null,null,null,null,null,null,null,null,null,null,null,null,null,null,null,null,null,null,null,null,null,0,0,0,null,0,0,"","","-","","",0,null,null,null,null,null,0,0,0,0,0,0,0,0,null,null,null,null,null,null,null,null,null,null,null,null,null,null,null,null,null,null,null,null,null,null,null,null,null,null,null,{"$f":"IFERROR(_xlfn._xlws.FILTER(BG236:BR1015,(BR236:BR1015=2)),\"\")","v":""}]
[null,228,{"$f":"IF(F237<>0,MAX($C$10:$C236)+1,\"\")","v":""},null,null,null,null,null,null,null,null,null,null,null,null,null,null,null,null,null,null,null,null,null,null,null,null,0,0,0,null,0,0,"","","-","","",0,null,null,null,null,null,0,0,0,0,0,0,0,0,null,null,null,null,null,null,null,null,null,null,null,null,null,null,null,null,null,null,null,null,null,null,null,null,null,null,null,{"$f":"IFERROR(_xlfn._xlws.FILTER(BG237:BR1016,(BR237:BR1016=2)),\"\")","v":""}]
[null,229,{"$f":"IF(F238<>0,MAX($C$10:$C237)+1,\"\")","v":""},null,null,null,null,null,null,null,null,null,null,null,null,null,null,null,null,null,null,null,null,null,null,null,null,0,0,0,null,0,0,"","","-","","",0,null,null,null,null,null,0,0,0,0,0,0,0,0,null,null,null,null,null,null,null,null,null,null,null,null,null,null,null,null,null,null,null,null,null,null,null,null,null,null,null,{"$f":"IFERROR(_xlfn._xlws.FILTER(BG238:BR1017,(BR238:BR1017=2)),\"\")","v":""}]
[null,230,{"$f":"IF(F239<>0,MAX($C$10:$C238)+1,\"\")","v":""},null,null,null,null,null,null,null,null,null,null,null,null,null,null,null,null,null,null,null,null,null,null,null,null,0,0,0,null,0,0,"","","-","","",0,null,null,null,null,null,0,0,0,0,0,0,0,0,null,null,null,null,null,null,null,null,null,null,null,null,null,null,null,null,null,null,null,null,null,null,null,null,null,null,null,{"$f":"IFERROR(_xlfn._xlws.FILTER(BG239:BR1018,(BR239:BR1018=2)),\"\")","v":""}]
[null,231,{"$f":"IF(F240<>0,MAX($C$10:$C239)+1,\"\")","v":""},null,null,null,null,null,null,null,null,null,null,null,null,null,null,null,null,null,null,null,null,null,null,null,null,0,0,0,null,0,0,"","","-","","",0,null,null,null,null,null,0,0,0,0,0,0,0,0,null,null,null,null,null,null,null,null,null,null,null,null,null,null,null,null,null,null,null,null,null,null,null,null,null,null,null,{"$f":"IFERROR(_xlfn._xlws.FILTER(BG240:BR1019,(BR240:BR1019=2)),\"\")","v":""}]
[null,232,{"$f":"IF(F241<>0,MAX($C$10:$C240)+1,\"\")","v":""},null,null,null,null,null,null,null,null,null,null,null,null,null,null,null,null,null,null,null,null,null,null,null,null,0,0,0,null,0,0,"","","-","","",0,null,null,null,null,null,0,0,0,0,0,0,0,0,null,null,null,null,null,null,null,null,null,null,null,null,null,null,null,null,null,null,null,null,null,null,null,null,null,null,null,{"$f":"IFERROR(_xlfn._xlws.FILTER(BG241:BR1020,(BR241:BR1020=2)),\"\")","v":""}]
[null,233,{"$f":"IF(F242<>0,MAX($C$10:$C241)+1,\"\")","v":""},null,null,null,null,null,null,null,null,null,null,null,null,null,null,null,null,null,null,null,null,null,null,null,null,0,0,0,null,0,0,"","","-","","",0,null,null,null,null,null,0,0,0,0,0,0,0,0,null,null,null,null,null,null,null,null,null,null,null,null,null,null,null,null,null,null,null,null,null,null,null,null,null,null,null,{"$f":"IFERROR(_xlfn._xlws.FILTER(BG242:BR1021,(BR242:BR1021=2)),\"\")","v":""}]
[null,234,{"$f":"IF(F243<>0,MAX($C$10:$C242)+1,\"\")","v":""},null,null,null,null,null,null,null,null,null,null,null,null,null,null,null,null,null,null,null,null,null,null,null,null,0,0,0,null,0,0,"","","-","","",0,null,null,null,null,null,0,0,0,0,0,0,0,0,null,null,null,null,null,null,null,null,null,null,null,null,null,null,null,null,null,null,null,null,null,null,null,null,null,null,null,{"$f":"IFERROR(_xlfn._xlws.FILTER(BG243:BR1022,(BR243:BR1022=2)),\"\")","v":""}]
[null,235,{"$f":"IF(F244<>0,MAX($C$10:$C243)+1,\"\")","v":""},null,null,null,null,null,null,null,null,null,null,null,null,null,null,null,null,null,null,null,null,null,null,null,null,0,0,0,null,0,0,"","","-","","",0,null,null,null,null,null,0,0,0,0,0,0,0,0,null,null,null,null,null,null,null,null,null,null,null,null,null,null,null,null,null,null,null,null,null,null,null,null,null,null,null,{"$f":"IFERROR(_xlfn._xlws.FILTER(BG244:BR1023,(BR244:BR1023=2)),\"\")","v":""}]
[null,236,{"$f":"IF(F245<>0,MAX($C$10:$C244)+1,\"\")","v":""},null,null,null,null,null,null,null,null,null,null,null,null,null,null,null,null,null,null,null,null,null,null,null,null,0,0,0,null,0,0,"","","-","","",0,null,null,null,null,null,0,0,0,0,0,0,0,0,null,null,null,null,null,null,null,null,null,null,null,null,null,null,null,null,null,null,null,null,null,null,null,null,null,null,null,{"$f":"IFERROR(_xlfn._xlws.FILTER(BG245:BR1024,(BR245:BR1024=2)),\"\")","v":""}]
[null,237,{"$f":"IF(F246<>0,MAX($C$10:$C245)+1,\"\")","v":""},null,null,null,null,null,null,null,null,null,null,null,null,null,null,null,null,null,null,null,null,null,null,null,null,0,0,0,null,0,0,"","","-","","",0,null,null,null,null,null,0,0,0,0,0,0,0,0,null,null,null,null,null,null,null,null,null,null,null,null,null,null,null,null,null,null,null,null,null,null,null,null,null,null,null,{"$f":"IFERROR(_xlfn._xlws.FILTER(BG246:BR1025,(BR246:BR1025=2)),\"\")","v":""}]
[null,238,{"$f":"IF(F247<>0,MAX($C$10:$C246)+1,\"\")","v":""},null,null,null,null,null,null,null,null,null,null,null,null,null,null,null,null,null,null,null,null,null,null,null,null,0,0,0,null,0,0,"","","-","","",0,null,null,null,null,null,0,0,0,0,0,0,0,0,null,null,null,null,null,null,null,null,null,null,null,null,null,null,null,null,null,null,null,null,null,null,null,null,null,null,null,{"$f":"IFERROR(_xlfn._xlws.FILTER(BG247:BR1026,(BR247:BR1026=2)),\"\")","v":""}]
[null,239,{"$f":"IF(F248<>0,MAX($C$10:$C247)+1,\"\")","v":""},null,null,null,null,null,null,null,null,null,null,null,null,null,null,null,null,null,null,null,null,null,null,null,null,0,0,0,null,0,0,"","","-","","",0,null,null,null,null,null,0,0,0,0,0,0,0,0,null,null,null,null,null,null,null,null,null,null,null,null,null,null,null,null,null,null,null,null,null,null,null,null,null,null,null,{"$f":"IFERROR(_xlfn._xlws.FILTER(BG248:BR1027,(BR248:BR1027=2)),\"\")","v":""}]
[null,240,{"$f":"IF(F249<>0,MAX($C$10:$C248)+1,\"\")","v":""},null,null,null,null,null,null,null,null,null,null,null,null,null,null,null,null,null,null,null,null,null,null,null,null,0,0,0,null,0,0,"","","-","","",0,null,null,null,null,null,0,0,0,0,0,0,0,0,null,null,null,null,null,null,null,null,null,null,null,null,null,null,null,null,null,null,null,null,null,null,null,null,null,null,null,{"$f":"IFERROR(_xlfn._xlws.FILTER(BG249:BR1028,(BR249:BR1028=2)),\"\")","v":""}]
[null,241,{"$f":"IF(F250<>0,MAX($C$10:$C249)+1,\"\")","v":""},null,null,null,null,null,null,null,null,null,null,null,null,null,null,null,null,null,null,null,null,null,null,null,null,0,0,0,null,0,0,"","","-","","",0,null,null,null,null,null,0,0,0,0,0,0,0,0,null,null,null,null,null,null,null,null,null,null,null,null,null,null,null,null,null,null,null,null,null,null,null,null,null,null,null,{"$f":"IFERROR(_xlfn._xlws.FILTER(BG250:BR1029,(BR250:BR1029=2)),\"\")","v":""}]
[null,242,{"$f":"IF(F251<>0,MAX($C$10:$C250)+1,\"\")","v":""},null,null,null,null,null,null,null,null,null,null,null,null,null,null,null,null,null,null,null,null,null,null,null,null,0,0,0,null,0,0,"","","-","","",0,null,null,null,null,null,0,0,0,0,0,0,0,0,null,null,null,null,null,null,null,null,null,null,null,null,null,null,null,null,null,null,null,null,null,null,null,null,null,null,null,{"$f":"IFERROR(_xlfn._xlws.FILTER(BG251:BR1030,(BR251:BR1030=2)),\"\")","v":""}]
[null,243,{"$f":"IF(F252<>0,MAX($C$10:$C251)+1,\"\")","v":""},null,null,null,null,null,null,null,null,null,null,null,null,null,null,null,null,null,null,null,null,null,null,null,null,0,0,0,null,0,0,"","","-","","",0,null,null,null,null,null,0,0,0,0,0,0,0,0,null,null,null,null,null,null,null,null,null,null,null,null,null,null,null,null,null,null,null,null,null,null,null,null,null,null,null,{"$f":"IFERROR(_xlfn._xlws.FILTER(BG252:BR1031,(BR252:BR1031=2)),\"\")","v":""}]
[null,244,{"$f":"IF(F253<>0,MAX($C$10:$C252)+1,\"\")","v":""},null,null,null,null,null,null,null,null,null,null,null,null,null,null,null,null,null,null,null,null,null,null,null,null,0,0,0,null,0,0,"","","-","","",0,null,null,null,null,null,0,0,0,0,0,0,0,0,null,null,null,null,null,null,null,null,null,null,null,null,null,null,null,null,null,null,null,null,null,null,null,null,null,null,null,{"$f":"IFERROR(_xlfn._xlws.FILTER(BG253:BR1032,(BR253:BR1032=2)),\"\")","v":""}]
[null,245,{"$f":"IF(F254<>0,MAX($C$10:$C253)+1,\"\")","v":""},null,null,null,null,null,null,null,null,null,null,null,null,null,null,null,null,null,null,null,null,null,null,null,null,0,0,0,null,0,0,"","","-","","",0,null,null,null,null,null,0,0,0,0,0,0,0,0,null,null,null,null,null,null,null,null,null,null,null,null,null,null,null,null,null,null,null,null,null,null,null,null,null,null,null,{"$f":"IFERROR(_xlfn._xlws.FILTER(BG254:BR1033,(BR254:BR1033=2)),\"\")","v":""}]
[null,246,{"$f":"IF(F255<>0,MAX($C$10:$C254)+1,\"\")","v":""},null,null,null,null,null,null,null,null,null,null,null,null,null,null,null,null,null,null,null,null,null,null,null,null,0,0,0,null,0,0,"","","-","","",0,null,null,null,null,null,0,0,0,0,0,0,0,0,null,null,null,null,null,null,null,null,null,null,null,null,null,null,null,null,null,null,null,null,null,null,null,null,null,null,null,{"$f":"IFERROR(_xlfn._xlws.FILTER(BG255:BR1034,(BR255:BR1034=2)),\"\")","v":""}]
[null,247,{"$f":"IF(F256<>0,MAX($C$10:$C255)+1,\"\")","v":""},null,null,null,null,null,null,null,null,null,null,null,null,null,null,null,null,null,null,null,null,null,null,null,null,0,0,0,null,0,0,"","","-","","",0,null,null,null,null,null,0,0,0,0,0,0,0,0,null,null,null,null,null,null,null,null,null,null,null,null,null,null,null,null,null,null,null,null,null,null,null,null,null,null,null,{"$f":"IFERROR(_xlfn._xlws.FILTER(BG256:BR1035,(BR256:BR1035=2)),\"\")","v":""}]
[null,248,{"$f":"IF(F257<>0,MAX($C$10:$C256)+1,\"\")","v":""},null,null,null,null,null,null,null,null,null,null,null,null,null,null,null,null,null,null,null,null,null,null,null,null,0,0,0,null,0,0,"","","-","","",0,null,null,null,null,null,0,0,0,0,0,0,0,0,null,null,null,null,null,null,null,null,null,null,null,null,null,null,null,null,null,null,null,null,null,null,null,null,null,null,null,{"$f":"IFERROR(_xlfn._xlws.FILTER(BG257:BR1036,(BR257:BR1036=2)),\"\")","v":""}]
[null,249,{"$f":"IF(F258<>0,MAX($C$10:$C257)+1,\"\")","v":""},null,null,null,null,null,null,null,null,null,null,null,null,null,null,null,null,null,null,null,null,null,null,null,null,0,0,0,null,0,0,"","","-","","",0,null,null,null,null,null,0,0,0,0,0,0,0,0,null,null,null,null,null,null,null,null,null,null,null,null,null,null,null,null,null,null,null,null,null,null,null,null,null,null,null,{"$f":"IFERROR(_xlfn._xlws.FILTER(BG258:BR1037,(BR258:BR1037=2)),\"\")","v":""}]
[null,250,{"$f":"IF(F259<>0,MAX($C$10:$C258)+1,\"\")","v":""},null,null,null,null,null,null,null,null,null,null,null,null,null,null,null,null,null,null,null,null,null,null,null,null,0,0,0,null,0,0,"","","-","","",0,null,null,null,null,null,0,0,0,0,0,0,0,0,null,null,null,null,null,null,null,null,null,null,null,null,null,null,null,null,null,null,null,null,null,null,null,null,null,null,null,{"$f":"IFERROR(_xlfn._xlws.FILTER(BG259:BR1038,(BR259:BR1038=2)),\"\")","v":""}]
[null,251,{"$f":"IF(F260<>0,MAX($C$10:$C259)+1,\"\")","v":""},null,null,null,null,null,null,null,null,null,null,null,null,null,null,null,null,null,null,null,null,null,null,null,null,0,0,0,null,0,0,"","","-","","",0,null,null,null,null,null,0,0,0,0,0,0,0,0,null,null,null,null,null,null,null,null,null,null,null,null,null,null,null,null,null,null,null,null,null,null,null,null,null,null,null,{"$f":"IFERROR(_xlfn._xlws.FILTER(BG260:BR1039,(BR260:BR1039=2)),\"\")","v":""}]
[null,252,{"$f":"IF(F261<>0,MAX($C$10:$C260)+1,\"\")","v":""},null,null,null,null,null,null,null,null,null,null,null,null,null,null,null,null,null,null,null,null,null,null,null,null,0,0,0,null,0,0,"","","-","","",0,null,null,null,null,null,0,0,0,0,0,0,0,0,null,null,null,null,null,null,null,null,null,null,null,null,null,null,null,null,null,null,null,null,null,null,null,null,null,null,null,{"$f":"IFERROR(_xlfn._xlws.FILTER(BG261:BR1040,(BR261:BR1040=2)),\"\")","v":""}]
[null,253,{"$f":"IF(F262<>0,MAX($C$10:$C261)+1,\"\")","v":""},null,null,null,null,null,null,null,null,null,null,null,null,null,null,null,null,null,null,null,null,null,null,null,null,0,0,0,null,0,0,"","","-","","",0,null,null,null,null,null,0,0,0,0,0,0,0,0,null,null,null,null,null,null,null,null,null,null,null,null,null,null,null,null,null,null,null,null,null,null,null,null,null,null,null,{"$f":"IFERROR(_xlfn._xlws.FILTER(BG262:BR1041,(BR262:BR1041=2)),\"\")","v":""}]
[null,254,{"$f":"IF(F263<>0,MAX($C$10:$C262)+1,\"\")","v":""},null,null,null,null,null,null,null,null,null,null,null,null,null,null,null,null,null,null,null,null,null,null,null,null,0,0,0,null,0,0,"","","-","","",0,null,null,null,null,null,0,0,0,0,0,0,0,0,null,null,null,null,null,null,null,null,null,null,null,null,null,null,null,null,null,null,null,null,null,null,null,null,null,null,null,{"$f":"IFERROR(_xlfn._xlws.FILTER(BG263:BR1042,(BR263:BR1042=2)),\"\")","v":""}]
[null,255,{"$f":"IF(F264<>0,MAX($C$10:$C263)+1,\"\")","v":""},null,null,null,null,null,null,null,null,null,null,null,null,null,null,null,null,null,null,null,null,null,null,null,null,0,0,0,null,0,0,"","","-","","",0,null,null,null,null,null,0,0,0,0,0,0,0,0,null,null,null,null,null,null,null,null,null,null,null,null,null,null,null,null,null,null,null,null,null,null,null,null,null,null,null,{"$f":"IFERROR(_xlfn._xlws.FILTER(BG264:BR1043,(BR264:BR1043=2)),\"\")","v":""}]
[null,256,{"$f":"IF(F265<>0,MAX($C$10:$C264)+1,\"\")","v":""},null,null,null,null,null,null,null,null,null,null,null,null,null,null,null,null,null,null,null,null,null,null,null,null,0,0,0,null,0,0,"","","-","","",0,null,null,null,null,null,0,0,0,0,0,0,0,0,null,null,null,null,null,null,null,null,null,null,null,null,null,null,null,null,null,null,null,null,null,null,null,null,null,null,null,{"$f":"IFERROR(_xlfn._xlws.FILTER(BG265:BR1044,(BR265:BR1044=2)),\"\")","v":""}]
[null,257,{"$f":"IF(F266<>0,MAX($C$10:$C265)+1,\"\")","v":""},null,null,null,null,null,null,null,null,null,null,null,null,null,null,null,null,null,null,null,null,null,null,null,null,0,0,0,null,0,0,"","",{"$f":"IF(AG266=\"\",\"\",\"-\")","v":"-"},"","",0,null,null,null,null,null,0,0,0,0,0,0,0,0,null,null,null,null,null,null,null,null,null,null,null,null,null,null,null,null,null,null,null,null,null,null,null,null,null,null,null,{"$f":"IFERROR(_xlfn._xlws.FILTER(BG266:BR1045,(BR266:BR1045=2)),\"\")","v":""}]
[null,258,{"$f":"IF(F267<>0,MAX($C$10:$C266)+1,\"\")","v":""},null,null,null,null,null,null,null,null,null,null,null,null,null,null,null,null,null,null,null,null,null,null,null,null,0,0,0,null,{"$f":"_xlfn.XLOOKUP(AH267,$J$10:$J$49,$M$10:$M$49,\"\")+_xlfn.XLOOKUP(AL267,$J$10:$J$49,$M$10:$M$49,\"\")","v":0},{"$f":"AE267","v":0},"",{"$f":"IFERROR(IF(AH267=\"\",\"\",IF(OR($L$8=\"Nee\",AF267=0),_xlfn.XLOOKUP(AH267,$D$10:$D$49,$E$10:$E$49),ROUND(_xlfn.XLOOKUP(AH267,$D$10:$D$49,$E$10:$E$49)*AF267,0))),0)","v":""},"-",{"$f":"IFERROR(IF(AH267=\"\",\"\",IF(OR($L$8=\"Nee\",AF267=0),_xlfn.XLOOKUP(AL267,$D$10:$D$49,$E$10:$E$49)*1,ROUND(_xlfn.XLOOKUP(AL267,$D$10:$D$49,$E$10:$E$49)*AF267,0))),0)","v":""},"",0,null,null,null,null,null,0,0,0,0,0,0,0,0,null,null,null,null,null,null,null,null,null,null,null,null,null,null,null,null,null,null,null,null,null,null,null,null,null,null,null,{"$f":"IFERROR(_xlfn._xlws.FILTER(BG267:BR1046,(BR267:BR1046=2)),\"\")","v":""}]
[null,259,{"$f":"IF(F268<>0,MAX($C$10:$C267)+1,\"\")","v":""},null,null,null,null,null,null,null,null,null,null,null,null,null,null,null,null,null,null,null,null,null,null,null,null,0,0,0,null,0,0,"","","-","","",0,null,null,null,null,null,0,0,0,0,0,0,0,{"$f":"AW268","v":0},null,null,null,null,null,null,null,null,null,null,null,null,null,null,null,null,null,null,null,null,null,null,null,null,null,null,null,{"$f":"IFERROR(_xlfn._xlws.FILTER(BG268:BR1047,(BR268:BR1047=2)),\"\")","v":""}]
[null,260,{"$f":"IF(F269<>0,MAX($C$10:$C268)+1,\"\")","v":""},null,null,null,null,null,null,null,null,null,null,null,null,null,null,null,null,null,null,null,null,null,null,null,null,0,{"$f":"IFERROR(_xlfn.XLOOKUP(AG269,$AB$10:$AB$789,$AD$10:$AD$789),\"\")","v":0},0,null,0,0,"","","-","","",0,null,null,null,null,null,0,0,0,0,0,0,0,0,null,null,null,null,null,null,null,null,null,null,null,null,null,null,null,null,null,null,null,null,null,null,null,null,null,null,null,{"$f":"IFERROR(_xlfn._xlws.FILTER(BG269:BR1048,(BR269:BR1048=2)),\"\")","v":""}]
[null,261,{"$f":"IF(F270<>0,MAX($C$10:$C269)+1,\"\")","v":""},null,null,null,null,null,null,null,null,null,null,null,null,null,null,null,null,null,null,null,null,null,null,null,null,0,0,0,null,0,0,"","","-","","",0,null,null,null,null,null,0,0,0,0,0,0,0,0,null,null,null,null,null,null,null,null,null,null,null,null,null,null,null,null,null,null,null,null,null,null,null,null,null,null,null,{"$f":"IFERROR(_xlfn._xlws.FILTER(BG270:BR1049,(BR270:BR1049=2)),\"\")","v":""}]
[null,262,{"$f":"IF(F271<>0,MAX($C$10:$C270)+1,\"\")","v":""},null,null,null,null,null,null,null,null,null,null,null,null,null,null,null,null,null,null,null,null,null,null,null,null,0,0,0,null,0,0,"","","-","","",0,null,null,null,null,null,0,0,0,0,0,0,0,0,null,null,null,null,null,null,null,null,null,null,null,null,null,null,null,null,null,null,null,null,null,null,null,null,null,null,null,{"$f":"IFERROR(_xlfn._xlws.FILTER(BG271:BR1050,(BR271:BR1050=2)),\"\")","v":""}]
[null,263,{"$f":"IF(F272<>0,MAX($C$10:$C271)+1,\"\")","v":""},null,null,null,null,null,null,null,null,null,null,null,null,null,null,null,null,null,null,null,null,null,null,null,null,0,0,0,null,0,0,"","","-","","",0,null,null,null,null,null,0,0,0,0,0,0,0,0,null,null,null,null,null,null,null,null,null,null,null,null,null,null,null,null,null,null,null,null,null,null,null,null,null,null,null,{"$f":"IFERROR(_xlfn._xlws.FILTER(BG272:BR1051,(BR272:BR1051=2)),\"\")","v":""}]
[null,264,{"$f":"IF(F273<>0,MAX($C$10:$C272)+1,\"\")","v":""},null,null,null,null,null,null,null,null,null,null,null,null,null,null,null,null,null,null,null,null,null,null,null,null,0,0,0,null,0,0,"","","-","","",0,null,null,null,null,null,0,0,0,0,0,0,0,0,null,null,null,null,null,null,null,null,null,null,null,null,null,null,null,null,null,null,null,null,null,null,null,null,null,null,null,{"$f":"IFERROR(_xlfn._xlws.FILTER(BG273:BR1052,(BR273:BR1052=2)),\"\")","v":""}]
[null,265,{"$f":"IF(F274<>0,MAX($C$10:$C273)+1,\"\")","v":""},null,null,null,null,null,null,null,null,null,null,null,null,null,null,null,null,null,null,null,null,null,null,null,null,0,0,0,null,0,0,"","","-","","",0,null,null,null,null,null,0,0,0,0,0,0,0,0,null,null,null,null,null,null,null,null,null,null,null,null,null,null,null,null,null,null,null,null,null,null,null,null,null,null,null,{"$f":"IFERROR(_xlfn._xlws.FILTER(BG274:BR1053,(BR274:BR1053=2)),\"\")","v":""}]
[null,266,{"$f":"IF(F275<>0,MAX($C$10:$C274)+1,\"\")","v":""},null,null,null,null,null,null,null,null,null,null,null,null,null,null,null,null,null,null,null,null,null,null,null,null,0,0,0,null,0,0,"","","-","","",0,null,null,null,null,null,0,0,0,0,0,0,0,0,null,null,null,null,null,null,null,null,null,null,null,null,null,null,null,null,null,null,null,null,null,null,null,null,null,null,null,{"$f":"IFERROR(_xlfn._xlws.FILTER(BG275:BR1054,(BR275:BR1054=2)),\"\")","v":""}]
[null,267,{"$f":"IF(F276<>0,MAX($C$10:$C275)+1,\"\")","v":""},null,null,null,null,null,null,null,null,null,null,null,null,null,null,null,null,null,null,null,null,null,null,null,null,0,0,0,null,0,0,"","","-","","",0,null,null,null,null,null,0,0,0,0,0,0,0,0,null,null,null,null,null,null,null,null,null,null,null,null,null,null,null,null,null,null,null,null,null,null,null,null,null,null,null,{"$f":"IFERROR(_xlfn._xlws.FILTER(BG276:BR1055,(BR276:BR1055=2)),\"\")","v":""}]
[null,268,{"$f":"IF(F277<>0,MAX($C$10:$C276)+1,\"\")","v":""},null,null,null,null,null,null,null,null,null,null,null,null,null,null,null,null,null,null,null,null,null,null,null,null,0,0,0,null,0,0,"","","-","","",0,null,null,null,null,null,0,0,0,0,0,0,0,0,null,null,null,null,null,null,null,null,null,null,null,null,null,null,null,null,null,null,null,null,null,null,null,null,null,null,null,{"$f":"IFERROR(_xlfn._xlws.FILTER(BG277:BR1056,(BR277:BR1056=2)),\"\")","v":""}]
[null,269,{"$f":"IF(F278<>0,MAX($C$10:$C277)+1,\"\")","v":""},null,null,null,null,null,null,null,null,null,null,null,null,null,null,null,null,null,null,null,null,null,null,null,null,0,0,0,null,0,0,"","","-","","",0,null,null,null,null,null,0,0,0,0,0,0,0,0,null,null,null,null,null,null,null,null,null,null,null,null,null,null,null,null,null,null,null,null,null,null,null,null,null,null,null,{"$f":"IFERROR(_xlfn._xlws.FILTER(BG278:BR1057,(BR278:BR1057=2)),\"\")","v":""}]
[null,270,{"$f":"IF(F279<>0,MAX($C$10:$C278)+1,\"\")","v":""},null,null,null,null,null,null,null,null,null,null,null,null,null,null,null,null,null,null,null,null,null,null,null,null,0,0,0,null,0,0,"","","-","","",0,null,null,null,null,null,0,0,0,0,0,0,0,0,null,null,null,null,null,null,null,null,null,null,null,null,null,null,null,null,null,null,null,null,null,null,null,null,null,null,null,{"$f":"IFERROR(_xlfn._xlws.FILTER(BG279:BR1058,(BR279:BR1058=2)),\"\")","v":""}]
[null,271,{"$f":"IF(F280<>0,MAX($C$10:$C279)+1,\"\")","v":""},null,null,null,null,null,null,null,null,null,null,null,null,null,null,null,null,null,null,null,null,null,null,null,null,0,0,0,null,0,0,"","","-","","",0,null,null,null,null,null,0,0,0,0,0,0,0,0,null,null,null,null,null,null,null,null,null,null,null,null,null,null,null,null,null,null,null,null,null,null,null,null,null,null,null,{"$f":"IFERROR(_xlfn._xlws.FILTER(BG280:BR1059,(BR280:BR1059=2)),\"\")","v":""}]
[null,272,{"$f":"IF(F281<>0,MAX($C$10:$C280)+1,\"\")","v":""},null,null,null,null,null,null,null,null,null,null,null,null,null,null,null,null,null,null,null,null,null,null,null,null,0,0,0,null,0,0,"","","-","","",0,null,null,null,null,null,0,0,0,0,0,0,0,0,null,null,null,null,null,null,null,null,null,null,null,null,null,null,null,null,null,null,null,null,null,null,null,null,null,null,null,{"$f":"IFERROR(_xlfn._xlws.FILTER(BG281:BR1060,(BR281:BR1060=2)),\"\")","v":""}]
[null,273,{"$f":"IF(F282<>0,MAX($C$10:$C281)+1,\"\")","v":""},null,null,null,null,null,null,null,null,null,null,null,null,null,null,null,null,null,null,null,null,null,null,null,null,0,0,0,null,0,0,"","","-","","",0,null,null,null,null,null,0,0,0,0,0,0,0,0,null,null,null,null,null,null,null,null,null,null,null,null,null,null,null,null,null,null,null,null,null,null,null,null,null,null,null,{"$f":"IFERROR(_xlfn._xlws.FILTER(BG282:BR1061,(BR282:BR1061=2)),\"\")","v":""}]
[null,274,{"$f":"IF(F283<>0,MAX($C$10:$C282)+1,\"\")","v":""},null,null,null,null,null,null,null,null,null,null,null,null,null,null,null,null,null,null,null,null,null,null,null,null,0,0,0,null,0,0,"","","-","","",0,null,null,null,null,null,0,0,0,0,0,0,0,0,null,null,null,null,null,null,null,null,null,null,null,null,null,null,null,null,null,null,null,null,null,null,null,null,null,null,null,{"$f":"IFERROR(_xlfn._xlws.FILTER(BG283:BR1062,(BR283:BR1062=2)),\"\")","v":""}]
[null,275,{"$f":"IF(F284<>0,MAX($C$10:$C283)+1,\"\")","v":""},null,null,null,null,null,null,null,null,null,null,null,null,null,null,null,null,null,null,null,null,null,null,null,null,0,0,0,null,0,0,"","","-","","",0,null,null,null,null,null,0,0,0,0,0,0,0,0,null,null,null,null,null,null,null,null,null,null,null,null,null,null,null,null,null,null,null,null,null,null,null,null,null,null,null,{"$f":"IFERROR(_xlfn._xlws.FILTER(BG284:BR1063,(BR284:BR1063=2)),\"\")","v":""}]
[null,276,{"$f":"IF(F285<>0,MAX($C$10:$C284)+1,\"\")","v":""},null,null,null,null,null,null,null,null,null,null,null,null,null,null,null,null,null,null,null,null,null,null,null,null,0,0,0,null,0,0,"","","-","","",0,null,null,null,null,null,0,0,0,0,0,0,0,0,null,null,null,null,null,null,null,null,null,null,null,null,null,null,null,null,null,null,null,null,null,null,null,null,null,null,null,{"$f":"IFERROR(_xlfn._xlws.FILTER(BG285:BR1064,(BR285:BR1064=2)),\"\")","v":""}]
[null,277,{"$f":"IF(F286<>0,MAX($C$10:$C285)+1,\"\")","v":""},null,null,null,null,null,null,null,null,null,null,null,null,null,null,null,null,null,null,null,null,null,null,null,null,0,0,0,null,0,0,"","","-","","",0,null,null,null,null,null,0,0,0,0,0,0,0,0,null,null,null,null,null,null,null,null,null,null,null,null,null,null,null,null,null,null,null,null,null,null,null,null,null,null,null,{"$f":"IFERROR(_xlfn._xlws.FILTER(BG286:BR1065,(BR286:BR1065=2)),\"\")","v":""}]
[null,278,{"$f":"IF(F287<>0,MAX($C$10:$C286)+1,\"\")","v":""},null,null,null,null,null,null,null,null,null,null,null,null,null,null,null,null,null,null,null,null,null,null,null,null,0,0,0,null,0,0,"","","-","","",0,null,null,null,null,null,0,0,0,0,0,0,0,0,null,null,null,null,null,null,null,null,null,null,null,null,null,null,null,null,null,null,null,null,null,null,null,null,null,null,null,{"$f":"IFERROR(_xlfn._xlws.FILTER(BG287:BR1066,(BR287:BR1066=2)),\"\")","v":""}]
[null,279,{"$f":"IF(F288<>0,MAX($C$10:$C287)+1,\"\")","v":""},null,null,null,null,null,null,null,null,null,null,null,null,null,null,null,null,null,null,null,null,null,null,null,null,0,0,0,null,0,0,"","","-","","",0,null,null,null,null,null,0,0,0,0,0,0,0,0,null,null,null,null,null,null,null,null,null,null,null,null,null,null,null,null,null,null,null,null,null,null,null,null,null,null,null,{"$f":"IFERROR(_xlfn._xlws.FILTER(BG288:BR1067,(BR288:BR1067=2)),\"\")","v":""}]
[null,280,{"$f":"IF(F289<>0,MAX($C$10:$C288)+1,\"\")","v":""},null,null,null,null,null,null,null,null,null,null,null,null,null,null,null,null,null,null,null,null,null,null,null,null,0,0,0,null,0,0,"","","-","","",0,null,null,null,null,null,0,0,0,0,0,0,0,0,null,null,null,null,null,null,null,null,null,null,null,null,null,null,null,null,null,null,null,null,null,null,null,null,null,null,null,{"$f":"IFERROR(_xlfn._xlws.FILTER(BG289:BR1068,(BR289:BR1068=2)),\"\")","v":""}]
[null,281,{"$f":"IF(F290<>0,MAX($C$10:$C289)+1,\"\")","v":""},null,null,null,null,null,null,null,null,null,null,null,null,null,null,null,null,null,null,null,null,null,null,null,null,0,0,0,null,0,0,"","","-","","",0,null,null,null,null,null,0,0,0,0,0,0,0,0,null,null,null,null,null,null,null,null,null,null,null,null,null,null,null,null,null,null,null,null,null,null,null,null,null,null,null,{"$f":"IFERROR(_xlfn._xlws.FILTER(BG290:BR1069,(BR290:BR1069=2)),\"\")","v":""}]
[null,282,{"$f":"IF(F291<>0,MAX($C$10:$C290)+1,\"\")","v":""},null,null,null,null,null,null,null,null,null,null,null,null,null,null,null,null,null,null,null,null,null,null,null,null,0,0,0,null,0,0,"","","-","","",0,null,null,null,null,null,0,0,0,0,0,0,0,0,null,null,null,null,null,null,null,null,null,null,null,null,null,null,null,null,null,null,null,null,null,null,null,null,null,null,null,{"$f":"IFERROR(_xlfn._xlws.FILTER(BG291:BR1070,(BR291:BR1070=2)),\"\")","v":""}]
[null,283,{"$f":"IF(F292<>0,MAX($C$10:$C291)+1,\"\")","v":""},null,null,null,null,null,null,null,null,null,null,null,null,null,null,null,null,null,null,null,null,null,null,null,null,0,0,0,null,0,0,"","","-","","",0,null,null,null,null,null,0,0,0,0,0,0,0,0,null,null,null,null,null,null,null,null,null,null,null,null,null,null,null,null,null,null,null,null,null,null,null,null,null,null,null,{"$f":"IFERROR(_xlfn._xlws.FILTER(BG292:BR1071,(BR292:BR1071=2)),\"\")","v":""}]
[null,284,{"$f":"IF(F293<>0,MAX($C$10:$C292)+1,\"\")","v":""},null,null,null,null,null,null,null,null,null,null,null,null,null,null,null,null,null,null,null,null,null,null,null,null,0,0,0,null,0,0,"","","-","","",0,null,null,null,null,null,0,0,0,0,0,0,0,0,null,null,null,null,null,null,null,null,null,null,null,null,null,null,null,null,null,null,null,null,null,null,null,null,null,null,null,{"$f":"IFERROR(_xlfn._xlws.FILTER(BG293:BR1072,(BR293:BR1072=2)),\"\")","v":""}]
[null,285,{"$f":"IF(F294<>0,MAX($C$10:$C293)+1,\"\")","v":""},null,null,null,null,null,null,null,null,null,null,null,null,null,null,null,null,null,null,null,null,null,null,null,null,0,0,0,null,0,0,"","","-","","",0,null,null,null,null,null,0,0,0,0,0,0,0,0,null,null,null,null,null,null,null,null,null,null,null,null,null,null,null,null,null,null,null,null,null,null,null,null,null,null,null,{"$f":"IFERROR(_xlfn._xlws.FILTER(BG294:BR1073,(BR294:BR1073=2)),\"\")","v":""}]
[null,286,{"$f":"IF(F295<>0,MAX($C$10:$C294)+1,\"\")","v":""},null,null,null,null,null,null,null,null,null,null,null,null,null,null,null,null,null,null,null,null,null,null,null,null,0,0,0,null,0,0,"","","-","","",0,null,null,null,null,null,0,0,0,0,0,0,0,0,null,null,null,null,null,null,null,null,null,null,null,null,null,null,null,null,null,null,null,null,null,null,null,null,null,null,null,{"$f":"IFERROR(_xlfn._xlws.FILTER(BG295:BR1074,(BR295:BR1074=2)),\"\")","v":""}]
[null,287,{"$f":"IF(F296<>0,MAX($C$10:$C295)+1,\"\")","v":""},null,null,null,null,null,null,null,null,null,null,null,null,null,null,null,null,null,null,null,null,null,null,null,null,0,0,0,null,0,0,"","","-","","",0,null,null,null,null,null,0,0,0,0,0,0,0,0,null,null,null,null,null,null,null,null,null,null,null,null,null,null,null,null,null,null,null,null,null,null,null,null,null,null,null,{"$f":"IFERROR(_xlfn._xlws.FILTER(BG296:BR1075,(BR296:BR1075=2)),\"\")","v":""}]
[null,288,{"$f":"IF(F297<>0,MAX($C$10:$C296)+1,\"\")","v":""},null,null,null,null,null,null,null,null,null,null,null,null,null,null,null,null,null,null,null,null,null,null,null,null,0,0,0,null,0,0,"","","-","","",0,null,null,null,null,null,0,0,0,0,0,0,0,0,null,null,null,null,null,null,null,null,null,null,null,null,null,null,null,null,null,null,null,null,null,null,null,null,null,null,null,{"$f":"IFERROR(_xlfn._xlws.FILTER(BG297:BR1076,(BR297:BR1076=2)),\"\")","v":""}]
[null,289,{"$f":"IF(F298<>0,MAX($C$10:$C297)+1,\"\")","v":""},null,null,null,null,null,null,null,null,null,null,null,null,null,null,null,null,null,null,null,null,null,null,null,null,0,0,0,null,0,0,"","","-","","",0,null,null,null,null,null,0,0,0,0,0,0,0,0,null,null,null,null,null,null,null,null,null,null,null,null,null,null,null,null,null,null,null,null,null,null,null,null,null,null,null,{"$f":"IFERROR(_xlfn._xlws.FILTER(BG298:BR1077,(BR298:BR1077=2)),\"\")","v":""}]
[null,290,{"$f":"IF(F299<>0,MAX($C$10:$C298)+1,\"\")","v":""},null,null,null,null,null,null,null,null,null,null,null,null,null,null,null,null,null,null,null,null,null,null,null,null,0,0,0,null,0,0,"","","-","","",0,null,null,null,null,null,0,0,0,0,0,0,0,0,null,null,null,null,null,null,null,null,null,null,null,null,null,null,null,null,null,null,null,null,null,null,null,null,null,null,null,{"$f":"IFERROR(_xlfn._xlws.FILTER(BG299:BR1078,(BR299:BR1078=2)),\"\")","v":""}]
[null,291,{"$f":"IF(F300<>0,MAX($C$10:$C299)+1,\"\")","v":""},null,null,null,null,null,null,null,null,null,null,null,null,null,null,null,null,null,null,null,null,null,null,null,null,0,0,0,null,0,0,"","","-","","",0,null,null,null,null,null,0,0,0,0,0,0,0,0,null,null,null,null,null,null,null,null,null,null,null,null,null,null,null,null,null,null,null,null,null,null,null,null,null,null,null,{"$f":"IFERROR(_xlfn._xlws.FILTER(BG300:BR1079,(BR300:BR1079=2)),\"\")","v":""}]
[null,292,{"$f":"IF(F301<>0,MAX($C$10:$C300)+1,\"\")","v":""},null,null,null,null,null,null,null,null,null,null,null,null,null,null,null,null,null,null,null,null,null,null,null,null,0,0,0,null,0,0,"","","-","","",0,null,null,null,null,null,0,0,0,0,0,0,0,0,null,null,null,null,null,null,null,null,null,null,null,null,null,null,null,null,null,null,null,null,null,null,null,null,null,null,null,{"$f":"IFERROR(_xlfn._xlws.FILTER(BG301:BR1080,(BR301:BR1080=2)),\"\")","v":""}]
[null,293,{"$f":"IF(F302<>0,MAX($C$10:$C301)+1,\"\")","v":""},null,null,null,null,null,null,null,null,null,null,null,null,null,null,null,null,null,null,null,null,null,null,null,null,0,0,0,null,0,0,"","","-","","",0,null,null,null,null,null,0,0,0,0,0,0,0,0,null,null,null,null,null,null,null,null,null,null,null,null,null,null,null,null,null,null,null,null,null,null,null,null,null,null,null,{"$f":"IFERROR(_xlfn._xlws.FILTER(BG302:BR1081,(BR302:BR1081=2)),\"\")","v":""}]
[null,294,{"$f":"IF(F303<>0,MAX($C$10:$C302)+1,\"\")","v":""},null,null,null,null,null,null,null,null,null,null,null,null,null,null,null,null,null,null,null,null,null,null,null,null,0,0,0,null,0,0,"","","-","","",0,null,null,null,null,null,0,0,0,0,0,0,0,0,null,null,null,null,null,null,null,null,null,null,null,null,null,null,null,null,null,null,null,null,null,null,null,null,null,null,null,{"$f":"IFERROR(_xlfn._xlws.FILTER(BG303:BR1082,(BR303:BR1082=2)),\"\")","v":""}]
[null,295,{"$f":"IF(F304<>0,MAX($C$10:$C303)+1,\"\")","v":""},null,null,null,null,null,null,null,null,null,null,null,null,null,null,null,null,null,null,null,null,null,null,null,null,0,0,0,null,0,0,"","","-","","",0,null,null,null,null,null,0,0,0,0,0,0,0,0,null,null,null,null,null,null,null,null,null,null,null,null,null,null,null,null,null,null,null,null,null,null,null,null,null,null,null,{"$f":"IFERROR(_xlfn._xlws.FILTER(BG304:BR1083,(BR304:BR1083=2)),\"\")","v":""}]
[null,296,{"$f":"IF(F305<>0,MAX($C$10:$C304)+1,\"\")","v":""},null,null,null,null,null,null,null,null,null,null,null,null,null,null,null,null,null,null,null,null,null,null,null,null,0,0,0,null,0,0,"","","-","","",0,null,null,null,null,null,0,0,0,0,0,0,0,0,null,null,null,null,null,null,null,null,null,null,null,null,null,null,null,null,null,null,null,null,null,null,null,null,null,null,null,{"$f":"IFERROR(_xlfn._xlws.FILTER(BG305:BR1084,(BR305:BR1084=2)),\"\")","v":""}]
[null,297,{"$f":"IF(F306<>0,MAX($C$10:$C305)+1,\"\")","v":""},null,null,null,null,null,null,null,null,null,null,null,null,null,null,null,null,null,null,null,null,null,null,null,null,0,0,0,null,0,0,"","","-","","",0,null,null,null,null,null,0,0,0,0,0,0,0,0,null,null,null,null,null,null,null,null,null,null,null,null,null,null,null,null,null,null,null,null,null,null,null,null,null,null,null,{"$f":"IFERROR(_xlfn._xlws.FILTER(BG306:BR1085,(BR306:BR1085=2)),\"\")","v":""}]
[null,298,{"$f":"IF(F307<>0,MAX($C$10:$C306)+1,\"\")","v":""},null,null,null,null,null,null,null,null,null,null,null,null,null,null,null,null,null,null,null,null,null,null,null,null,0,0,0,null,0,0,"","","-","","",0,null,null,null,null,null,0,0,0,0,0,0,0,0,null,null,null,null,null,null,null,null,null,null,null,null,null,null,null,null,null,null,null,null,null,null,null,null,null,null,null,{"$f":"IFERROR(_xlfn._xlws.FILTER(BG307:BR1086,(BR307:BR1086=2)),\"\")","v":""}]
[null,299,{"$f":"IF(F308<>0,MAX($C$10:$C307)+1,\"\")","v":""},null,null,null,null,null,null,null,null,null,null,null,null,null,null,null,null,null,null,null,null,null,null,null,null,0,0,0,null,0,0,"","","-","","",0,null,null,null,null,null,0,0,0,0,0,0,0,0,null,null,null,null,null,null,null,null,null,null,null,null,null,null,null,null,null,null,null,null,null,null,null,null,null,null,null,{"$f":"IFERROR(_xlfn._xlws.FILTER(BG308:BR1087,(BR308:BR1087=2)),\"\")","v":""}]
[null,300,{"$f":"IF(F309<>0,MAX($C$10:$C308)+1,\"\")","v":""},null,null,null,null,null,null,null,null,null,null,null,null,null,null,null,null,null,null,null,null,null,null,null,null,0,0,0,null,0,0,"","","-","","",0,null,null,null,null,null,0,0,0,0,0,0,0,0,null,null,null,null,null,null,null,null,null,null,null,null,null,null,null,null,null,null,null,null,null,null,null,null,null,null,null,{"$f":"IFERROR(_xlfn._xlws.FILTER(BG309:BR1088,(BR309:BR1088=2)),\"\")","v":""}]
[null,301,{"$f":"IF(F310<>0,MAX($C$10:$C309)+1,\"\")","v":""},null,null,null,null,null,null,null,null,null,null,null,null,null,null,null,null,null,null,null,null,null,null,null,null,0,0,0,null,0,0,"","","-","","",0,null,null,null,null,null,0,0,0,0,0,0,0,0,null,null,null,null,null,null,null,null,null,null,null,null,null,null,null,null,null,null,null,null,null,null,null,null,null,null,null,{"$f":"IFERROR(_xlfn._xlws.FILTER(BG310:BR1089,(BR310:BR1089=2)),\"\")","v":""}]
[null,302,{"$f":"IF(F311<>0,MAX($C$10:$C310)+1,\"\")","v":""},null,null,null,null,null,null,null,null,null,null,null,null,null,null,null,null,null,null,null,null,null,null,null,null,0,0,0,null,0,0,"","","-","","",0,null,null,null,null,null,0,0,0,0,0,0,0,0,null,null,null,null,null,null,null,null,null,null,null,null,null,null,null,null,null,null,null,null,null,null,null,null,null,null,null,{"$f":"IFERROR(_xlfn._xlws.FILTER(BG311:BR1090,(BR311:BR1090=2)),\"\")","v":""}]
[null,303,{"$f":"IF(F312<>0,MAX($C$10:$C311)+1,\"\")","v":""},null,null,null,null,null,null,null,null,null,null,null,null,null,null,null,null,null,null,null,null,null,null,null,null,0,0,0,null,0,0,"","","-","","",0,null,null,null,null,null,0,0,0,0,0,0,0,0,null,null,null,null,null,null,null,null,null,null,null,null,null,null,null,null,null,null,null,null,null,null,null,null,null,null,null,{"$f":"IFERROR(_xlfn._xlws.FILTER(BG312:BR1091,(BR312:BR1091=2)),\"\")","v":""}]
[null,304,{"$f":"IF(F313<>0,MAX($C$10:$C312)+1,\"\")","v":""},null,null,null,null,null,null,null,null,null,null,null,null,null,null,null,null,null,null,null,null,null,null,null,null,0,0,0,null,0,0,"","","-","","",0,null,null,null,null,null,0,0,0,0,0,0,0,0,null,null,null,null,null,null,null,null,null,null,null,null,null,null,null,null,null,null,null,null,null,null,null,null,null,null,null,{"$f":"IFERROR(_xlfn._xlws.FILTER(BG313:BR1092,(BR313:BR1092=2)),\"\")","v":""}]
[null,305,{"$f":"IF(F314<>0,MAX($C$10:$C313)+1,\"\")","v":""},null,null,null,null,null,null,null,null,null,null,null,null,null,null,null,null,null,null,null,null,null,null,null,null,0,0,0,null,0,0,"","","-","","",0,null,null,null,null,null,0,0,0,0,0,0,0,0,null,null,null,null,null,null,null,null,null,null,null,null,null,null,null,null,null,null,null,null,null,null,null,null,null,null,null,{"$f":"IFERROR(_xlfn._xlws.FILTER(BG314:BR1093,(BR314:BR1093=2)),\"\")","v":""}]
[null,306,{"$f":"IF(F315<>0,MAX($C$10:$C314)+1,\"\")","v":""},null,null,null,null,null,null,null,null,null,null,null,null,null,null,null,null,null,null,null,null,null,null,null,null,0,0,0,null,0,0,"","","-","","",0,null,null,null,null,null,0,0,0,0,0,0,0,0,null,null,null,null,null,null,null,null,null,null,null,null,null,null,null,null,null,null,null,null,null,null,null,null,null,null,null,{"$f":"IFERROR(_xlfn._xlws.FILTER(BG315:BR1094,(BR315:BR1094=2)),\"\")","v":""}]
[null,307,{"$f":"IF(F316<>0,MAX($C$10:$C315)+1,\"\")","v":""},null,null,null,null,null,null,null,null,null,null,null,null,null,null,null,null,null,null,null,null,null,null,null,null,0,0,0,null,0,0,"","","-","","",0,null,null,null,null,null,0,0,0,0,0,0,0,0,null,null,null,null,null,null,null,null,null,null,null,null,null,null,null,null,null,null,null,null,null,null,null,null,null,null,null,{"$f":"IFERROR(_xlfn._xlws.FILTER(BG316:BR1095,(BR316:BR1095=2)),\"\")","v":""}]
[null,308,{"$f":"IF(F317<>0,MAX($C$10:$C316)+1,\"\")","v":""},null,null,null,null,null,null,null,null,null,null,null,null,null,null,null,null,null,null,null,null,null,null,null,null,0,0,0,null,0,0,"","","-","","",0,null,null,null,null,null,0,0,0,0,0,0,0,0,null,null,null,null,null,null,null,null,null,null,null,null,null,null,null,null,null,null,null,null,null,null,null,null,null,null,null,{"$f":"IFERROR(_xlfn._xlws.FILTER(BG317:BR1096,(BR317:BR1096=2)),\"\")","v":""}]
[null,309,{"$f":"IF(F318<>0,MAX($C$10:$C317)+1,\"\")","v":""},null,null,null,null,null,null,null,null,null,null,null,null,null,null,null,null,null,null,null,null,null,null,null,null,0,0,0,null,0,0,"","","-","","",0,null,null,null,null,null,0,0,0,0,0,0,0,0,null,null,null,null,null,null,null,null,null,null,null,null,null,null,null,null,null,null,null,null,null,null,null,null,null,null,null,{"$f":"IFERROR(_xlfn._xlws.FILTER(BG318:BR1097,(BR318:BR1097=2)),\"\")","v":""}]
[null,310,{"$f":"IF(F319<>0,MAX($C$10:$C318)+1,\"\")","v":""},null,null,null,null,null,null,null,null,null,null,null,null,null,null,null,null,null,null,null,null,null,null,null,null,0,0,0,null,0,0,"","","-","","",0,null,null,null,null,null,0,0,0,0,0,0,0,0,null,null,null,null,null,null,null,null,null,null,null,null,null,null,null,null,null,null,null,null,null,null,null,null,null,null,null,{"$f":"IFERROR(_xlfn._xlws.FILTER(BG319:BR1098,(BR319:BR1098=2)),\"\")","v":""}]
[null,311,{"$f":"IF(F320<>0,MAX($C$10:$C319)+1,\"\")","v":""},null,null,null,null,null,null,null,null,null,null,null,null,null,null,null,null,null,null,null,null,null,null,null,null,0,0,0,null,0,0,"","","-","","",0,null,null,null,null,null,0,0,0,0,0,0,0,0,null,null,null,null,null,null,null,null,null,null,null,null,null,null,null,null,null,null,null,null,null,null,null,null,null,null,null,{"$f":"IFERROR(_xlfn._xlws.FILTER(BG320:BR1099,(BR320:BR1099=2)),\"\")","v":""}]
[null,312,{"$f":"IF(F321<>0,MAX($C$10:$C320)+1,\"\")","v":""},null,null,null,null,null,null,null,null,null,null,null,null,null,null,null,null,null,null,null,null,null,null,null,null,0,0,0,null,0,0,"","","-","","",0,null,null,null,null,null,0,0,0,0,0,0,0,0,null,null,null,null,null,null,null,null,null,null,null,null,null,null,null,null,null,null,null,null,null,null,null,null,null,null,null,{"$f":"IFERROR(_xlfn._xlws.FILTER(BG321:BR1100,(BR321:BR1100=2)),\"\")","v":""}]
[null,313,{"$f":"IF(F322<>0,MAX($C$10:$C321)+1,\"\")","v":""},null,null,null,null,null,null,null,null,null,null,null,null,null,null,null,null,null,null,null,null,null,null,null,null,0,0,0,null,0,0,"","","-","","",0,null,null,null,null,null,0,0,0,0,0,0,0,0,null,null,null,null,null,null,null,null,null,null,null,null,null,null,null,null,null,null,null,null,null,null,null,null,null,null,null,{"$f":"IFERROR(_xlfn._xlws.FILTER(BG322:BR1101,(BR322:BR1101=2)),\"\")","v":""}]
[null,314,{"$f":"IF(F323<>0,MAX($C$10:$C322)+1,\"\")","v":""},null,null,null,null,null,null,null,null,null,null,null,null,null,null,null,null,null,null,null,null,null,null,null,null,0,0,0,null,0,0,"","","-","","",0,null,null,null,null,null,0,0,0,0,0,0,0,0,null,null,null,null,null,null,null,null,null,null,null,null,null,null,null,null,null,null,null,null,null,null,null,null,null,null,null,{"$f":"IFERROR(_xlfn._xlws.FILTER(BG323:BR1102,(BR323:BR1102=2)),\"\")","v":""}]
[null,315,{"$f":"IF(F324<>0,MAX($C$10:$C323)+1,\"\")","v":""},null,null,null,null,null,null,null,null,null,null,null,null,null,null,null,null,null,null,null,null,null,null,null,null,0,0,0,null,0,0,"","","-","","",0,null,null,null,null,null,0,0,0,0,0,0,0,0,null,null,null,null,null,null,null,null,null,null,null,null,null,null,null,null,null,null,null,null,null,null,null,null,null,null,null,{"$f":"IFERROR(_xlfn._xlws.FILTER(BG324:BR1103,(BR324:BR1103=2)),\"\")","v":""}]
[null,316,{"$f":"IF(F325<>0,MAX($C$10:$C324)+1,\"\")","v":""},null,null,null,null,null,null,null,null,null,null,null,null,null,null,null,null,null,null,null,null,null,null,null,null,0,0,0,null,0,0,"","","-","","",0,null,null,null,null,null,0,0,0,0,0,0,0,0,null,null,null,null,null,null,null,null,null,null,null,null,null,null,null,null,null,null,null,null,null,null,null,null,null,null,null,{"$f":"IFERROR(_xlfn._xlws.FILTER(BG325:BR1104,(BR325:BR1104=2)),\"\")","v":""}]
[null,317,{"$f":"IF(F326<>0,MAX($C$10:$C325)+1,\"\")","v":""},null,null,null,null,null,null,null,null,null,null,null,null,null,null,null,null,null,null,null,null,null,null,null,null,0,0,0,null,0,0,"","","-","","",0,null,null,null,null,null,0,0,0,0,0,0,0,0,null,null,null,null,null,null,null,null,null,null,null,null,null,null,null,null,null,null,null,null,null,null,null,null,null,null,null,{"$f":"IFERROR(_xlfn._xlws.FILTER(BG326:BR1105,(BR326:BR1105=2)),\"\")","v":""}]
[null,318,{"$f":"IF(F327<>0,MAX($C$10:$C326)+1,\"\")","v":""},null,null,null,null,null,null,null,null,null,null,null,null,null,null,null,null,null,null,null,null,null,null,null,null,0,0,0,null,0,0,"","","-","","",0,null,null,null,null,null,0,0,0,0,0,0,0,0,null,null,null,null,null,null,null,null,null,null,null,null,null,null,null,null,null,null,null,null,null,null,null,null,null,null,null,{"$f":"IFERROR(_xlfn._xlws.FILTER(BG327:BR1106,(BR327:BR1106=2)),\"\")","v":""}]
[null,319,{"$f":"IF(F328<>0,MAX($C$10:$C327)+1,\"\")","v":""},null,null,null,null,null,null,null,null,null,null,null,null,null,null,null,null,null,null,null,null,null,null,null,null,0,0,0,null,0,0,"","","-","","",0,null,null,null,null,null,0,0,0,0,0,0,0,0,null,null,null,null,null,null,null,null,null,null,null,null,null,null,null,null,null,null,null,null,null,null,null,null,null,null,null,{"$f":"IFERROR(_xlfn._xlws.FILTER(BG328:BR1107,(BR328:BR1107=2)),\"\")","v":""}]
[null,320,{"$f":"IF(F329<>0,MAX($C$10:$C328)+1,\"\")","v":""},null,null,null,null,null,null,null,null,null,null,null,null,null,null,null,null,null,null,null,null,null,null,null,null,0,0,0,null,0,0,"","","-","","",0,null,null,null,null,null,0,0,0,0,0,0,0,0,null,null,null,null,null,null,null,null,null,null,null,null,null,null,null,null,null,null,null,null,null,null,null,null,null,null,null,{"$f":"IFERROR(_xlfn._xlws.FILTER(BG329:BR1108,(BR329:BR1108=2)),\"\")","v":""}]
[null,321,{"$f":"IF(F330<>0,MAX($C$10:$C329)+1,\"\")","v":""},null,null,null,null,null,null,null,null,null,null,null,null,null,null,null,null,null,null,null,null,null,null,null,null,0,0,0,null,0,0,"","",{"$f":"IF(AG330=\"\",\"\",\"-\")","v":"-"},"","",0,null,null,null,null,null,0,0,0,0,0,0,0,0,null,null,null,null,null,null,null,null,null,null,null,null,null,null,null,null,null,null,null,null,null,null,null,null,null,null,null,{"$f":"IFERROR(_xlfn._xlws.FILTER(BG330:BR1109,(BR330:BR1109=2)),\"\")","v":""}]
[null,322,{"$f":"IF(F331<>0,MAX($C$10:$C330)+1,\"\")","v":""},null,null,null,null,null,null,null,null,null,null,null,null,null,null,null,null,null,null,null,null,null,null,null,null,0,0,0,null,{"$f":"_xlfn.XLOOKUP(AH331,$J$10:$J$49,$M$10:$M$49,\"\")+_xlfn.XLOOKUP(AL331,$J$10:$J$49,$M$10:$M$49,\"\")","v":0},{"$f":"AE331","v":0},"",{"$f":"IFERROR(IF(AH331=\"\",\"\",IF(OR($L$8=\"Nee\",AF331=0),_xlfn.XLOOKUP(AH331,$D$10:$D$49,$E$10:$E$49),ROUND(_xlfn.XLOOKUP(AH331,$D$10:$D$49,$E$10:$E$49)*AF331,0))),0)","v":""},"-",{"$f":"IFERROR(IF(AH331=\"\",\"\",IF(OR($L$8=\"Nee\",AF331=0),_xlfn.XLOOKUP(AL331,$D$10:$D$49,$E$10:$E$49)*1,ROUND(_xlfn.XLOOKUP(AL331,$D$10:$D$49,$E$10:$E$49)*AF331,0))),0)","v":""},"",0,null,null,null,null,null,0,0,0,0,0,0,0,0,null,null,null,null,null,null,null,null,null,null,null,null,null,null,null,null,null,null,null,null,null,null,null,null,null,null,null,{"$f":"IFERROR(_xlfn._xlws.FILTER(BG331:BR1110,(BR331:BR1110=2)),\"\")","v":""}]
[null,323,{"$f":"IF(F332<>0,MAX($C$10:$C331)+1,\"\")","v":""},null,null,null,null,null,null,null,null,null,null,null,null,null,null,null,null,null,null,null,null,null,null,null,null,0,0,0,null,0,0,"","","-","","",0,null,null,null,null,null,0,0,0,0,0,0,0,{"$f":"AW332","v":0},null,null,null,null,null,null,null,null,null,null,null,null,null,null,null,null,null,null,null,null,null,null,null,null,null,null,null,{"$f":"IFERROR(_xlfn._xlws.FILTER(BG332:BR1111,(BR332:BR1111=2)),\"\")","v":""}]
[null,324,{"$f":"IF(F333<>0,MAX($C$10:$C332)+1,\"\")","v":""},null,null,null,null,null,null,null,null,null,null,null,null,null,null,null,null,null,null,null,null,null,null,null,null,0,{"$f":"IFERROR(_xlfn.XLOOKUP(AG333,$AB$10:$AB$789,$AD$10:$AD$789),\"\")","v":0},0,null,0,0,"","","-","","",0,null,null,null,null,null,0,0,0,0,0,0,0,0,null,null,null,null,null,null,null,null,null,null,null,null,null,null,null,null,null,null,null,null,null,null,null,null,null,null,null,{"$f":"IFERROR(_xlfn._xlws.FILTER(BG333:BR1112,(BR333:BR1112=2)),\"\")","v":""}]
[null,325,{"$f":"IF(F334<>0,MAX($C$10:$C333)+1,\"\")","v":""},null,null,null,null,null,null,null,null,null,null,null,null,null,null,null,null,null,null,null,null,null,null,null,null,0,0,0,null,0,0,"","","-","","",0,null,null,null,null,null,0,0,0,0,0,0,0,0,null,null,null,null,null,null,null,null,null,null,null,null,null,null,null,null,null,null,null,null,null,null,null,null,null,null,null,{"$f":"IFERROR(_xlfn._xlws.FILTER(BG334:BR1113,(BR334:BR1113=2)),\"\")","v":""}]
[null,326,{"$f":"IF(F335<>0,MAX($C$10:$C334)+1,\"\")","v":""},null,null,null,null,null,null,null,null,null,null,null,null,null,null,null,null,null,null,null,null,null,null,null,null,0,0,0,null,0,0,"","","-","","",0,null,null,null,null,null,0,0,0,0,0,0,0,0,null,null,null,null,null,null,null,null,null,null,null,null,null,null,null,null,null,null,null,null,null,null,null,null,null,null,null,{"$f":"IFERROR(_xlfn._xlws.FILTER(BG335:BR1114,(BR335:BR1114=2)),\"\")","v":""}]
[null,327,{"$f":"IF(F336<>0,MAX($C$10:$C335)+1,\"\")","v":""},null,null,null,null,null,null,null,null,null,null,null,null,null,null,null,null,null,null,null,null,null,null,null,null,0,0,0,null,0,0,"","","-","","",0,null,null,null,null,null,0,0,0,0,0,0,0,0,null,null,null,null,null,null,null,null,null,null,null,null,null,null,null,null,null,null,null,null,null,null,null,null,null,null,null,{"$f":"IFERROR(_xlfn._xlws.FILTER(BG336:BR1115,(BR336:BR1115=2)),\"\")","v":""}]
[null,328,{"$f":"IF(F337<>0,MAX($C$10:$C336)+1,\"\")","v":""},null,null,null,null,null,null,null,null,null,null,null,null,null,null,null,null,null,null,null,null,null,null,null,null,0,0,0,null,0,0,"","","-","","",0,null,null,null,null,null,0,0,0,0,0,0,0,0,null,null,null,null,null,null,null,null,null,null,null,null,null,null,null,null,null,null,null,null,null,null,null,null,null,null,null,{"$f":"IFERROR(_xlfn._xlws.FILTER(BG337:BR1116,(BR337:BR1116=2)),\"\")","v":""}]
[null,329,{"$f":"IF(F338<>0,MAX($C$10:$C337)+1,\"\")","v":""},null,null,null,null,null,null,null,null,null,null,null,null,null,null,null,null,null,null,null,null,null,null,null,null,0,0,0,null,0,0,"","","-","","",0,null,null,null,null,null,0,0,0,0,0,0,0,0,null,null,null,null,null,null,null,null,null,null,null,null,null,null,null,null,null,null,null,null,null,null,null,null,null,null,null,{"$f":"IFERROR(_xlfn._xlws.FILTER(BG338:BR1117,(BR338:BR1117=2)),\"\")","v":""}]
[null,330,{"$f":"IF(F339<>0,MAX($C$10:$C338)+1,\"\")","v":""},null,null,null,null,null,null,null,null,null,null,null,null,null,null,null,null,null,null,null,null,null,null,null,null,0,0,0,null,0,0,"","","-","","",0,null,null,null,null,null,0,0,0,0,0,0,0,0,null,null,null,null,null,null,null,null,null,null,null,null,null,null,null,null,null,null,null,null,null,null,null,null,null,null,null,{"$f":"IFERROR(_xlfn._xlws.FILTER(BG339:BR1118,(BR339:BR1118=2)),\"\")","v":""}]
[null,331,{"$f":"IF(F340<>0,MAX($C$10:$C339)+1,\"\")","v":""},null,null,null,null,null,null,null,null,null,null,null,null,null,null,null,null,null,null,null,null,null,null,null,null,0,0,0,null,0,0,"","","-","","",0,null,null,null,null,null,0,0,0,0,0,0,0,0,null,null,null,null,null,null,null,null,null,null,null,null,null,null,null,null,null,null,null,null,null,null,null,null,null,null,null,{"$f":"IFERROR(_xlfn._xlws.FILTER(BG340:BR1119,(BR340:BR1119=2)),\"\")","v":""}]
[null,332,{"$f":"IF(F341<>0,MAX($C$10:$C340)+1,\"\")","v":""},null,null,null,null,null,null,null,null,null,null,null,null,null,null,null,null,null,null,null,null,null,null,null,null,0,0,0,null,0,0,"","","-","","",0,null,null,null,null,null,0,0,0,0,0,0,0,0,null,null,null,null,null,null,null,null,null,null,null,null,null,null,null,null,null,null,null,null,null,null,null,null,null,null,null,{"$f":"IFERROR(_xlfn._xlws.FILTER(BG341:BR1120,(BR341:BR1120=2)),\"\")","v":""}]
[null,333,{"$f":"IF(F342<>0,MAX($C$10:$C341)+1,\"\")","v":""},null,null,null,null,null,null,null,null,null,null,null,null,null,null,null,null,null,null,null,null,null,null,null,null,0,0,0,null,0,0,"","","-","","",0,null,null,null,null,null,0,0,0,0,0,0,0,0,null,null,null,null,null,null,null,null,null,null,null,null,null,null,null,null,null,null,null,null,null,null,null,null,null,null,null,{"$f":"IFERROR(_xlfn._xlws.FILTER(BG342:BR1121,(BR342:BR1121=2)),\"\")","v":""}]
[null,334,{"$f":"IF(F343<>0,MAX($C$10:$C342)+1,\"\")","v":""},null,null,null,null,null,null,null,null,null,null,null,null,null,null,null,null,null,null,null,null,null,null,null,null,0,0,0,null,0,0,"","","-","","",0,null,null,null,null,null,0,0,0,0,0,0,0,0,null,null,null,null,null,null,null,null,null,null,null,null,null,null,null,null,null,null,null,null,null,null,null,null,null,null,null,{"$f":"IFERROR(_xlfn._xlws.FILTER(BG343:BR1122,(BR343:BR1122=2)),\"\")","v":""}]
[null,335,{"$f":"IF(F344<>0,MAX($C$10:$C343)+1,\"\")","v":""},null,null,null,null,null,null,null,null,null,null,null,null,null,null,null,null,null,null,null,null,null,null,null,null,0,0,0,null,0,0,"","","-","","",0,null,null,null,null,null,0,0,0,0,0,0,0,0,null,null,null,null,null,null,null,null,null,null,null,null,null,null,null,null,null,null,null,null,null,null,null,null,null,null,null,{"$f":"IFERROR(_xlfn._xlws.FILTER(BG344:BR1123,(BR344:BR1123=2)),\"\")","v":""}]
[null,336,{"$f":"IF(F345<>0,MAX($C$10:$C344)+1,\"\")","v":""},null,null,null,null,null,null,null,null,null,null,null,null,null,null,null,null,null,null,null,null,null,null,null,null,0,0,0,null,0,0,"","","-","","",0,null,null,null,null,null,0,0,0,0,0,0,0,0,null,null,null,null,null,null,null,null,null,null,null,null,null,null,null,null,null,null,null,null,null,null,null,null,null,null,null,{"$f":"IFERROR(_xlfn._xlws.FILTER(BG345:BR1124,(BR345:BR1124=2)),\"\")","v":""}]
[null,337,{"$f":"IF(F346<>0,MAX($C$10:$C345)+1,\"\")","v":""},null,null,null,null,null,null,null,null,null,null,null,null,null,null,null,null,null,null,null,null,null,null,null,null,0,0,0,null,0,0,"","","-","","",0,null,null,null,null,null,0,0,0,0,0,0,0,0,null,null,null,null,null,null,null,null,null,null,null,null,null,null,null,null,null,null,null,null,null,null,null,null,null,null,null,{"$f":"IFERROR(_xlfn._xlws.FILTER(BG346:BR1125,(BR346:BR1125=2)),\"\")","v":""}]
[null,338,{"$f":"IF(F347<>0,MAX($C$10:$C346)+1,\"\")","v":""},null,null,null,null,null,null,null,null,null,null,null,null,null,null,null,null,null,null,null,null,null,null,null,null,0,0,0,null,0,0,"","","-","","",0,null,null,null,null,null,0,0,0,0,0,0,0,0,null,null,null,null,null,null,null,null,null,null,null,null,null,null,null,null,null,null,null,null,null,null,null,null,null,null,null,{"$f":"IFERROR(_xlfn._xlws.FILTER(BG347:BR1126,(BR347:BR1126=2)),\"\")","v":""}]
[null,339,{"$f":"IF(F348<>0,MAX($C$10:$C347)+1,\"\")","v":""},null,null,null,null,null,null,null,null,null,null,null,null,null,null,null,null,null,null,null,null,null,null,null,null,0,0,0,null,0,0,"","","-","","",0,null,null,null,null,null,0,0,0,0,0,0,0,0,null,null,null,null,null,null,null,null,null,null,null,null,null,null,null,null,null,null,null,null,null,null,null,null,null,null,null,{"$f":"IFERROR(_xlfn._xlws.FILTER(BG348:BR1127,(BR348:BR1127=2)),\"\")","v":""}]
[null,340,{"$f":"IF(F349<>0,MAX($C$10:$C348)+1,\"\")","v":""},null,null,null,null,null,null,null,null,null,null,null,null,null,null,null,null,null,null,null,null,null,null,null,null,0,0,0,null,0,0,"","","-","","",0,null,null,null,null,null,0,0,0,0,0,0,0,0,null,null,null,null,null,null,null,null,null,null,null,null,null,null,null,null,null,null,null,null,null,null,null,null,null,null,null,{"$f":"IFERROR(_xlfn._xlws.FILTER(BG349:BR1128,(BR349:BR1128=2)),\"\")","v":""}]
[null,341,{"$f":"IF(F350<>0,MAX($C$10:$C349)+1,\"\")","v":""},null,null,null,null,null,null,null,null,null,null,null,null,null,null,null,null,null,null,null,null,null,null,null,null,0,0,0,null,0,0,"","","-","","",0,null,null,null,null,null,0,0,0,0,0,0,0,0,null,null,null,null,null,null,null,null,null,null,null,null,null,null,null,null,null,null,null,null,null,null,null,null,null,null,null,{"$f":"IFERROR(_xlfn._xlws.FILTER(BG350:BR1129,(BR350:BR1129=2)),\"\")","v":""}]
[null,342,{"$f":"IF(F351<>0,MAX($C$10:$C350)+1,\"\")","v":""},null,null,null,null,null,null,null,null,null,null,null,null,null,null,null,null,null,null,null,null,null,null,null,null,0,0,0,null,0,0,"","","-","","",0,null,null,null,null,null,0,0,0,0,0,0,0,0,null,null,null,null,null,null,null,null,null,null,null,null,null,null,null,null,null,null,null,null,null,null,null,null,null,null,null,{"$f":"IFERROR(_xlfn._xlws.FILTER(BG351:BR1130,(BR351:BR1130=2)),\"\")","v":""}]
[null,343,{"$f":"IF(F352<>0,MAX($C$10:$C351)+1,\"\")","v":""},null,null,null,null,null,null,null,null,null,null,null,null,null,null,null,null,null,null,null,null,null,null,null,null,0,0,0,null,0,0,"","","-","","",0,null,null,null,null,null,0,0,0,0,0,0,0,0,null,null,null,null,null,null,null,null,null,null,null,null,null,null,null,null,null,null,null,null,null,null,null,null,null,null,null,{"$f":"IFERROR(_xlfn._xlws.FILTER(BG352:BR1131,(BR352:BR1131=2)),\"\")","v":""}]
[null,344,{"$f":"IF(F353<>0,MAX($C$10:$C352)+1,\"\")","v":""},null,null,null,null,null,null,null,null,null,null,null,null,null,null,null,null,null,null,null,null,null,null,null,null,0,0,0,null,0,0,"","","-","","",0,null,null,null,null,null,0,0,0,0,0,0,0,0,null,null,null,null,null,null,null,null,null,null,null,null,null,null,null,null,null,null,null,null,null,null,null,null,null,null,null,{"$f":"IFERROR(_xlfn._xlws.FILTER(BG353:BR1132,(BR353:BR1132=2)),\"\")","v":""}]
[null,345,{"$f":"IF(F354<>0,MAX($C$10:$C353)+1,\"\")","v":""},null,null,null,null,null,null,null,null,null,null,null,null,null,null,null,null,null,null,null,null,null,null,null,null,0,0,0,null,0,0,"","","-","","",0,null,null,null,null,null,0,0,0,0,0,0,0,0,null,null,null,null,null,null,null,null,null,null,null,null,null,null,null,null,null,null,null,null,null,null,null,null,null,null,null,{"$f":"IFERROR(_xlfn._xlws.FILTER(BG354:BR1133,(BR354:BR1133=2)),\"\")","v":""}]
[null,346,{"$f":"IF(F355<>0,MAX($C$10:$C354)+1,\"\")","v":""},null,null,null,null,null,null,null,null,null,null,null,null,null,null,null,null,null,null,null,null,null,null,null,null,0,0,0,null,0,0,"","","-","","",0,null,null,null,null,null,0,0,0,0,0,0,0,0,null,null,null,null,null,null,null,null,null,null,null,null,null,null,null,null,null,null,null,null,null,null,null,null,null,null,null,{"$f":"IFERROR(_xlfn._xlws.FILTER(BG355:BR1134,(BR355:BR1134=2)),\"\")","v":""}]
[null,347,{"$f":"IF(F356<>0,MAX($C$10:$C355)+1,\"\")","v":""},null,null,null,null,null,null,null,null,null,null,null,null,null,null,null,null,null,null,null,null,null,null,null,null,0,0,0,null,0,0,"","","-","","",0,null,null,null,null,null,0,0,0,0,0,0,0,0,null,null,null,null,null,null,null,null,null,null,null,null,null,null,null,null,null,null,null,null,null,null,null,null,null,null,null,{"$f":"IFERROR(_xlfn._xlws.FILTER(BG356:BR1135,(BR356:BR1135=2)),\"\")","v":""}]
[null,348,{"$f":"IF(F357<>0,MAX($C$10:$C356)+1,\"\")","v":""},null,null,null,null,null,null,null,null,null,null,null,null,null,null,null,null,null,null,null,null,null,null,null,null,0,0,0,null,0,0,"","","-","","",0,null,null,null,null,null,0,0,0,0,0,0,0,0,null,null,null,null,null,null,null,null,null,null,null,null,null,null,null,null,null,null,null,null,null,null,null,null,null,null,null,{"$f":"IFERROR(_xlfn._xlws.FILTER(BG357:BR1136,(BR357:BR1136=2)),\"\")","v":""}]
[null,349,{"$f":"IF(F358<>0,MAX($C$10:$C357)+1,\"\")","v":""},null,null,null,null,null,null,null,null,null,null,null,null,null,null,null,null,null,null,null,null,null,null,null,null,0,0,0,null,0,0,"","","-","","",0,null,null,null,null,null,0,0,0,0,0,0,0,0,null,null,null,null,null,null,null,null,null,null,null,null,null,null,null,null,null,null,null,null,null,null,null,null,null,null,null,{"$f":"IFERROR(_xlfn._xlws.FILTER(BG358:BR1137,(BR358:BR1137=2)),\"\")","v":""}]
[null,350,{"$f":"IF(F359<>0,MAX($C$10:$C358)+1,\"\")","v":""},null,null,null,null,null,null,null,null,null,null,null,null,null,null,null,null,null,null,null,null,null,null,null,null,0,0,0,null,0,0,"","","-","","",0,null,null,null,null,null,0,0,0,0,0,0,0,0,null,null,null,null,null,null,null,null,null,null,null,null,null,null,null,null,null,null,null,null,null,null,null,null,null,null,null,{"$f":"IFERROR(_xlfn._xlws.FILTER(BG359:BR1138,(BR359:BR1138=2)),\"\")","v":""}]
[null,351,{"$f":"IF(F360<>0,MAX($C$10:$C359)+1,\"\")","v":""},null,null,null,null,null,null,null,null,null,null,null,null,null,null,null,null,null,null,null,null,null,null,null,null,0,0,0,null,0,0,"","","-","","",0,null,null,null,null,null,0,0,0,0,0,0,0,0,null,null,null,null,null,null,null,null,null,null,null,null,null,null,null,null,null,null,null,null,null,null,null,null,null,null,null,{"$f":"IFERROR(_xlfn._xlws.FILTER(BG360:BR1139,(BR360:BR1139=2)),\"\")","v":""}]
[null,352,{"$f":"IF(F361<>0,MAX($C$10:$C360)+1,\"\")","v":""},null,null,null,null,null,null,null,null,null,null,null,null,null,null,null,null,null,null,null,null,null,null,null,null,0,0,0,null,0,0,"","","-","","",0,null,null,null,null,null,0,0,0,0,0,0,0,0,null,null,null,null,null,null,null,null,null,null,null,null,null,null,null,null,null,null,null,null,null,null,null,null,null,null,null,{"$f":"IFERROR(_xlfn._xlws.FILTER(BG361:BR1140,(BR361:BR1140=2)),\"\")","v":""}]
[null,353,{"$f":"IF(F362<>0,MAX($C$10:$C361)+1,\"\")","v":""},null,null,null,null,null,null,null,null,null,null,null,null,null,null,null,null,null,null,null,null,null,null,null,null,0,0,0,null,0,0,"","","-","","",0,null,null,null,null,null,0,0,0,0,0,0,0,0,null,null,null,null,null,null,null,null,null,null,null,null,null,null,null,null,null,null,null,null,null,null,null,null,null,null,null,{"$f":"IFERROR(_xlfn._xlws.FILTER(BG362:BR1141,(BR362:BR1141=2)),\"\")","v":""}]
[null,354,{"$f":"IF(F363<>0,MAX($C$10:$C362)+1,\"\")","v":""},null,null,null,null,null,null,null,null,null,null,null,null,null,null,null,null,null,null,null,null,null,null,null,null,0,0,0,null,0,0,"","","-","","",0,null,null,null,null,null,0,0,0,0,0,0,0,0,null,null,null,null,null,null,null,null,null,null,null,null,null,null,null,null,null,null,null,null,null,null,null,null,null,null,null,{"$f":"IFERROR(_xlfn._xlws.FILTER(BG363:BR1142,(BR363:BR1142=2)),\"\")","v":""}]
[null,355,{"$f":"IF(F364<>0,MAX($C$10:$C363)+1,\"\")","v":""},null,null,null,null,null,null,null,null,null,null,null,null,null,null,null,null,null,null,null,null,null,null,null,null,0,0,0,null,0,0,"","","-","","",0,null,null,null,null,null,0,0,0,0,0,0,0,0,null,null,null,null,null,null,null,null,null,null,null,null,null,null,null,null,null,null,null,null,null,null,null,null,null,null,null,{"$f":"IFERROR(_xlfn._xlws.FILTER(BG364:BR1143,(BR364:BR1143=2)),\"\")","v":""}]
[null,356,{"$f":"IF(F365<>0,MAX($C$10:$C364)+1,\"\")","v":""},null,null,null,null,null,null,null,null,null,null,null,null,null,null,null,null,null,null,null,null,null,null,null,null,0,0,0,null,0,0,"","","-","","",0,null,null,null,null,null,0,0,0,0,0,0,0,0,null,null,null,null,null,null,null,null,null,null,null,null,null,null,null,null,null,null,null,null,null,null,null,null,null,null,null,{"$f":"IFERROR(_xlfn._xlws.FILTER(BG365:BR1144,(BR365:BR1144=2)),\"\")","v":""}]
[null,357,{"$f":"IF(F366<>0,MAX($C$10:$C365)+1,\"\")","v":""},null,null,null,null,null,null,null,null,null,null,null,null,null,null,null,null,null,null,null,null,null,null,null,null,0,0,0,null,0,0,"","","-","","",0,null,null,null,null,null,0,0,0,0,0,0,0,0,null,null,null,null,null,null,null,null,null,null,null,null,null,null,null,null,null,null,null,null,null,null,null,null,null,null,null,{"$f":"IFERROR(_xlfn._xlws.FILTER(BG366:BR1145,(BR366:BR1145=2)),\"\")","v":""}]
[null,358,{"$f":"IF(F367<>0,MAX($C$10:$C366)+1,\"\")","v":""},null,null,null,null,null,null,null,null,null,null,null,null,null,null,null,null,null,null,null,null,null,null,null,null,0,0,0,null,0,0,"","","-","","",0,null,null,null,null,null,0,0,0,0,0,0,0,0,null,null,null,null,null,null,null,null,null,null,null,null,null,null,null,null,null,null,null,null,null,null,null,null,null,null,null,{"$f":"IFERROR(_xlfn._xlws.FILTER(BG367:BR1146,(BR367:BR1146=2)),\"\")","v":""}]
[null,359,{"$f":"IF(F368<>0,MAX($C$10:$C367)+1,\"\")","v":""},null,null,null,null,null,null,null,null,null,null,null,null,null,null,null,null,null,null,null,null,null,null,null,null,0,0,0,null,0,0,"","","-","","",0,null,null,null,null,null,0,0,0,0,0,0,0,0,null,null,null,null,null,null,null,null,null,null,null,null,null,null,null,null,null,null,null,null,null,null,null,null,null,null,null,{"$f":"IFERROR(_xlfn._xlws.FILTER(BG368:BR1147,(BR368:BR1147=2)),\"\")","v":""}]
[null,360,{"$f":"IF(F369<>0,MAX($C$10:$C368)+1,\"\")","v":""},null,null,null,null,null,null,null,null,null,null,null,null,null,null,null,null,null,null,null,null,null,null,null,null,0,0,0,null,0,0,"","","-","","",0,null,null,null,null,null,0,0,0,0,0,0,0,0,null,null,null,null,null,null,null,null,null,null,null,null,null,null,null,null,null,null,null,null,null,null,null,null,null,null,null,{"$f":"IFERROR(_xlfn._xlws.FILTER(BG369:BR1148,(BR369:BR1148=2)),\"\")","v":""}]
[null,361,{"$f":"IF(F370<>0,MAX($C$10:$C369)+1,\"\")","v":""},null,null,null,null,null,null,null,null,null,null,null,null,null,null,null,null,null,null,null,null,null,null,null,null,0,0,0,null,0,0,"","","-","","",0,null,null,null,null,null,0,0,0,0,0,0,0,0,null,null,null,null,null,null,null,null,null,null,null,null,null,null,null,null,null,null,null,null,null,null,null,null,null,null,null,{"$f":"IFERROR(_xlfn._xlws.FILTER(BG370:BR1149,(BR370:BR1149=2)),\"\")","v":""}]
[null,362,{"$f":"IF(F371<>0,MAX($C$10:$C370)+1,\"\")","v":""},null,null,null,null,null,null,null,null,null,null,null,null,null,null,null,null,null,null,null,null,null,null,null,null,0,0,0,null,0,0,"","","-","","",0,null,null,null,null,null,0,0,0,0,0,0,0,0,null,null,null,null,null,null,null,null,null,null,null,null,null,null,null,null,null,null,null,null,null,null,null,null,null,null,null,{"$f":"IFERROR(_xlfn._xlws.FILTER(BG371:BR1150,(BR371:BR1150=2)),\"\")","v":""}]
[null,363,{"$f":"IF(F372<>0,MAX($C$10:$C371)+1,\"\")","v":""},null,null,null,null,null,null,null,null,null,null,null,null,null,null,null,null,null,null,null,null,null,null,null,null,0,0,0,null,0,0,"","","-","","",0,null,null,null,null,null,0,0,0,0,0,0,0,0,null,null,null,null,null,null,null,null,null,null,null,null,null,null,null,null,null,null,null,null,null,null,null,null,null,null,null,{"$f":"IFERROR(_xlfn._xlws.FILTER(BG372:BR1151,(BR372:BR1151=2)),\"\")","v":""}]
[null,364,{"$f":"IF(F373<>0,MAX($C$10:$C372)+1,\"\")","v":""},null,null,null,null,null,null,null,null,null,null,null,null,null,null,null,null,null,null,null,null,null,null,null,null,0,0,0,null,0,0,"","","-","","",0,null,null,null,null,null,0,0,0,0,0,0,0,0,null,null,null,null,null,null,null,null,null,null,null,null,null,null,null,null,null,null,null,null,null,null,null,null,null,null,null,{"$f":"IFERROR(_xlfn._xlws.FILTER(BG373:BR1152,(BR373:BR1152=2)),\"\")","v":""}]
[null,365,{"$f":"IF(F374<>0,MAX($C$10:$C373)+1,\"\")","v":""},null,null,null,null,null,null,null,null,null,null,null,null,null,null,null,null,null,null,null,null,null,null,null,null,0,0,0,null,0,0,"","","-","","",0,null,null,null,null,null,0,0,0,0,0,0,0,0,null,null,null,null,null,null,null,null,null,null,null,null,null,null,null,null,null,null,null,null,null,null,null,null,null,null,null,{"$f":"IFERROR(_xlfn._xlws.FILTER(BG374:BR1153,(BR374:BR1153=2)),\"\")","v":""}]
[null,366,{"$f":"IF(F375<>0,MAX($C$10:$C374)+1,\"\")","v":""},null,null,null,null,null,null,null,null,null,null,null,null,null,null,null,null,null,null,null,null,null,null,null,null,0,0,0,null,0,0,"","","-","","",0,null,null,null,null,null,0,0,0,0,0,0,0,0,null,null,null,null,null,null,null,null,null,null,null,null,null,null,null,null,null,null,null,null,null,null,null,null,null,null,null,{"$f":"IFERROR(_xlfn._xlws.FILTER(BG375:BR1154,(BR375:BR1154=2)),\"\")","v":""}]
[null,367,{"$f":"IF(F376<>0,MAX($C$10:$C375)+1,\"\")","v":""},null,null,null,null,null,null,null,null,null,null,null,null,null,null,null,null,null,null,null,null,null,null,null,null,0,0,0,null,0,0,"","","-","","",0,null,null,null,null,null,0,0,0,0,0,0,0,0,null,null,null,null,null,null,null,null,null,null,null,null,null,null,null,null,null,null,null,null,null,null,null,null,null,null,null,{"$f":"IFERROR(_xlfn._xlws.FILTER(BG376:BR1155,(BR376:BR1155=2)),\"\")","v":""}]
[null,368,{"$f":"IF(F377<>0,MAX($C$10:$C376)+1,\"\")","v":""},null,null,null,null,null,null,null,null,null,null,null,null,null,null,null,null,null,null,null,null,null,null,null,null,0,0,0,null,0,0,"","","-","","",0,null,null,null,null,null,0,0,0,0,0,0,0,0,null,null,null,null,null,null,null,null,null,null,null,null,null,null,null,null,null,null,null,null,null,null,null,null,null,null,null,{"$f":"IFERROR(_xlfn._xlws.FILTER(BG377:BR1156,(BR377:BR1156=2)),\"\")","v":""}]
[null,369,{"$f":"IF(F378<>0,MAX($C$10:$C377)+1,\"\")","v":""},null,null,null,null,null,null,null,null,null,null,null,null,null,null,null,null,null,null,null,null,null,null,null,null,0,0,0,null,0,0,"","","-","","",0,null,null,null,null,null,0,0,0,0,0,0,0,0,null,null,null,null,null,null,null,null,null,null,null,null,null,null,null,null,null,null,null,null,null,null,null,null,null,null,null,{"$f":"IFERROR(_xlfn._xlws.FILTER(BG378:BR1157,(BR378:BR1157=2)),\"\")","v":""}]
[null,370,{"$f":"IF(F379<>0,MAX($C$10:$C378)+1,\"\")","v":""},null,null,null,null,null,null,null,null,null,null,null,null,null,null,null,null,null,null,null,null,null,null,null,null,0,0,0,null,0,0,"","","-","","",0,null,null,null,null,null,0,0,0,0,0,0,0,0,null,null,null,null,null,null,null,null,null,null,null,null,null,null,null,null,null,null,null,null,null,null,null,null,null,null,null,{"$f":"IFERROR(_xlfn._xlws.FILTER(BG379:BR1158,(BR379:BR1158=2)),\"\")","v":""}]
[null,371,{"$f":"IF(F380<>0,MAX($C$10:$C379)+1,\"\")","v":""},null,null,null,null,null,null,null,null,null,null,null,null,null,null,null,null,null,null,null,null,null,null,null,null,0,0,0,null,0,0,"","","-","","",0,null,null,null,null,null,0,0,0,0,0,0,0,0,null,null,null,null,null,null,null,null,null,null,null,null,null,null,null,null,null,null,null,null,null,null,null,null,null,null,null,{"$f":"IFERROR(_xlfn._xlws.FILTER(BG380:BR1159,(BR380:BR1159=2)),\"\")","v":""}]
[null,372,{"$f":"IF(F381<>0,MAX($C$10:$C380)+1,\"\")","v":""},null,null,null,null,null,null,null,null,null,null,null,null,null,null,null,null,null,null,null,null,null,null,null,null,0,0,0,null,0,0,"","","-","","",0,null,null,null,null,null,0,0,0,0,0,0,0,0,null,null,null,null,null,null,null,null,null,null,null,null,null,null,null,null,null,null,null,null,null,null,null,null,null,null,null,{"$f":"IFERROR(_xlfn._xlws.FILTER(BG381:BR1160,(BR381:BR1160=2)),\"\")","v":""}]
[null,373,{"$f":"IF(F382<>0,MAX($C$10:$C381)+1,\"\")","v":""},null,null,null,null,null,null,null,null,null,null,null,null,null,null,null,null,null,null,null,null,null,null,null,null,0,0,0,null,0,0,"","","-","","",0,null,null,null,null,null,0,0,0,0,0,0,0,0,null,null,null,null,null,null,null,null,null,null,null,null,null,null,null,null,null,null,null,null,null,null,null,null,null,null,null,{"$f":"IFERROR(_xlfn._xlws.FILTER(BG382:BR1161,(BR382:BR1161=2)),\"\")","v":""}]
[null,374,{"$f":"IF(F383<>0,MAX($C$10:$C382)+1,\"\")","v":""},null,null,null,null,null,null,null,null,null,null,null,null,null,null,null,null,null,null,null,null,null,null,null,null,0,0,0,null,0,0,"","","-","","",0,null,null,null,null,null,0,0,0,0,0,0,0,0,null,null,null,null,null,null,null,null,null,null,null,null,null,null,null,null,null,null,null,null,null,null,null,null,null,null,null,{"$f":"IFERROR(_xlfn._xlws.FILTER(BG383:BR1162,(BR383:BR1162=2)),\"\")","v":""}]
[null,375,{"$f":"IF(F384<>0,MAX($C$10:$C383)+1,\"\")","v":""},null,null,null,null,null,null,null,null,null,null,null,null,null,null,null,null,null,null,null,null,null,null,null,null,0,0,0,null,0,0,"","","-","","",0,null,null,null,null,null,0,0,0,0,0,0,0,0,null,null,null,null,null,null,null,null,null,null,null,null,null,null,null,null,null,null,null,null,null,null,null,null,null,null,null,{"$f":"IFERROR(_xlfn._xlws.FILTER(BG384:BR1163,(BR384:BR1163=2)),\"\")","v":""}]
[null,376,{"$f":"IF(F385<>0,MAX($C$10:$C384)+1,\"\")","v":""},null,null,null,null,null,null,null,null,null,null,null,null,null,null,null,null,null,null,null,null,null,null,null,null,0,0,0,null,0,0,"","","-","","",0,null,null,null,null,null,0,0,0,0,0,0,0,0,null,null,null,null,null,null,null,null,null,null,null,null,null,null,null,null,null,null,null,null,null,null,null,null,null,null,null,{"$f":"IFERROR(_xlfn._xlws.FILTER(BG385:BR1164,(BR385:BR1164=2)),\"\")","v":""}]
[null,377,{"$f":"IF(F386<>0,MAX($C$10:$C385)+1,\"\")","v":""},null,null,null,null,null,null,null,null,null,null,null,null,null,null,null,null,null,null,null,null,null,null,null,null,0,0,0,null,0,0,"","","-","","",0,null,null,null,null,null,0,0,0,0,0,0,0,0,null,null,null,null,null,null,null,null,null,null,null,null,null,null,null,null,null,null,null,null,null,null,null,null,null,null,null,{"$f":"IFERROR(_xlfn._xlws.FILTER(BG386:BR1165,(BR386:BR1165=2)),\"\")","v":""}]
[null,378,{"$f":"IF(F387<>0,MAX($C$10:$C386)+1,\"\")","v":""},null,null,null,null,null,null,null,null,null,null,null,null,null,null,null,null,null,null,null,null,null,null,null,null,0,0,0,null,0,0,"","","-","","",0,null,null,null,null,null,0,0,0,0,0,0,0,0,null,null,null,null,null,null,null,null,null,null,null,null,null,null,null,null,null,null,null,null,null,null,null,null,null,null,null,{"$f":"IFERROR(_xlfn._xlws.FILTER(BG387:BR1166,(BR387:BR1166=2)),\"\")","v":""}]
[null,379,{"$f":"IF(F388<>0,MAX($C$10:$C387)+1,\"\")","v":""},null,null,null,null,null,null,null,null,null,null,null,null,null,null,null,null,null,null,null,null,null,null,null,null,0,0,0,null,0,0,"","","-","","",0,null,null,null,null,null,0,0,0,0,0,0,0,0,null,null,null,null,null,null,null,null,null,null,null,null,null,null,null,null,null,null,null,null,null,null,null,null,null,null,null,{"$f":"IFERROR(_xlfn._xlws.FILTER(BG388:BR1167,(BR388:BR1167=2)),\"\")","v":""}]
[null,380,{"$f":"IF(F389<>0,MAX($C$10:$C388)+1,\"\")","v":""},null,null,null,null,null,null,null,null,null,null,null,null,null,null,null,null,null,null,null,null,null,null,null,null,0,0,0,null,0,0,"","","-","","",0,null,null,null,null,null,0,0,0,0,0,0,0,0,null,null,null,null,null,null,null,null,null,null,null,null,null,null,null,null,null,null,null,null,null,null,null,null,null,null,null,{"$f":"IFERROR(_xlfn._xlws.FILTER(BG389:BR1168,(BR389:BR1168=2)),\"\")","v":""}]
[null,381,{"$f":"IF(F390<>0,MAX($C$10:$C389)+1,\"\")","v":""},null,null,null,null,null,null,null,null,null,null,null,null,null,null,null,null,null,null,null,null,null,null,null,null,0,0,0,null,0,0,"","","-","","",0,null,null,null,null,null,0,0,0,0,0,0,0,0,null,null,null,null,null,null,null,null,null,null,null,null,null,null,null,null,null,null,null,null,null,null,null,null,null,null,null,{"$f":"IFERROR(_xlfn._xlws.FILTER(BG390:BR1169,(BR390:BR1169=2)),\"\")","v":""}]
[null,382,{"$f":"IF(F391<>0,MAX($C$10:$C390)+1,\"\")","v":""},null,null,null,null,null,null,null,null,null,null,null,null,null,null,null,null,null,null,null,null,null,null,null,null,0,0,0,null,0,0,"","","-","","",0,null,null,null,null,null,0,0,0,0,0,0,0,0,null,null,null,null,null,null,null,null,null,null,null,null,null,null,null,null,null,null,null,null,null,null,null,null,null,null,null,{"$f":"IFERROR(_xlfn._xlws.FILTER(BG391:BR1170,(BR391:BR1170=2)),\"\")","v":""}]
[null,383,{"$f":"IF(F392<>0,MAX($C$10:$C391)+1,\"\")","v":""},null,null,null,null,null,null,null,null,null,null,null,null,null,null,null,null,null,null,null,null,null,null,null,null,0,0,0,null,0,0,"","","-","","",0,null,null,null,null,null,0,0,0,0,0,0,0,0,null,null,null,null,null,null,null,null,null,null,null,null,null,null,null,null,null,null,null,null,null,null,null,null,null,null,null,{"$f":"IFERROR(_xlfn._xlws.FILTER(BG392:BR1171,(BR392:BR1171=2)),\"\")","v":""}]
[null,384,{"$f":"IF(F393<>0,MAX($C$10:$C392)+1,\"\")","v":""},null,null,null,null,null,null,null,null,null,null,null,null,null,null,null,null,null,null,null,null,null,null,null,null,0,0,0,null,0,0,"","","-","","",0,null,null,null,null,null,0,0,0,0,0,0,0,0,null,null,null,null,null,null,null,null,null,null,null,null,null,null,null,null,null,null,null,null,null,null,null,null,null,null,null,{"$f":"IFERROR(_xlfn._xlws.FILTER(BG393:BR1172,(BR393:BR1172=2)),\"\")","v":""}]
[null,385,{"$f":"IF(F394<>0,MAX($C$10:$C393)+1,\"\")","v":""},null,null,null,null,null,null,null,null,null,null,null,null,null,null,null,null,null,null,null,null,null,null,null,null,0,0,0,null,0,0,"","",{"$f":"IF(AG394=\"\",\"\",\"-\")","v":"-"},"","",0,null,null,null,null,null,0,0,0,0,0,0,0,0,null,null,null,null,null,null,null,null,null,null,null,null,null,null,null,null,null,null,null,null,null,null,null,null,null,null,null,{"$f":"IFERROR(_xlfn._xlws.FILTER(BG394:BR1173,(BR394:BR1173=2)),\"\")","v":""}]
[null,386,{"$f":"IF(F395<>0,MAX($C$10:$C394)+1,\"\")","v":""},null,null,null,null,null,null,null,null,null,null,null,null,null,null,null,null,null,null,null,null,null,null,null,null,0,0,0,null,{"$f":"_xlfn.XLOOKUP(AH395,$J$10:$J$49,$M$10:$M$49,\"\")+_xlfn.XLOOKUP(AL395,$J$10:$J$49,$M$10:$M$49,\"\")","v":0},{"$f":"AE395","v":0},"",{"$f":"IFERROR(IF(AH395=\"\",\"\",IF(OR($L$8=\"Nee\",AF395=0),_xlfn.XLOOKUP(AH395,$D$10:$D$49,$E$10:$E$49),ROUND(_xlfn.XLOOKUP(AH395,$D$10:$D$49,$E$10:$E$49)*AF395,0))),0)","v":""},"-",{"$f":"IFERROR(IF(AH395=\"\",\"\",IF(OR($L$8=\"Nee\",AF395=0),_xlfn.XLOOKUP(AL395,$D$10:$D$49,$E$10:$E$49)*1,ROUND(_xlfn.XLOOKUP(AL395,$D$10:$D$49,$E$10:$E$49)*AF395,0))),0)","v":""},"",0,null,null,null,null,null,0,0,0,0,0,0,0,0,null,null,null,null,null,null,null,null,null,null,null,null,null,null,null,null,null,null,null,null,null,null,null,null,null,null,null,{"$f":"IFERROR(_xlfn._xlws.FILTER(BG395:BR1174,(BR395:BR1174=2)),\"\")","v":""}]
[null,387,{"$f":"IF(F396<>0,MAX($C$10:$C395)+1,\"\")","v":""},null,null,null,null,null,null,null,null,null,null,null,null,null,null,null,null,null,null,null,null,null,null,null,null,0,0,0,null,0,0,"","","-","","",0,null,null,null,null,null,0,0,0,0,0,0,0,{"$f":"AW396","v":0},null,null,null,null,null,null,null,null,null,null,null,null,null,null,null,null,null,null,null,null,null,null,null,null,null,null,null,{"$f":"IFERROR(_xlfn._xlws.FILTER(BG396:BR1175,(BR396:BR1175=2)),\"\")","v":""}]
[null,388,{"$f":"IF(F397<>0,MAX($C$10:$C396)+1,\"\")","v":""},null,null,null,null,null,null,null,null,null,null,null,null,null,null,null,null,null,null,null,null,null,null,null,null,0,{"$f":"IFERROR(_xlfn.XLOOKUP(AG397,$AB$10:$AB$789,$AD$10:$AD$789),\"\")","v":0},0,null,0,0,"","","-","","",0,null,null,null,null,null,0,0,0,0,0,0,0,0,null,null,null,null,null,null,null,null,null,null,null,null,null,null,null,null,null,null,null,null,null,null,null,null,null,null,null,{"$f":"IFERROR(_xlfn._xlws.FILTER(BG397:BR1176,(BR397:BR1176=2)),\"\")","v":""}]
[null,389,{"$f":"IF(F398<>0,MAX($C$10:$C397)+1,\"\")","v":""},null,null,null,null,null,null,null,null,null,null,null,null,null,null,null,null,null,null,null,null,null,null,null,null,0,0,0,null,0,0,"","","-","","",0,null,null,null,null,null,0,0,0,0,0,0,0,0,null,null,null,null,null,null,null,null,null,null,null,null,null,null,null,null,null,null,null,null,null,null,null,null,null,null,null,{"$f":"IFERROR(_xlfn._xlws.FILTER(BG398:BR1177,(BR398:BR1177=2)),\"\")","v":""}]
[null,390,{"$f":"IF(F399<>0,MAX($C$10:$C398)+1,\"\")","v":""},null,null,null,null,null,null,null,null,null,null,null,null,null,null,null,null,null,null,null,null,null,null,null,null,0,0,0,null,0,0,"","","-","","",0,null,null,null,null,null,0,0,0,0,0,0,0,0,null,null,null,null,null,null,null,null,null,null,null,null,null,null,null,null,null,null,null,null,null,null,null,null,null,null,null,{"$f":"IFERROR(_xlfn._xlws.FILTER(BG399:BR1178,(BR399:BR1178=2)),\"\")","v":""}]
[null,391,{"$f":"IF(F400<>0,MAX($C$10:$C399)+1,\"\")","v":""},null,null,null,null,null,null,null,null,null,null,null,null,null,null,null,null,null,null,null,null,null,null,null,null,0,0,0,null,0,0,"","","-","","",0,null,null,null,null,null,0,0,0,0,0,0,0,0,null,null,null,null,null,null,null,null,null,null,null,null,null,null,null,null,null,null,null,null,null,null,null,null,null,null,null,{"$f":"IFERROR(_xlfn._xlws.FILTER(BG400:BR1179,(BR400:BR1179=2)),\"\")","v":""}]
[null,392,{"$f":"IF(F401<>0,MAX($C$10:$C400)+1,\"\")","v":""},null,null,null,null,null,null,null,null,null,null,null,null,null,null,null,null,null,null,null,null,null,null,null,null,0,0,0,null,0,0,"","","-","","",0,null,null,null,null,null,0,0,0,0,0,0,0,0,null,null,null,null,null,null,null,null,null,null,null,null,null,null,null,null,null,null,null,null,null,null,null,null,null,null,null,{"$f":"IFERROR(_xlfn._xlws.FILTER(BG401:BR1180,(BR401:BR1180=2)),\"\")","v":""}]
[null,393,{"$f":"IF(F402<>0,MAX($C$10:$C401)+1,\"\")","v":""},null,null,null,null,null,null,null,null,null,null,null,null,null,null,null,null,null,null,null,null,null,null,null,null,0,0,0,null,0,0,"","","-","","",0,null,null,null,null,null,0,0,0,0,0,0,0,0,null,null,null,null,null,null,null,null,null,null,null,null,null,null,null,null,null,null,null,null,null,null,null,null,null,null,null,{"$f":"IFERROR(_xlfn._xlws.FILTER(BG402:BR1181,(BR402:BR1181=2)),\"\")","v":""}]
[null,394,{"$f":"IF(F403<>0,MAX($C$10:$C402)+1,\"\")","v":""},null,null,null,null,null,null,null,null,null,null,null,null,null,null,null,null,null,null,null,null,null,null,null,null,0,0,0,null,0,0,"","","-","","",0,null,null,null,null,null,0,0,0,0,0,0,0,0,null,null,null,null,null,null,null,null,null,null,null,null,null,null,null,null,null,null,null,null,null,null,null,null,null,null,null,{"$f":"IFERROR(_xlfn._xlws.FILTER(BG403:BR1182,(BR403:BR1182=2)),\"\")","v":""}]
[null,395,{"$f":"IF(F404<>0,MAX($C$10:$C403)+1,\"\")","v":""},null,null,null,null,null,null,null,null,null,null,null,null,null,null,null,null,null,null,null,null,null,null,null,null,0,0,0,null,0,0,"","","-","","",0,null,null,null,null,null,0,0,0,0,0,0,0,0,null,null,null,null,null,null,null,null,null,null,null,null,null,null,null,null,null,null,null,null,null,null,null,null,null,null,null,{"$f":"IFERROR(_xlfn._xlws.FILTER(BG404:BR1183,(BR404:BR1183=2)),\"\")","v":""}]
[null,396,{"$f":"IF(F405<>0,MAX($C$10:$C404)+1,\"\")","v":""},null,null,null,null,null,null,null,null,null,null,null,null,null,null,null,null,null,null,null,null,null,null,null,null,0,0,0,null,0,0,"","","-","","",0,null,null,null,null,null,0,0,0,0,0,0,0,0,null,null,null,null,null,null,null,null,null,null,null,null,null,null,null,null,null,null,null,null,null,null,null,null,null,null,null,{"$f":"IFERROR(_xlfn._xlws.FILTER(BG405:BR1184,(BR405:BR1184=2)),\"\")","v":""}]
[null,397,{"$f":"IF(F406<>0,MAX($C$10:$C405)+1,\"\")","v":""},null,null,null,null,null,null,null,null,null,null,null,null,null,null,null,null,null,null,null,null,null,null,null,null,0,0,0,null,0,0,"","","-","","",0,null,null,null,null,null,0,0,0,0,0,0,0,0,null,null,null,null,null,null,null,null,null,null,null,null,null,null,null,null,null,null,null,null,null,null,null,null,null,null,null,{"$f":"IFERROR(_xlfn._xlws.FILTER(BG406:BR1185,(BR406:BR1185=2)),\"\")","v":""}]
[null,398,{"$f":"IF(F407<>0,MAX($C$10:$C406)+1,\"\")","v":""},null,null,null,null,null,null,null,null,null,null,null,null,null,null,null,null,null,null,null,null,null,null,null,null,0,0,0,null,0,0,"","","-","","",0,null,null,null,null,null,0,0,0,0,0,0,0,0,null,null,null,null,null,null,null,null,null,null,null,null,null,null,null,null,null,null,null,null,null,null,null,null,null,null,null,{"$f":"IFERROR(_xlfn._xlws.FILTER(BG407:BR1186,(BR407:BR1186=2)),\"\")","v":""}]
[null,399,{"$f":"IF(F408<>0,MAX($C$10:$C407)+1,\"\")","v":""},null,null,null,null,null,null,null,null,null,null,null,null,null,null,null,null,null,null,null,null,null,null,null,null,0,0,0,null,0,0,"","","-","","",0,null,null,null,null,null,0,0,0,0,0,0,0,0,null,null,null,null,null,null,null,null,null,null,null,null,null,null,null,null,null,null,null,null,null,null,null,null,null,null,null,{"$f":"IFERROR(_xlfn._xlws.FILTER(BG408:BR1187,(BR408:BR1187=2)),\"\")","v":""}]
[null,400,{"$f":"IF(F409<>0,MAX($C$10:$C408)+1,\"\")","v":""},null,null,null,null,null,null,null,null,null,null,null,null,null,null,null,null,null,null,null,null,null,null,null,null,0,0,0,null,0,0,"","","-","","",0,null,null,null,null,null,0,0,0,0,0,0,0,0,null,null,null,null,null,null,null,null,null,null,null,null,null,null,null,null,null,null,null,null,null,null,null,null,null,null,null,{"$f":"IFERROR(_xlfn._xlws.FILTER(BG409:BR1188,(BR409:BR1188=2)),\"\")","v":""}]
[null,401,{"$f":"IF(F410<>0,MAX($C$10:$C409)+1,\"\")","v":""},null,null,null,null,null,null,null,null,null,null,null,null,null,null,null,null,null,null,null,null,null,null,null,null,0,0,0,null,0,0,"","","-","","",0,null,null,null,null,null,0,0,0,0,0,0,0,0,null,null,null,null,null,null,null,null,null,null,null,null,null,null,null,null,null,null,null,null,null,null,null,null,null,null,null,{"$f":"IFERROR(_xlfn._xlws.FILTER(BG410:BR1189,(BR410:BR1189=2)),\"\")","v":""}]
[null,402,{"$f":"IF(F411<>0,MAX($C$10:$C410)+1,\"\")","v":""},null,null,null,null,null,null,null,null,null,null,null,null,null,null,null,null,null,null,null,null,null,null,null,null,0,0,0,null,0,0,"","","-","","",0,null,null,null,null,null,0,0,0,0,0,0,0,0,null,null,null,null,null,null,null,null,null,null,null,null,null,null,null,null,null,null,null,null,null,null,null,null,null,null,null,{"$f":"IFERROR(_xlfn._xlws.FILTER(BG411:BR1190,(BR411:BR1190=2)),\"\")","v":""}]
[null,403,{"$f":"IF(F412<>0,MAX($C$10:$C411)+1,\"\")","v":""},null,null,null,null,null,null,null,null,null,null,null,null,null,null,null,null,null,null,null,null,null,null,null,null,0,0,0,null,0,0,"","","-","","",0,null,null,null,null,null,0,0,0,0,0,0,0,0,null,null,null,null,null,null,null,null,null,null,null,null,null,null,null,null,null,null,null,null,null,null,null,null,null,null,null,{"$f":"IFERROR(_xlfn._xlws.FILTER(BG412:BR1191,(BR412:BR1191=2)),\"\")","v":""}]
[null,404,{"$f":"IF(F413<>0,MAX($C$10:$C412)+1,\"\")","v":""},null,null,null,null,null,null,null,null,null,null,null,null,null,null,null,null,null,null,null,null,null,null,null,null,0,0,0,null,0,0,"","","-","","",0,null,null,null,null,null,0,0,0,0,0,0,0,0,null,null,null,null,null,null,null,null,null,null,null,null,null,null,null,null,null,null,null,null,null,null,null,null,null,null,null,{"$f":"IFERROR(_xlfn._xlws.FILTER(BG413:BR1192,(BR413:BR1192=2)),\"\")","v":""}]
[null,405,{"$f":"IF(F414<>0,MAX($C$10:$C413)+1,\"\")","v":""},null,null,null,null,null,null,null,null,null,null,null,null,null,null,null,null,null,null,null,null,null,null,null,null,0,0,0,null,0,0,"","","-","","",0,null,null,null,null,null,0,0,0,0,0,0,0,0,null,null,null,null,null,null,null,null,null,null,null,null,null,null,null,null,null,null,null,null,null,null,null,null,null,null,null,{"$f":"IFERROR(_xlfn._xlws.FILTER(BG414:BR1193,(BR414:BR1193=2)),\"\")","v":""}]
[null,406,{"$f":"IF(F415<>0,MAX($C$10:$C414)+1,\"\")","v":""},null,null,null,null,null,null,null,null,null,null,null,null,null,null,null,null,null,null,null,null,null,null,null,null,0,0,0,null,0,0,"","","-","","",0,null,null,null,null,null,0,0,0,0,0,0,0,0,null,null,null,null,null,null,null,null,null,null,null,null,null,null,null,null,null,null,null,null,null,null,null,null,null,null,null,{"$f":"IFERROR(_xlfn._xlws.FILTER(BG415:BR1194,(BR415:BR1194=2)),\"\")","v":""}]
[null,407,{"$f":"IF(F416<>0,MAX($C$10:$C415)+1,\"\")","v":""},null,null,null,null,null,null,null,null,null,null,null,null,null,null,null,null,null,null,null,null,null,null,null,null,0,0,0,null,0,0,"","","-","","",0,null,null,null,null,null,0,0,0,0,0,0,0,0,null,null,null,null,null,null,null,null,null,null,null,null,null,null,null,null,null,null,null,null,null,null,null,null,null,null,null,{"$f":"IFERROR(_xlfn._xlws.FILTER(BG416:BR1195,(BR416:BR1195=2)),\"\")","v":""}]
[null,408,{"$f":"IF(F417<>0,MAX($C$10:$C416)+1,\"\")","v":""},null,null,null,null,null,null,null,null,null,null,null,null,null,null,null,null,null,null,null,null,null,null,null,null,0,0,0,null,0,0,"","","-","","",0,null,null,null,null,null,0,0,0,0,0,0,0,0,null,null,null,null,null,null,null,null,null,null,null,null,null,null,null,null,null,null,null,null,null,null,null,null,null,null,null,{"$f":"IFERROR(_xlfn._xlws.FILTER(BG417:BR1196,(BR417:BR1196=2)),\"\")","v":""}]
[null,409,{"$f":"IF(F418<>0,MAX($C$10:$C417)+1,\"\")","v":""},null,null,null,null,null,null,null,null,null,null,null,null,null,null,null,null,null,null,null,null,null,null,null,null,0,0,0,null,0,0,"","","-","","",0,null,null,null,null,null,0,0,0,0,0,0,0,0,null,null,null,null,null,null,null,null,null,null,null,null,null,null,null,null,null,null,null,null,null,null,null,null,null,null,null,{"$f":"IFERROR(_xlfn._xlws.FILTER(BG418:BR1197,(BR418:BR1197=2)),\"\")","v":""}]
[null,410,{"$f":"IF(F419<>0,MAX($C$10:$C418)+1,\"\")","v":""},null,null,null,null,null,null,null,null,null,null,null,null,null,null,null,null,null,null,null,null,null,null,null,null,0,0,0,null,0,0,"","","-","","",0,null,null,null,null,null,0,0,0,0,0,0,0,0,null,null,null,null,null,null,null,null,null,null,null,null,null,null,null,null,null,null,null,null,null,null,null,null,null,null,null,{"$f":"IFERROR(_xlfn._xlws.FILTER(BG419:BR1198,(BR419:BR1198=2)),\"\")","v":""}]
[null,411,{"$f":"IF(F420<>0,MAX($C$10:$C419)+1,\"\")","v":""},null,null,null,null,null,null,null,null,null,null,null,null,null,null,null,null,null,null,null,null,null,null,null,null,0,0,0,null,0,0,"","","-","","",0,null,null,null,null,null,0,0,0,0,0,0,0,0,null,null,null,null,null,null,null,null,null,null,null,null,null,null,null,null,null,null,null,null,null,null,null,null,null,null,null,{"$f":"IFERROR(_xlfn._xlws.FILTER(BG420:BR1199,(BR420:BR1199=2)),\"\")","v":""}]
[null,412,{"$f":"IF(F421<>0,MAX($C$10:$C420)+1,\"\")","v":""},null,null,null,null,null,null,null,null,null,null,null,null,null,null,null,null,null,null,null,null,null,null,null,null,0,0,0,null,0,0,"","","-","","",0,null,null,null,null,null,0,0,0,0,0,0,0,0,null,null,null,null,null,null,null,null,null,null,null,null,null,null,null,null,null,null,null,null,null,null,null,null,null,null,null,{"$f":"IFERROR(_xlfn._xlws.FILTER(BG421:BR1200,(BR421:BR1200=2)),\"\")","v":""}]
[null,413,{"$f":"IF(F422<>0,MAX($C$10:$C421)+1,\"\")","v":""},null,null,null,null,null,null,null,null,null,null,null,null,null,null,null,null,null,null,null,null,null,null,null,null,0,0,0,null,0,0,"","","-","","",0,null,null,null,null,null,0,0,0,0,0,0,0,0,null,null,null,null,null,null,null,null,null,null,null,null,null,null,null,null,null,null,null,null,null,null,null,null,null,null,null,{"$f":"IFERROR(_xlfn._xlws.FILTER(BG422:BR1201,(BR422:BR1201=2)),\"\")","v":""}]
[null,414,{"$f":"IF(F423<>0,MAX($C$10:$C422)+1,\"\")","v":""},null,null,null,null,null,null,null,null,null,null,null,null,null,null,null,null,null,null,null,null,null,null,null,null,0,0,0,null,0,0,"","","-","","",0,null,null,null,null,null,0,0,0,0,0,0,0,0,null,null,null,null,null,null,null,null,null,null,null,null,null,null,null,null,null,null,null,null,null,null,null,null,null,null,null,{"$f":"IFERROR(_xlfn._xlws.FILTER(BG423:BR1202,(BR423:BR1202=2)),\"\")","v":""}]
[null,415,{"$f":"IF(F424<>0,MAX($C$10:$C423)+1,\"\")","v":""},null,null,null,null,null,null,null,null,null,null,null,null,null,null,null,null,null,null,null,null,null,null,null,null,0,0,0,null,0,0,"","","-","","",0,null,null,null,null,null,0,0,0,0,0,0,0,0,null,null,null,null,null,null,null,null,null,null,null,null,null,null,null,null,null,null,null,null,null,null,null,null,null,null,null,{"$f":"IFERROR(_xlfn._xlws.FILTER(BG424:BR1203,(BR424:BR1203=2)),\"\")","v":""}]
[null,416,{"$f":"IF(F425<>0,MAX($C$10:$C424)+1,\"\")","v":""},null,null,null,null,null,null,null,null,null,null,null,null,null,null,null,null,null,null,null,null,null,null,null,null,0,0,0,null,0,0,"","","-","","",0,null,null,null,null,null,0,0,0,0,0,0,0,0,null,null,null,null,null,null,null,null,null,null,null,null,null,null,null,null,null,null,null,null,null,null,null,null,null,null,null,{"$f":"IFERROR(_xlfn._xlws.FILTER(BG425:BR1204,(BR425:BR1204=2)),\"\")","v":""}]
[null,417,{"$f":"IF(F426<>0,MAX($C$10:$C425)+1,\"\")","v":""},null,null,null,null,null,null,null,null,null,null,null,null,null,null,null,null,null,null,null,null,null,null,null,null,0,0,0,null,0,0,"","","-","","",0,null,null,null,null,null,0,0,0,0,0,0,0,0,null,null,null,null,null,null,null,null,null,null,null,null,null,null,null,null,null,null,null,null,null,null,null,null,null,null,null,{"$f":"IFERROR(_xlfn._xlws.FILTER(BG426:BR1205,(BR426:BR1205=2)),\"\")","v":""}]
[null,418,{"$f":"IF(F427<>0,MAX($C$10:$C426)+1,\"\")","v":""},null,null,null,null,null,null,null,null,null,null,null,null,null,null,null,null,null,null,null,null,null,null,null,null,0,0,0,null,0,0,"","","-","","",0,null,null,null,null,null,0,0,0,0,0,0,0,0,null,null,null,null,null,null,null,null,null,null,null,null,null,null,null,null,null,null,null,null,null,null,null,null,null,null,null,{"$f":"IFERROR(_xlfn._xlws.FILTER(BG427:BR1206,(BR427:BR1206=2)),\"\")","v":""}]
[null,419,{"$f":"IF(F428<>0,MAX($C$10:$C427)+1,\"\")","v":""},null,null,null,null,null,null,null,null,null,null,null,null,null,null,null,null,null,null,null,null,null,null,null,null,0,0,0,null,0,0,"","","-","","",0,null,null,null,null,null,0,0,0,0,0,0,0,0,null,null,null,null,null,null,null,null,null,null,null,null,null,null,null,null,null,null,null,null,null,null,null,null,null,null,null,{"$f":"IFERROR(_xlfn._xlws.FILTER(BG428:BR1207,(BR428:BR1207=2)),\"\")","v":""}]
[null,420,{"$f":"IF(F429<>0,MAX($C$10:$C428)+1,\"\")","v":""},null,null,null,null,null,null,null,null,null,null,null,null,null,null,null,null,null,null,null,null,null,null,null,null,0,0,0,null,0,0,"","","-","","",0,null,null,null,null,null,0,0,0,0,0,0,0,0,null,null,null,null,null,null,null,null,null,null,null,null,null,null,null,null,null,null,null,null,null,null,null,null,null,null,null,{"$f":"IFERROR(_xlfn._xlws.FILTER(BG429:BR1208,(BR429:BR1208=2)),\"\")","v":""}]
[null,421,{"$f":"IF(F430<>0,MAX($C$10:$C429)+1,\"\")","v":""},null,null,null,null,null,null,null,null,null,null,null,null,null,null,null,null,null,null,null,null,null,null,null,null,0,0,0,null,0,0,"","","-","","",0,null,null,null,null,null,0,0,0,0,0,0,0,0,null,null,null,null,null,null,null,null,null,null,null,null,null,null,null,null,null,null,null,null,null,null,null,null,null,null,null,{"$f":"IFERROR(_xlfn._xlws.FILTER(BG430:BR1209,(BR430:BR1209=2)),\"\")","v":""}]
[null,422,{"$f":"IF(F431<>0,MAX($C$10:$C430)+1,\"\")","v":""},null,null,null,null,null,null,null,null,null,null,null,null,null,null,null,null,null,null,null,null,null,null,null,null,0,0,0,null,0,0,"","","-","","",0,null,null,null,null,null,0,0,0,0,0,0,0,0,null,null,null,null,null,null,null,null,null,null,null,null,null,null,null,null,null,null,null,null,null,null,null,null,null,null,null,{"$f":"IFERROR(_xlfn._xlws.FILTER(BG431:BR1210,(BR431:BR1210=2)),\"\")","v":""}]
[null,423,{"$f":"IF(F432<>0,MAX($C$10:$C431)+1,\"\")","v":""},null,null,null,null,null,null,null,null,null,null,null,null,null,null,null,null,null,null,null,null,null,null,null,null,0,0,0,null,0,0,"","","-","","",0,null,null,null,null,null,0,0,0,0,0,0,0,0,null,null,null,null,null,null,null,null,null,null,null,null,null,null,null,null,null,null,null,null,null,null,null,null,null,null,null,{"$f":"IFERROR(_xlfn._xlws.FILTER(BG432:BR1211,(BR432:BR1211=2)),\"\")","v":""}]
[null,424,{"$f":"IF(F433<>0,MAX($C$10:$C432)+1,\"\")","v":""},null,null,null,null,null,null,null,null,null,null,null,null,null,null,null,null,null,null,null,null,null,null,null,null,0,0,0,null,0,0,"","","-","","",0,null,null,null,null,null,0,0,0,0,0,0,0,0,null,null,null,null,null,null,null,null,null,null,null,null,null,null,null,null,null,null,null,null,null,null,null,null,null,null,null,{"$f":"IFERROR(_xlfn._xlws.FILTER(BG433:BR1212,(BR433:BR1212=2)),\"\")","v":""}]
[null,425,{"$f":"IF(F434<>0,MAX($C$10:$C433)+1,\"\")","v":""},null,null,null,null,null,null,null,null,null,null,null,null,null,null,null,null,null,null,null,null,null,null,null,null,0,0,0,null,0,0,"","","-","","",0,null,null,null,null,null,0,0,0,0,0,0,0,0,null,null,null,null,null,null,null,null,null,null,null,null,null,null,null,null,null,null,null,null,null,null,null,null,null,null,null,{"$f":"IFERROR(_xlfn._xlws.FILTER(BG434:BR1213,(BR434:BR1213=2)),\"\")","v":""}]
[null,426,{"$f":"IF(F435<>0,MAX($C$10:$C434)+1,\"\")","v":""},null,null,null,null,null,null,null,null,null,null,null,null,null,null,null,null,null,null,null,null,null,null,null,null,0,0,0,null,0,0,"","","-","","",0,null,null,null,null,null,0,0,0,0,0,0,0,0,null,null,null,null,null,null,null,null,null,null,null,null,null,null,null,null,null,null,null,null,null,null,null,null,null,null,null,{"$f":"IFERROR(_xlfn._xlws.FILTER(BG435:BR1214,(BR435:BR1214=2)),\"\")","v":""}]
[null,427,{"$f":"IF(F436<>0,MAX($C$10:$C435)+1,\"\")","v":""},null,null,null,null,null,null,null,null,null,null,null,null,null,null,null,null,null,null,null,null,null,null,null,null,0,0,0,null,0,0,"","","-","","",0,null,null,null,null,null,0,0,0,0,0,0,0,0,null,null,null,null,null,null,null,null,null,null,null,null,null,null,null,null,null,null,null,null,null,null,null,null,null,null,null,{"$f":"IFERROR(_xlfn._xlws.FILTER(BG436:BR1215,(BR436:BR1215=2)),\"\")","v":""}]
[null,428,{"$f":"IF(F437<>0,MAX($C$10:$C436)+1,\"\")","v":""},null,null,null,null,null,null,null,null,null,null,null,null,null,null,null,null,null,null,null,null,null,null,null,null,0,0,0,null,0,0,"","","-","","",0,null,null,null,null,null,0,0,0,0,0,0,0,0,null,null,null,null,null,null,null,null,null,null,null,null,null,null,null,null,null,null,null,null,null,null,null,null,null,null,null,{"$f":"IFERROR(_xlfn._xlws.FILTER(BG437:BR1216,(BR437:BR1216=2)),\"\")","v":""}]
[null,429,{"$f":"IF(F438<>0,MAX($C$10:$C437)+1,\"\")","v":""},null,null,null,null,null,null,null,null,null,null,null,null,null,null,null,null,null,null,null,null,null,null,null,null,0,0,0,null,0,0,"","","-","","",0,null,null,null,null,null,0,0,0,0,0,0,0,0,null,null,null,null,null,null,null,null,null,null,null,null,null,null,null,null,null,null,null,null,null,null,null,null,null,null,null,{"$f":"IFERROR(_xlfn._xlws.FILTER(BG438:BR1217,(BR438:BR1217=2)),\"\")","v":""}]
[null,430,{"$f":"IF(F439<>0,MAX($C$10:$C438)+1,\"\")","v":""},null,null,null,null,null,null,null,null,null,null,null,null,null,null,null,null,null,null,null,null,null,null,null,null,0,0,0,null,0,0,"","","-","","",0,null,null,null,null,null,0,0,0,0,0,0,0,0,null,null,null,null,null,null,null,null,null,null,null,null,null,null,null,null,null,null,null,null,null,null,null,null,null,null,null,{"$f":"IFERROR(_xlfn._xlws.FILTER(BG439:BR1218,(BR439:BR1218=2)),\"\")","v":""}]
[null,431,{"$f":"IF(F440<>0,MAX($C$10:$C439)+1,\"\")","v":""},null,null,null,null,null,null,null,null,null,null,null,null,null,null,null,null,null,null,null,null,null,null,null,null,0,0,0,null,0,0,"","","-","","",0,null,null,null,null,null,0,0,0,0,0,0,0,0,null,null,null,null,null,null,null,null,null,null,null,null,null,null,null,null,null,null,null,null,null,null,null,null,null,null,null,{"$f":"IFERROR(_xlfn._xlws.FILTER(BG440:BR1219,(BR440:BR1219=2)),\"\")","v":""}]
[null,432,{"$f":"IF(F441<>0,MAX($C$10:$C440)+1,\"\")","v":""},null,null,null,null,null,null,null,null,null,null,null,null,null,null,null,null,null,null,null,null,null,null,null,null,0,0,0,null,0,0,"","","-","","",0,null,null,null,null,null,0,0,0,0,0,0,0,0,null,null,null,null,null,null,null,null,null,null,null,null,null,null,null,null,null,null,null,null,null,null,null,null,null,null,null,{"$f":"IFERROR(_xlfn._xlws.FILTER(BG441:BR1220,(BR441:BR1220=2)),\"\")","v":""}]
[null,433,{"$f":"IF(F442<>0,MAX($C$10:$C441)+1,\"\")","v":""},null,null,null,null,null,null,null,null,null,null,null,null,null,null,null,null,null,null,null,null,null,null,null,null,0,0,0,null,0,0,"","","-","","",0,null,null,null,null,null,0,0,0,0,0,0,0,0,null,null,null,null,null,null,null,null,null,null,null,null,null,null,null,null,null,null,null,null,null,null,null,null,null,null,null,{"$f":"IFERROR(_xlfn._xlws.FILTER(BG442:BR1221,(BR442:BR1221=2)),\"\")","v":""}]
[null,434,{"$f":"IF(F443<>0,MAX($C$10:$C442)+1,\"\")","v":""},null,null,null,null,null,null,null,null,null,null,null,null,null,null,null,null,null,null,null,null,null,null,null,null,0,0,0,null,0,0,"","","-","","",0,null,null,null,null,null,0,0,0,0,0,0,0,0,null,null,null,null,null,null,null,null,null,null,null,null,null,null,null,null,null,null,null,null,null,null,null,null,null,null,null,{"$f":"IFERROR(_xlfn._xlws.FILTER(BG443:BR1222,(BR443:BR1222=2)),\"\")","v":""}]
[null,435,{"$f":"IF(F444<>0,MAX($C$10:$C443)+1,\"\")","v":""},null,null,null,null,null,null,null,null,null,null,null,null,null,null,null,null,null,null,null,null,null,null,null,null,0,0,0,null,0,0,"","","-","","",0,null,null,null,null,null,0,0,0,0,0,0,0,0,null,null,null,null,null,null,null,null,null,null,null,null,null,null,null,null,null,null,null,null,null,null,null,null,null,null,null,{"$f":"IFERROR(_xlfn._xlws.FILTER(BG444:BR1223,(BR444:BR1223=2)),\"\")","v":""}]
[null,436,{"$f":"IF(F445<>0,MAX($C$10:$C444)+1,\"\")","v":""},null,null,null,null,null,null,null,null,null,null,null,null,null,null,null,null,null,null,null,null,null,null,null,null,0,0,0,null,0,0,"","","-","","",0,null,null,null,null,null,0,0,0,0,0,0,0,0,null,null,null,null,null,null,null,null,null,null,null,null,null,null,null,null,null,null,null,null,null,null,null,null,null,null,null,{"$f":"IFERROR(_xlfn._xlws.FILTER(BG445:BR1224,(BR445:BR1224=2)),\"\")","v":""}]
[null,437,{"$f":"IF(F446<>0,MAX($C$10:$C445)+1,\"\")","v":""},null,null,null,null,null,null,null,null,null,null,null,null,null,null,null,null,null,null,null,null,null,null,null,null,0,0,0,null,0,0,"","","-","","",0,null,null,null,null,null,0,0,0,0,0,0,0,0,null,null,null,null,null,null,null,null,null,null,null,null,null,null,null,null,null,null,null,null,null,null,null,null,null,null,null,{"$f":"IFERROR(_xlfn._xlws.FILTER(BG446:BR1225,(BR446:BR1225=2)),\"\")","v":""}]
[null,438,{"$f":"IF(F447<>0,MAX($C$10:$C446)+1,\"\")","v":""},null,null,null,null,null,null,null,null,null,null,null,null,null,null,null,null,null,null,null,null,null,null,null,null,0,0,0,null,0,0,"","","-","","",0,null,null,null,null,null,0,0,0,0,0,0,0,0,null,null,null,null,null,null,null,null,null,null,null,null,null,null,null,null,null,null,null,null,null,null,null,null,null,null,null,{"$f":"IFERROR(_xlfn._xlws.FILTER(BG447:BR1226,(BR447:BR1226=2)),\"\")","v":""}]
[null,439,{"$f":"IF(F448<>0,MAX($C$10:$C447)+1,\"\")","v":""},null,null,null,null,null,null,null,null,null,null,null,null,null,null,null,null,null,null,null,null,null,null,null,null,0,0,0,null,0,0,"","","-","","",0,null,null,null,null,null,0,0,0,0,0,0,0,0,null,null,null,null,null,null,null,null,null,null,null,null,null,null,null,null,null,null,null,null,null,null,null,null,null,null,null,{"$f":"IFERROR(_xlfn._xlws.FILTER(BG448:BR1227,(BR448:BR1227=2)),\"\")","v":""}]
[null,440,{"$f":"IF(F449<>0,MAX($C$10:$C448)+1,\"\")","v":""},null,null,null,null,null,null,null,null,null,null,null,null,null,null,null,null,null,null,null,null,null,null,null,null,0,0,0,null,0,0,"","","-","","",0,null,null,null,null,null,0,0,0,0,0,0,0,0,null,null,null,null,null,null,null,null,null,null,null,null,null,null,null,null,null,null,null,null,null,null,null,null,null,null,null,{"$f":"IFERROR(_xlfn._xlws.FILTER(BG449:BR1228,(BR449:BR1228=2)),\"\")","v":""}]
[null,441,{"$f":"IF(F450<>0,MAX($C$10:$C449)+1,\"\")","v":""},null,null,null,null,null,null,null,null,null,null,null,null,null,null,null,null,null,null,null,null,null,null,null,null,0,0,0,null,0,0,"","","-","","",0,null,null,null,null,null,0,0,0,0,0,0,0,0,null,null,null,null,null,null,null,null,null,null,null,null,null,null,null,null,null,null,null,null,null,null,null,null,null,null,null,{"$f":"IFERROR(_xlfn._xlws.FILTER(BG450:BR1229,(BR450:BR1229=2)),\"\")","v":""}]
[null,442,{"$f":"IF(F451<>0,MAX($C$10:$C450)+1,\"\")","v":""},null,null,null,null,null,null,null,null,null,null,null,null,null,null,null,null,null,null,null,null,null,null,null,null,0,0,0,null,0,0,"","","-","","",0,null,null,null,null,null,0,0,0,0,0,0,0,0,null,null,null,null,null,null,null,null,null,null,null,null,null,null,null,null,null,null,null,null,null,null,null,null,null,null,null,{"$f":"IFERROR(_xlfn._xlws.FILTER(BG451:BR1230,(BR451:BR1230=2)),\"\")","v":""}]
[null,443,{"$f":"IF(F452<>0,MAX($C$10:$C451)+1,\"\")","v":""},null,null,null,null,null,null,null,null,null,null,null,null,null,null,null,null,null,null,null,null,null,null,null,null,0,0,0,null,0,0,"","","-","","",0,null,null,null,null,null,0,0,0,0,0,0,0,0,null,null,null,null,null,null,null,null,null,null,null,null,null,null,null,null,null,null,null,null,null,null,null,null,null,null,null,{"$f":"IFERROR(_xlfn._xlws.FILTER(BG452:BR1231,(BR452:BR1231=2)),\"\")","v":""}]
[null,444,{"$f":"IF(F453<>0,MAX($C$10:$C452)+1,\"\")","v":""},null,null,null,null,null,null,null,null,null,null,null,null,null,null,null,null,null,null,null,null,null,null,null,null,0,0,0,null,0,0,"","","-","","",0,null,null,null,null,null,0,0,0,0,0,0,0,0,null,null,null,null,null,null,null,null,null,null,null,null,null,null,null,null,null,null,null,null,null,null,null,null,null,null,null,{"$f":"IFERROR(_xlfn._xlws.FILTER(BG453:BR1232,(BR453:BR1232=2)),\"\")","v":""}]
[null,445,{"$f":"IF(F454<>0,MAX($C$10:$C453)+1,\"\")","v":""},null,null,null,null,null,null,null,null,null,null,null,null,null,null,null,null,null,null,null,null,null,null,null,null,0,0,0,null,0,0,"","","-","","",0,null,null,null,null,null,0,0,0,0,0,0,0,0,null,null,null,null,null,null,null,null,null,null,null,null,null,null,null,null,null,null,null,null,null,null,null,null,null,null,null,{"$f":"IFERROR(_xlfn._xlws.FILTER(BG454:BR1233,(BR454:BR1233=2)),\"\")","v":""}]
[null,446,{"$f":"IF(F455<>0,MAX($C$10:$C454)+1,\"\")","v":""},null,null,null,null,null,null,null,null,null,null,null,null,null,null,null,null,null,null,null,null,null,null,null,null,0,0,0,null,0,0,"","","-","","",0,null,null,null,null,null,0,0,0,0,0,0,0,0,null,null,null,null,null,null,null,null,null,null,null,null,null,null,null,null,null,null,null,null,null,null,null,null,null,null,null,{"$f":"IFERROR(_xlfn._xlws.FILTER(BG455:BR1234,(BR455:BR1234=2)),\"\")","v":""}]
[null,447,{"$f":"IF(F456<>0,MAX($C$10:$C455)+1,\"\")","v":""},null,null,null,null,null,null,null,null,null,null,null,null,null,null,null,null,null,null,null,null,null,null,null,null,0,0,0,null,0,0,"","","-","","",0,null,null,null,null,null,0,0,0,0,0,0,0,0,null,null,null,null,null,null,null,null,null,null,null,null,null,null,null,null,null,null,null,null,null,null,null,null,null,null,null,{"$f":"IFERROR(_xlfn._xlws.FILTER(BG456:BR1235,(BR456:BR1235=2)),\"\")","v":""}]
[null,448,{"$f":"IF(F457<>0,MAX($C$10:$C456)+1,\"\")","v":""},null,null,null,null,null,null,null,null,null,null,null,null,null,null,null,null,null,null,null,null,null,null,null,null,0,0,0,null,0,0,"","","-","","",0,null,null,null,null,null,0,0,0,0,0,0,0,0,null,null,null,null,null,null,null,null,null,null,null,null,null,null,null,null,null,null,null,null,null,null,null,null,null,null,null,{"$f":"IFERROR(_xlfn._xlws.FILTER(BG457:BR1236,(BR457:BR1236=2)),\"\")","v":""}]
[null,449,{"$f":"IF(F458<>0,MAX($C$10:$C457)+1,\"\")","v":""},null,null,null,null,null,null,null,null,null,null,null,null,null,null,null,null,null,null,null,null,null,null,null,null,0,0,0,null,0,0,"","",{"$f":"IF(AG458=\"\",\"\",\"-\")","v":"-"},"","",0,null,null,null,null,null,0,0,0,0,0,0,0,0,null,null,null,null,null,null,null,null,null,null,null,null,null,null,null,null,null,null,null,null,null,null,null,null,null,null,null,{"$f":"IFERROR(_xlfn._xlws.FILTER(BG458:BR1237,(BR458:BR1237=2)),\"\")","v":""}]
[null,450,{"$f":"IF(F459<>0,MAX($C$10:$C458)+1,\"\")","v":""},null,null,null,null,null,null,null,null,null,null,null,null,null,null,null,null,null,null,null,null,null,null,null,null,0,0,0,null,{"$f":"_xlfn.XLOOKUP(AH459,$J$10:$J$49,$M$10:$M$49,\"\")+_xlfn.XLOOKUP(AL459,$J$10:$J$49,$M$10:$M$49,\"\")","v":0},{"$f":"AE459","v":0},"",{"$f":"IFERROR(IF(AH459=\"\",\"\",IF(OR($L$8=\"Nee\",AF459=0),_xlfn.XLOOKUP(AH459,$D$10:$D$49,$E$10:$E$49),ROUND(_xlfn.XLOOKUP(AH459,$D$10:$D$49,$E$10:$E$49)*AF459,0))),0)","v":""},"-",{"$f":"IFERROR(IF(AH459=\"\",\"\",IF(OR($L$8=\"Nee\",AF459=0),_xlfn.XLOOKUP(AL459,$D$10:$D$49,$E$10:$E$49)*1,ROUND(_xlfn.XLOOKUP(AL459,$D$10:$D$49,$E$10:$E$49)*AF459,0))),0)","v":""},"",0,null,null,null,null,null,0,0,0,0,0,0,0,0,null,null,null,null,null,null,null,null,null,null,null,null,null,null,null,null,null,null,null,null,null,null,null,null,null,null,null,{"$f":"IFERROR(_xlfn._xlws.FILTER(BG459:BR1238,(BR459:BR1238=2)),\"\")","v":""}]
[null,451,{"$f":"IF(F460<>0,MAX($C$10:$C459)+1,\"\")","v":""},null,null,null,null,null,null,null,null,null,null,null,null,null,null,null,null,null,null,null,null,null,null,null,null,0,0,0,null,0,0,"","","-","","",0,null,null,null,null,null,0,0,0,0,0,0,0,{"$f":"AW460","v":0},null,null,null,null,null,null,null,null,null,null,null,null,null,null,null,null,null,null,null,null,null,null,null,null,null,null,null,{"$f":"IFERROR(_xlfn._xlws.FILTER(BG460:BR1239,(BR460:BR1239=2)),\"\")","v":""}]
[null,452,{"$f":"IF(F461<>0,MAX($C$10:$C460)+1,\"\")","v":""},null,null,null,null,null,null,null,null,null,null,null,null,null,null,null,null,null,null,null,null,null,null,null,null,0,{"$f":"IFERROR(_xlfn.XLOOKUP(AG461,$AB$10:$AB$789,$AD$10:$AD$789),\"\")","v":0},0,null,0,0,"","","-","","",0,null,null,null,null,null,0,0,0,0,0,0,0,0,null,null,null,null,null,null,null,null,null,null,null,null,null,null,null,null,null,null,null,null,null,null,null,null,null,null,null,{"$f":"IFERROR(_xlfn._xlws.FILTER(BG461:BR1240,(BR461:BR1240=2)),\"\")","v":""}]
[null,453,{"$f":"IF(F462<>0,MAX($C$10:$C461)+1,\"\")","v":""},null,null,null,null,null,null,null,null,null,null,null,null,null,null,null,null,null,null,null,null,null,null,null,null,0,0,0,null,0,0,"","","-","","",0,null,null,null,null,null,0,0,0,0,0,0,0,0,null,null,null,null,null,null,null,null,null,null,null,null,null,null,null,null,null,null,null,null,null,null,null,null,null,null,null,{"$f":"IFERROR(_xlfn._xlws.FILTER(BG462:BR1241,(BR462:BR1241=2)),\"\")","v":""}]
[null,454,{"$f":"IF(F463<>0,MAX($C$10:$C462)+1,\"\")","v":""},null,null,null,null,null,null,null,null,null,null,null,null,null,null,null,null,null,null,null,null,null,null,null,null,0,0,0,null,0,0,"","","-","","",0,null,null,null,null,null,0,0,0,0,0,0,0,0,null,null,null,null,null,null,null,null,null,null,null,null,null,null,null,null,null,null,null,null,null,null,null,null,null,null,null,{"$f":"IFERROR(_xlfn._xlws.FILTER(BG463:BR1242,(BR463:BR1242=2)),\"\")","v":""}]
[null,455,{"$f":"IF(F464<>0,MAX($C$10:$C463)+1,\"\")","v":""},null,null,null,null,null,null,null,null,null,null,null,null,null,null,null,null,null,null,null,null,null,null,null,null,0,0,0,null,0,0,"","","-","","",0,null,null,null,null,null,0,0,0,0,0,0,0,0,null,null,null,null,null,null,null,null,null,null,null,null,null,null,null,null,null,null,null,null,null,null,null,null,null,null,null,{"$f":"IFERROR(_xlfn._xlws.FILTER(BG464:BR1243,(BR464:BR1243=2)),\"\")","v":""}]
[null,456,{"$f":"IF(F465<>0,MAX($C$10:$C464)+1,\"\")","v":""},null,null,null,null,null,null,null,null,null,null,null,null,null,null,null,null,null,null,null,null,null,null,null,null,0,0,0,null,0,0,"","","-","","",0,null,null,null,null,null,0,0,0,0,0,0,0,0,null,null,null,null,null,null,null,null,null,null,null,null,null,null,null,null,null,null,null,null,null,null,null,null,null,null,null,{"$f":"IFERROR(_xlfn._xlws.FILTER(BG465:BR1244,(BR465:BR1244=2)),\"\")","v":""}]
[null,457,{"$f":"IF(F466<>0,MAX($C$10:$C465)+1,\"\")","v":""},null,null,null,null,null,null,null,null,null,null,null,null,null,null,null,null,null,null,null,null,null,null,null,null,0,0,0,null,0,0,"","","-","","",0,null,null,null,null,null,0,0,0,0,0,0,0,0,null,null,null,null,null,null,null,null,null,null,null,null,null,null,null,null,null,null,null,null,null,null,null,null,null,null,null,{"$f":"IFERROR(_xlfn._xlws.FILTER(BG466:BR1245,(BR466:BR1245=2)),\"\")","v":""}]
[null,458,{"$f":"IF(F467<>0,MAX($C$10:$C466)+1,\"\")","v":""},null,null,null,null,null,null,null,null,null,null,null,null,null,null,null,null,null,null,null,null,null,null,null,null,0,0,0,null,0,0,"","","-","","",0,null,null,null,null,null,0,0,0,0,0,0,0,0,null,null,null,null,null,null,null,null,null,null,null,null,null,null,null,null,null,null,null,null,null,null,null,null,null,null,null,{"$f":"IFERROR(_xlfn._xlws.FILTER(BG467:BR1246,(BR467:BR1246=2)),\"\")","v":""}]
[null,459,{"$f":"IF(F468<>0,MAX($C$10:$C467)+1,\"\")","v":""},null,null,null,null,null,null,null,null,null,null,null,null,null,null,null,null,null,null,null,null,null,null,null,null,0,0,0,null,0,0,"","","-","","",0,null,null,null,null,null,0,0,0,0,0,0,0,0,null,null,null,null,null,null,null,null,null,null,null,null,null,null,null,null,null,null,null,null,null,null,null,null,null,null,null,{"$f":"IFERROR(_xlfn._xlws.FILTER(BG468:BR1247,(BR468:BR1247=2)),\"\")","v":""}]
[null,460,{"$f":"IF(F469<>0,MAX($C$10:$C468)+1,\"\")","v":""},null,null,null,null,null,null,null,null,null,null,null,null,null,null,null,null,null,null,null,null,null,null,null,null,0,0,0,null,0,0,"","","-","","",0,null,null,null,null,null,0,0,0,0,0,0,0,0,null,null,null,null,null,null,null,null,null,null,null,null,null,null,null,null,null,null,null,null,null,null,null,null,null,null,null,{"$f":"IFERROR(_xlfn._xlws.FILTER(BG469:BR1248,(BR469:BR1248=2)),\"\")","v":""}]
[null,461,{"$f":"IF(F470<>0,MAX($C$10:$C469)+1,\"\")","v":""},null,null,null,null,null,null,null,null,null,null,null,null,null,null,null,null,null,null,null,null,null,null,null,null,0,0,0,null,0,0,"","","-","","",0,null,null,null,null,null,0,0,0,0,0,0,0,0,null,null,null,null,null,null,null,null,null,null,null,null,null,null,null,null,null,null,null,null,null,null,null,null,null,null,null,{"$f":"IFERROR(_xlfn._xlws.FILTER(BG470:BR1249,(BR470:BR1249=2)),\"\")","v":""}]
[null,462,{"$f":"IF(F471<>0,MAX($C$10:$C470)+1,\"\")","v":""},null,null,null,null,null,null,null,null,null,null,null,null,null,null,null,null,null,null,null,null,null,null,null,null,0,0,0,null,0,0,"","","-","","",0,null,null,null,null,null,0,0,0,0,0,0,0,0,null,null,null,null,null,null,null,null,null,null,null,null,null,null,null,null,null,null,null,null,null,null,null,null,null,null,null,{"$f":"IFERROR(_xlfn._xlws.FILTER(BG471:BR1250,(BR471:BR1250=2)),\"\")","v":""}]
[null,463,{"$f":"IF(F472<>0,MAX($C$10:$C471)+1,\"\")","v":""},null,null,null,null,null,null,null,null,null,null,null,null,null,null,null,null,null,null,null,null,null,null,null,null,0,0,0,null,0,0,"","","-","","",0,null,null,null,null,null,0,0,0,0,0,0,0,0,null,null,null,null,null,null,null,null,null,null,null,null,null,null,null,null,null,null,null,null,null,null,null,null,null,null,null,{"$f":"IFERROR(_xlfn._xlws.FILTER(BG472:BR1251,(BR472:BR1251=2)),\"\")","v":""}]
[null,464,{"$f":"IF(F473<>0,MAX($C$10:$C472)+1,\"\")","v":""},null,null,null,null,null,null,null,null,null,null,null,null,null,null,null,null,null,null,null,null,null,null,null,null,0,0,0,null,0,0,"","","-","","",0,null,null,null,null,null,0,0,0,0,0,0,0,0,null,null,null,null,null,null,null,null,null,null,null,null,null,null,null,null,null,null,null,null,null,null,null,null,null,null,null,{"$f":"IFERROR(_xlfn._xlws.FILTER(BG473:BR1252,(BR473:BR1252=2)),\"\")","v":""}]
[null,465,{"$f":"IF(F474<>0,MAX($C$10:$C473)+1,\"\")","v":""},null,null,null,null,null,null,null,null,null,null,null,null,null,null,null,null,null,null,null,null,null,null,null,null,0,0,0,null,0,0,"","","-","","",0,null,null,null,null,null,0,0,0,0,0,0,0,0,null,null,null,null,null,null,null,null,null,null,null,null,null,null,null,null,null,null,null,null,null,null,null,null,null,null,null,{"$f":"IFERROR(_xlfn._xlws.FILTER(BG474:BR1253,(BR474:BR1253=2)),\"\")","v":""}]
[null,466,{"$f":"IF(F475<>0,MAX($C$10:$C474)+1,\"\")","v":""},null,null,null,null,null,null,null,null,null,null,null,null,null,null,null,null,null,null,null,null,null,null,null,null,0,0,0,null,0,0,"","","-","","",0,null,null,null,null,null,0,0,0,0,0,0,0,0,null,null,null,null,null,null,null,null,null,null,null,null,null,null,null,null,null,null,null,null,null,null,null,null,null,null,null,{"$f":"IFERROR(_xlfn._xlws.FILTER(BG475:BR1254,(BR475:BR1254=2)),\"\")","v":""}]
[null,467,{"$f":"IF(F476<>0,MAX($C$10:$C475)+1,\"\")","v":""},null,null,null,null,null,null,null,null,null,null,null,null,null,null,null,null,null,null,null,null,null,null,null,null,0,0,0,null,0,0,"","","-","","",0,null,null,null,null,null,0,0,0,0,0,0,0,0,null,null,null,null,null,null,null,null,null,null,null,null,null,null,null,null,null,null,null,null,null,null,null,null,null,null,null,{"$f":"IFERROR(_xlfn._xlws.FILTER(BG476:BR1255,(BR476:BR1255=2)),\"\")","v":""}]
[null,468,{"$f":"IF(F477<>0,MAX($C$10:$C476)+1,\"\")","v":""},null,null,null,null,null,null,null,null,null,null,null,null,null,null,null,null,null,null,null,null,null,null,null,null,0,0,0,null,0,0,"","","-","","",0,null,null,null,null,null,0,0,0,0,0,0,0,0,null,null,null,null,null,null,null,null,null,null,null,null,null,null,null,null,null,null,null,null,null,null,null,null,null,null,null,{"$f":"IFERROR(_xlfn._xlws.FILTER(BG477:BR1256,(BR477:BR1256=2)),\"\")","v":""}]
[null,469,{"$f":"IF(F478<>0,MAX($C$10:$C477)+1,\"\")","v":""},null,null,null,null,null,null,null,null,null,null,null,null,null,null,null,null,null,null,null,null,null,null,null,null,0,0,0,null,0,0,"","","-","","",0,null,null,null,null,null,0,0,0,0,0,0,0,0,null,null,null,null,null,null,null,null,null,null,null,null,null,null,null,null,null,null,null,null,null,null,null,null,null,null,null,{"$f":"IFERROR(_xlfn._xlws.FILTER(BG478:BR1257,(BR478:BR1257=2)),\"\")","v":""}]
[null,470,{"$f":"IF(F479<>0,MAX($C$10:$C478)+1,\"\")","v":""},null,null,null,null,null,null,null,null,null,null,null,null,null,null,null,null,null,null,null,null,null,null,null,null,0,0,0,null,0,0,"","","-","","",0,null,null,null,null,null,0,0,0,0,0,0,0,0,null,null,null,null,null,null,null,null,null,null,null,null,null,null,null,null,null,null,null,null,null,null,null,null,null,null,null,{"$f":"IFERROR(_xlfn._xlws.FILTER(BG479:BR1258,(BR479:BR1258=2)),\"\")","v":""}]
[null,471,{"$f":"IF(F480<>0,MAX($C$10:$C479)+1,\"\")","v":""},null,null,null,null,null,null,null,null,null,null,null,null,null,null,null,null,null,null,null,null,null,null,null,null,0,0,0,null,0,0,"","","-","","",0,null,null,null,null,null,0,0,0,0,0,0,0,0,null,null,null,null,null,null,null,null,null,null,null,null,null,null,null,null,null,null,null,null,null,null,null,null,null,null,null,{"$f":"IFERROR(_xlfn._xlws.FILTER(BG480:BR1259,(BR480:BR1259=2)),\"\")","v":""}]
[null,472,{"$f":"IF(F481<>0,MAX($C$10:$C480)+1,\"\")","v":""},null,null,null,null,null,null,null,null,null,null,null,null,null,null,null,null,null,null,null,null,null,null,null,null,0,0,0,null,0,0,"","","-","","",0,null,null,null,null,null,0,0,0,0,0,0,0,0,null,null,null,null,null,null,null,null,null,null,null,null,null,null,null,null,null,null,null,null,null,null,null,null,null,null,null,{"$f":"IFERROR(_xlfn._xlws.FILTER(BG481:BR1260,(BR481:BR1260=2)),\"\")","v":""}]
[null,473,{"$f":"IF(F482<>0,MAX($C$10:$C481)+1,\"\")","v":""},null,null,null,null,null,null,null,null,null,null,null,null,null,null,null,null,null,null,null,null,null,null,null,null,0,0,0,null,0,0,"","","-","","",0,null,null,null,null,null,0,0,0,0,0,0,0,0,null,null,null,null,null,null,null,null,null,null,null,null,null,null,null,null,null,null,null,null,null,null,null,null,null,null,null,{"$f":"IFERROR(_xlfn._xlws.FILTER(BG482:BR1261,(BR482:BR1261=2)),\"\")","v":""}]
[null,474,{"$f":"IF(F483<>0,MAX($C$10:$C482)+1,\"\")","v":""},null,null,null,null,null,null,null,null,null,null,null,null,null,null,null,null,null,null,null,null,null,null,null,null,0,0,0,null,0,0,"","","-","","",0,null,null,null,null,null,0,0,0,0,0,0,0,0,null,null,null,null,null,null,null,null,null,null,null,null,null,null,null,null,null,null,null,null,null,null,null,null,null,null,null,{"$f":"IFERROR(_xlfn._xlws.FILTER(BG483:BR1262,(BR483:BR1262=2)),\"\")","v":""}]
[null,475,{"$f":"IF(F484<>0,MAX($C$10:$C483)+1,\"\")","v":""},null,null,null,null,null,null,null,null,null,null,null,null,null,null,null,null,null,null,null,null,null,null,null,null,0,0,0,null,0,0,"","","-","","",0,null,null,null,null,null,0,0,0,0,0,0,0,0,null,null,null,null,null,null,null,null,null,null,null,null,null,null,null,null,null,null,null,null,null,null,null,null,null,null,null,{"$f":"IFERROR(_xlfn._xlws.FILTER(BG484:BR1263,(BR484:BR1263=2)),\"\")","v":""}]
[null,476,{"$f":"IF(F485<>0,MAX($C$10:$C484)+1,\"\")","v":""},null,null,null,null,null,null,null,null,null,null,null,null,null,null,null,null,null,null,null,null,null,null,null,null,0,0,0,null,0,0,"","","-","","",0,null,null,null,null,null,0,0,0,0,0,0,0,0,null,null,null,null,null,null,null,null,null,null,null,null,null,null,null,null,null,null,null,null,null,null,null,null,null,null,null,{"$f":"IFERROR(_xlfn._xlws.FILTER(BG485:BR1264,(BR485:BR1264=2)),\"\")","v":""}]
[null,477,{"$f":"IF(F486<>0,MAX($C$10:$C485)+1,\"\")","v":""},null,null,null,null,null,null,null,null,null,null,null,null,null,null,null,null,null,null,null,null,null,null,null,null,0,0,0,null,0,0,"","","-","","",0,null,null,null,null,null,0,0,0,0,0,0,0,0,null,null,null,null,null,null,null,null,null,null,null,null,null,null,null,null,null,null,null,null,null,null,null,null,null,null,null,{"$f":"IFERROR(_xlfn._xlws.FILTER(BG486:BR1265,(BR486:BR1265=2)),\"\")","v":""}]
[null,478,{"$f":"IF(F487<>0,MAX($C$10:$C486)+1,\"\")","v":""},null,null,null,null,null,null,null,null,null,null,null,null,null,null,null,null,null,null,null,null,null,null,null,null,0,0,0,null,0,0,"","","-","","",0,null,null,null,null,null,0,0,0,0,0,0,0,0,null,null,null,null,null,null,null,null,null,null,null,null,null,null,null,null,null,null,null,null,null,null,null,null,null,null,null,{"$f":"IFERROR(_xlfn._xlws.FILTER(BG487:BR1266,(BR487:BR1266=2)),\"\")","v":""}]
[null,479,{"$f":"IF(F488<>0,MAX($C$10:$C487)+1,\"\")","v":""},null,null,null,null,null,null,null,null,null,null,null,null,null,null,null,null,null,null,null,null,null,null,null,null,0,0,0,null,0,0,"","","-","","",0,null,null,null,null,null,0,0,0,0,0,0,0,0,null,null,null,null,null,null,null,null,null,null,null,null,null,null,null,null,null,null,null,null,null,null,null,null,null,null,null,{"$f":"IFERROR(_xlfn._xlws.FILTER(BG488:BR1267,(BR488:BR1267=2)),\"\")","v":""}]
[null,480,{"$f":"IF(F489<>0,MAX($C$10:$C488)+1,\"\")","v":""},null,null,null,null,null,null,null,null,null,null,null,null,null,null,null,null,null,null,null,null,null,null,null,null,0,0,0,null,0,0,"","","-","","",0,null,null,null,null,null,0,0,0,0,0,0,0,0,null,null,null,null,null,null,null,null,null,null,null,null,null,null,null,null,null,null,null,null,null,null,null,null,null,null,null,{"$f":"IFERROR(_xlfn._xlws.FILTER(BG489:BR1268,(BR489:BR1268=2)),\"\")","v":""}]
[null,481,{"$f":"IF(F490<>0,MAX($C$10:$C489)+1,\"\")","v":""},null,null,null,null,null,null,null,null,null,null,null,null,null,null,null,null,null,null,null,null,null,null,null,null,0,0,0,null,0,0,"","","-","","",0,null,null,null,null,null,0,0,0,0,0,0,0,0,null,null,null,null,null,null,null,null,null,null,null,null,null,null,null,null,null,null,null,null,null,null,null,null,null,null,null,{"$f":"IFERROR(_xlfn._xlws.FILTER(BG490:BR1269,(BR490:BR1269=2)),\"\")","v":""}]
[null,482,{"$f":"IF(F491<>0,MAX($C$10:$C490)+1,\"\")","v":""},null,null,null,null,null,null,null,null,null,null,null,null,null,null,null,null,null,null,null,null,null,null,null,null,0,0,0,null,0,0,"","","-","","",0,null,null,null,null,null,0,0,0,0,0,0,0,0,null,null,null,null,null,null,null,null,null,null,null,null,null,null,null,null,null,null,null,null,null,null,null,null,null,null,null,{"$f":"IFERROR(_xlfn._xlws.FILTER(BG491:BR1270,(BR491:BR1270=2)),\"\")","v":""}]
[null,483,{"$f":"IF(F492<>0,MAX($C$10:$C491)+1,\"\")","v":""},null,null,null,null,null,null,null,null,null,null,null,null,null,null,null,null,null,null,null,null,null,null,null,null,0,0,0,null,0,0,"","","-","","",0,null,null,null,null,null,0,0,0,0,0,0,0,0,null,null,null,null,null,null,null,null,null,null,null,null,null,null,null,null,null,null,null,null,null,null,null,null,null,null,null,{"$f":"IFERROR(_xlfn._xlws.FILTER(BG492:BR1271,(BR492:BR1271=2)),\"\")","v":""}]
[null,484,{"$f":"IF(F493<>0,MAX($C$10:$C492)+1,\"\")","v":""},null,null,null,null,null,null,null,null,null,null,null,null,null,null,null,null,null,null,null,null,null,null,null,null,0,0,0,null,0,0,"","","-","","",0,null,null,null,null,null,0,0,0,0,0,0,0,0,null,null,null,null,null,null,null,null,null,null,null,null,null,null,null,null,null,null,null,null,null,null,null,null,null,null,null,{"$f":"IFERROR(_xlfn._xlws.FILTER(BG493:BR1272,(BR493:BR1272=2)),\"\")","v":""}]
[null,485,{"$f":"IF(F494<>0,MAX($C$10:$C493)+1,\"\")","v":""},null,null,null,null,null,null,null,null,null,null,null,null,null,null,null,null,null,null,null,null,null,null,null,null,0,0,0,null,0,0,"","","-","","",0,null,null,null,null,null,0,0,0,0,0,0,0,0,null,null,null,null,null,null,null,null,null,null,null,null,null,null,null,null,null,null,null,null,null,null,null,null,null,null,null,{"$f":"IFERROR(_xlfn._xlws.FILTER(BG494:BR1273,(BR494:BR1273=2)),\"\")","v":""}]
[null,486,{"$f":"IF(F495<>0,MAX($C$10:$C494)+1,\"\")","v":""},null,null,null,null,null,null,null,null,null,null,null,null,null,null,null,null,null,null,null,null,null,null,null,null,0,0,0,null,0,0,"","","-","","",0,null,null,null,null,null,0,0,0,0,0,0,0,0,null,null,null,null,null,null,null,null,null,null,null,null,null,null,null,null,null,null,null,null,null,null,null,null,null,null,null,{"$f":"IFERROR(_xlfn._xlws.FILTER(BG495:BR1274,(BR495:BR1274=2)),\"\")","v":""}]
[null,487,{"$f":"IF(F496<>0,MAX($C$10:$C495)+1,\"\")","v":""},null,null,null,null,null,null,null,null,null,null,null,null,null,null,null,null,null,null,null,null,null,null,null,null,0,0,0,null,0,0,"","","-","","",0,null,null,null,null,null,0,0,0,0,0,0,0,0,null,null,null,null,null,null,null,null,null,null,null,null,null,null,null,null,null,null,null,null,null,null,null,null,null,null,null,{"$f":"IFERROR(_xlfn._xlws.FILTER(BG496:BR1275,(BR496:BR1275=2)),\"\")","v":""}]
[null,488,{"$f":"IF(F497<>0,MAX($C$10:$C496)+1,\"\")","v":""},null,null,null,null,null,null,null,null,null,null,null,null,null,null,null,null,null,null,null,null,null,null,null,null,0,0,0,null,0,0,"","","-","","",0,null,null,null,null,null,0,0,0,0,0,0,0,0,null,null,null,null,null,null,null,null,null,null,null,null,null,null,null,null,null,null,null,null,null,null,null,null,null,null,null,{"$f":"IFERROR(_xlfn._xlws.FILTER(BG497:BR1276,(BR497:BR1276=2)),\"\")","v":""}]
[null,489,{"$f":"IF(F498<>0,MAX($C$10:$C497)+1,\"\")","v":""},null,null,null,null,null,null,null,null,null,null,null,null,null,null,null,null,null,null,null,null,null,null,null,null,0,0,0,null,0,0,"","","-","","",0,null,null,null,null,null,0,0,0,0,0,0,0,0,null,null,null,null,null,null,null,null,null,null,null,null,null,null,null,null,null,null,null,null,null,null,null,null,null,null,null,{"$f":"IFERROR(_xlfn._xlws.FILTER(BG498:BR1277,(BR498:BR1277=2)),\"\")","v":""}]
[null,490,{"$f":"IF(F499<>0,MAX($C$10:$C498)+1,\"\")","v":""},null,null,null,null,null,null,null,null,null,null,null,null,null,null,null,null,null,null,null,null,null,null,null,null,0,0,0,null,0,0,"","","-","","",0,null,null,null,null,null,0,0,0,0,0,0,0,0,null,null,null,null,null,null,null,null,null,null,null,null,null,null,null,null,null,null,null,null,null,null,null,null,null,null,null,{"$f":"IFERROR(_xlfn._xlws.FILTER(BG499:BR1278,(BR499:BR1278=2)),\"\")","v":""}]
[null,491,{"$f":"IF(F500<>0,MAX($C$10:$C499)+1,\"\")","v":""},null,null,null,null,null,null,null,null,null,null,null,null,null,null,null,null,null,null,null,null,null,null,null,null,0,0,0,null,0,0,"","","-","","",0,null,null,null,null,null,0,0,0,0,0,0,0,0,null,null,null,null,null,null,null,null,null,null,null,null,null,null,null,null,null,null,null,null,null,null,null,null,null,null,null,{"$f":"IFERROR(_xlfn._xlws.FILTER(BG500:BR1279,(BR500:BR1279=2)),\"\")","v":""}]
[null,492,{"$f":"IF(F501<>0,MAX($C$10:$C500)+1,\"\")","v":""},null,null,null,null,null,null,null,null,null,null,null,null,null,null,null,null,null,null,null,null,null,null,null,null,0,0,0,null,0,0,"","","-","","",0,null,null,null,null,null,0,0,0,0,0,0,0,0,null,null,null,null,null,null,null,null,null,null,null,null,null,null,null,null,null,null,null,null,null,null,null,null,null,null,null,{"$f":"IFERROR(_xlfn._xlws.FILTER(BG501:BR1280,(BR501:BR1280=2)),\"\")","v":""}]
[null,493,{"$f":"IF(F502<>0,MAX($C$10:$C501)+1,\"\")","v":""},null,null,null,null,null,null,null,null,null,null,null,null,null,null,null,null,null,null,null,null,null,null,null,null,0,0,0,null,0,0,"","","-","","",0,null,null,null,null,null,0,0,0,0,0,0,0,0,null,null,null,null,null,null,null,null,null,null,null,null,null,null,null,null,null,null,null,null,null,null,null,null,null,null,null,{"$f":"IFERROR(_xlfn._xlws.FILTER(BG502:BR1281,(BR502:BR1281=2)),\"\")","v":""}]
[null,494,{"$f":"IF(F503<>0,MAX($C$10:$C502)+1,\"\")","v":""},null,null,null,null,null,null,null,null,null,null,null,null,null,null,null,null,null,null,null,null,null,null,null,null,0,0,0,null,0,0,"","","-","","",0,null,null,null,null,null,0,0,0,0,0,0,0,0,null,null,null,null,null,null,null,null,null,null,null,null,null,null,null,null,null,null,null,null,null,null,null,null,null,null,null,{"$f":"IFERROR(_xlfn._xlws.FILTER(BG503:BR1282,(BR503:BR1282=2)),\"\")","v":""}]
[null,495,{"$f":"IF(F504<>0,MAX($C$10:$C503)+1,\"\")","v":""},null,null,null,null,null,null,null,null,null,null,null,null,null,null,null,null,null,null,null,null,null,null,null,null,0,0,0,null,0,0,"","","-","","",0,null,null,null,null,null,0,0,0,0,0,0,0,0,null,null,null,null,null,null,null,null,null,null,null,null,null,null,null,null,null,null,null,null,null,null,null,null,null,null,null,{"$f":"IFERROR(_xlfn._xlws.FILTER(BG504:BR1283,(BR504:BR1283=2)),\"\")","v":""}]
[null,496,{"$f":"IF(F505<>0,MAX($C$10:$C504)+1,\"\")","v":""},null,null,null,null,null,null,null,null,null,null,null,null,null,null,null,null,null,null,null,null,null,null,null,null,0,0,0,null,0,0,"","","-","","",0,null,null,null,null,null,0,0,0,0,0,0,0,0,null,null,null,null,null,null,null,null,null,null,null,null,null,null,null,null,null,null,null,null,null,null,null,null,null,null,null,{"$f":"IFERROR(_xlfn._xlws.FILTER(BG505:BR1284,(BR505:BR1284=2)),\"\")","v":""}]
[null,497,{"$f":"IF(F506<>0,MAX($C$10:$C505)+1,\"\")","v":""},null,null,null,null,null,null,null,null,null,null,null,null,null,null,null,null,null,null,null,null,null,null,null,null,0,0,0,null,0,0,"","","-","","",0,null,null,null,null,null,0,0,0,0,0,0,0,0,null,null,null,null,null,null,null,null,null,null,null,null,null,null,null,null,null,null,null,null,null,null,null,null,null,null,null,{"$f":"IFERROR(_xlfn._xlws.FILTER(BG506:BR1285,(BR506:BR1285=2)),\"\")","v":""}]
[null,498,{"$f":"IF(F507<>0,MAX($C$10:$C506)+1,\"\")","v":""},null,null,null,null,null,null,null,null,null,null,null,null,null,null,null,null,null,null,null,null,null,null,null,null,0,0,0,null,0,0,"","","-","","",0,null,null,null,null,null,0,0,0,0,0,0,0,0,null,null,null,null,null,null,null,null,null,null,null,null,null,null,null,null,null,null,null,null,null,null,null,null,null,null,null,{"$f":"IFERROR(_xlfn._xlws.FILTER(BG507:BR1286,(BR507:BR1286=2)),\"\")","v":""}]
[null,499,{"$f":"IF(F508<>0,MAX($C$10:$C507)+1,\"\")","v":""},null,null,null,null,null,null,null,null,null,null,null,null,null,null,null,null,null,null,null,null,null,null,null,null,0,0,0,null,0,0,"","","-","","",0,null,null,null,null,null,0,0,0,0,0,0,0,0,null,null,null,null,null,null,null,null,null,null,null,null,null,null,null,null,null,null,null,null,null,null,null,null,null,null,null,{"$f":"IFERROR(_xlfn._xlws.FILTER(BG508:BR1287,(BR508:BR1287=2)),\"\")","v":""}]
[null,500,{"$f":"IF(F509<>0,MAX($C$10:$C508)+1,\"\")","v":""},null,null,null,null,null,null,null,null,null,null,null,null,null,null,null,null,null,null,null,null,null,null,null,null,0,0,0,null,0,0,"","","-","","",0,null,null,null,null,null,0,0,0,0,0,0,0,0,null,null,null,null,null,null,null,null,null,null,null,null,null,null,null,null,null,null,null,null,null,null,null,null,null,null,null,{"$f":"IFERROR(_xlfn._xlws.FILTER(BG509:BR1288,(BR509:BR1288=2)),\"\")","v":""}]
[null,501,{"$f":"IF(F510<>0,MAX($C$10:$C509)+1,\"\")","v":""},null,null,null,null,null,null,null,null,null,null,null,null,null,null,null,null,null,null,null,null,null,null,null,null,0,0,0,null,0,0,"","","-","","",0,null,null,null,null,null,0,0,0,0,0,0,0,0,null,null,null,null,null,null,null,null,null,null,null,null,null,null,null,null,null,null,null,null,null,null,null,null,null,null,null,{"$f":"IFERROR(_xlfn._xlws.FILTER(BG510:BR1289,(BR510:BR1289=2)),\"\")","v":""}]
[null,502,{"$f":"IF(F511<>0,MAX($C$10:$C510)+1,\"\")","v":""},null,null,null,null,null,null,null,null,null,null,null,null,null,null,null,null,null,null,null,null,null,null,null,null,0,0,0,null,0,0,"","","-","","",0,null,null,null,null,null,0,0,0,0,0,0,0,0,null,null,null,null,null,null,null,null,null,null,null,null,null,null,null,null,null,null,null,null,null,null,null,null,null,null,null,{"$f":"IFERROR(_xlfn._xlws.FILTER(BG511:BR1290,(BR511:BR1290=2)),\"\")","v":""}]
[null,503,{"$f":"IF(F512<>0,MAX($C$10:$C511)+1,\"\")","v":""},null,null,null,null,null,null,null,null,null,null,null,null,null,null,null,null,null,null,null,null,null,null,null,null,0,0,0,null,0,0,"","","-","","",0,null,null,null,null,null,0,0,0,0,0,0,0,0,null,null,null,null,null,null,null,null,null,null,null,null,null,null,null,null,null,null,null,null,null,null,null,null,null,null,null,{"$f":"IFERROR(_xlfn._xlws.FILTER(BG512:BR1291,(BR512:BR1291=2)),\"\")","v":""}]
[null,504,{"$f":"IF(F513<>0,MAX($C$10:$C512)+1,\"\")","v":""},null,null,null,null,null,null,null,null,null,null,null,null,null,null,null,null,null,null,null,null,null,null,null,null,0,0,0,null,0,0,"","","-","","",0,null,null,null,null,null,0,0,0,0,0,0,0,0,null,null,null,null,null,null,null,null,null,null,null,null,null,null,null,null,null,null,null,null,null,null,null,null,null,null,null,{"$f":"IFERROR(_xlfn._xlws.FILTER(BG513:BR1292,(BR513:BR1292=2)),\"\")","v":""}]
[null,505,{"$f":"IF(F514<>0,MAX($C$10:$C513)+1,\"\")","v":""},null,null,null,null,null,null,null,null,null,null,null,null,null,null,null,null,null,null,null,null,null,null,null,null,0,0,0,null,0,0,"","","-","","",0,null,null,null,null,null,0,0,0,0,0,0,0,0,null,null,null,null,null,null,null,null,null,null,null,null,null,null,null,null,null,null,null,null,null,null,null,null,null,null,null,{"$f":"IFERROR(_xlfn._xlws.FILTER(BG514:BR1293,(BR514:BR1293=2)),\"\")","v":""}]
[null,506,{"$f":"IF(F515<>0,MAX($C$10:$C514)+1,\"\")","v":""},null,null,null,null,null,null,null,null,null,null,null,null,null,null,null,null,null,null,null,null,null,null,null,null,0,0,0,null,0,0,"","","-","","",0,null,null,null,null,null,0,0,0,0,0,0,0,0,null,null,null,null,null,null,null,null,null,null,null,null,null,null,null,null,null,null,null,null,null,null,null,null,null,null,null,{"$f":"IFERROR(_xlfn._xlws.FILTER(BG515:BR1294,(BR515:BR1294=2)),\"\")","v":""}]
[null,507,{"$f":"IF(F516<>0,MAX($C$10:$C515)+1,\"\")","v":""},null,null,null,null,null,null,null,null,null,null,null,null,null,null,null,null,null,null,null,null,null,null,null,null,0,0,0,null,0,0,"","","-","","",0,null,null,null,null,null,0,0,0,0,0,0,0,0,null,null,null,null,null,null,null,null,null,null,null,null,null,null,null,null,null,null,null,null,null,null,null,null,null,null,null,{"$f":"IFERROR(_xlfn._xlws.FILTER(BG516:BR1295,(BR516:BR1295=2)),\"\")","v":""}]
[null,508,{"$f":"IF(F517<>0,MAX($C$10:$C516)+1,\"\")","v":""},null,null,null,null,null,null,null,null,null,null,null,null,null,null,null,null,null,null,null,null,null,null,null,null,0,0,0,null,0,0,"","","-","","",0,null,null,null,null,null,0,0,0,0,0,0,0,0,null,null,null,null,null,null,null,null,null,null,null,null,null,null,null,null,null,null,null,null,null,null,null,null,null,null,null,{"$f":"IFERROR(_xlfn._xlws.FILTER(BG517:BR1296,(BR517:BR1296=2)),\"\")","v":""}]
[null,509,{"$f":"IF(F518<>0,MAX($C$10:$C517)+1,\"\")","v":""},null,null,null,null,null,null,null,null,null,null,null,null,null,null,null,null,null,null,null,null,null,null,null,null,0,0,0,null,0,0,"","","-","","",0,null,null,null,null,null,0,0,0,0,0,0,0,0,null,null,null,null,null,null,null,null,null,null,null,null,null,null,null,null,null,null,null,null,null,null,null,null,null,null,null,{"$f":"IFERROR(_xlfn._xlws.FILTER(BG518:BR1297,(BR518:BR1297=2)),\"\")","v":""}]
[null,510,{"$f":"IF(F519<>0,MAX($C$10:$C518)+1,\"\")","v":""},null,null,null,null,null,null,null,null,null,null,null,null,null,null,null,null,null,null,null,null,null,null,null,null,0,0,0,null,0,0,"","","-","","",0,null,null,null,null,null,0,0,0,0,0,0,0,0,null,null,null,null,null,null,null,null,null,null,null,null,null,null,null,null,null,null,null,null,null,null,null,null,null,null,null,{"$f":"IFERROR(_xlfn._xlws.FILTER(BG519:BR1298,(BR519:BR1298=2)),\"\")","v":""}]
[null,511,{"$f":"IF(F520<>0,MAX($C$10:$C519)+1,\"\")","v":""},null,null,null,null,null,null,null,null,null,null,null,null,null,null,null,null,null,null,null,null,null,null,null,null,0,0,0,null,0,0,"","","-","","",0,null,null,null,null,null,0,0,0,0,0,0,0,0,null,null,null,null,null,null,null,null,null,null,null,null,null,null,null,null,null,null,null,null,null,null,null,null,null,null,null,{"$f":"IFERROR(_xlfn._xlws.FILTER(BG520:BR1299,(BR520:BR1299=2)),\"\")","v":""}]
[null,512,{"$f":"IF(F521<>0,MAX($C$10:$C520)+1,\"\")","v":""},null,null,null,null,null,null,null,null,null,null,null,null,null,null,null,null,null,null,null,null,null,null,null,null,0,0,0,null,0,0,"","","-","","",0,null,null,null,null,null,0,0,0,0,0,0,0,0,null,null,null,null,null,null,null,null,null,null,null,null,null,null,null,null,null,null,null,null,null,null,null,null,null,null,null,{"$f":"IFERROR(_xlfn._xlws.FILTER(BG521:BR1300,(BR521:BR1300=2)),\"\")","v":""}]
[null,513,{"$f":"IF(F522<>0,MAX($C$10:$C521)+1,\"\")","v":""},null,null,null,null,null,null,null,null,null,null,null,null,null,null,null,null,null,null,null,null,null,null,null,null,0,0,0,null,0,0,"","",{"$f":"IF(AG522=\"\",\"\",\"-\")","v":"-"},"","",0,null,null,null,null,null,0,0,0,0,0,0,0,0,null,null,null,null,null,null,null,null,null,null,null,null,null,null,null,null,null,null,null,null,null,null,null,null,null,null,null,{"$f":"IFERROR(_xlfn._xlws.FILTER(BG522:BR1301,(BR522:BR1301=2)),\"\")","v":""}]
[null,514,{"$f":"IF(F523<>0,MAX($C$10:$C522)+1,\"\")","v":""},null,null,null,null,null,null,null,null,null,null,null,null,null,null,null,null,null,null,null,null,null,null,null,null,0,0,0,null,{"$f":"_xlfn.XLOOKUP(AH523,$J$10:$J$49,$M$10:$M$49,\"\")+_xlfn.XLOOKUP(AL523,$J$10:$J$49,$M$10:$M$49,\"\")","v":0},{"$f":"AE523","v":0},"",{"$f":"IFERROR(IF(AH523=\"\",\"\",IF(OR($L$8=\"Nee\",AF523=0),_xlfn.XLOOKUP(AH523,$D$10:$D$49,$E$10:$E$49),ROUND(_xlfn.XLOOKUP(AH523,$D$10:$D$49,$E$10:$E$49)*AF523,0))),0)","v":""},"-",{"$f":"IFERROR(IF(AH523=\"\",\"\",IF(OR($L$8=\"Nee\",AF523=0),_xlfn.XLOOKUP(AL523,$D$10:$D$49,$E$10:$E$49)*1,ROUND(_xlfn.XLOOKUP(AL523,$D$10:$D$49,$E$10:$E$49)*AF523,0))),0)","v":""},"",0,null,null,null,null,null,0,0,0,0,0,0,0,0,null,null,null,null,null,null,null,null,null,null,null,null,null,null,null,null,null,null,null,null,null,null,null,null,null,null,null,{"$f":"IFERROR(_xlfn._xlws.FILTER(BG523:BR1302,(BR523:BR1302=2)),\"\")","v":""}]
[null,515,{"$f":"IF(F524<>0,MAX($C$10:$C523)+1,\"\")","v":""},null,null,null,null,null,null,null,null,null,null,null,null,null,null,null,null,null,null,null,null,null,null,null,null,0,0,0,null,0,0,"","","-","","",0,null,null,null,null,null,0,0,0,0,0,0,0,{"$f":"AW524","v":0},null,null,null,null,null,null,null,null,null,null,null,null,null,null,null,null,null,null,null,null,null,null,null,null,null,null,null,{"$f":"IFERROR(_xlfn._xlws.FILTER(BG524:BR1303,(BR524:BR1303=2)),\"\")","v":""}]
[null,516,{"$f":"IF(F525<>0,MAX($C$10:$C524)+1,\"\")","v":""},null,null,null,null,null,null,null,null,null,null,null,null,null,null,null,null,null,null,null,null,null,null,null,null,0,{"$f":"IFERROR(_xlfn.XLOOKUP(AG525,$AB$10:$AB$789,$AD$10:$AD$789),\"\")","v":0},0,null,0,0,"","","-","","",0,null,null,null,null,null,0,0,0,0,0,0,0,0,null,null,null,null,null,null,null,null,null,null,null,null,null,null,null,null,null,null,null,null,null,null,null,null,null,null,null,{"$f":"IFERROR(_xlfn._xlws.FILTER(BG525:BR1304,(BR525:BR1304=2)),\"\")","v":""}]
[null,517,{"$f":"IF(F526<>0,MAX($C$10:$C525)+1,\"\")","v":""},null,null,null,null,null,null,null,null,null,null,null,null,null,null,null,null,null,null,null,null,null,null,null,null,0,0,0,null,0,0,"","","-","","",0,null,null,null,null,null,0,0,0,0,0,0,0,0,null,null,null,null,null,null,null,null,null,null,null,null,null,null,null,null,null,null,null,null,null,null,null,null,null,null,null,{"$f":"IFERROR(_xlfn._xlws.FILTER(BG526:BR1305,(BR526:BR1305=2)),\"\")","v":""}]
[null,518,{"$f":"IF(F527<>0,MAX($C$10:$C526)+1,\"\")","v":""},null,null,null,null,null,null,null,null,null,null,null,null,null,null,null,null,null,null,null,null,null,null,null,null,0,0,0,null,0,0,"","","-","","",0,null,null,null,null,null,0,0,0,0,0,0,0,0,null,null,null,null,null,null,null,null,null,null,null,null,null,null,null,null,null,null,null,null,null,null,null,null,null,null,null,{"$f":"IFERROR(_xlfn._xlws.FILTER(BG527:BR1306,(BR527:BR1306=2)),\"\")","v":""}]
[null,519,{"$f":"IF(F528<>0,MAX($C$10:$C527)+1,\"\")","v":""},null,null,null,null,null,null,null,null,null,null,null,null,null,null,null,null,null,null,null,null,null,null,null,null,0,0,0,null,0,0,"","","-","","",0,null,null,null,null,null,0,0,0,0,0,0,0,0,null,null,null,null,null,null,null,null,null,null,null,null,null,null,null,null,null,null,null,null,null,null,null,null,null,null,null,{"$f":"IFERROR(_xlfn._xlws.FILTER(BG528:BR1307,(BR528:BR1307=2)),\"\")","v":""}]
[null,520,{"$f":"IF(F529<>0,MAX($C$10:$C528)+1,\"\")","v":""},null,null,null,null,null,null,null,null,null,null,null,null,null,null,null,null,null,null,null,null,null,null,null,null,0,0,0,null,0,0,"","","-","","",0,null,null,null,null,null,0,0,0,0,0,0,0,0,null,null,null,null,null,null,null,null,null,null,null,null,null,null,null,null,null,null,null,null,null,null,null,null,null,null,null,{"$f":"IFERROR(_xlfn._xlws.FILTER(BG529:BR1308,(BR529:BR1308=2)),\"\")","v":""}]
[null,521,{"$f":"IF(F530<>0,MAX($C$10:$C529)+1,\"\")","v":""},null,null,null,null,null,null,null,null,null,null,null,null,null,null,null,null,null,null,null,null,null,null,null,null,0,0,0,null,0,0,"","","-","","",0,null,null,null,null,null,0,0,0,0,0,0,0,0,null,null,null,null,null,null,null,null,null,null,null,null,null,null,null,null,null,null,null,null,null,null,null,null,null,null,null,{"$f":"IFERROR(_xlfn._xlws.FILTER(BG530:BR1309,(BR530:BR1309=2)),\"\")","v":""}]
[null,522,{"$f":"IF(F531<>0,MAX($C$10:$C530)+1,\"\")","v":""},null,null,null,null,null,null,null,null,null,null,null,null,null,null,null,null,null,null,null,null,null,null,null,null,0,0,0,null,0,0,"","","-","","",0,null,null,null,null,null,0,0,0,0,0,0,0,0,null,null,null,null,null,null,null,null,null,null,null,null,null,null,null,null,null,null,null,null,null,null,null,null,null,null,null,{"$f":"IFERROR(_xlfn._xlws.FILTER(BG531:BR1310,(BR531:BR1310=2)),\"\")","v":""}]
[null,523,{"$f":"IF(F532<>0,MAX($C$10:$C531)+1,\"\")","v":""},null,null,null,null,null,null,null,null,null,null,null,null,null,null,null,null,null,null,null,null,null,null,null,null,0,0,0,null,0,0,"","","-","","",0,null,null,null,null,null,0,0,0,0,0,0,0,0,null,null,null,null,null,null,null,null,null,null,null,null,null,null,null,null,null,null,null,null,null,null,null,null,null,null,null,{"$f":"IFERROR(_xlfn._xlws.FILTER(BG532:BR1311,(BR532:BR1311=2)),\"\")","v":""}]
[null,524,{"$f":"IF(F533<>0,MAX($C$10:$C532)+1,\"\")","v":""},null,null,null,null,null,null,null,null,null,null,null,null,null,null,null,null,null,null,null,null,null,null,null,null,0,0,0,null,0,0,"","","-","","",0,null,null,null,null,null,0,0,0,0,0,0,0,0,null,null,null,null,null,null,null,null,null,null,null,null,null,null,null,null,null,null,null,null,null,null,null,null,null,null,null,{"$f":"IFERROR(_xlfn._xlws.FILTER(BG533:BR1312,(BR533:BR1312=2)),\"\")","v":""}]
[null,525,{"$f":"IF(F534<>0,MAX($C$10:$C533)+1,\"\")","v":""},null,null,null,null,null,null,null,null,null,null,null,null,null,null,null,null,null,null,null,null,null,null,null,null,0,0,0,null,0,0,"","","-","","",0,null,null,null,null,null,0,0,0,0,0,0,0,0,null,null,null,null,null,null,null,null,null,null,null,null,null,null,null,null,null,null,null,null,null,null,null,null,null,null,null,{"$f":"IFERROR(_xlfn._xlws.FILTER(BG534:BR1313,(BR534:BR1313=2)),\"\")","v":""}]
[null,526,{"$f":"IF(F535<>0,MAX($C$10:$C534)+1,\"\")","v":""},null,null,null,null,null,null,null,null,null,null,null,null,null,null,null,null,null,null,null,null,null,null,null,null,0,0,0,null,0,0,"","","-","","",0,null,null,null,null,null,0,0,0,0,0,0,0,0,null,null,null,null,null,null,null,null,null,null,null,null,null,null,null,null,null,null,null,null,null,null,null,null,null,null,null,{"$f":"IFERROR(_xlfn._xlws.FILTER(BG535:BR1314,(BR535:BR1314=2)),\"\")","v":""}]
[null,527,{"$f":"IF(F536<>0,MAX($C$10:$C535)+1,\"\")","v":""},null,null,null,null,null,null,null,null,null,null,null,null,null,null,null,null,null,null,null,null,null,null,null,null,0,0,0,null,0,0,"","","-","","",0,null,null,null,null,null,0,0,0,0,0,0,0,0,null,null,null,null,null,null,null,null,null,null,null,null,null,null,null,null,null,null,null,null,null,null,null,null,null,null,null,{"$f":"IFERROR(_xlfn._xlws.FILTER(BG536:BR1315,(BR536:BR1315=2)),\"\")","v":""}]
[null,528,{"$f":"IF(F537<>0,MAX($C$10:$C536)+1,\"\")","v":""},null,null,null,null,null,null,null,null,null,null,null,null,null,null,null,null,null,null,null,null,null,null,null,null,0,0,0,null,0,0,"","","-","","",0,null,null,null,null,null,0,0,0,0,0,0,0,0,null,null,null,null,null,null,null,null,null,null,null,null,null,null,null,null,null,null,null,null,null,null,null,null,null,null,null,{"$f":"IFERROR(_xlfn._xlws.FILTER(BG537:BR1316,(BR537:BR1316=2)),\"\")","v":""}]
[null,529,{"$f":"IF(F538<>0,MAX($C$10:$C537)+1,\"\")","v":""},null,null,null,null,null,null,null,null,null,null,null,null,null,null,null,null,null,null,null,null,null,null,null,null,0,0,0,null,0,0,"","","-","","",0,null,null,null,null,null,0,0,0,0,0,0,0,0,null,null,null,null,null,null,null,null,null,null,null,null,null,null,null,null,null,null,null,null,null,null,null,null,null,null,null,{"$f":"IFERROR(_xlfn._xlws.FILTER(BG538:BR1317,(BR538:BR1317=2)),\"\")","v":""}]
[null,530,{"$f":"IF(F539<>0,MAX($C$10:$C538)+1,\"\")","v":""},null,null,null,null,null,null,null,null,null,null,null,null,null,null,null,null,null,null,null,null,null,null,null,null,0,0,0,null,0,0,"","","-","","",0,null,null,null,null,null,0,0,0,0,0,0,0,0,null,null,null,null,null,null,null,null,null,null,null,null,null,null,null,null,null,null,null,null,null,null,null,null,null,null,null,{"$f":"IFERROR(_xlfn._xlws.FILTER(BG539:BR1318,(BR539:BR1318=2)),\"\")","v":""}]
[null,531,{"$f":"IF(F540<>0,MAX($C$10:$C539)+1,\"\")","v":""},null,null,null,null,null,null,null,null,null,null,null,null,null,null,null,null,null,null,null,null,null,null,null,null,0,0,0,null,0,0,"","","-","","",0,null,null,null,null,null,0,0,0,0,0,0,0,0,null,null,null,null,null,null,null,null,null,null,null,null,null,null,null,null,null,null,null,null,null,null,null,null,null,null,null,{"$f":"IFERROR(_xlfn._xlws.FILTER(BG540:BR1319,(BR540:BR1319=2)),\"\")","v":""}]
[null,532,{"$f":"IF(F541<>0,MAX($C$10:$C540)+1,\"\")","v":""},null,null,null,null,null,null,null,null,null,null,null,null,null,null,null,null,null,null,null,null,null,null,null,null,0,0,0,null,0,0,"","","-","","",0,null,null,null,null,null,0,0,0,0,0,0,0,0,null,null,null,null,null,null,null,null,null,null,null,null,null,null,null,null,null,null,null,null,null,null,null,null,null,null,null,{"$f":"IFERROR(_xlfn._xlws.FILTER(BG541:BR1320,(BR541:BR1320=2)),\"\")","v":""}]
[null,533,{"$f":"IF(F542<>0,MAX($C$10:$C541)+1,\"\")","v":""},null,null,null,null,null,null,null,null,null,null,null,null,null,null,null,null,null,null,null,null,null,null,null,null,0,0,0,null,0,0,"","","-","","",0,null,null,null,null,null,0,0,0,0,0,0,0,0,null,null,null,null,null,null,null,null,null,null,null,null,null,null,null,null,null,null,null,null,null,null,null,null,null,null,null,{"$f":"IFERROR(_xlfn._xlws.FILTER(BG542:BR1321,(BR542:BR1321=2)),\"\")","v":""}]
[null,534,{"$f":"IF(F543<>0,MAX($C$10:$C542)+1,\"\")","v":""},null,null,null,null,null,null,null,null,null,null,null,null,null,null,null,null,null,null,null,null,null,null,null,null,0,0,0,null,0,0,"","","-","","",0,null,null,null,null,null,0,0,0,0,0,0,0,0,null,null,null,null,null,null,null,null,null,null,null,null,null,null,null,null,null,null,null,null,null,null,null,null,null,null,null,{"$f":"IFERROR(_xlfn._xlws.FILTER(BG543:BR1322,(BR543:BR1322=2)),\"\")","v":""}]
[null,535,{"$f":"IF(F544<>0,MAX($C$10:$C543)+1,\"\")","v":""},null,null,null,null,null,null,null,null,null,null,null,null,null,null,null,null,null,null,null,null,null,null,null,null,0,0,0,null,0,0,"","","-","","",0,null,null,null,null,null,0,0,0,0,0,0,0,0,null,null,null,null,null,null,null,null,null,null,null,null,null,null,null,null,null,null,null,null,null,null,null,null,null,null,null,{"$f":"IFERROR(_xlfn._xlws.FILTER(BG544:BR1323,(BR544:BR1323=2)),\"\")","v":""}]
[null,536,{"$f":"IF(F545<>0,MAX($C$10:$C544)+1,\"\")","v":""},null,null,null,null,null,null,null,null,null,null,null,null,null,null,null,null,null,null,null,null,null,null,null,null,0,0,0,null,0,0,"","","-","","",0,null,null,null,null,null,0,0,0,0,0,0,0,0,null,null,null,null,null,null,null,null,null,null,null,null,null,null,null,null,null,null,null,null,null,null,null,null,null,null,null,{"$f":"IFERROR(_xlfn._xlws.FILTER(BG545:BR1324,(BR545:BR1324=2)),\"\")","v":""}]
[null,537,{"$f":"IF(F546<>0,MAX($C$10:$C545)+1,\"\")","v":""},null,null,null,null,null,null,null,null,null,null,null,null,null,null,null,null,null,null,null,null,null,null,null,null,0,0,0,null,0,0,"","","-","","",0,null,null,null,null,null,0,0,0,0,0,0,0,0,null,null,null,null,null,null,null,null,null,null,null,null,null,null,null,null,null,null,null,null,null,null,null,null,null,null,null,{"$f":"IFERROR(_xlfn._xlws.FILTER(BG546:BR1325,(BR546:BR1325=2)),\"\")","v":""}]
[null,538,{"$f":"IF(F547<>0,MAX($C$10:$C546)+1,\"\")","v":""},null,null,null,null,null,null,null,null,null,null,null,null,null,null,null,null,null,null,null,null,null,null,null,null,0,0,0,null,0,0,"","","-","","",0,null,null,null,null,null,0,0,0,0,0,0,0,0,null,null,null,null,null,null,null,null,null,null,null,null,null,null,null,null,null,null,null,null,null,null,null,null,null,null,null,{"$f":"IFERROR(_xlfn._xlws.FILTER(BG547:BR1326,(BR547:BR1326=2)),\"\")","v":""}]
[null,539,{"$f":"IF(F548<>0,MAX($C$10:$C547)+1,\"\")","v":""},null,null,null,null,null,null,null,null,null,null,null,null,null,null,null,null,null,null,null,null,null,null,null,null,0,0,0,null,0,0,"","","-","","",0,null,null,null,null,null,0,0,0,0,0,0,0,0,null,null,null,null,null,null,null,null,null,null,null,null,null,null,null,null,null,null,null,null,null,null,null,null,null,null,null,{"$f":"IFERROR(_xlfn._xlws.FILTER(BG548:BR1327,(BR548:BR1327=2)),\"\")","v":""}]
[null,540,{"$f":"IF(F549<>0,MAX($C$10:$C548)+1,\"\")","v":""},null,null,null,null,null,null,null,null,null,null,null,null,null,null,null,null,null,null,null,null,null,null,null,null,0,0,0,null,0,0,"","","-","","",0,null,null,null,null,null,0,0,0,0,0,0,0,0,null,null,null,null,null,null,null,null,null,null,null,null,null,null,null,null,null,null,null,null,null,null,null,null,null,null,null,{"$f":"IFERROR(_xlfn._xlws.FILTER(BG549:BR1328,(BR549:BR1328=2)),\"\")","v":""}]
[null,541,{"$f":"IF(F550<>0,MAX($C$10:$C549)+1,\"\")","v":""},null,null,null,null,null,null,null,null,null,null,null,null,null,null,null,null,null,null,null,null,null,null,null,null,0,0,0,null,0,0,"","","-","","",0,null,null,null,null,null,0,0,0,0,0,0,0,0,null,null,null,null,null,null,null,null,null,null,null,null,null,null,null,null,null,null,null,null,null,null,null,null,null,null,null,{"$f":"IFERROR(_xlfn._xlws.FILTER(BG550:BR1329,(BR550:BR1329=2)),\"\")","v":""}]
[null,542,{"$f":"IF(F551<>0,MAX($C$10:$C550)+1,\"\")","v":""},null,null,null,null,null,null,null,null,null,null,null,null,null,null,null,null,null,null,null,null,null,null,null,null,0,0,0,null,0,0,"","","-","","",0,null,null,null,null,null,0,0,0,0,0,0,0,0,null,null,null,null,null,null,null,null,null,null,null,null,null,null,null,null,null,null,null,null,null,null,null,null,null,null,null,{"$f":"IFERROR(_xlfn._xlws.FILTER(BG551:BR1330,(BR551:BR1330=2)),\"\")","v":""}]
[null,543,{"$f":"IF(F552<>0,MAX($C$10:$C551)+1,\"\")","v":""},null,null,null,null,null,null,null,null,null,null,null,null,null,null,null,null,null,null,null,null,null,null,null,null,0,0,0,null,0,0,"","","-","","",0,null,null,null,null,null,0,0,0,0,0,0,0,0,null,null,null,null,null,null,null,null,null,null,null,null,null,null,null,null,null,null,null,null,null,null,null,null,null,null,null,{"$f":"IFERROR(_xlfn._xlws.FILTER(BG552:BR1331,(BR552:BR1331=2)),\"\")","v":""}]
[null,544,{"$f":"IF(F553<>0,MAX($C$10:$C552)+1,\"\")","v":""},null,null,null,null,null,null,null,null,null,null,null,null,null,null,null,null,null,null,null,null,null,null,null,null,0,0,0,null,0,0,"","","-","","",0,null,null,null,null,null,0,0,0,0,0,0,0,0,null,null,null,null,null,null,null,null,null,null,null,null,null,null,null,null,null,null,null,null,null,null,null,null,null,null,null,{"$f":"IFERROR(_xlfn._xlws.FILTER(BG553:BR1332,(BR553:BR1332=2)),\"\")","v":""}]
[null,545,{"$f":"IF(F554<>0,MAX($C$10:$C553)+1,\"\")","v":""},null,null,null,null,null,null,null,null,null,null,null,null,null,null,null,null,null,null,null,null,null,null,null,null,0,0,0,null,0,0,"","","-","","",0,null,null,null,null,null,0,0,0,0,0,0,0,0,null,null,null,null,null,null,null,null,null,null,null,null,null,null,null,null,null,null,null,null,null,null,null,null,null,null,null,{"$f":"IFERROR(_xlfn._xlws.FILTER(BG554:BR1333,(BR554:BR1333=2)),\"\")","v":""}]
[null,546,{"$f":"IF(F555<>0,MAX($C$10:$C554)+1,\"\")","v":""},null,null,null,null,null,null,null,null,null,null,null,null,null,null,null,null,null,null,null,null,null,null,null,null,0,0,0,null,0,0,"","","-","","",0,null,null,null,null,null,0,0,0,0,0,0,0,0,null,null,null,null,null,null,null,null,null,null,null,null,null,null,null,null,null,null,null,null,null,null,null,null,null,null,null,{"$f":"IFERROR(_xlfn._xlws.FILTER(BG555:BR1334,(BR555:BR1334=2)),\"\")","v":""}]
[null,547,{"$f":"IF(F556<>0,MAX($C$10:$C555)+1,\"\")","v":""},null,null,null,null,null,null,null,null,null,null,null,null,null,null,null,null,null,null,null,null,null,null,null,null,0,0,0,null,0,0,"","","-","","",0,null,null,null,null,null,0,0,0,0,0,0,0,0,null,null,null,null,null,null,null,null,null,null,null,null,null,null,null,null,null,null,null,null,null,null,null,null,null,null,null,{"$f":"IFERROR(_xlfn._xlws.FILTER(BG556:BR1335,(BR556:BR1335=2)),\"\")","v":""}]
[null,548,{"$f":"IF(F557<>0,MAX($C$10:$C556)+1,\"\")","v":""},null,null,null,null,null,null,null,null,null,null,null,null,null,null,null,null,null,null,null,null,null,null,null,null,0,0,0,null,0,0,"","","-","","",0,null,null,null,null,null,0,0,0,0,0,0,0,0,null,null,null,null,null,null,null,null,null,null,null,null,null,null,null,null,null,null,null,null,null,null,null,null,null,null,null,{"$f":"IFERROR(_xlfn._xlws.FILTER(BG557:BR1336,(BR557:BR1336=2)),\"\")","v":""}]
[null,549,{"$f":"IF(F558<>0,MAX($C$10:$C557)+1,\"\")","v":""},null,null,null,null,null,null,null,null,null,null,null,null,null,null,null,null,null,null,null,null,null,null,null,null,0,0,0,null,0,0,"","","-","","",0,null,null,null,null,null,0,0,0,0,0,0,0,0,null,null,null,null,null,null,null,null,null,null,null,null,null,null,null,null,null,null,null,null,null,null,null,null,null,null,null,{"$f":"IFERROR(_xlfn._xlws.FILTER(BG558:BR1337,(BR558:BR1337=2)),\"\")","v":""}]
[null,550,{"$f":"IF(F559<>0,MAX($C$10:$C558)+1,\"\")","v":""},null,null,null,null,null,null,null,null,null,null,null,null,null,null,null,null,null,null,null,null,null,null,null,null,0,0,0,null,0,0,"","","-","","",0,null,null,null,null,null,0,0,0,0,0,0,0,0,null,null,null,null,null,null,null,null,null,null,null,null,null,null,null,null,null,null,null,null,null,null,null,null,null,null,null,{"$f":"IFERROR(_xlfn._xlws.FILTER(BG559:BR1338,(BR559:BR1338=2)),\"\")","v":""}]
[null,551,{"$f":"IF(F560<>0,MAX($C$10:$C559)+1,\"\")","v":""},null,null,null,null,null,null,null,null,null,null,null,null,null,null,null,null,null,null,null,null,null,null,null,null,0,0,0,null,0,0,"","","-","","",0,null,null,null,null,null,0,0,0,0,0,0,0,0,null,null,null,null,null,null,null,null,null,null,null,null,null,null,null,null,null,null,null,null,null,null,null,null,null,null,null,{"$f":"IFERROR(_xlfn._xlws.FILTER(BG560:BR1339,(BR560:BR1339=2)),\"\")","v":""}]
[null,552,{"$f":"IF(F561<>0,MAX($C$10:$C560)+1,\"\")","v":""},null,null,null,null,null,null,null,null,null,null,null,null,null,null,null,null,null,null,null,null,null,null,null,null,0,0,0,null,0,0,"","","-","","",0,null,null,null,null,null,0,0,0,0,0,0,0,0,null,null,null,null,null,null,null,null,null,null,null,null,null,null,null,null,null,null,null,null,null,null,null,null,null,null,null,{"$f":"IFERROR(_xlfn._xlws.FILTER(BG561:BR1340,(BR561:BR1340=2)),\"\")","v":""}]
[null,553,{"$f":"IF(F562<>0,MAX($C$10:$C561)+1,\"\")","v":""},null,null,null,null,null,null,null,null,null,null,null,null,null,null,null,null,null,null,null,null,null,null,null,null,0,0,0,null,0,0,"","","-","","",0,null,null,null,null,null,0,0,0,0,0,0,0,0,null,null,null,null,null,null,null,null,null,null,null,null,null,null,null,null,null,null,null,null,null,null,null,null,null,null,null,{"$f":"IFERROR(_xlfn._xlws.FILTER(BG562:BR1341,(BR562:BR1341=2)),\"\")","v":""}]
[null,554,{"$f":"IF(F563<>0,MAX($C$10:$C562)+1,\"\")","v":""},null,null,null,null,null,null,null,null,null,null,null,null,null,null,null,null,null,null,null,null,null,null,null,null,0,0,0,null,0,0,"","","-","","",0,null,null,null,null,null,0,0,0,0,0,0,0,0,null,null,null,null,null,null,null,null,null,null,null,null,null,null,null,null,null,null,null,null,null,null,null,null,null,null,null,{"$f":"IFERROR(_xlfn._xlws.FILTER(BG563:BR1342,(BR563:BR1342=2)),\"\")","v":""}]
[null,555,{"$f":"IF(F564<>0,MAX($C$10:$C563)+1,\"\")","v":""},null,null,null,null,null,null,null,null,null,null,null,null,null,null,null,null,null,null,null,null,null,null,null,null,0,0,0,null,0,0,"","","-","","",0,null,null,null,null,null,0,0,0,0,0,0,0,0,null,null,null,null,null,null,null,null,null,null,null,null,null,null,null,null,null,null,null,null,null,null,null,null,null,null,null,{"$f":"IFERROR(_xlfn._xlws.FILTER(BG564:BR1343,(BR564:BR1343=2)),\"\")","v":""}]
[null,556,{"$f":"IF(F565<>0,MAX($C$10:$C564)+1,\"\")","v":""},null,null,null,null,null,null,null,null,null,null,null,null,null,null,null,null,null,null,null,null,null,null,null,null,0,0,0,null,0,0,"","","-","","",0,null,null,null,null,null,0,0,0,0,0,0,0,0,null,null,null,null,null,null,null,null,null,null,null,null,null,null,null,null,null,null,null,null,null,null,null,null,null,null,null,{"$f":"IFERROR(_xlfn._xlws.FILTER(BG565:BR1344,(BR565:BR1344=2)),\"\")","v":""}]
[null,557,{"$f":"IF(F566<>0,MAX($C$10:$C565)+1,\"\")","v":""},null,null,null,null,null,null,null,null,null,null,null,null,null,null,null,null,null,null,null,null,null,null,null,null,0,0,0,null,0,0,"","","-","","",0,null,null,null,null,null,0,0,0,0,0,0,0,0,null,null,null,null,null,null,null,null,null,null,null,null,null,null,null,null,null,null,null,null,null,null,null,null,null,null,null,{"$f":"IFERROR(_xlfn._xlws.FILTER(BG566:BR1345,(BR566:BR1345=2)),\"\")","v":""}]
[null,558,{"$f":"IF(F567<>0,MAX($C$10:$C566)+1,\"\")","v":""},null,null,null,null,null,null,null,null,null,null,null,null,null,null,null,null,null,null,null,null,null,null,null,null,0,0,0,null,0,0,"","","-","","",0,null,null,null,null,null,0,0,0,0,0,0,0,0,null,null,null,null,null,null,null,null,null,null,null,null,null,null,null,null,null,null,null,null,null,null,null,null,null,null,null,{"$f":"IFERROR(_xlfn._xlws.FILTER(BG567:BR1346,(BR567:BR1346=2)),\"\")","v":""}]
[null,559,{"$f":"IF(F568<>0,MAX($C$10:$C567)+1,\"\")","v":""},null,null,null,null,null,null,null,null,null,null,null,null,null,null,null,null,null,null,null,null,null,null,null,null,0,0,0,null,0,0,"","","-","","",0,null,null,null,null,null,0,0,0,0,0,0,0,0,null,null,null,null,null,null,null,null,null,null,null,null,null,null,null,null,null,null,null,null,null,null,null,null,null,null,null,{"$f":"IFERROR(_xlfn._xlws.FILTER(BG568:BR1347,(BR568:BR1347=2)),\"\")","v":""}]
[null,560,{"$f":"IF(F569<>0,MAX($C$10:$C568)+1,\"\")","v":""},null,null,null,null,null,null,null,null,null,null,null,null,null,null,null,null,null,null,null,null,null,null,null,null,0,0,0,null,0,0,"","","-","","",0,null,null,null,null,null,0,0,0,0,0,0,0,0,null,null,null,null,null,null,null,null,null,null,null,null,null,null,null,null,null,null,null,null,null,null,null,null,null,null,null,{"$f":"IFERROR(_xlfn._xlws.FILTER(BG569:BR1348,(BR569:BR1348=2)),\"\")","v":""}]
[null,561,{"$f":"IF(F570<>0,MAX($C$10:$C569)+1,\"\")","v":""},null,null,null,null,null,null,null,null,null,null,null,null,null,null,null,null,null,null,null,null,null,null,null,null,0,0,0,null,0,0,"","","-","","",0,null,null,null,null,null,0,0,0,0,0,0,0,0,null,null,null,null,null,null,null,null,null,null,null,null,null,null,null,null,null,null,null,null,null,null,null,null,null,null,null,{"$f":"IFERROR(_xlfn._xlws.FILTER(BG570:BR1349,(BR570:BR1349=2)),\"\")","v":""}]
[null,562,{"$f":"IF(F571<>0,MAX($C$10:$C570)+1,\"\")","v":""},null,null,null,null,null,null,null,null,null,null,null,null,null,null,null,null,null,null,null,null,null,null,null,null,0,0,0,null,0,0,"","","-","","",0,null,null,null,null,null,0,0,0,0,0,0,0,0,null,null,null,null,null,null,null,null,null,null,null,null,null,null,null,null,null,null,null,null,null,null,null,null,null,null,null,{"$f":"IFERROR(_xlfn._xlws.FILTER(BG571:BR1350,(BR571:BR1350=2)),\"\")","v":""}]
[null,563,{"$f":"IF(F572<>0,MAX($C$10:$C571)+1,\"\")","v":""},null,null,null,null,null,null,null,null,null,null,null,null,null,null,null,null,null,null,null,null,null,null,null,null,0,0,0,null,0,0,"","","-","","",0,null,null,null,null,null,0,0,0,0,0,0,0,0,null,null,null,null,null,null,null,null,null,null,null,null,null,null,null,null,null,null,null,null,null,null,null,null,null,null,null,{"$f":"IFERROR(_xlfn._xlws.FILTER(BG572:BR1351,(BR572:BR1351=2)),\"\")","v":""}]
[null,564,{"$f":"IF(F573<>0,MAX($C$10:$C572)+1,\"\")","v":""},null,null,null,null,null,null,null,null,null,null,null,null,null,null,null,null,null,null,null,null,null,null,null,null,0,0,0,null,0,0,"","","-","","",0,null,null,null,null,null,0,0,0,0,0,0,0,0,null,null,null,null,null,null,null,null,null,null,null,null,null,null,null,null,null,null,null,null,null,null,null,null,null,null,null,{"$f":"IFERROR(_xlfn._xlws.FILTER(BG573:BR1352,(BR573:BR1352=2)),\"\")","v":""}]
[null,565,{"$f":"IF(F574<>0,MAX($C$10:$C573)+1,\"\")","v":""},null,null,null,null,null,null,null,null,null,null,null,null,null,null,null,null,null,null,null,null,null,null,null,null,0,0,0,null,0,0,"","","-","","",0,null,null,null,null,null,0,0,0,0,0,0,0,0,null,null,null,null,null,null,null,null,null,null,null,null,null,null,null,null,null,null,null,null,null,null,null,null,null,null,null,{"$f":"IFERROR(_xlfn._xlws.FILTER(BG574:BR1353,(BR574:BR1353=2)),\"\")","v":""}]
[null,566,{"$f":"IF(F575<>0,MAX($C$10:$C574)+1,\"\")","v":""},null,null,null,null,null,null,null,null,null,null,null,null,null,null,null,null,null,null,null,null,null,null,null,null,0,0,0,null,0,0,"","","-","","",0,null,null,null,null,null,0,0,0,0,0,0,0,0,null,null,null,null,null,null,null,null,null,null,null,null,null,null,null,null,null,null,null,null,null,null,null,null,null,null,null,{"$f":"IFERROR(_xlfn._xlws.FILTER(BG575:BR1354,(BR575:BR1354=2)),\"\")","v":""}]
[null,567,{"$f":"IF(F576<>0,MAX($C$10:$C575)+1,\"\")","v":""},null,null,null,null,null,null,null,null,null,null,null,null,null,null,null,null,null,null,null,null,null,null,null,null,0,0,0,null,0,0,"","","-","","",0,null,null,null,null,null,0,0,0,0,0,0,0,0,null,null,null,null,null,null,null,null,null,null,null,null,null,null,null,null,null,null,null,null,null,null,null,null,null,null,null,{"$f":"IFERROR(_xlfn._xlws.FILTER(BG576:BR1355,(BR576:BR1355=2)),\"\")","v":""}]
[null,568,{"$f":"IF(F577<>0,MAX($C$10:$C576)+1,\"\")","v":""},null,null,null,null,null,null,null,null,null,null,null,null,null,null,null,null,null,null,null,null,null,null,null,null,0,0,0,null,0,0,"","","-","","",0,null,null,null,null,null,0,0,0,0,0,0,0,0,null,null,null,null,null,null,null,null,null,null,null,null,null,null,null,null,null,null,null,null,null,null,null,null,null,null,null,{"$f":"IFERROR(_xlfn._xlws.FILTER(BG577:BR1356,(BR577:BR1356=2)),\"\")","v":""}]
[null,569,{"$f":"IF(F578<>0,MAX($C$10:$C577)+1,\"\")","v":""},null,null,null,null,null,null,null,null,null,null,null,null,null,null,null,null,null,null,null,null,null,null,null,null,0,0,0,null,0,0,"","","-","","",0,null,null,null,null,null,0,0,0,0,0,0,0,0,null,null,null,null,null,null,null,null,null,null,null,null,null,null,null,null,null,null,null,null,null,null,null,null,null,null,null,{"$f":"IFERROR(_xlfn._xlws.FILTER(BG578:BR1357,(BR578:BR1357=2)),\"\")","v":""}]
[null,570,{"$f":"IF(F579<>0,MAX($C$10:$C578)+1,\"\")","v":""},null,null,null,null,null,null,null,null,null,null,null,null,null,null,null,null,null,null,null,null,null,null,null,null,0,0,0,null,0,0,"","","-","","",0,null,null,null,null,null,0,0,0,0,0,0,0,0,null,null,null,null,null,null,null,null,null,null,null,null,null,null,null,null,null,null,null,null,null,null,null,null,null,null,null,{"$f":"IFERROR(_xlfn._xlws.FILTER(BG579:BR1358,(BR579:BR1358=2)),\"\")","v":""}]
[null,571,{"$f":"IF(F580<>0,MAX($C$10:$C579)+1,\"\")","v":""},null,null,null,null,null,null,null,null,null,null,null,null,null,null,null,null,null,null,null,null,null,null,null,null,0,0,0,null,0,0,"","","-","","",0,null,null,null,null,null,0,0,0,0,0,0,0,0,null,null,null,null,null,null,null,null,null,null,null,null,null,null,null,null,null,null,null,null,null,null,null,null,null,null,null,{"$f":"IFERROR(_xlfn._xlws.FILTER(BG580:BR1359,(BR580:BR1359=2)),\"\")","v":""}]
[null,572,{"$f":"IF(F581<>0,MAX($C$10:$C580)+1,\"\")","v":""},null,null,null,null,null,null,null,null,null,null,null,null,null,null,null,null,null,null,null,null,null,null,null,null,0,0,0,null,0,0,"","","-","","",0,null,null,null,null,null,0,0,0,0,0,0,0,0,null,null,null,null,null,null,null,null,null,null,null,null,null,null,null,null,null,null,null,null,null,null,null,null,null,null,null,{"$f":"IFERROR(_xlfn._xlws.FILTER(BG581:BR1360,(BR581:BR1360=2)),\"\")","v":""}]
[null,573,{"$f":"IF(F582<>0,MAX($C$10:$C581)+1,\"\")","v":""},null,null,null,null,null,null,null,null,null,null,null,null,null,null,null,null,null,null,null,null,null,null,null,null,0,0,0,null,0,0,"","","-","","",0,null,null,null,null,null,0,0,0,0,0,0,0,0,null,null,null,null,null,null,null,null,null,null,null,null,null,null,null,null,null,null,null,null,null,null,null,null,null,null,null,{"$f":"IFERROR(_xlfn._xlws.FILTER(BG582:BR1361,(BR582:BR1361=2)),\"\")","v":""}]
[null,574,{"$f":"IF(F583<>0,MAX($C$10:$C582)+1,\"\")","v":""},null,null,null,null,null,null,null,null,null,null,null,null,null,null,null,null,null,null,null,null,null,null,null,null,0,0,0,null,0,0,"","","-","","",0,null,null,null,null,null,0,0,0,0,0,0,0,0,null,null,null,null,null,null,null,null,null,null,null,null,null,null,null,null,null,null,null,null,null,null,null,null,null,null,null,{"$f":"IFERROR(_xlfn._xlws.FILTER(BG583:BR1362,(BR583:BR1362=2)),\"\")","v":""}]
[null,575,{"$f":"IF(F584<>0,MAX($C$10:$C583)+1,\"\")","v":""},null,null,null,null,null,null,null,null,null,null,null,null,null,null,null,null,null,null,null,null,null,null,null,null,0,0,0,null,0,0,"","","-","","",0,null,null,null,null,null,0,0,0,0,0,0,0,0,null,null,null,null,null,null,null,null,null,null,null,null,null,null,null,null,null,null,null,null,null,null,null,null,null,null,null,{"$f":"IFERROR(_xlfn._xlws.FILTER(BG584:BR1363,(BR584:BR1363=2)),\"\")","v":""}]
[null,576,{"$f":"IF(F585<>0,MAX($C$10:$C584)+1,\"\")","v":""},null,null,null,null,null,null,null,null,null,null,null,null,null,null,null,null,null,null,null,null,null,null,null,null,0,0,0,null,0,0,"","","-","","",0,null,null,null,null,null,0,0,0,0,0,0,0,0,null,null,null,null,null,null,null,null,null,null,null,null,null,null,null,null,null,null,null,null,null,null,null,null,null,null,null,{"$f":"IFERROR(_xlfn._xlws.FILTER(BG585:BR1364,(BR585:BR1364=2)),\"\")","v":""}]
[null,577,{"$f":"IF(F586<>0,MAX($C$10:$C585)+1,\"\")","v":""},null,null,null,null,null,null,null,null,null,null,null,null,null,null,null,null,null,null,null,null,null,null,null,null,0,0,0,null,0,0,"","",{"$f":"IF(AG586=\"\",\"\",\"-\")","v":"-"},"","",0,null,null,null,null,null,0,0,0,0,0,0,0,0,null,null,null,null,null,null,null,null,null,null,null,null,null,null,null,null,null,null,null,null,null,null,null,null,null,null,null,{"$f":"IFERROR(_xlfn._xlws.FILTER(BG586:BR1365,(BR586:BR1365=2)),\"\")","v":""}]
[null,578,{"$f":"IF(F587<>0,MAX($C$10:$C586)+1,\"\")","v":""},null,null,null,null,null,null,null,null,null,null,null,null,null,null,null,null,null,null,null,null,null,null,null,null,0,0,0,null,{"$f":"_xlfn.XLOOKUP(AH587,$J$10:$J$49,$M$10:$M$49,\"\")+_xlfn.XLOOKUP(AL587,$J$10:$J$49,$M$10:$M$49,\"\")","v":0},{"$f":"AE587","v":0},"",{"$f":"IFERROR(IF(AH587=\"\",\"\",IF(OR($L$8=\"Nee\",AF587=0),_xlfn.XLOOKUP(AH587,$D$10:$D$49,$E$10:$E$49),ROUND(_xlfn.XLOOKUP(AH587,$D$10:$D$49,$E$10:$E$49)*AF587,0))),0)","v":""},"-",{"$f":"IFERROR(IF(AH587=\"\",\"\",IF(OR($L$8=\"Nee\",AF587=0),_xlfn.XLOOKUP(AL587,$D$10:$D$49,$E$10:$E$49)*1,ROUND(_xlfn.XLOOKUP(AL587,$D$10:$D$49,$E$10:$E$49)*AF587,0))),0)","v":""},"",0,null,null,null,null,null,0,0,0,0,0,0,0,0,null,null,null,null,null,null,null,null,null,null,null,null,null,null,null,null,null,null,null,null,null,null,null,null,null,null,null,{"$f":"IFERROR(_xlfn._xlws.FILTER(BG587:BR1366,(BR587:BR1366=2)),\"\")","v":""}]
[null,579,{"$f":"IF(F588<>0,MAX($C$10:$C587)+1,\"\")","v":""},null,null,null,null,null,null,null,null,null,null,null,null,null,null,null,null,null,null,null,null,null,null,null,null,0,0,0,null,0,0,"","","-","","",0,null,null,null,null,null,0,0,0,0,0,0,0,{"$f":"AW588","v":0},null,null,null,null,null,null,null,null,null,null,null,null,null,null,null,null,null,null,null,null,null,null,null,null,null,null,null,{"$f":"IFERROR(_xlfn._xlws.FILTER(BG588:BR1367,(BR588:BR1367=2)),\"\")","v":""}]
[null,580,{"$f":"IF(F589<>0,MAX($C$10:$C588)+1,\"\")","v":""},null,null,null,null,null,null,null,null,null,null,null,null,null,null,null,null,null,null,null,null,null,null,null,null,0,{"$f":"IFERROR(_xlfn.XLOOKUP(AG589,$AB$10:$AB$789,$AD$10:$AD$789),\"\")","v":0},0,null,0,0,"","","-","","",0,null,null,null,null,null,0,0,0,0,0,0,0,0,null,null,null,null,null,null,null,null,null,null,null,null,null,null,null,null,null,null,null,null,null,null,null,null,null,null,null,{"$f":"IFERROR(_xlfn._xlws.FILTER(BG589:BR1368,(BR589:BR1368=2)),\"\")","v":""}]
[null,581,{"$f":"IF(F590<>0,MAX($C$10:$C589)+1,\"\")","v":""},null,null,null,null,null,null,null,null,null,null,null,null,null,null,null,null,null,null,null,null,null,null,null,null,0,0,0,null,0,0,"","","-","","",0,null,null,null,null,null,0,0,0,0,0,0,0,0,null,null,null,null,null,null,null,null,null,null,null,null,null,null,null,null,null,null,null,null,null,null,null,null,null,null,null,{"$f":"IFERROR(_xlfn._xlws.FILTER(BG590:BR1369,(BR590:BR1369=2)),\"\")","v":""}]
[null,582,{"$f":"IF(F591<>0,MAX($C$10:$C590)+1,\"\")","v":""},null,null,null,null,null,null,null,null,null,null,null,null,null,null,null,null,null,null,null,null,null,null,null,null,0,0,0,null,0,0,"","","-","","",0,null,null,null,null,null,0,0,0,0,0,0,0,0,null,null,null,null,null,null,null,null,null,null,null,null,null,null,null,null,null,null,null,null,null,null,null,null,null,null,null,{"$f":"IFERROR(_xlfn._xlws.FILTER(BG591:BR1370,(BR591:BR1370=2)),\"\")","v":""}]
[null,583,{"$f":"IF(F592<>0,MAX($C$10:$C591)+1,\"\")","v":""},null,null,null,null,null,null,null,null,null,null,null,null,null,null,null,null,null,null,null,null,null,null,null,null,0,0,0,null,0,0,"","","-","","",0,null,null,null,null,null,0,0,0,0,0,0,0,0,null,null,null,null,null,null,null,null,null,null,null,null,null,null,null,null,null,null,null,null,null,null,null,null,null,null,null,{"$f":"IFERROR(_xlfn._xlws.FILTER(BG592:BR1371,(BR592:BR1371=2)),\"\")","v":""}]
[null,584,{"$f":"IF(F593<>0,MAX($C$10:$C592)+1,\"\")","v":""},null,null,null,null,null,null,null,null,null,null,null,null,null,null,null,null,null,null,null,null,null,null,null,null,0,0,0,null,0,0,"","","-","","",0,null,null,null,null,null,0,0,0,0,0,0,0,0,null,null,null,null,null,null,null,null,null,null,null,null,null,null,null,null,null,null,null,null,null,null,null,null,null,null,null,{"$f":"IFERROR(_xlfn._xlws.FILTER(BG593:BR1372,(BR593:BR1372=2)),\"\")","v":""}]
[null,585,{"$f":"IF(F594<>0,MAX($C$10:$C593)+1,\"\")","v":""},null,null,null,null,null,null,null,null,null,null,null,null,null,null,null,null,null,null,null,null,null,null,null,null,0,0,0,null,0,0,"","","-","","",0,null,null,null,null,null,0,0,0,0,0,0,0,0,null,null,null,null,null,null,null,null,null,null,null,null,null,null,null,null,null,null,null,null,null,null,null,null,null,null,null,{"$f":"IFERROR(_xlfn._xlws.FILTER(BG594:BR1373,(BR594:BR1373=2)),\"\")","v":""}]
[null,586,{"$f":"IF(F595<>0,MAX($C$10:$C594)+1,\"\")","v":""},null,null,null,null,null,null,null,null,null,null,null,null,null,null,null,null,null,null,null,null,null,null,null,null,0,0,0,null,0,0,"","","-","","",0,null,null,null,null,null,0,0,0,0,0,0,0,0,null,null,null,null,null,null,null,null,null,null,null,null,null,null,null,null,null,null,null,null,null,null,null,null,null,null,null,{"$f":"IFERROR(_xlfn._xlws.FILTER(BG595:BR1374,(BR595:BR1374=2)),\"\")","v":""}]
[null,587,{"$f":"IF(F596<>0,MAX($C$10:$C595)+1,\"\")","v":""},null,null,null,null,null,null,null,null,null,null,null,null,null,null,null,null,null,null,null,null,null,null,null,null,0,0,0,null,0,0,"","","-","","",0,null,null,null,null,null,0,0,0,0,0,0,0,0,null,null,null,null,null,null,null,null,null,null,null,null,null,null,null,null,null,null,null,null,null,null,null,null,null,null,null,{"$f":"IFERROR(_xlfn._xlws.FILTER(BG596:BR1375,(BR596:BR1375=2)),\"\")","v":""}]
[null,588,{"$f":"IF(F597<>0,MAX($C$10:$C596)+1,\"\")","v":""},null,null,null,null,null,null,null,null,null,null,null,null,null,null,null,null,null,null,null,null,null,null,null,null,0,0,0,null,0,0,"","","-","","",0,null,null,null,null,null,0,0,0,0,0,0,0,0,null,null,null,null,null,null,null,null,null,null,null,null,null,null,null,null,null,null,null,null,null,null,null,null,null,null,null,{"$f":"IFERROR(_xlfn._xlws.FILTER(BG597:BR1376,(BR597:BR1376=2)),\"\")","v":""}]
[null,589,{"$f":"IF(F598<>0,MAX($C$10:$C597)+1,\"\")","v":""},null,null,null,null,null,null,null,null,null,null,null,null,null,null,null,null,null,null,null,null,null,null,null,null,0,0,0,null,0,0,"","","-","","",0,null,null,null,null,null,0,0,0,0,0,0,0,0,null,null,null,null,null,null,null,null,null,null,null,null,null,null,null,null,null,null,null,null,null,null,null,null,null,null,null,{"$f":"IFERROR(_xlfn._xlws.FILTER(BG598:BR1377,(BR598:BR1377=2)),\"\")","v":""}]
[null,590,{"$f":"IF(F599<>0,MAX($C$10:$C598)+1,\"\")","v":""},null,null,null,null,null,null,null,null,null,null,null,null,null,null,null,null,null,null,null,null,null,null,null,null,0,0,0,null,0,0,"","","-","","",0,null,null,null,null,null,0,0,0,0,0,0,0,0,null,null,null,null,null,null,null,null,null,null,null,null,null,null,null,null,null,null,null,null,null,null,null,null,null,null,null,{"$f":"IFERROR(_xlfn._xlws.FILTER(BG599:BR1378,(BR599:BR1378=2)),\"\")","v":""}]
[null,591,{"$f":"IF(F600<>0,MAX($C$10:$C599)+1,\"\")","v":""},null,null,null,null,null,null,null,null,null,null,null,null,null,null,null,null,null,null,null,null,null,null,null,null,0,0,0,null,0,0,"","","-","","",0,null,null,null,null,null,0,0,0,0,0,0,0,0,null,null,null,null,null,null,null,null,null,null,null,null,null,null,null,null,null,null,null,null,null,null,null,null,null,null,null,{"$f":"IFERROR(_xlfn._xlws.FILTER(BG600:BR1379,(BR600:BR1379=2)),\"\")","v":""}]
[null,592,{"$f":"IF(F601<>0,MAX($C$10:$C600)+1,\"\")","v":""},null,null,null,null,null,null,null,null,null,null,null,null,null,null,null,null,null,null,null,null,null,null,null,null,0,0,0,null,0,0,"","","-","","",0,null,null,null,null,null,0,0,0,0,0,0,0,0,null,null,null,null,null,null,null,null,null,null,null,null,null,null,null,null,null,null,null,null,null,null,null,null,null,null,null,{"$f":"IFERROR(_xlfn._xlws.FILTER(BG601:BR1380,(BR601:BR1380=2)),\"\")","v":""}]
[null,593,{"$f":"IF(F602<>0,MAX($C$10:$C601)+1,\"\")","v":""},null,null,null,null,null,null,null,null,null,null,null,null,null,null,null,null,null,null,null,null,null,null,null,null,0,0,0,null,0,0,"","","-","","",0,null,null,null,null,null,0,0,0,0,0,0,0,0,null,null,null,null,null,null,null,null,null,null,null,null,null,null,null,null,null,null,null,null,null,null,null,null,null,null,null,{"$f":"IFERROR(_xlfn._xlws.FILTER(BG602:BR1381,(BR602:BR1381=2)),\"\")","v":""}]
[null,594,{"$f":"IF(F603<>0,MAX($C$10:$C602)+1,\"\")","v":""},null,null,null,null,null,null,null,null,null,null,null,null,null,null,null,null,null,null,null,null,null,null,null,null,0,0,0,null,0,0,"","","-","","",0,null,null,null,null,null,0,0,0,0,0,0,0,0,null,null,null,null,null,null,null,null,null,null,null,null,null,null,null,null,null,null,null,null,null,null,null,null,null,null,null,{"$f":"IFERROR(_xlfn._xlws.FILTER(BG603:BR1382,(BR603:BR1382=2)),\"\")","v":""}]
[null,595,{"$f":"IF(F604<>0,MAX($C$10:$C603)+1,\"\")","v":""},null,null,null,null,null,null,null,null,null,null,null,null,null,null,null,null,null,null,null,null,null,null,null,null,0,0,0,null,0,0,"","","-","","",0,null,null,null,null,null,0,0,0,0,0,0,0,0,null,null,null,null,null,null,null,null,null,null,null,null,null,null,null,null,null,null,null,null,null,null,null,null,null,null,null,{"$f":"IFERROR(_xlfn._xlws.FILTER(BG604:BR1383,(BR604:BR1383=2)),\"\")","v":""}]
[null,596,{"$f":"IF(F605<>0,MAX($C$10:$C604)+1,\"\")","v":""},null,null,null,null,null,null,null,null,null,null,null,null,null,null,null,null,null,null,null,null,null,null,null,null,0,0,0,null,0,0,"","","-","","",0,null,null,null,null,null,0,0,0,0,0,0,0,0,null,null,null,null,null,null,null,null,null,null,null,null,null,null,null,null,null,null,null,null,null,null,null,null,null,null,null,{"$f":"IFERROR(_xlfn._xlws.FILTER(BG605:BR1384,(BR605:BR1384=2)),\"\")","v":""}]
[null,597,{"$f":"IF(F606<>0,MAX($C$10:$C605)+1,\"\")","v":""},null,null,null,null,null,null,null,null,null,null,null,null,null,null,null,null,null,null,null,null,null,null,null,null,0,0,0,null,0,0,"","","-","","",0,null,null,null,null,null,0,0,0,0,0,0,0,0,null,null,null,null,null,null,null,null,null,null,null,null,null,null,null,null,null,null,null,null,null,null,null,null,null,null,null,{"$f":"IFERROR(_xlfn._xlws.FILTER(BG606:BR1385,(BR606:BR1385=2)),\"\")","v":""}]
[null,598,{"$f":"IF(F607<>0,MAX($C$10:$C606)+1,\"\")","v":""},null,null,null,null,null,null,null,null,null,null,null,null,null,null,null,null,null,null,null,null,null,null,null,null,0,0,0,null,0,0,"","","-","","",0,null,null,null,null,null,0,0,0,0,0,0,0,0,null,null,null,null,null,null,null,null,null,null,null,null,null,null,null,null,null,null,null,null,null,null,null,null,null,null,null,{"$f":"IFERROR(_xlfn._xlws.FILTER(BG607:BR1386,(BR607:BR1386=2)),\"\")","v":""}]
[null,599,{"$f":"IF(F608<>0,MAX($C$10:$C607)+1,\"\")","v":""},null,null,null,null,null,null,null,null,null,null,null,null,null,null,null,null,null,null,null,null,null,null,null,null,0,0,0,null,0,0,"","","-","","",0,null,null,null,null,null,0,0,0,0,0,0,0,0,null,null,null,null,null,null,null,null,null,null,null,null,null,null,null,null,null,null,null,null,null,null,null,null,null,null,null,{"$f":"IFERROR(_xlfn._xlws.FILTER(BG608:BR1387,(BR608:BR1387=2)),\"\")","v":""}]
[null,600,{"$f":"IF(F609<>0,MAX($C$10:$C608)+1,\"\")","v":""},null,null,null,null,null,null,null,null,null,null,null,null,null,null,null,null,null,null,null,null,null,null,null,null,0,0,0,null,0,0,"","","-","","",0,null,null,null,null,null,0,0,0,0,0,0,0,0,null,null,null,null,null,null,null,null,null,null,null,null,null,null,null,null,null,null,null,null,null,null,null,null,null,null,null,{"$f":"IFERROR(_xlfn._xlws.FILTER(BG609:BR1388,(BR609:BR1388=2)),\"\")","v":""}]
[null,601,{"$f":"IF(F610<>0,MAX($C$10:$C609)+1,\"\")","v":""},null,null,null,null,null,null,null,null,null,null,null,null,null,null,null,null,null,null,null,null,null,null,null,null,0,0,0,null,0,0,"","","-","","",0,null,null,null,null,null,0,0,0,0,0,0,0,0,null,null,null,null,null,null,null,null,null,null,null,null,null,null,null,null,null,null,null,null,null,null,null,null,null,null,null,{"$f":"IFERROR(_xlfn._xlws.FILTER(BG610:BR1389,(BR610:BR1389=2)),\"\")","v":""}]
[null,602,{"$f":"IF(F611<>0,MAX($C$10:$C610)+1,\"\")","v":""},null,null,null,null,null,null,null,null,null,null,null,null,null,null,null,null,null,null,null,null,null,null,null,null,0,0,0,null,0,0,"","","-","","",0,null,null,null,null,null,0,0,0,0,0,0,0,0,null,null,null,null,null,null,null,null,null,null,null,null,null,null,null,null,null,null,null,null,null,null,null,null,null,null,null,{"$f":"IFERROR(_xlfn._xlws.FILTER(BG611:BR1390,(BR611:BR1390=2)),\"\")","v":""}]
[null,603,{"$f":"IF(F612<>0,MAX($C$10:$C611)+1,\"\")","v":""},null,null,null,null,null,null,null,null,null,null,null,null,null,null,null,null,null,null,null,null,null,null,null,null,0,0,0,null,0,0,"","","-","","",0,null,null,null,null,null,0,0,0,0,0,0,0,0,null,null,null,null,null,null,null,null,null,null,null,null,null,null,null,null,null,null,null,null,null,null,null,null,null,null,null,{"$f":"IFERROR(_xlfn._xlws.FILTER(BG612:BR1391,(BR612:BR1391=2)),\"\")","v":""}]
[null,604,{"$f":"IF(F613<>0,MAX($C$10:$C612)+1,\"\")","v":""},null,null,null,null,null,null,null,null,null,null,null,null,null,null,null,null,null,null,null,null,null,null,null,null,0,0,0,null,0,0,"","","-","","",0,null,null,null,null,null,0,0,0,0,0,0,0,0,null,null,null,null,null,null,null,null,null,null,null,null,null,null,null,null,null,null,null,null,null,null,null,null,null,null,null,{"$f":"IFERROR(_xlfn._xlws.FILTER(BG613:BR1392,(BR613:BR1392=2)),\"\")","v":""}]
[null,605,{"$f":"IF(F614<>0,MAX($C$10:$C613)+1,\"\")","v":""},null,null,null,null,null,null,null,null,null,null,null,null,null,null,null,null,null,null,null,null,null,null,null,null,0,0,0,null,0,0,"","","-","","",0,null,null,null,null,null,0,0,0,0,0,0,0,0,null,null,null,null,null,null,null,null,null,null,null,null,null,null,null,null,null,null,null,null,null,null,null,null,null,null,null,{"$f":"IFERROR(_xlfn._xlws.FILTER(BG614:BR1393,(BR614:BR1393=2)),\"\")","v":""}]
[null,606,{"$f":"IF(F615<>0,MAX($C$10:$C614)+1,\"\")","v":""},null,null,null,null,null,null,null,null,null,null,null,null,null,null,null,null,null,null,null,null,null,null,null,null,0,0,0,null,0,0,"","","-","","",0,null,null,null,null,null,0,0,0,0,0,0,0,0,null,null,null,null,null,null,null,null,null,null,null,null,null,null,null,null,null,null,null,null,null,null,null,null,null,null,null,{"$f":"IFERROR(_xlfn._xlws.FILTER(BG615:BR1394,(BR615:BR1394=2)),\"\")","v":""}]
[null,607,{"$f":"IF(F616<>0,MAX($C$10:$C615)+1,\"\")","v":""},null,null,null,null,null,null,null,null,null,null,null,null,null,null,null,null,null,null,null,null,null,null,null,null,0,0,0,null,0,0,"","","-","","",0,null,null,null,null,null,0,0,0,0,0,0,0,0,null,null,null,null,null,null,null,null,null,null,null,null,null,null,null,null,null,null,null,null,null,null,null,null,null,null,null,{"$f":"IFERROR(_xlfn._xlws.FILTER(BG616:BR1395,(BR616:BR1395=2)),\"\")","v":""}]
[null,608,{"$f":"IF(F617<>0,MAX($C$10:$C616)+1,\"\")","v":""},null,null,null,null,null,null,null,null,null,null,null,null,null,null,null,null,null,null,null,null,null,null,null,null,0,0,0,null,0,0,"","","-","","",0,null,null,null,null,null,0,0,0,0,0,0,0,0,null,null,null,null,null,null,null,null,null,null,null,null,null,null,null,null,null,null,null,null,null,null,null,null,null,null,null,{"$f":"IFERROR(_xlfn._xlws.FILTER(BG617:BR1396,(BR617:BR1396=2)),\"\")","v":""}]
[null,609,{"$f":"IF(F618<>0,MAX($C$10:$C617)+1,\"\")","v":""},null,null,null,null,null,null,null,null,null,null,null,null,null,null,null,null,null,null,null,null,null,null,null,null,0,0,0,null,0,0,"","","-","","",0,null,null,null,null,null,0,0,0,0,0,0,0,0,null,null,null,null,null,null,null,null,null,null,null,null,null,null,null,null,null,null,null,null,null,null,null,null,null,null,null,{"$f":"IFERROR(_xlfn._xlws.FILTER(BG618:BR1397,(BR618:BR1397=2)),\"\")","v":""}]
[null,610,{"$f":"IF(F619<>0,MAX($C$10:$C618)+1,\"\")","v":""},null,null,null,null,null,null,null,null,null,null,null,null,null,null,null,null,null,null,null,null,null,null,null,null,0,0,0,null,0,0,"","","-","","",0,null,null,null,null,null,0,0,0,0,0,0,0,0,null,null,null,null,null,null,null,null,null,null,null,null,null,null,null,null,null,null,null,null,null,null,null,null,null,null,null,{"$f":"IFERROR(_xlfn._xlws.FILTER(BG619:BR1398,(BR619:BR1398=2)),\"\")","v":""}]
[null,611,{"$f":"IF(F620<>0,MAX($C$10:$C619)+1,\"\")","v":""},null,null,null,null,null,null,null,null,null,null,null,null,null,null,null,null,null,null,null,null,null,null,null,null,0,0,0,null,0,0,"","","-","","",0,null,null,null,null,null,0,0,0,0,0,0,0,0,null,null,null,null,null,null,null,null,null,null,null,null,null,null,null,null,null,null,null,null,null,null,null,null,null,null,null,{"$f":"IFERROR(_xlfn._xlws.FILTER(BG620:BR1399,(BR620:BR1399=2)),\"\")","v":""}]
[null,612,{"$f":"IF(F621<>0,MAX($C$10:$C620)+1,\"\")","v":""},null,null,null,null,null,null,null,null,null,null,null,null,null,null,null,null,null,null,null,null,null,null,null,null,0,0,0,null,0,0,"","","-","","",0,null,null,null,null,null,0,0,0,0,0,0,0,0,null,null,null,null,null,null,null,null,null,null,null,null,null,null,null,null,null,null,null,null,null,null,null,null,null,null,null,{"$f":"IFERROR(_xlfn._xlws.FILTER(BG621:BR1400,(BR621:BR1400=2)),\"\")","v":""}]
[null,613,{"$f":"IF(F622<>0,MAX($C$10:$C621)+1,\"\")","v":""},null,null,null,null,null,null,null,null,null,null,null,null,null,null,null,null,null,null,null,null,null,null,null,null,0,0,0,null,0,0,"","","-","","",0,null,null,null,null,null,0,0,0,0,0,0,0,0,null,null,null,null,null,null,null,null,null,null,null,null,null,null,null,null,null,null,null,null,null,null,null,null,null,null,null,{"$f":"IFERROR(_xlfn._xlws.FILTER(BG622:BR1401,(BR622:BR1401=2)),\"\")","v":""}]
[null,614,{"$f":"IF(F623<>0,MAX($C$10:$C622)+1,\"\")","v":""},null,null,null,null,null,null,null,null,null,null,null,null,null,null,null,null,null,null,null,null,null,null,null,null,0,0,0,null,0,0,"","","-","","",0,null,null,null,null,null,0,0,0,0,0,0,0,0,null,null,null,null,null,null,null,null,null,null,null,null,null,null,null,null,null,null,null,null,null,null,null,null,null,null,null,{"$f":"IFERROR(_xlfn._xlws.FILTER(BG623:BR1402,(BR623:BR1402=2)),\"\")","v":""}]
[null,615,{"$f":"IF(F624<>0,MAX($C$10:$C623)+1,\"\")","v":""},null,null,null,null,null,null,null,null,null,null,null,null,null,null,null,null,null,null,null,null,null,null,null,null,0,0,0,null,0,0,"","","-","","",0,null,null,null,null,null,0,0,0,0,0,0,0,0,null,null,null,null,null,null,null,null,null,null,null,null,null,null,null,null,null,null,null,null,null,null,null,null,null,null,null,{"$f":"IFERROR(_xlfn._xlws.FILTER(BG624:BR1403,(BR624:BR1403=2)),\"\")","v":""}]
[null,616,{"$f":"IF(F625<>0,MAX($C$10:$C624)+1,\"\")","v":""},null,null,null,null,null,null,null,null,null,null,null,null,null,null,null,null,null,null,null,null,null,null,null,null,0,0,0,null,0,0,"","","-","","",0,null,null,null,null,null,0,0,0,0,0,0,0,0,null,null,null,null,null,null,null,null,null,null,null,null,null,null,null,null,null,null,null,null,null,null,null,null,null,null,null,{"$f":"IFERROR(_xlfn._xlws.FILTER(BG625:BR1404,(BR625:BR1404=2)),\"\")","v":""}]
[null,617,{"$f":"IF(F626<>0,MAX($C$10:$C625)+1,\"\")","v":""},null,null,null,null,null,null,null,null,null,null,null,null,null,null,null,null,null,null,null,null,null,null,null,null,0,0,0,null,0,0,"","","-","","",0,null,null,null,null,null,0,0,0,0,0,0,0,0,null,null,null,null,null,null,null,null,null,null,null,null,null,null,null,null,null,null,null,null,null,null,null,null,null,null,null,{"$f":"IFERROR(_xlfn._xlws.FILTER(BG626:BR1405,(BR626:BR1405=2)),\"\")","v":""}]
[null,618,{"$f":"IF(F627<>0,MAX($C$10:$C626)+1,\"\")","v":""},null,null,null,null,null,null,null,null,null,null,null,null,null,null,null,null,null,null,null,null,null,null,null,null,0,0,0,null,0,0,"","","-","","",0,null,null,null,null,null,0,0,0,0,0,0,0,0,null,null,null,null,null,null,null,null,null,null,null,null,null,null,null,null,null,null,null,null,null,null,null,null,null,null,null,{"$f":"IFERROR(_xlfn._xlws.FILTER(BG627:BR1406,(BR627:BR1406=2)),\"\")","v":""}]
[null,619,{"$f":"IF(F628<>0,MAX($C$10:$C627)+1,\"\")","v":""},null,null,null,null,null,null,null,null,null,null,null,null,null,null,null,null,null,null,null,null,null,null,null,null,0,0,0,null,0,0,"","","-","","",0,null,null,null,null,null,0,0,0,0,0,0,0,0,null,null,null,null,null,null,null,null,null,null,null,null,null,null,null,null,null,null,null,null,null,null,null,null,null,null,null,{"$f":"IFERROR(_xlfn._xlws.FILTER(BG628:BR1407,(BR628:BR1407=2)),\"\")","v":""}]
[null,620,{"$f":"IF(F629<>0,MAX($C$10:$C628)+1,\"\")","v":""},null,null,null,null,null,null,null,null,null,null,null,null,null,null,null,null,null,null,null,null,null,null,null,null,0,0,0,null,0,0,"","","-","","",0,null,null,null,null,null,0,0,0,0,0,0,0,0,null,null,null,null,null,null,null,null,null,null,null,null,null,null,null,null,null,null,null,null,null,null,null,null,null,null,null,{"$f":"IFERROR(_xlfn._xlws.FILTER(BG629:BR1408,(BR629:BR1408=2)),\"\")","v":""}]
[null,621,{"$f":"IF(F630<>0,MAX($C$10:$C629)+1,\"\")","v":""},null,null,null,null,null,null,null,null,null,null,null,null,null,null,null,null,null,null,null,null,null,null,null,null,0,0,0,null,0,0,"","","-","","",0,null,null,null,null,null,0,0,0,0,0,0,0,0,null,null,null,null,null,null,null,null,null,null,null,null,null,null,null,null,null,null,null,null,null,null,null,null,null,null,null,{"$f":"IFERROR(_xlfn._xlws.FILTER(BG630:BR1409,(BR630:BR1409=2)),\"\")","v":""}]
[null,622,{"$f":"IF(F631<>0,MAX($C$10:$C630)+1,\"\")","v":""},null,null,null,null,null,null,null,null,null,null,null,null,null,null,null,null,null,null,null,null,null,null,null,null,0,0,0,null,0,0,"","","-","","",0,null,null,null,null,null,0,0,0,0,0,0,0,0,null,null,null,null,null,null,null,null,null,null,null,null,null,null,null,null,null,null,null,null,null,null,null,null,null,null,null,{"$f":"IFERROR(_xlfn._xlws.FILTER(BG631:BR1410,(BR631:BR1410=2)),\"\")","v":""}]
[null,623,{"$f":"IF(F632<>0,MAX($C$10:$C631)+1,\"\")","v":""},null,null,null,null,null,null,null,null,null,null,null,null,null,null,null,null,null,null,null,null,null,null,null,null,0,0,0,null,0,0,"","","-","","",0,null,null,null,null,null,0,0,0,0,0,0,0,0,null,null,null,null,null,null,null,null,null,null,null,null,null,null,null,null,null,null,null,null,null,null,null,null,null,null,null,{"$f":"IFERROR(_xlfn._xlws.FILTER(BG632:BR1411,(BR632:BR1411=2)),\"\")","v":""}]
[null,624,{"$f":"IF(F633<>0,MAX($C$10:$C632)+1,\"\")","v":""},null,null,null,null,null,null,null,null,null,null,null,null,null,null,null,null,null,null,null,null,null,null,null,null,0,0,0,null,0,0,"","","-","","",0,null,null,null,null,null,0,0,0,0,0,0,0,0,null,null,null,null,null,null,null,null,null,null,null,null,null,null,null,null,null,null,null,null,null,null,null,null,null,null,null,{"$f":"IFERROR(_xlfn._xlws.FILTER(BG633:BR1412,(BR633:BR1412=2)),\"\")","v":""}]
[null,625,{"$f":"IF(F634<>0,MAX($C$10:$C633)+1,\"\")","v":""},null,null,null,null,null,null,null,null,null,null,null,null,null,null,null,null,null,null,null,null,null,null,null,null,0,0,0,null,0,0,"","","-","","",0,null,null,null,null,null,0,0,0,0,0,0,0,0,null,null,null,null,null,null,null,null,null,null,null,null,null,null,null,null,null,null,null,null,null,null,null,null,null,null,null,{"$f":"IFERROR(_xlfn._xlws.FILTER(BG634:BR1413,(BR634:BR1413=2)),\"\")","v":""}]
[null,626,{"$f":"IF(F635<>0,MAX($C$10:$C634)+1,\"\")","v":""},null,null,null,null,null,null,null,null,null,null,null,null,null,null,null,null,null,null,null,null,null,null,null,null,0,0,0,null,0,0,"","","-","","",0,null,null,null,null,null,0,0,0,0,0,0,0,0,null,null,null,null,null,null,null,null,null,null,null,null,null,null,null,null,null,null,null,null,null,null,null,null,null,null,null,{"$f":"IFERROR(_xlfn._xlws.FILTER(BG635:BR1414,(BR635:BR1414=2)),\"\")","v":""}]
[null,627,{"$f":"IF(F636<>0,MAX($C$10:$C635)+1,\"\")","v":""},null,null,null,null,null,null,null,null,null,null,null,null,null,null,null,null,null,null,null,null,null,null,null,null,0,0,0,null,0,0,"","","-","","",0,null,null,null,null,null,0,0,0,0,0,0,0,0,null,null,null,null,null,null,null,null,null,null,null,null,null,null,null,null,null,null,null,null,null,null,null,null,null,null,null,{"$f":"IFERROR(_xlfn._xlws.FILTER(BG636:BR1415,(BR636:BR1415=2)),\"\")","v":""}]
[null,628,{"$f":"IF(F637<>0,MAX($C$10:$C636)+1,\"\")","v":""},null,null,null,null,null,null,null,null,null,null,null,null,null,null,null,null,null,null,null,null,null,null,null,null,0,0,0,null,0,0,"","","-","","",0,null,null,null,null,null,0,0,0,0,0,0,0,0,null,null,null,null,null,null,null,null,null,null,null,null,null,null,null,null,null,null,null,null,null,null,null,null,null,null,null,{"$f":"IFERROR(_xlfn._xlws.FILTER(BG637:BR1416,(BR637:BR1416=2)),\"\")","v":""}]
[null,629,{"$f":"IF(F638<>0,MAX($C$10:$C637)+1,\"\")","v":""},null,null,null,null,null,null,null,null,null,null,null,null,null,null,null,null,null,null,null,null,null,null,null,null,0,0,0,null,0,0,"","","-","","",0,null,null,null,null,null,0,0,0,0,0,0,0,0,null,null,null,null,null,null,null,null,null,null,null,null,null,null,null,null,null,null,null,null,null,null,null,null,null,null,null,{"$f":"IFERROR(_xlfn._xlws.FILTER(BG638:BR1417,(BR638:BR1417=2)),\"\")","v":""}]
[null,630,{"$f":"IF(F639<>0,MAX($C$10:$C638)+1,\"\")","v":""},null,null,null,null,null,null,null,null,null,null,null,null,null,null,null,null,null,null,null,null,null,null,null,null,0,0,0,null,0,0,"","","-","","",0,null,null,null,null,null,0,0,0,0,0,0,0,0,null,null,null,null,null,null,null,null,null,null,null,null,null,null,null,null,null,null,null,null,null,null,null,null,null,null,null,{"$f":"IFERROR(_xlfn._xlws.FILTER(BG639:BR1418,(BR639:BR1418=2)),\"\")","v":""}]
[null,631,{"$f":"IF(F640<>0,MAX($C$10:$C639)+1,\"\")","v":""},null,null,null,null,null,null,null,null,null,null,null,null,null,null,null,null,null,null,null,null,null,null,null,null,0,0,0,null,0,0,"","","-","","",0,null,null,null,null,null,0,0,0,0,0,0,0,0,null,null,null,null,null,null,null,null,null,null,null,null,null,null,null,null,null,null,null,null,null,null,null,null,null,null,null,{"$f":"IFERROR(_xlfn._xlws.FILTER(BG640:BR1419,(BR640:BR1419=2)),\"\")","v":""}]
[null,632,{"$f":"IF(F641<>0,MAX($C$10:$C640)+1,\"\")","v":""},null,null,null,null,null,null,null,null,null,null,null,null,null,null,null,null,null,null,null,null,null,null,null,null,0,0,0,null,0,0,"","","-","","",0,null,null,null,null,null,0,0,0,0,0,0,0,0,null,null,null,null,null,null,null,null,null,null,null,null,null,null,null,null,null,null,null,null,null,null,null,null,null,null,null,{"$f":"IFERROR(_xlfn._xlws.FILTER(BG641:BR1420,(BR641:BR1420=2)),\"\")","v":""}]
[null,633,{"$f":"IF(F642<>0,MAX($C$10:$C641)+1,\"\")","v":""},null,null,null,null,null,null,null,null,null,null,null,null,null,null,null,null,null,null,null,null,null,null,null,null,0,0,0,null,0,0,"","","-","","",0,null,null,null,null,null,0,0,0,0,0,0,0,0,null,null,null,null,null,null,null,null,null,null,null,null,null,null,null,null,null,null,null,null,null,null,null,null,null,null,null,{"$f":"IFERROR(_xlfn._xlws.FILTER(BG642:BR1421,(BR642:BR1421=2)),\"\")","v":""}]
[null,634,{"$f":"IF(F643<>0,MAX($C$10:$C642)+1,\"\")","v":""},null,null,null,null,null,null,null,null,null,null,null,null,null,null,null,null,null,null,null,null,null,null,null,null,0,0,0,null,0,0,"","","-","","",0,null,null,null,null,null,0,0,0,0,0,0,0,0,null,null,null,null,null,null,null,null,null,null,null,null,null,null,null,null,null,null,null,null,null,null,null,null,null,null,null,{"$f":"IFERROR(_xlfn._xlws.FILTER(BG643:BR1422,(BR643:BR1422=2)),\"\")","v":""}]
[null,635,{"$f":"IF(F644<>0,MAX($C$10:$C643)+1,\"\")","v":""},null,null,null,null,null,null,null,null,null,null,null,null,null,null,null,null,null,null,null,null,null,null,null,null,0,0,0,null,0,0,"","","-","","",0,null,null,null,null,null,0,0,0,0,0,0,0,0,null,null,null,null,null,null,null,null,null,null,null,null,null,null,null,null,null,null,null,null,null,null,null,null,null,null,null,{"$f":"IFERROR(_xlfn._xlws.FILTER(BG644:BR1423,(BR644:BR1423=2)),\"\")","v":""}]
[null,636,{"$f":"IF(F645<>0,MAX($C$10:$C644)+1,\"\")","v":""},null,null,null,null,null,null,null,null,null,null,null,null,null,null,null,null,null,null,null,null,null,null,null,null,0,0,0,null,0,0,"","","-","","",0,null,null,null,null,null,0,0,0,0,0,0,0,0,null,null,null,null,null,null,null,null,null,null,null,null,null,null,null,null,null,null,null,null,null,null,null,null,null,null,null,{"$f":"IFERROR(_xlfn._xlws.FILTER(BG645:BR1424,(BR645:BR1424=2)),\"\")","v":""}]
[null,637,{"$f":"IF(F646<>0,MAX($C$10:$C645)+1,\"\")","v":""},null,null,null,null,null,null,null,null,null,null,null,null,null,null,null,null,null,null,null,null,null,null,null,null,0,0,0,null,0,0,"","","-","","",0,null,null,null,null,null,0,0,0,0,0,0,0,0,null,null,null,null,null,null,null,null,null,null,null,null,null,null,null,null,null,null,null,null,null,null,null,null,null,null,null,{"$f":"IFERROR(_xlfn._xlws.FILTER(BG646:BR1425,(BR646:BR1425=2)),\"\")","v":""}]
[null,638,{"$f":"IF(F647<>0,MAX($C$10:$C646)+1,\"\")","v":""},null,null,null,null,null,null,null,null,null,null,null,null,null,null,null,null,null,null,null,null,null,null,null,null,0,0,0,null,0,0,"","","-","","",0,null,null,null,null,null,0,0,0,0,0,0,0,0,null,null,null,null,null,null,null,null,null,null,null,null,null,null,null,null,null,null,null,null,null,null,null,null,null,null,null,{"$f":"IFERROR(_xlfn._xlws.FILTER(BG647:BR1426,(BR647:BR1426=2)),\"\")","v":""}]
[null,639,{"$f":"IF(F648<>0,MAX($C$10:$C647)+1,\"\")","v":""},null,null,null,null,null,null,null,null,null,null,null,null,null,null,null,null,null,null,null,null,null,null,null,null,0,0,0,null,0,0,"","","-","","",0,null,null,null,null,null,0,0,0,0,0,0,0,0,null,null,null,null,null,null,null,null,null,null,null,null,null,null,null,null,null,null,null,null,null,null,null,null,null,null,null,{"$f":"IFERROR(_xlfn._xlws.FILTER(BG648:BR1427,(BR648:BR1427=2)),\"\")","v":""}]
[null,640,{"$f":"IF(F649<>0,MAX($C$10:$C648)+1,\"\")","v":""},null,null,null,null,null,null,null,null,null,null,null,null,null,null,null,null,null,null,null,null,null,null,null,null,0,0,0,null,0,0,"","","-","","",0,null,null,null,null,null,0,0,0,0,0,0,0,0,null,null,null,null,null,null,null,null,null,null,null,null,null,null,null,null,null,null,null,null,null,null,null,null,null,null,null,{"$f":"IFERROR(_xlfn._xlws.FILTER(BG649:BR1428,(BR649:BR1428=2)),\"\")","v":""}]
[null,641,{"$f":"IF(F650<>0,MAX($C$10:$C649)+1,\"\")","v":""},null,null,null,null,null,null,null,null,null,null,null,null,null,null,null,null,null,null,null,null,null,null,null,null,0,0,0,null,0,0,"","",{"$f":"IF(AG650=\"\",\"\",\"-\")","v":"-"},"","",0,null,null,null,null,null,0,0,0,0,0,0,0,0,null,null,null,null,null,null,null,null,null,null,null,null,null,null,null,null,null,null,null,null,null,null,null,null,null,null,null,{"$f":"IFERROR(_xlfn._xlws.FILTER(BG650:BR1429,(BR650:BR1429=2)),\"\")","v":""}]
[null,642,{"$f":"IF(F651<>0,MAX($C$10:$C650)+1,\"\")","v":""},null,null,null,null,null,null,null,null,null,null,null,null,null,null,null,null,null,null,null,null,null,null,null,null,0,0,0,null,{"$f":"_xlfn.XLOOKUP(AH651,$J$10:$J$49,$M$10:$M$49,\"\")+_xlfn.XLOOKUP(AL651,$J$10:$J$49,$M$10:$M$49,\"\")","v":0},{"$f":"AE651","v":0},"",{"$f":"IFERROR(IF(AH651=\"\",\"\",IF(OR($L$8=\"Nee\",AF651=0),_xlfn.XLOOKUP(AH651,$D$10:$D$49,$E$10:$E$49),ROUND(_xlfn.XLOOKUP(AH651,$D$10:$D$49,$E$10:$E$49)*AF651,0))),0)","v":""},"-",{"$f":"IFERROR(IF(AH651=\"\",\"\",IF(OR($L$8=\"Nee\",AF651=0),_xlfn.XLOOKUP(AL651,$D$10:$D$49,$E$10:$E$49)*1,ROUND(_xlfn.XLOOKUP(AL651,$D$10:$D$49,$E$10:$E$49)*AF651,0))),0)","v":""},"",0,null,null,null,null,null,0,0,0,0,0,0,0,0,null,null,null,null,null,null,null,null,null,null,null,null,null,null,null,null,null,null,null,null,null,null,null,null,null,null,null,{"$f":"IFERROR(_xlfn._xlws.FILTER(BG651:BR1430,(BR651:BR1430=2)),\"\")","v":""}]
[null,643,{"$f":"IF(F652<>0,MAX($C$10:$C651)+1,\"\")","v":""},null,null,null,null,null,null,null,null,null,null,null,null,null,null,null,null,null,null,null,null,null,null,null,null,0,0,0,null,0,0,"","","-","","",0,null,null,null,null,null,0,0,0,0,0,0,0,{"$f":"AW652","v":0},null,null,null,null,null,null,null,null,null,null,null,null,null,null,null,null,null,null,null,null,null,null,null,null,null,null,null,{"$f":"IFERROR(_xlfn._xlws.FILTER(BG652:BR1431,(BR652:BR1431=2)),\"\")","v":""}]
[null,644,{"$f":"IF(F653<>0,MAX($C$10:$C652)+1,\"\")","v":""},null,null,null,null,null,null,null,null,null,null,null,null,null,null,null,null,null,null,null,null,null,null,null,null,0,{"$f":"IFERROR(_xlfn.XLOOKUP(AG653,$AB$10:$AB$789,$AD$10:$AD$789),\"\")","v":0},0,null,0,0,"","","-","","",0,null,null,null,null,null,0,0,0,0,0,0,0,0,null,null,null,null,null,null,null,null,null,null,null,null,null,null,null,null,null,null,null,null,null,null,null,null,null,null,null,{"$f":"IFERROR(_xlfn._xlws.FILTER(BG653:BR1432,(BR653:BR1432=2)),\"\")","v":""}]
[null,645,{"$f":"IF(F654<>0,MAX($C$10:$C653)+1,\"\")","v":""},null,null,null,null,null,null,null,null,null,null,null,null,null,null,null,null,null,null,null,null,null,null,null,null,0,0,0,null,0,0,"","","-","","",0,null,null,null,null,null,0,0,0,0,0,0,0,0,null,null,null,null,null,null,null,null,null,null,null,null,null,null,null,null,null,null,null,null,null,null,null,null,null,null,null,{"$f":"IFERROR(_xlfn._xlws.FILTER(BG654:BR1433,(BR654:BR1433=2)),\"\")","v":""}]
[null,646,{"$f":"IF(F655<>0,MAX($C$10:$C654)+1,\"\")","v":""},null,null,null,null,null,null,null,null,null,null,null,null,null,null,null,null,null,null,null,null,null,null,null,null,0,0,0,null,0,0,"","","-","","",0,null,null,null,null,null,0,0,0,0,0,0,0,0,null,null,null,null,null,null,null,null,null,null,null,null,null,null,null,null,null,null,null,null,null,null,null,null,null,null,null,{"$f":"IFERROR(_xlfn._xlws.FILTER(BG655:BR1434,(BR655:BR1434=2)),\"\")","v":""}]
[null,647,{"$f":"IF(F656<>0,MAX($C$10:$C655)+1,\"\")","v":""},null,null,null,null,null,null,null,null,null,null,null,null,null,null,null,null,null,null,null,null,null,null,null,null,0,0,0,null,0,0,"","","-","","",0,null,null,null,null,null,0,0,0,0,0,0,0,0,null,null,null,null,null,null,null,null,null,null,null,null,null,null,null,null,null,null,null,null,null,null,null,null,null,null,null,{"$f":"IFERROR(_xlfn._xlws.FILTER(BG656:BR1435,(BR656:BR1435=2)),\"\")","v":""}]
[null,648,{"$f":"IF(F657<>0,MAX($C$10:$C656)+1,\"\")","v":""},null,null,null,null,null,null,null,null,null,null,null,null,null,null,null,null,null,null,null,null,null,null,null,null,0,0,0,null,0,0,"","","-","","",0,null,null,null,null,null,0,0,0,0,0,0,0,0,null,null,null,null,null,null,null,null,null,null,null,null,null,null,null,null,null,null,null,null,null,null,null,null,null,null,null,{"$f":"IFERROR(_xlfn._xlws.FILTER(BG657:BR1436,(BR657:BR1436=2)),\"\")","v":""}]
[null,649,{"$f":"IF(F658<>0,MAX($C$10:$C657)+1,\"\")","v":""},null,null,null,null,null,null,null,null,null,null,null,null,null,null,null,null,null,null,null,null,null,null,null,null,0,0,0,null,0,0,"","","-","","",0,null,null,null,null,null,0,0,0,0,0,0,0,0,null,null,null,null,null,null,null,null,null,null,null,null,null,null,null,null,null,null,null,null,null,null,null,null,null,null,null,{"$f":"IFERROR(_xlfn._xlws.FILTER(BG658:BR1437,(BR658:BR1437=2)),\"\")","v":""}]
[null,650,{"$f":"IF(F659<>0,MAX($C$10:$C658)+1,\"\")","v":""},null,null,null,null,null,null,null,null,null,null,null,null,null,null,null,null,null,null,null,null,null,null,null,null,0,0,0,null,0,0,"","","-","","",0,null,null,null,null,null,0,0,0,0,0,0,0,0,null,null,null,null,null,null,null,null,null,null,null,null,null,null,null,null,null,null,null,null,null,null,null,null,null,null,null,{"$f":"IFERROR(_xlfn._xlws.FILTER(BG659:BR1438,(BR659:BR1438=2)),\"\")","v":""}]
[null,651,{"$f":"IF(F660<>0,MAX($C$10:$C659)+1,\"\")","v":""},null,null,null,null,null,null,null,null,null,null,null,null,null,null,null,null,null,null,null,null,null,null,null,null,0,0,0,null,0,0,"","","-","","",0,null,null,null,null,null,0,0,0,0,0,0,0,0,null,null,null,null,null,null,null,null,null,null,null,null,null,null,null,null,null,null,null,null,null,null,null,null,null,null,null,{"$f":"IFERROR(_xlfn._xlws.FILTER(BG660:BR1439,(BR660:BR1439=2)),\"\")","v":""}]
[null,652,{"$f":"IF(F661<>0,MAX($C$10:$C660)+1,\"\")","v":""},null,null,null,null,null,null,null,null,null,null,null,null,null,null,null,null,null,null,null,null,null,null,null,null,0,0,0,null,0,0,"","","-","","",0,null,null,null,null,null,0,0,0,0,0,0,0,0,null,null,null,null,null,null,null,null,null,null,null,null,null,null,null,null,null,null,null,null,null,null,null,null,null,null,null,{"$f":"IFERROR(_xlfn._xlws.FILTER(BG661:BR1440,(BR661:BR1440=2)),\"\")","v":""}]
[null,653,{"$f":"IF(F662<>0,MAX($C$10:$C661)+1,\"\")","v":""},null,null,null,null,null,null,null,null,null,null,null,null,null,null,null,null,null,null,null,null,null,null,null,null,0,0,0,null,0,0,"","","-","","",0,null,null,null,null,null,0,0,0,0,0,0,0,0,null,null,null,null,null,null,null,null,null,null,null,null,null,null,null,null,null,null,null,null,null,null,null,null,null,null,null,{"$f":"IFERROR(_xlfn._xlws.FILTER(BG662:BR1441,(BR662:BR1441=2)),\"\")","v":""}]
[null,654,{"$f":"IF(F663<>0,MAX($C$10:$C662)+1,\"\")","v":""},null,null,null,null,null,null,null,null,null,null,null,null,null,null,null,null,null,null,null,null,null,null,null,null,0,0,0,null,0,0,"","","-","","",0,null,null,null,null,null,0,0,0,0,0,0,0,0,null,null,null,null,null,null,null,null,null,null,null,null,null,null,null,null,null,null,null,null,null,null,null,null,null,null,null,{"$f":"IFERROR(_xlfn._xlws.FILTER(BG663:BR1442,(BR663:BR1442=2)),\"\")","v":""}]
[null,655,{"$f":"IF(F664<>0,MAX($C$10:$C663)+1,\"\")","v":""},null,null,null,null,null,null,null,null,null,null,null,null,null,null,null,null,null,null,null,null,null,null,null,null,0,0,0,null,0,0,"","","-","","",0,null,null,null,null,null,0,0,0,0,0,0,0,0,null,null,null,null,null,null,null,null,null,null,null,null,null,null,null,null,null,null,null,null,null,null,null,null,null,null,null,{"$f":"IFERROR(_xlfn._xlws.FILTER(BG664:BR1443,(BR664:BR1443=2)),\"\")","v":""}]
[null,656,{"$f":"IF(F665<>0,MAX($C$10:$C664)+1,\"\")","v":""},null,null,null,null,null,null,null,null,null,null,null,null,null,null,null,null,null,null,null,null,null,null,null,null,0,0,0,null,0,0,"","","-","","",0,null,null,null,null,null,0,0,0,0,0,0,0,0,null,null,null,null,null,null,null,null,null,null,null,null,null,null,null,null,null,null,null,null,null,null,null,null,null,null,null,{"$f":"IFERROR(_xlfn._xlws.FILTER(BG665:BR1444,(BR665:BR1444=2)),\"\")","v":""}]
[null,657,{"$f":"IF(F666<>0,MAX($C$10:$C665)+1,\"\")","v":""},null,null,null,null,null,null,null,null,null,null,null,null,null,null,null,null,null,null,null,null,null,null,null,null,0,0,0,null,0,0,"","","-","","",0,null,null,null,null,null,0,0,0,0,0,0,0,0,null,null,null,null,null,null,null,null,null,null,null,null,null,null,null,null,null,null,null,null,null,null,null,null,null,null,null,{"$f":"IFERROR(_xlfn._xlws.FILTER(BG666:BR1445,(BR666:BR1445=2)),\"\")","v":""}]
[null,658,{"$f":"IF(F667<>0,MAX($C$10:$C666)+1,\"\")","v":""},null,null,null,null,null,null,null,null,null,null,null,null,null,null,null,null,null,null,null,null,null,null,null,null,0,0,0,null,0,0,"","","-","","",0,null,null,null,null,null,0,0,0,0,0,0,0,0,null,null,null,null,null,null,null,null,null,null,null,null,null,null,null,null,null,null,null,null,null,null,null,null,null,null,null,{"$f":"IFERROR(_xlfn._xlws.FILTER(BG667:BR1446,(BR667:BR1446=2)),\"\")","v":""}]
[null,659,{"$f":"IF(F668<>0,MAX($C$10:$C667)+1,\"\")","v":""},null,null,null,null,null,null,null,null,null,null,null,null,null,null,null,null,null,null,null,null,null,null,null,null,0,0,0,null,0,0,"","","-","","",0,null,null,null,null,null,0,0,0,0,0,0,0,0,null,null,null,null,null,null,null,null,null,null,null,null,null,null,null,null,null,null,null,null,null,null,null,null,null,null,null,{"$f":"IFERROR(_xlfn._xlws.FILTER(BG668:BR1447,(BR668:BR1447=2)),\"\")","v":""}]
[null,660,{"$f":"IF(F669<>0,MAX($C$10:$C668)+1,\"\")","v":""},null,null,null,null,null,null,null,null,null,null,null,null,null,null,null,null,null,null,null,null,null,null,null,null,0,0,0,null,0,0,"","","-","","",0,null,null,null,null,null,0,0,0,0,0,0,0,0,null,null,null,null,null,null,null,null,null,null,null,null,null,null,null,null,null,null,null,null,null,null,null,null,null,null,null,{"$f":"IFERROR(_xlfn._xlws.FILTER(BG669:BR1448,(BR669:BR1448=2)),\"\")","v":""}]
[null,661,{"$f":"IF(F670<>0,MAX($C$10:$C669)+1,\"\")","v":""},null,null,null,null,null,null,null,null,null,null,null,null,null,null,null,null,null,null,null,null,null,null,null,null,0,0,0,null,0,0,"","","-","","",0,null,null,null,null,null,0,0,0,0,0,0,0,0,null,null,null,null,null,null,null,null,null,null,null,null,null,null,null,null,null,null,null,null,null,null,null,null,null,null,null,{"$f":"IFERROR(_xlfn._xlws.FILTER(BG670:BR1449,(BR670:BR1449=2)),\"\")","v":""}]
[null,662,{"$f":"IF(F671<>0,MAX($C$10:$C670)+1,\"\")","v":""},null,null,null,null,null,null,null,null,null,null,null,null,null,null,null,null,null,null,null,null,null,null,null,null,0,0,0,null,0,0,"","","-","","",0,null,null,null,null,null,0,0,0,0,0,0,0,0,null,null,null,null,null,null,null,null,null,null,null,null,null,null,null,null,null,null,null,null,null,null,null,null,null,null,null,{"$f":"IFERROR(_xlfn._xlws.FILTER(BG671:BR1450,(BR671:BR1450=2)),\"\")","v":""}]
[null,663,{"$f":"IF(F672<>0,MAX($C$10:$C671)+1,\"\")","v":""},null,null,null,null,null,null,null,null,null,null,null,null,null,null,null,null,null,null,null,null,null,null,null,null,0,0,0,null,0,0,"","","-","","",0,null,null,null,null,null,0,0,0,0,0,0,0,0,null,null,null,null,null,null,null,null,null,null,null,null,null,null,null,null,null,null,null,null,null,null,null,null,null,null,null,{"$f":"IFERROR(_xlfn._xlws.FILTER(BG672:BR1451,(BR672:BR1451=2)),\"\")","v":""}]
[null,664,{"$f":"IF(F673<>0,MAX($C$10:$C672)+1,\"\")","v":""},null,null,null,null,null,null,null,null,null,null,null,null,null,null,null,null,null,null,null,null,null,null,null,null,0,0,0,null,0,0,"","","-","","",0,null,null,null,null,null,0,0,0,0,0,0,0,0,null,null,null,null,null,null,null,null,null,null,null,null,null,null,null,null,null,null,null,null,null,null,null,null,null,null,null,{"$f":"IFERROR(_xlfn._xlws.FILTER(BG673:BR1452,(BR673:BR1452=2)),\"\")","v":""}]
[null,665,{"$f":"IF(F674<>0,MAX($C$10:$C673)+1,\"\")","v":""},null,null,null,null,null,null,null,null,null,null,null,null,null,null,null,null,null,null,null,null,null,null,null,null,0,0,0,null,0,0,"","","-","","",0,null,null,null,null,null,0,0,0,0,0,0,0,0,null,null,null,null,null,null,null,null,null,null,null,null,null,null,null,null,null,null,null,null,null,null,null,null,null,null,null,{"$f":"IFERROR(_xlfn._xlws.FILTER(BG674:BR1453,(BR674:BR1453=2)),\"\")","v":""}]
[null,666,{"$f":"IF(F675<>0,MAX($C$10:$C674)+1,\"\")","v":""},null,null,null,null,null,null,null,null,null,null,null,null,null,null,null,null,null,null,null,null,null,null,null,null,0,0,0,null,0,0,"","","-","","",0,null,null,null,null,null,0,0,0,0,0,0,0,0,null,null,null,null,null,null,null,null,null,null,null,null,null,null,null,null,null,null,null,null,null,null,null,null,null,null,null,{"$f":"IFERROR(_xlfn._xlws.FILTER(BG675:BR1454,(BR675:BR1454=2)),\"\")","v":""}]
[null,667,{"$f":"IF(F676<>0,MAX($C$10:$C675)+1,\"\")","v":""},null,null,null,null,null,null,null,null,null,null,null,null,null,null,null,null,null,null,null,null,null,null,null,null,0,0,0,null,0,0,"","","-","","",0,null,null,null,null,null,0,0,0,0,0,0,0,0,null,null,null,null,null,null,null,null,null,null,null,null,null,null,null,null,null,null,null,null,null,null,null,null,null,null,null,{"$f":"IFERROR(_xlfn._xlws.FILTER(BG676:BR1455,(BR676:BR1455=2)),\"\")","v":""}]
[null,668,{"$f":"IF(F677<>0,MAX($C$10:$C676)+1,\"\")","v":""},null,null,null,null,null,null,null,null,null,null,null,null,null,null,null,null,null,null,null,null,null,null,null,null,0,0,0,null,0,0,"","","-","","",0,null,null,null,null,null,0,0,0,0,0,0,0,0,null,null,null,null,null,null,null,null,null,null,null,null,null,null,null,null,null,null,null,null,null,null,null,null,null,null,null,{"$f":"IFERROR(_xlfn._xlws.FILTER(BG677:BR1456,(BR677:BR1456=2)),\"\")","v":""}]
[null,669,{"$f":"IF(F678<>0,MAX($C$10:$C677)+1,\"\")","v":""},null,null,null,null,null,null,null,null,null,null,null,null,null,null,null,null,null,null,null,null,null,null,null,null,0,0,0,null,0,0,"","","-","","",0,null,null,null,null,null,0,0,0,0,0,0,0,0,null,null,null,null,null,null,null,null,null,null,null,null,null,null,null,null,null,null,null,null,null,null,null,null,null,null,null,{"$f":"IFERROR(_xlfn._xlws.FILTER(BG678:BR1457,(BR678:BR1457=2)),\"\")","v":""}]
[null,670,{"$f":"IF(F679<>0,MAX($C$10:$C678)+1,\"\")","v":""},null,null,null,null,null,null,null,null,null,null,null,null,null,null,null,null,null,null,null,null,null,null,null,null,0,0,0,null,0,0,"","","-","","",0,null,null,null,null,null,0,0,0,0,0,0,0,0,null,null,null,null,null,null,null,null,null,null,null,null,null,null,null,null,null,null,null,null,null,null,null,null,null,null,null,{"$f":"IFERROR(_xlfn._xlws.FILTER(BG679:BR1458,(BR679:BR1458=2)),\"\")","v":""}]
[null,671,{"$f":"IF(F680<>0,MAX($C$10:$C679)+1,\"\")","v":""},null,null,null,null,null,null,null,null,null,null,null,null,null,null,null,null,null,null,null,null,null,null,null,null,0,0,0,null,0,0,"","","-","","",0,null,null,null,null,null,0,0,0,0,0,0,0,0,null,null,null,null,null,null,null,null,null,null,null,null,null,null,null,null,null,null,null,null,null,null,null,null,null,null,null,{"$f":"IFERROR(_xlfn._xlws.FILTER(BG680:BR1459,(BR680:BR1459=2)),\"\")","v":""}]
[null,672,{"$f":"IF(F681<>0,MAX($C$10:$C680)+1,\"\")","v":""},null,null,null,null,null,null,null,null,null,null,null,null,null,null,null,null,null,null,null,null,null,null,null,null,0,0,0,null,0,0,"","","-","","",0,null,null,null,null,null,0,0,0,0,0,0,0,0,null,null,null,null,null,null,null,null,null,null,null,null,null,null,null,null,null,null,null,null,null,null,null,null,null,null,null,{"$f":"IFERROR(_xlfn._xlws.FILTER(BG681:BR1460,(BR681:BR1460=2)),\"\")","v":""}]
[null,673,{"$f":"IF(F682<>0,MAX($C$10:$C681)+1,\"\")","v":""},null,null,null,null,null,null,null,null,null,null,null,null,null,null,null,null,null,null,null,null,null,null,null,null,0,0,0,null,0,0,"","","-","","",0,null,null,null,null,null,0,0,0,0,0,0,0,0,null,null,null,null,null,null,null,null,null,null,null,null,null,null,null,null,null,null,null,null,null,null,null,null,null,null,null,{"$f":"IFERROR(_xlfn._xlws.FILTER(BG682:BR1461,(BR682:BR1461=2)),\"\")","v":""}]
[null,674,{"$f":"IF(F683<>0,MAX($C$10:$C682)+1,\"\")","v":""},null,null,null,null,null,null,null,null,null,null,null,null,null,null,null,null,null,null,null,null,null,null,null,null,0,0,0,null,0,0,"","","-","","",0,null,null,null,null,null,0,0,0,0,0,0,0,0,null,null,null,null,null,null,null,null,null,null,null,null,null,null,null,null,null,null,null,null,null,null,null,null,null,null,null,{"$f":"IFERROR(_xlfn._xlws.FILTER(BG683:BR1462,(BR683:BR1462=2)),\"\")","v":""}]
[null,675,{"$f":"IF(F684<>0,MAX($C$10:$C683)+1,\"\")","v":""},null,null,null,null,null,null,null,null,null,null,null,null,null,null,null,null,null,null,null,null,null,null,null,null,0,0,0,null,0,0,"","","-","","",0,null,null,null,null,null,0,0,0,0,0,0,0,0,null,null,null,null,null,null,null,null,null,null,null,null,null,null,null,null,null,null,null,null,null,null,null,null,null,null,null,{"$f":"IFERROR(_xlfn._xlws.FILTER(BG684:BR1463,(BR684:BR1463=2)),\"\")","v":""}]
[null,676,{"$f":"IF(F685<>0,MAX($C$10:$C684)+1,\"\")","v":""},null,null,null,null,null,null,null,null,null,null,null,null,null,null,null,null,null,null,null,null,null,null,null,null,0,0,0,null,0,0,"","","-","","",0,null,null,null,null,null,0,0,0,0,0,0,0,0,null,null,null,null,null,null,null,null,null,null,null,null,null,null,null,null,null,null,null,null,null,null,null,null,null,null,null,{"$f":"IFERROR(_xlfn._xlws.FILTER(BG685:BR1464,(BR685:BR1464=2)),\"\")","v":""}]
[null,677,{"$f":"IF(F686<>0,MAX($C$10:$C685)+1,\"\")","v":""},null,null,null,null,null,null,null,null,null,null,null,null,null,null,null,null,null,null,null,null,null,null,null,null,0,0,0,null,0,0,"","","-","","",0,null,null,null,null,null,0,0,0,0,0,0,0,0,null,null,null,null,null,null,null,null,null,null,null,null,null,null,null,null,null,null,null,null,null,null,null,null,null,null,null,{"$f":"IFERROR(_xlfn._xlws.FILTER(BG686:BR1465,(BR686:BR1465=2)),\"\")","v":""}]
[null,678,{"$f":"IF(F687<>0,MAX($C$10:$C686)+1,\"\")","v":""},null,null,null,null,null,null,null,null,null,null,null,null,null,null,null,null,null,null,null,null,null,null,null,null,0,0,0,null,0,0,"","","-","","",0,null,null,null,null,null,0,0,0,0,0,0,0,0,null,null,null,null,null,null,null,null,null,null,null,null,null,null,null,null,null,null,null,null,null,null,null,null,null,null,null,{"$f":"IFERROR(_xlfn._xlws.FILTER(BG687:BR1466,(BR687:BR1466=2)),\"\")","v":""}]
[null,679,{"$f":"IF(F688<>0,MAX($C$10:$C687)+1,\"\")","v":""},null,null,null,null,null,null,null,null,null,null,null,null,null,null,null,null,null,null,null,null,null,null,null,null,0,0,0,null,0,0,"","","-","","",0,null,null,null,null,null,0,0,0,0,0,0,0,0,null,null,null,null,null,null,null,null,null,null,null,null,null,null,null,null,null,null,null,null,null,null,null,null,null,null,null,{"$f":"IFERROR(_xlfn._xlws.FILTER(BG688:BR1467,(BR688:BR1467=2)),\"\")","v":""}]
[null,680,{"$f":"IF(F689<>0,MAX($C$10:$C688)+1,\"\")","v":""},null,null,null,null,null,null,null,null,null,null,null,null,null,null,null,null,null,null,null,null,null,null,null,null,0,0,0,null,0,0,"","","-","","",0,null,null,null,null,null,0,0,0,0,0,0,0,0,null,null,null,null,null,null,null,null,null,null,null,null,null,null,null,null,null,null,null,null,null,null,null,null,null,null,null,{"$f":"IFERROR(_xlfn._xlws.FILTER(BG689:BR1468,(BR689:BR1468=2)),\"\")","v":""}]
[null,681,{"$f":"IF(F690<>0,MAX($C$10:$C689)+1,\"\")","v":""},null,null,null,null,null,null,null,null,null,null,null,null,null,null,null,null,null,null,null,null,null,null,null,null,0,0,0,null,0,0,"","","-","","",0,null,null,null,null,null,0,0,0,0,0,0,0,0,null,null,null,null,null,null,null,null,null,null,null,null,null,null,null,null,null,null,null,null,null,null,null,null,null,null,null,{"$f":"IFERROR(_xlfn._xlws.FILTER(BG690:BR1469,(BR690:BR1469=2)),\"\")","v":""}]
[null,682,{"$f":"IF(F691<>0,MAX($C$10:$C690)+1,\"\")","v":""},null,null,null,null,null,null,null,null,null,null,null,null,null,null,null,null,null,null,null,null,null,null,null,null,0,0,0,null,0,0,"","","-","","",0,null,null,null,null,null,0,0,0,0,0,0,0,0,null,null,null,null,null,null,null,null,null,null,null,null,null,null,null,null,null,null,null,null,null,null,null,null,null,null,null,{"$f":"IFERROR(_xlfn._xlws.FILTER(BG691:BR1470,(BR691:BR1470=2)),\"\")","v":""}]
[null,683,{"$f":"IF(F692<>0,MAX($C$10:$C691)+1,\"\")","v":""},null,null,null,null,null,null,null,null,null,null,null,null,null,null,null,null,null,null,null,null,null,null,null,null,0,0,0,null,0,0,"","","-","","",0,null,null,null,null,null,0,0,0,0,0,0,0,0,null,null,null,null,null,null,null,null,null,null,null,null,null,null,null,null,null,null,null,null,null,null,null,null,null,null,null,{"$f":"IFERROR(_xlfn._xlws.FILTER(BG692:BR1471,(BR692:BR1471=2)),\"\")","v":""}]
[null,684,{"$f":"IF(F693<>0,MAX($C$10:$C692)+1,\"\")","v":""},null,null,null,null,null,null,null,null,null,null,null,null,null,null,null,null,null,null,null,null,null,null,null,null,0,0,0,null,0,0,"","","-","","",0,null,null,null,null,null,0,0,0,0,0,0,0,0,null,null,null,null,null,null,null,null,null,null,null,null,null,null,null,null,null,null,null,null,null,null,null,null,null,null,null,{"$f":"IFERROR(_xlfn._xlws.FILTER(BG693:BR1472,(BR693:BR1472=2)),\"\")","v":""}]
[null,685,{"$f":"IF(F694<>0,MAX($C$10:$C693)+1,\"\")","v":""},null,null,null,null,null,null,null,null,null,null,null,null,null,null,null,null,null,null,null,null,null,null,null,null,0,0,0,null,0,0,"","","-","","",0,null,null,null,null,null,0,0,0,0,0,0,0,0,null,null,null,null,null,null,null,null,null,null,null,null,null,null,null,null,null,null,null,null,null,null,null,null,null,null,null,{"$f":"IFERROR(_xlfn._xlws.FILTER(BG694:BR1473,(BR694:BR1473=2)),\"\")","v":""}]
[null,686,{"$f":"IF(F695<>0,MAX($C$10:$C694)+1,\"\")","v":""},null,null,null,null,null,null,null,null,null,null,null,null,null,null,null,null,null,null,null,null,null,null,null,null,0,0,0,null,0,0,"","","-","","",0,null,null,null,null,null,0,0,0,0,0,0,0,0,null,null,null,null,null,null,null,null,null,null,null,null,null,null,null,null,null,null,null,null,null,null,null,null,null,null,null,{"$f":"IFERROR(_xlfn._xlws.FILTER(BG695:BR1474,(BR695:BR1474=2)),\"\")","v":""}]
[null,687,{"$f":"IF(F696<>0,MAX($C$10:$C695)+1,\"\")","v":""},null,null,null,null,null,null,null,null,null,null,null,null,null,null,null,null,null,null,null,null,null,null,null,null,0,0,0,null,0,0,"","","-","","",0,null,null,null,null,null,0,0,0,0,0,0,0,0,null,null,null,null,null,null,null,null,null,null,null,null,null,null,null,null,null,null,null,null,null,null,null,null,null,null,null,{"$f":"IFERROR(_xlfn._xlws.FILTER(BG696:BR1475,(BR696:BR1475=2)),\"\")","v":""}]
[null,688,{"$f":"IF(F697<>0,MAX($C$10:$C696)+1,\"\")","v":""},null,null,null,null,null,null,null,null,null,null,null,null,null,null,null,null,null,null,null,null,null,null,null,null,0,0,0,null,0,0,"","","-","","",0,null,null,null,null,null,0,0,0,0,0,0,0,0,null,null,null,null,null,null,null,null,null,null,null,null,null,null,null,null,null,null,null,null,null,null,null,null,null,null,null,{"$f":"IFERROR(_xlfn._xlws.FILTER(BG697:BR1476,(BR697:BR1476=2)),\"\")","v":""}]
[null,689,{"$f":"IF(F698<>0,MAX($C$10:$C697)+1,\"\")","v":""},null,null,null,null,null,null,null,null,null,null,null,null,null,null,null,null,null,null,null,null,null,null,null,null,0,0,0,null,0,0,"","","-","","",0,null,null,null,null,null,0,0,0,0,0,0,0,0,null,null,null,null,null,null,null,null,null,null,null,null,null,null,null,null,null,null,null,null,null,null,null,null,null,null,null,{"$f":"IFERROR(_xlfn._xlws.FILTER(BG698:BR1477,(BR698:BR1477=2)),\"\")","v":""}]
[null,690,{"$f":"IF(F699<>0,MAX($C$10:$C698)+1,\"\")","v":""},null,null,null,null,null,null,null,null,null,null,null,null,null,null,null,null,null,null,null,null,null,null,null,null,0,0,0,null,0,0,"","","-","","",0,null,null,null,null,null,0,0,0,0,0,0,0,0,null,null,null,null,null,null,null,null,null,null,null,null,null,null,null,null,null,null,null,null,null,null,null,null,null,null,null,{"$f":"IFERROR(_xlfn._xlws.FILTER(BG699:BR1478,(BR699:BR1478=2)),\"\")","v":""}]
[null,691,{"$f":"IF(F700<>0,MAX($C$10:$C699)+1,\"\")","v":""},null,null,null,null,null,null,null,null,null,null,null,null,null,null,null,null,null,null,null,null,null,null,null,null,0,0,0,null,0,0,"","","-","","",0,null,null,null,null,null,0,0,0,0,0,0,0,0,null,null,null,null,null,null,null,null,null,null,null,null,null,null,null,null,null,null,null,null,null,null,null,null,null,null,null,{"$f":"IFERROR(_xlfn._xlws.FILTER(BG700:BR1479,(BR700:BR1479=2)),\"\")","v":""}]
[null,692,{"$f":"IF(F701<>0,MAX($C$10:$C700)+1,\"\")","v":""},null,null,null,null,null,null,null,null,null,null,null,null,null,null,null,null,null,null,null,null,null,null,null,null,0,0,0,null,0,0,"","","-","","",0,null,null,null,null,null,0,0,0,0,0,0,0,0,null,null,null,null,null,null,null,null,null,null,null,null,null,null,null,null,null,null,null,null,null,null,null,null,null,null,null,{"$f":"IFERROR(_xlfn._xlws.FILTER(BG701:BR1480,(BR701:BR1480=2)),\"\")","v":""}]
[null,693,{"$f":"IF(F702<>0,MAX($C$10:$C701)+1,\"\")","v":""},null,null,null,null,null,null,null,null,null,null,null,null,null,null,null,null,null,null,null,null,null,null,null,null,0,0,0,null,0,0,"","","-","","",0,null,null,null,null,null,0,0,0,0,0,0,0,0,null,null,null,null,null,null,null,null,null,null,null,null,null,null,null,null,null,null,null,null,null,null,null,null,null,null,null,{"$f":"IFERROR(_xlfn._xlws.FILTER(BG702:BR1481,(BR702:BR1481=2)),\"\")","v":""}]
[null,694,{"$f":"IF(F703<>0,MAX($C$10:$C702)+1,\"\")","v":""},null,null,null,null,null,null,null,null,null,null,null,null,null,null,null,null,null,null,null,null,null,null,null,null,0,0,0,null,0,0,"","","-","","",0,null,null,null,null,null,0,0,0,0,0,0,0,0,null,null,null,null,null,null,null,null,null,null,null,null,null,null,null,null,null,null,null,null,null,null,null,null,null,null,null,{"$f":"IFERROR(_xlfn._xlws.FILTER(BG703:BR1482,(BR703:BR1482=2)),\"\")","v":""}]
[null,695,{"$f":"IF(F704<>0,MAX($C$10:$C703)+1,\"\")","v":""},null,null,null,null,null,null,null,null,null,null,null,null,null,null,null,null,null,null,null,null,null,null,null,null,0,0,0,null,0,0,"","","-","","",0,null,null,null,null,null,0,0,0,0,0,0,0,0,null,null,null,null,null,null,null,null,null,null,null,null,null,null,null,null,null,null,null,null,null,null,null,null,null,null,null,{"$f":"IFERROR(_xlfn._xlws.FILTER(BG704:BR1483,(BR704:BR1483=2)),\"\")","v":""}]
[null,696,{"$f":"IF(F705<>0,MAX($C$10:$C704)+1,\"\")","v":""},null,null,null,null,null,null,null,null,null,null,null,null,null,null,null,null,null,null,null,null,null,null,null,null,0,0,0,null,0,0,"","","-","","",0,null,null,null,null,null,0,0,0,0,0,0,0,0,null,null,null,null,null,null,null,null,null,null,null,null,null,null,null,null,null,null,null,null,null,null,null,null,null,null,null,{"$f":"IFERROR(_xlfn._xlws.FILTER(BG705:BR1484,(BR705:BR1484=2)),\"\")","v":""}]
[null,697,{"$f":"IF(F706<>0,MAX($C$10:$C705)+1,\"\")","v":""},null,null,null,null,null,null,null,null,null,null,null,null,null,null,null,null,null,null,null,null,null,null,null,null,0,0,0,null,0,0,"","","-","","",0,null,null,null,null,null,0,0,0,0,0,0,0,0,null,null,null,null,null,null,null,null,null,null,null,null,null,null,null,null,null,null,null,null,null,null,null,null,null,null,null,{"$f":"IFERROR(_xlfn._xlws.FILTER(BG706:BR1485,(BR706:BR1485=2)),\"\")","v":""}]
[null,698,{"$f":"IF(F707<>0,MAX($C$10:$C706)+1,\"\")","v":""},null,null,null,null,null,null,null,null,null,null,null,null,null,null,null,null,null,null,null,null,null,null,null,null,0,0,0,null,0,0,"","","-","","",0,null,null,null,null,null,0,0,0,0,0,0,0,0,null,null,null,null,null,null,null,null,null,null,null,null,null,null,null,null,null,null,null,null,null,null,null,null,null,null,null,{"$f":"IFERROR(_xlfn._xlws.FILTER(BG707:BR1486,(BR707:BR1486=2)),\"\")","v":""}]
[null,699,{"$f":"IF(F708<>0,MAX($C$10:$C707)+1,\"\")","v":""},null,null,null,null,null,null,null,null,null,null,null,null,null,null,null,null,null,null,null,null,null,null,null,null,0,0,0,null,0,0,"","","-","","",0,null,null,null,null,null,0,0,0,0,0,0,0,0,null,null,null,null,null,null,null,null,null,null,null,null,null,null,null,null,null,null,null,null,null,null,null,null,null,null,null,{"$f":"IFERROR(_xlfn._xlws.FILTER(BG708:BR1487,(BR708:BR1487=2)),\"\")","v":""}]
[null,700,{"$f":"IF(F709<>0,MAX($C$10:$C708)+1,\"\")","v":""},null,null,null,null,null,null,null,null,null,null,null,null,null,null,null,null,null,null,null,null,null,null,null,null,0,0,0,null,0,0,"","","-","","",0,null,null,null,null,null,0,0,0,0,0,0,0,0,null,null,null,null,null,null,null,null,null,null,null,null,null,null,null,null,null,null,null,null,null,null,null,null,null,null,null,{"$f":"IFERROR(_xlfn._xlws.FILTER(BG709:BR1488,(BR709:BR1488=2)),\"\")","v":""}]
[null,701,{"$f":"IF(F710<>0,MAX($C$10:$C709)+1,\"\")","v":""},null,null,null,null,null,null,null,null,null,null,null,null,null,null,null,null,null,null,null,null,null,null,null,null,0,0,0,null,0,0,"","","-","","",0,null,null,null,null,null,0,0,0,0,0,0,0,0,null,null,null,null,null,null,null,null,null,null,null,null,null,null,null,null,null,null,null,null,null,null,null,null,null,null,null,{"$f":"IFERROR(_xlfn._xlws.FILTER(BG710:BR1489,(BR710:BR1489=2)),\"\")","v":""}]
[null,702,{"$f":"IF(F711<>0,MAX($C$10:$C710)+1,\"\")","v":""},null,null,null,null,null,null,null,null,null,null,null,null,null,null,null,null,null,null,null,null,null,null,null,null,0,0,0,null,0,0,"","","-","","",0,null,null,null,null,null,0,0,0,0,0,0,0,0,null,null,null,null,null,null,null,null,null,null,null,null,null,null,null,null,null,null,null,null,null,null,null,null,null,null,null,{"$f":"IFERROR(_xlfn._xlws.FILTER(BG711:BR1490,(BR711:BR1490=2)),\"\")","v":""}]
[null,703,{"$f":"IF(F712<>0,MAX($C$10:$C711)+1,\"\")","v":""},null,null,null,null,null,null,null,null,null,null,null,null,null,null,null,null,null,null,null,null,null,null,null,null,0,0,0,null,0,0,"","","-","","",0,null,null,null,null,null,0,0,0,0,0,0,0,0,null,null,null,null,null,null,null,null,null,null,null,null,null,null,null,null,null,null,null,null,null,null,null,null,null,null,null,{"$f":"IFERROR(_xlfn._xlws.FILTER(BG712:BR1491,(BR712:BR1491=2)),\"\")","v":""}]
[null,704,{"$f":"IF(F713<>0,MAX($C$10:$C712)+1,\"\")","v":""},null,null,null,null,null,null,null,null,null,null,null,null,null,null,null,null,null,null,null,null,null,null,null,null,0,0,0,null,0,0,"","","-","","",0,null,null,null,null,null,0,0,0,0,0,0,0,0,null,null,null,null,null,null,null,null,null,null,null,null,null,null,null,null,null,null,null,null,null,null,null,null,null,null,null,{"$f":"IFERROR(_xlfn._xlws.FILTER(BG713:BR1492,(BR713:BR1492=2)),\"\")","v":""}]
[null,705,{"$f":"IF(F714<>0,MAX($C$10:$C713)+1,\"\")","v":""},null,null,null,null,null,null,null,null,null,null,null,null,null,null,null,null,null,null,null,null,null,null,null,null,0,0,0,null,0,0,"","",{"$f":"IF(AG714=\"\",\"\",\"-\")","v":"-"},"","",0,null,null,null,null,null,0,0,0,0,0,0,0,0,null,null,null,null,null,null,null,null,null,null,null,null,null,null,null,null,null,null,null,null,null,null,null,null,null,null,null,{"$f":"IFERROR(_xlfn._xlws.FILTER(BG714:BR1493,(BR714:BR1493=2)),\"\")","v":""}]
[null,706,{"$f":"IF(F715<>0,MAX($C$10:$C714)+1,\"\")","v":""},null,null,null,null,null,null,null,null,null,null,null,null,null,null,null,null,null,null,null,null,null,null,null,null,0,0,0,null,{"$f":"_xlfn.XLOOKUP(AH715,$J$10:$J$49,$M$10:$M$49,\"\")+_xlfn.XLOOKUP(AL715,$J$10:$J$49,$M$10:$M$49,\"\")","v":0},{"$f":"AE715","v":0},"",{"$f":"IFERROR(IF(AH715=\"\",\"\",IF(OR($L$8=\"Nee\",AF715=0),_xlfn.XLOOKUP(AH715,$D$10:$D$49,$E$10:$E$49),ROUND(_xlfn.XLOOKUP(AH715,$D$10:$D$49,$E$10:$E$49)*AF715,0))),0)","v":""},"-",{"$f":"IFERROR(IF(AH715=\"\",\"\",IF(OR($L$8=\"Nee\",AF715=0),_xlfn.XLOOKUP(AL715,$D$10:$D$49,$E$10:$E$49)*1,ROUND(_xlfn.XLOOKUP(AL715,$D$10:$D$49,$E$10:$E$49)*AF715,0))),0)","v":""},"",0,null,null,null,null,null,0,0,0,0,0,0,0,0,null,null,null,null,null,null,null,null,null,null,null,null,null,null,null,null,null,null,null,null,null,null,null,null,null,null,null,{"$f":"IFERROR(_xlfn._xlws.FILTER(BG715:BR1494,(BR715:BR1494=2)),\"\")","v":""}]
[null,707,{"$f":"IF(F716<>0,MAX($C$10:$C715)+1,\"\")","v":""},null,null,null,null,null,null,null,null,null,null,null,null,null,null,null,null,null,null,null,null,null,null,null,null,0,0,0,null,0,0,"","","-","","",0,null,null,null,null,null,0,0,0,0,0,0,0,{"$f":"AW716","v":0},null,null,null,null,null,null,null,null,null,null,null,null,null,null,null,null,null,null,null,null,null,null,null,null,null,null,null,{"$f":"IFERROR(_xlfn._xlws.FILTER(BG716:BR1495,(BR716:BR1495=2)),\"\")","v":""}]
[null,708,{"$f":"IF(F717<>0,MAX($C$10:$C716)+1,\"\")","v":""},null,null,null,null,null,null,null,null,null,null,null,null,null,null,null,null,null,null,null,null,null,null,null,null,0,{"$f":"IFERROR(_xlfn.XLOOKUP(AG717,$AB$10:$AB$789,$AD$10:$AD$789),\"\")","v":0},0,null,0,0,"","","-","","",0,null,null,null,null,null,0,0,0,0,0,0,0,0,null,null,null,null,null,null,null,null,null,null,null,null,null,null,null,null,null,null,null,null,null,null,null,null,null,null,null,{"$f":"IFERROR(_xlfn._xlws.FILTER(BG717:BR1496,(BR717:BR1496=2)),\"\")","v":""}]
[null,709,{"$f":"IF(F718<>0,MAX($C$10:$C717)+1,\"\")","v":""},null,null,null,null,null,null,null,null,null,null,null,null,null,null,null,null,null,null,null,null,null,null,null,null,0,0,0,null,0,0,"","","-","","",0,null,null,null,null,null,0,0,0,0,0,0,0,0,null,null,null,null,null,null,null,null,null,null,null,null,null,null,null,null,null,null,null,null,null,null,null,null,null,null,null,{"$f":"IFERROR(_xlfn._xlws.FILTER(BG718:BR1497,(BR718:BR1497=2)),\"\")","v":""}]
[null,710,{"$f":"IF(F719<>0,MAX($C$10:$C718)+1,\"\")","v":""},null,null,null,null,null,null,null,null,null,null,null,null,null,null,null,null,null,null,null,null,null,null,null,null,0,0,0,null,0,0,"","","-","","",0,null,null,null,null,null,0,0,0,0,0,0,0,0,null,null,null,null,null,null,null,null,null,null,null,null,null,null,null,null,null,null,null,null,null,null,null,null,null,null,null,{"$f":"IFERROR(_xlfn._xlws.FILTER(BG719:BR1498,(BR719:BR1498=2)),\"\")","v":""}]
[null,711,{"$f":"IF(F720<>0,MAX($C$10:$C719)+1,\"\")","v":""},null,null,null,null,null,null,null,null,null,null,null,null,null,null,null,null,null,null,null,null,null,null,null,null,0,0,0,null,0,0,"","","-","","",0,null,null,null,null,null,0,0,0,0,0,0,0,0,null,null,null,null,null,null,null,null,null,null,null,null,null,null,null,null,null,null,null,null,null,null,null,null,null,null,null,{"$f":"IFERROR(_xlfn._xlws.FILTER(BG720:BR1499,(BR720:BR1499=2)),\"\")","v":""}]
[null,712,{"$f":"IF(F721<>0,MAX($C$10:$C720)+1,\"\")","v":""},null,null,null,null,null,null,null,null,null,null,null,null,null,null,null,null,null,null,null,null,null,null,null,null,0,0,0,null,0,0,"","","-","","",0,null,null,null,null,null,0,0,0,0,0,0,0,0,null,null,null,null,null,null,null,null,null,null,null,null,null,null,null,null,null,null,null,null,null,null,null,null,null,null,null,{"$f":"IFERROR(_xlfn._xlws.FILTER(BG721:BR1500,(BR721:BR1500=2)),\"\")","v":""}]
[null,713,{"$f":"IF(F722<>0,MAX($C$10:$C721)+1,\"\")","v":""},null,null,null,null,null,null,null,null,null,null,null,null,null,null,null,null,null,null,null,null,null,null,null,null,0,0,0,null,0,0,"","","-","","",0,null,null,null,null,null,0,0,0,0,0,0,0,0,null,null,null,null,null,null,null,null,null,null,null,null,null,null,null,null,null,null,null,null,null,null,null,null,null,null,null,{"$f":"IFERROR(_xlfn._xlws.FILTER(BG722:BR1501,(BR722:BR1501=2)),\"\")","v":""}]
[null,714,{"$f":"IF(F723<>0,MAX($C$10:$C722)+1,\"\")","v":""},null,null,null,null,null,null,null,null,null,null,null,null,null,null,null,null,null,null,null,null,null,null,null,null,0,0,0,null,0,0,"","","-","","",0,null,null,null,null,null,0,0,0,0,0,0,0,0,null,null,null,null,null,null,null,null,null,null,null,null,null,null,null,null,null,null,null,null,null,null,null,null,null,null,null,{"$f":"IFERROR(_xlfn._xlws.FILTER(BG723:BR1502,(BR723:BR1502=2)),\"\")","v":""}]
[null,715,{"$f":"IF(F724<>0,MAX($C$10:$C723)+1,\"\")","v":""},null,null,null,null,null,null,null,null,null,null,null,null,null,null,null,null,null,null,null,null,null,null,null,null,0,0,0,null,0,0,"","","-","","",0,null,null,null,null,null,0,0,0,0,0,0,0,0,null,null,null,null,null,null,null,null,null,null,null,null,null,null,null,null,null,null,null,null,null,null,null,null,null,null,null,{"$f":"IFERROR(_xlfn._xlws.FILTER(BG724:BR1503,(BR724:BR1503=2)),\"\")","v":""}]
[null,716,{"$f":"IF(F725<>0,MAX($C$10:$C724)+1,\"\")","v":""},null,null,null,null,null,null,null,null,null,null,null,null,null,null,null,null,null,null,null,null,null,null,null,null,0,0,0,null,0,0,"","","-","","",0,null,null,null,null,null,0,0,0,0,0,0,0,0,null,null,null,null,null,null,null,null,null,null,null,null,null,null,null,null,null,null,null,null,null,null,null,null,null,null,null,{"$f":"IFERROR(_xlfn._xlws.FILTER(BG725:BR1504,(BR725:BR1504=2)),\"\")","v":""}]
[null,717,{"$f":"IF(F726<>0,MAX($C$10:$C725)+1,\"\")","v":""},null,null,null,null,null,null,null,null,null,null,null,null,null,null,null,null,null,null,null,null,null,null,null,null,0,0,0,null,0,0,"","","-","","",0,null,null,null,null,null,0,0,0,0,0,0,0,0,null,null,null,null,null,null,null,null,null,null,null,null,null,null,null,null,null,null,null,null,null,null,null,null,null,null,null,{"$f":"IFERROR(_xlfn._xlws.FILTER(BG726:BR1505,(BR726:BR1505=2)),\"\")","v":""}]
[null,718,{"$f":"IF(F727<>0,MAX($C$10:$C726)+1,\"\")","v":""},null,null,null,null,null,null,null,null,null,null,null,null,null,null,null,null,null,null,null,null,null,null,null,null,0,0,0,null,0,0,"","","-","","",0,null,null,null,null,null,0,0,0,0,0,0,0,0,null,null,null,null,null,null,null,null,null,null,null,null,null,null,null,null,null,null,null,null,null,null,null,null,null,null,null,{"$f":"IFERROR(_xlfn._xlws.FILTER(BG727:BR1506,(BR727:BR1506=2)),\"\")","v":""}]
[null,719,{"$f":"IF(F728<>0,MAX($C$10:$C727)+1,\"\")","v":""},null,null,null,null,null,null,null,null,null,null,null,null,null,null,null,null,null,null,null,null,null,null,null,null,0,0,0,null,0,0,"","","-","","",0,null,null,null,null,null,0,0,0,0,0,0,0,0,null,null,null,null,null,null,null,null,null,null,null,null,null,null,null,null,null,null,null,null,null,null,null,null,null,null,null,{"$f":"IFERROR(_xlfn._xlws.FILTER(BG728:BR1507,(BR728:BR1507=2)),\"\")","v":""}]
[null,720,{"$f":"IF(F729<>0,MAX($C$10:$C728)+1,\"\")","v":""},null,null,null,null,null,null,null,null,null,null,null,null,null,null,null,null,null,null,null,null,null,null,null,null,0,0,0,null,0,0,"","","-","","",0,null,null,null,null,null,0,0,0,0,0,0,0,0,null,null,null,null,null,null,null,null,null,null,null,null,null,null,null,null,null,null,null,null,null,null,null,null,null,null,null,{"$f":"IFERROR(_xlfn._xlws.FILTER(BG729:BR1508,(BR729:BR1508=2)),\"\")","v":""}]
[null,721,{"$f":"IF(F730<>0,MAX($C$10:$C729)+1,\"\")","v":""},null,null,null,null,null,null,null,null,null,null,null,null,null,null,null,null,null,null,null,null,null,null,null,null,0,0,0,null,0,0,"","","-","","",0,null,null,null,null,null,0,0,0,0,0,0,0,0,null,null,null,null,null,null,null,null,null,null,null,null,null,null,null,null,null,null,null,null,null,null,null,null,null,null,null,{"$f":"IFERROR(_xlfn._xlws.FILTER(BG730:BR1509,(BR730:BR1509=2)),\"\")","v":""}]
[null,722,{"$f":"IF(F731<>0,MAX($C$10:$C730)+1,\"\")","v":""},null,null,null,null,null,null,null,null,null,null,null,null,null,null,null,null,null,null,null,null,null,null,null,null,0,0,0,null,0,0,"","","-","","",0,null,null,null,null,null,0,0,0,0,0,0,0,0,null,null,null,null,null,null,null,null,null,null,null,null,null,null,null,null,null,null,null,null,null,null,null,null,null,null,null,{"$f":"IFERROR(_xlfn._xlws.FILTER(BG731:BR1510,(BR731:BR1510=2)),\"\")","v":""}]
[null,723,{"$f":"IF(F732<>0,MAX($C$10:$C731)+1,\"\")","v":""},null,null,null,null,null,null,null,null,null,null,null,null,null,null,null,null,null,null,null,null,null,null,null,null,0,0,0,null,0,0,"","","-","","",0,null,null,null,null,null,0,0,0,0,0,0,0,0,null,null,null,null,null,null,null,null,null,null,null,null,null,null,null,null,null,null,null,null,null,null,null,null,null,null,null,{"$f":"IFERROR(_xlfn._xlws.FILTER(BG732:BR1511,(BR732:BR1511=2)),\"\")","v":""}]
[null,724,{"$f":"IF(F733<>0,MAX($C$10:$C732)+1,\"\")","v":""},null,null,null,null,null,null,null,null,null,null,null,null,null,null,null,null,null,null,null,null,null,null,null,null,0,0,0,null,0,0,"","","-","","",0,null,null,null,null,null,0,0,0,0,0,0,0,0,null,null,null,null,null,null,null,null,null,null,null,null,null,null,null,null,null,null,null,null,null,null,null,null,null,null,null,{"$f":"IFERROR(_xlfn._xlws.FILTER(BG733:BR1512,(BR733:BR1512=2)),\"\")","v":""}]
[null,725,{"$f":"IF(F734<>0,MAX($C$10:$C733)+1,\"\")","v":""},null,null,null,null,null,null,null,null,null,null,null,null,null,null,null,null,null,null,null,null,null,null,null,null,0,0,0,null,0,0,"","","-","","",0,null,null,null,null,null,0,0,0,0,0,0,0,0,null,null,null,null,null,null,null,null,null,null,null,null,null,null,null,null,null,null,null,null,null,null,null,null,null,null,null,{"$f":"IFERROR(_xlfn._xlws.FILTER(BG734:BR1513,(BR734:BR1513=2)),\"\")","v":""}]
[null,726,{"$f":"IF(F735<>0,MAX($C$10:$C734)+1,\"\")","v":""},null,null,null,null,null,null,null,null,null,null,null,null,null,null,null,null,null,null,null,null,null,null,null,null,0,0,0,null,0,0,"","","-","","",0,null,null,null,null,null,0,0,0,0,0,0,0,0,null,null,null,null,null,null,null,null,null,null,null,null,null,null,null,null,null,null,null,null,null,null,null,null,null,null,null,{"$f":"IFERROR(_xlfn._xlws.FILTER(BG735:BR1514,(BR735:BR1514=2)),\"\")","v":""}]
[null,727,{"$f":"IF(F736<>0,MAX($C$10:$C735)+1,\"\")","v":""},null,null,null,null,null,null,null,null,null,null,null,null,null,null,null,null,null,null,null,null,null,null,null,null,0,0,0,null,0,0,"","","-","","",0,null,null,null,null,null,0,0,0,0,0,0,0,0,null,null,null,null,null,null,null,null,null,null,null,null,null,null,null,null,null,null,null,null,null,null,null,null,null,null,null,{"$f":"IFERROR(_xlfn._xlws.FILTER(BG736:BR1515,(BR736:BR1515=2)),\"\")","v":""}]
[null,728,{"$f":"IF(F737<>0,MAX($C$10:$C736)+1,\"\")","v":""},null,null,null,null,null,null,null,null,null,null,null,null,null,null,null,null,null,null,null,null,null,null,null,null,0,0,0,null,0,0,"","","-","","",0,null,null,null,null,null,0,0,0,0,0,0,0,0,null,null,null,null,null,null,null,null,null,null,null,null,null,null,null,null,null,null,null,null,null,null,null,null,null,null,null,{"$f":"IFERROR(_xlfn._xlws.FILTER(BG737:BR1516,(BR737:BR1516=2)),\"\")","v":""}]
[null,729,{"$f":"IF(F738<>0,MAX($C$10:$C737)+1,\"\")","v":""},null,null,null,null,null,null,null,null,null,null,null,null,null,null,null,null,null,null,null,null,null,null,null,null,0,0,0,null,0,0,"","","-","","",0,null,null,null,null,null,0,0,0,0,0,0,0,0,null,null,null,null,null,null,null,null,null,null,null,null,null,null,null,null,null,null,null,null,null,null,null,null,null,null,null,{"$f":"IFERROR(_xlfn._xlws.FILTER(BG738:BR1517,(BR738:BR1517=2)),\"\")","v":""}]
[null,730,{"$f":"IF(F739<>0,MAX($C$10:$C738)+1,\"\")","v":""},null,null,null,null,null,null,null,null,null,null,null,null,null,null,null,null,null,null,null,null,null,null,null,null,0,0,0,null,0,0,"","","-","","",0,null,null,null,null,null,0,0,0,0,0,0,0,0,null,null,null,null,null,null,null,null,null,null,null,null,null,null,null,null,null,null,null,null,null,null,null,null,null,null,null,{"$f":"IFERROR(_xlfn._xlws.FILTER(BG739:BR1518,(BR739:BR1518=2)),\"\")","v":""}]
[null,731,{"$f":"IF(F740<>0,MAX($C$10:$C739)+1,\"\")","v":""},null,null,null,null,null,null,null,null,null,null,null,null,null,null,null,null,null,null,null,null,null,null,null,null,0,0,0,null,0,0,"","","-","","",0,null,null,null,null,null,0,0,0,0,0,0,0,0,null,null,null,null,null,null,null,null,null,null,null,null,null,null,null,null,null,null,null,null,null,null,null,null,null,null,null,{"$f":"IFERROR(_xlfn._xlws.FILTER(BG740:BR1519,(BR740:BR1519=2)),\"\")","v":""}]
[null,732,{"$f":"IF(F741<>0,MAX($C$10:$C740)+1,\"\")","v":""},null,null,null,null,null,null,null,null,null,null,null,null,null,null,null,null,null,null,null,null,null,null,null,null,0,0,0,null,0,0,"","","-","","",0,null,null,null,null,null,0,0,0,0,0,0,0,0,null,null,null,null,null,null,null,null,null,null,null,null,null,null,null,null,null,null,null,null,null,null,null,null,null,null,null,{"$f":"IFERROR(_xlfn._xlws.FILTER(BG741:BR1520,(BR741:BR1520=2)),\"\")","v":""}]
[null,733,{"$f":"IF(F742<>0,MAX($C$10:$C741)+1,\"\")","v":""},null,null,null,null,null,null,null,null,null,null,null,null,null,null,null,null,null,null,null,null,null,null,null,null,0,0,0,null,0,0,"","","-","","",0,null,null,null,null,null,0,0,0,0,0,0,0,0,null,null,null,null,null,null,null,null,null,null,null,null,null,null,null,null,null,null,null,null,null,null,null,null,null,null,null,{"$f":"IFERROR(_xlfn._xlws.FILTER(BG742:BR1521,(BR742:BR1521=2)),\"\")","v":""}]
[null,734,{"$f":"IF(F743<>0,MAX($C$10:$C742)+1,\"\")","v":""},null,null,null,null,null,null,null,null,null,null,null,null,null,null,null,null,null,null,null,null,null,null,null,null,0,0,0,null,0,0,"","","-","","",0,null,null,null,null,null,0,0,0,0,0,0,0,0,null,null,null,null,null,null,null,null,null,null,null,null,null,null,null,null,null,null,null,null,null,null,null,null,null,null,null,{"$f":"IFERROR(_xlfn._xlws.FILTER(BG743:BR1522,(BR743:BR1522=2)),\"\")","v":""}]
[null,735,{"$f":"IF(F744<>0,MAX($C$10:$C743)+1,\"\")","v":""},null,null,null,null,null,null,null,null,null,null,null,null,null,null,null,null,null,null,null,null,null,null,null,null,0,0,0,null,0,0,"","","-","","",0,null,null,null,null,null,0,0,0,0,0,0,0,0,null,null,null,null,null,null,null,null,null,null,null,null,null,null,null,null,null,null,null,null,null,null,null,null,null,null,null,{"$f":"IFERROR(_xlfn._xlws.FILTER(BG744:BR1523,(BR744:BR1523=2)),\"\")","v":""}]
[null,736,{"$f":"IF(F745<>0,MAX($C$10:$C744)+1,\"\")","v":""},null,null,null,null,null,null,null,null,null,null,null,null,null,null,null,null,null,null,null,null,null,null,null,null,0,0,0,null,0,0,"","","-","","",0,null,null,null,null,null,0,0,0,0,0,0,0,0,null,null,null,null,null,null,null,null,null,null,null,null,null,null,null,null,null,null,null,null,null,null,null,null,null,null,null,{"$f":"IFERROR(_xlfn._xlws.FILTER(BG745:BR1524,(BR745:BR1524=2)),\"\")","v":""}]
[null,737,{"$f":"IF(F746<>0,MAX($C$10:$C745)+1,\"\")","v":""},null,null,null,null,null,null,null,null,null,null,null,null,null,null,null,null,null,null,null,null,null,null,null,null,0,0,0,null,0,0,"","","-","","",0,null,null,null,null,null,0,0,0,0,0,0,0,0,null,null,null,null,null,null,null,null,null,null,null,null,null,null,null,null,null,null,null,null,null,null,null,null,null,null,null,{"$f":"IFERROR(_xlfn._xlws.FILTER(BG746:BR1525,(BR746:BR1525=2)),\"\")","v":""}]
[null,738,{"$f":"IF(F747<>0,MAX($C$10:$C746)+1,\"\")","v":""},null,null,null,null,null,null,null,null,null,null,null,null,null,null,null,null,null,null,null,null,null,null,null,null,0,0,0,null,0,0,"","","-","","",0,null,null,null,null,null,0,0,0,0,0,0,0,0,null,null,null,null,null,null,null,null,null,null,null,null,null,null,null,null,null,null,null,null,null,null,null,null,null,null,null,{"$f":"IFERROR(_xlfn._xlws.FILTER(BG747:BR1526,(BR747:BR1526=2)),\"\")","v":""}]
[null,739,{"$f":"IF(F748<>0,MAX($C$10:$C747)+1,\"\")","v":""},null,null,null,null,null,null,null,null,null,null,null,null,null,null,null,null,null,null,null,null,null,null,null,null,0,0,0,null,0,0,"","","-","","",0,null,null,null,null,null,0,0,0,0,0,0,0,0,null,null,null,null,null,null,null,null,null,null,null,null,null,null,null,null,null,null,null,null,null,null,null,null,null,null,null,{"$f":"IFERROR(_xlfn._xlws.FILTER(BG748:BR1527,(BR748:BR1527=2)),\"\")","v":""}]
[null,740,{"$f":"IF(F749<>0,MAX($C$10:$C748)+1,\"\")","v":""},null,null,null,null,null,null,null,null,null,null,null,null,null,null,null,null,null,null,null,null,null,null,null,null,0,0,0,null,0,0,"","","-","","",0,null,null,null,null,null,0,0,0,0,0,0,0,0,null,null,null,null,null,null,null,null,null,null,null,null,null,null,null,null,null,null,null,null,null,null,null,null,null,null,null,{"$f":"IFERROR(_xlfn._xlws.FILTER(BG749:BR1528,(BR749:BR1528=2)),\"\")","v":""}]
[null,741,{"$f":"IF(F750<>0,MAX($C$10:$C749)+1,\"\")","v":""},null,null,null,null,null,null,null,null,null,null,null,null,null,null,null,null,null,null,null,null,null,null,null,null,0,0,0,null,0,0,"","","-","","",0,null,null,null,null,null,0,0,0,0,0,0,0,0,null,null,null,null,null,null,null,null,null,null,null,null,null,null,null,null,null,null,null,null,null,null,null,null,null,null,null,{"$f":"IFERROR(_xlfn._xlws.FILTER(BG750:BR1529,(BR750:BR1529=2)),\"\")","v":""}]
[null,742,{"$f":"IF(F751<>0,MAX($C$10:$C750)+1,\"\")","v":""},null,null,null,null,null,null,null,null,null,null,null,null,null,null,null,null,null,null,null,null,null,null,null,null,0,0,0,null,0,0,"","","-","","",0,null,null,null,null,null,0,0,0,0,0,0,0,0,null,null,null,null,null,null,null,null,null,null,null,null,null,null,null,null,null,null,null,null,null,null,null,null,null,null,null,{"$f":"IFERROR(_xlfn._xlws.FILTER(BG751:BR1530,(BR751:BR1530=2)),\"\")","v":""}]
[null,743,{"$f":"IF(F752<>0,MAX($C$10:$C751)+1,\"\")","v":""},null,null,null,null,null,null,null,null,null,null,null,null,null,null,null,null,null,null,null,null,null,null,null,null,0,0,0,null,0,0,"","","-","","",0,null,null,null,null,null,0,0,0,0,0,0,0,0,null,null,null,null,null,null,null,null,null,null,null,null,null,null,null,null,null,null,null,null,null,null,null,null,null,null,null,{"$f":"IFERROR(_xlfn._xlws.FILTER(BG752:BR1531,(BR752:BR1531=2)),\"\")","v":""}]
[null,744,{"$f":"IF(F753<>0,MAX($C$10:$C752)+1,\"\")","v":""},null,null,null,null,null,null,null,null,null,null,null,null,null,null,null,null,null,null,null,null,null,null,null,null,0,0,0,null,0,0,"","","-","","",0,null,null,null,null,null,0,0,0,0,0,0,0,0,null,null,null,null,null,null,null,null,null,null,null,null,null,null,null,null,null,null,null,null,null,null,null,null,null,null,null,{"$f":"IFERROR(_xlfn._xlws.FILTER(BG753:BR1532,(BR753:BR1532=2)),\"\")","v":""}]
[null,745,{"$f":"IF(F754<>0,MAX($C$10:$C753)+1,\"\")","v":""},null,null,null,null,null,null,null,null,null,null,null,null,null,null,null,null,null,null,null,null,null,null,null,null,0,0,0,null,0,0,"","","-","","",0,null,null,null,null,null,0,0,0,0,0,0,0,0,null,null,null,null,null,null,null,null,null,null,null,null,null,null,null,null,null,null,null,null,null,null,null,null,null,null,null,{"$f":"IFERROR(_xlfn._xlws.FILTER(BG754:BR1533,(BR754:BR1533=2)),\"\")","v":""}]
[null,746,{"$f":"IF(F755<>0,MAX($C$10:$C754)+1,\"\")","v":""},null,null,null,null,null,null,null,null,null,null,null,null,null,null,null,null,null,null,null,null,null,null,null,null,0,0,0,null,0,0,"","","-","","",0,null,null,null,null,null,0,0,0,0,0,0,0,0,null,null,null,null,null,null,null,null,null,null,null,null,null,null,null,null,null,null,null,null,null,null,null,null,null,null,null,{"$f":"IFERROR(_xlfn._xlws.FILTER(BG755:BR1534,(BR755:BR1534=2)),\"\")","v":""}]
[null,747,{"$f":"IF(F756<>0,MAX($C$10:$C755)+1,\"\")","v":""},null,null,null,null,null,null,null,null,null,null,null,null,null,null,null,null,null,null,null,null,null,null,null,null,0,0,0,null,0,0,"","","-","","",0,null,null,null,null,null,0,0,0,0,0,0,0,0,null,null,null,null,null,null,null,null,null,null,null,null,null,null,null,null,null,null,null,null,null,null,null,null,null,null,null,{"$f":"IFERROR(_xlfn._xlws.FILTER(BG756:BR1535,(BR756:BR1535=2)),\"\")","v":""}]
[null,748,{"$f":"IF(F757<>0,MAX($C$10:$C756)+1,\"\")","v":""},null,null,null,null,null,null,null,null,null,null,null,null,null,null,null,null,null,null,null,null,null,null,null,null,0,0,0,null,0,0,"","","-","","",0,null,null,null,null,null,0,0,0,0,0,0,0,0,null,null,null,null,null,null,null,null,null,null,null,null,null,null,null,null,null,null,null,null,null,null,null,null,null,null,null,{"$f":"IFERROR(_xlfn._xlws.FILTER(BG757:BR1536,(BR757:BR1536=2)),\"\")","v":""}]
[null,749,{"$f":"IF(F758<>0,MAX($C$10:$C757)+1,\"\")","v":""},null,null,null,null,null,null,null,null,null,null,null,null,null,null,null,null,null,null,null,null,null,null,null,null,0,0,0,null,0,0,"","","-","","",0,null,null,null,null,null,0,0,0,0,0,0,0,0,null,null,null,null,null,null,null,null,null,null,null,null,null,null,null,null,null,null,null,null,null,null,null,null,null,null,null,{"$f":"IFERROR(_xlfn._xlws.FILTER(BG758:BR1537,(BR758:BR1537=2)),\"\")","v":""}]
[null,750,{"$f":"IF(F759<>0,MAX($C$10:$C758)+1,\"\")","v":""},null,null,null,null,null,null,null,null,null,null,null,null,null,null,null,null,null,null,null,null,null,null,null,null,0,0,0,null,0,0,"","","-","","",0,null,null,null,null,null,0,0,0,0,0,0,0,0,null,null,null,null,null,null,null,null,null,null,null,null,null,null,null,null,null,null,null,null,null,null,null,null,null,null,null,{"$f":"IFERROR(_xlfn._xlws.FILTER(BG759:BR1538,(BR759:BR1538=2)),\"\")","v":""}]
[null,751,{"$f":"IF(F760<>0,MAX($C$10:$C759)+1,\"\")","v":""},null,null,null,null,null,null,null,null,null,null,null,null,null,null,null,null,null,null,null,null,null,null,null,null,0,0,0,null,0,0,"","","-","","",0,null,null,null,null,null,0,0,0,0,0,0,0,0,null,null,null,null,null,null,null,null,null,null,null,null,null,null,null,null,null,null,null,null,null,null,null,null,null,null,null,{"$f":"IFERROR(_xlfn._xlws.FILTER(BG760:BR1539,(BR760:BR1539=2)),\"\")","v":""}]
[null,752,{"$f":"IF(F761<>0,MAX($C$10:$C760)+1,\"\")","v":""},null,null,null,null,null,null,null,null,null,null,null,null,null,null,null,null,null,null,null,null,null,null,null,null,0,0,0,null,0,0,"","","-","","",0,null,null,null,null,null,0,0,0,0,0,0,0,0,null,null,null,null,null,null,null,null,null,null,null,null,null,null,null,null,null,null,null,null,null,null,null,null,null,null,null,{"$f":"IFERROR(_xlfn._xlws.FILTER(BG761:BR1540,(BR761:BR1540=2)),\"\")","v":""}]
[null,753,{"$f":"IF(F762<>0,MAX($C$10:$C761)+1,\"\")","v":""},null,null,null,null,null,null,null,null,null,null,null,null,null,null,null,null,null,null,null,null,null,null,null,null,0,0,0,null,0,0,"","","-","","",0,null,null,null,null,null,0,0,0,0,0,0,0,0,null,null,null,null,null,null,null,null,null,null,null,null,null,null,null,null,null,null,null,null,null,null,null,null,null,null,null,{"$f":"IFERROR(_xlfn._xlws.FILTER(BG762:BR1541,(BR762:BR1541=2)),\"\")","v":""}]
[null,754,{"$f":"IF(F763<>0,MAX($C$10:$C762)+1,\"\")","v":""},null,null,null,null,null,null,null,null,null,null,null,null,null,null,null,null,null,null,null,null,null,null,null,null,0,0,0,null,0,0,"","","-","","",0,null,null,null,null,null,0,0,0,0,0,0,0,0,null,null,null,null,null,null,null,null,null,null,null,null,null,null,null,null,null,null,null,null,null,null,null,null,null,null,null,{"$f":"IFERROR(_xlfn._xlws.FILTER(BG763:BR1542,(BR763:BR1542=2)),\"\")","v":""}]
[null,755,{"$f":"IF(F764<>0,MAX($C$10:$C763)+1,\"\")","v":""},null,null,null,null,null,null,null,null,null,null,null,null,null,null,null,null,null,null,null,null,null,null,null,null,0,0,0,null,0,0,"","","-","","",0,null,null,null,null,null,0,0,0,0,0,0,0,0,null,null,null,null,null,null,null,null,null,null,null,null,null,null,null,null,null,null,null,null,null,null,null,null,null,null,null,{"$f":"IFERROR(_xlfn._xlws.FILTER(BG764:BR1543,(BR764:BR1543=2)),\"\")","v":""}]
[null,756,{"$f":"IF(F765<>0,MAX($C$10:$C764)+1,\"\")","v":""},null,null,null,null,null,null,null,null,null,null,null,null,null,null,null,null,null,null,null,null,null,null,null,null,0,0,0,null,0,0,"","","-","","",0,null,null,null,null,null,0,0,0,0,0,0,0,0,null,null,null,null,null,null,null,null,null,null,null,null,null,null,null,null,null,null,null,null,null,null,null,null,null,null,null,{"$f":"IFERROR(_xlfn._xlws.FILTER(BG765:BR1544,(BR765:BR1544=2)),\"\")","v":""}]
[null,757,{"$f":"IF(F766<>0,MAX($C$10:$C765)+1,\"\")","v":""},null,null,null,null,null,null,null,null,null,null,null,null,null,null,null,null,null,null,null,null,null,null,null,null,0,0,0,null,0,0,"","","-","","",0,null,null,null,null,null,0,0,0,0,0,0,0,0,null,null,null,null,null,null,null,null,null,null,null,null,null,null,null,null,null,null,null,null,null,null,null,null,null,null,null,{"$f":"IFERROR(_xlfn._xlws.FILTER(BG766:BR1545,(BR766:BR1545=2)),\"\")","v":""}]
[null,758,{"$f":"IF(F767<>0,MAX($C$10:$C766)+1,\"\")","v":""},null,null,null,null,null,null,null,null,null,null,null,null,null,null,null,null,null,null,null,null,null,null,null,null,0,0,0,null,0,0,"","","-","","",0,null,null,null,null,null,0,0,0,0,0,0,0,0,null,null,null,null,null,null,null,null,null,null,null,null,null,null,null,null,null,null,null,null,null,null,null,null,null,null,null,{"$f":"IFERROR(_xlfn._xlws.FILTER(BG767:BR1546,(BR767:BR1546=2)),\"\")","v":""}]
[null,759,{"$f":"IF(F768<>0,MAX($C$10:$C767)+1,\"\")","v":""},null,null,null,null,null,null,null,null,null,null,null,null,null,null,null,null,null,null,null,null,null,null,null,null,0,0,0,null,0,0,"","","-","","",0,null,null,null,null,null,0,0,0,0,0,0,0,0,null,null,null,null,null,null,null,null,null,null,null,null,null,null,null,null,null,null,null,null,null,null,null,null,null,null,null,{"$f":"IFERROR(_xlfn._xlws.FILTER(BG768:BR1547,(BR768:BR1547=2)),\"\")","v":""}]
[null,760,{"$f":"IF(F769<>0,MAX($C$10:$C768)+1,\"\")","v":""},null,null,null,null,null,null,null,null,null,null,null,null,null,null,null,null,null,null,null,null,null,null,null,null,0,0,0,null,0,0,"","","-","","",0,null,null,null,null,null,0,0,0,0,0,0,0,0,null,null,null,null,null,null,null,null,null,null,null,null,null,null,null,null,null,null,null,null,null,null,null,null,null,null,null,{"$f":"IFERROR(_xlfn._xlws.FILTER(BG769:BR1548,(BR769:BR1548=2)),\"\")","v":""}]
[null,761,{"$f":"IF(F770<>0,MAX($C$10:$C769)+1,\"\")","v":""},null,null,null,null,null,null,null,null,null,null,null,null,null,null,null,null,null,null,null,null,null,null,null,null,0,0,0,null,0,0,"","","-","","",0,null,null,null,null,null,0,0,0,0,0,0,0,0,null,null,null,null,null,null,null,null,null,null,null,null,null,null,null,null,null,null,null,null,null,null,null,null,null,null,null,{"$f":"IFERROR(_xlfn._xlws.FILTER(BG770:BR1549,(BR770:BR1549=2)),\"\")","v":""}]
[null,762,{"$f":"IF(F771<>0,MAX($C$10:$C770)+1,\"\")","v":""},null,null,null,null,null,null,null,null,null,null,null,null,null,null,null,null,null,null,null,null,null,null,null,null,0,0,0,null,0,0,"","","-","","",0,null,null,null,null,null,0,0,0,0,0,0,0,0,null,null,null,null,null,null,null,null,null,null,null,null,null,null,null,null,null,null,null,null,null,null,null,null,null,null,null,{"$f":"IFERROR(_xlfn._xlws.FILTER(BG771:BR1550,(BR771:BR1550=2)),\"\")","v":""}]
[null,763,{"$f":"IF(F772<>0,MAX($C$10:$C771)+1,\"\")","v":""},null,null,null,null,null,null,null,null,null,null,null,null,null,null,null,null,null,null,null,null,null,null,null,null,0,0,0,null,0,0,"","","-","","",0,null,null,null,null,null,0,0,0,0,0,0,0,0,null,null,null,null,null,null,null,null,null,null,null,null,null,null,null,null,null,null,null,null,null,null,null,null,null,null,null,{"$f":"IFERROR(_xlfn._xlws.FILTER(BG772:BR1551,(BR772:BR1551=2)),\"\")","v":""}]
[null,764,{"$f":"IF(F773<>0,MAX($C$10:$C772)+1,\"\")","v":""},null,null,null,null,null,null,null,null,null,null,null,null,null,null,null,null,null,null,null,null,null,null,null,null,0,0,0,null,0,0,"","","-","","",0,null,null,null,null,null,0,0,0,0,0,0,0,0,null,null,null,null,null,null,null,null,null,null,null,null,null,null,null,null,null,null,null,null,null,null,null,null,null,null,null,{"$f":"IFERROR(_xlfn._xlws.FILTER(BG773:BR1552,(BR773:BR1552=2)),\"\")","v":""}]
[null,765,{"$f":"IF(F774<>0,MAX($C$10:$C773)+1,\"\")","v":""},null,null,null,null,null,null,null,null,null,null,null,null,null,null,null,null,null,null,null,null,null,null,null,null,0,0,0,null,0,0,"","","-","","",0,null,null,null,null,null,0,0,0,0,0,0,0,0,null,null,null,null,null,null,null,null,null,null,null,null,null,null,null,null,null,null,null,null,null,null,null,null,null,null,null,{"$f":"IFERROR(_xlfn._xlws.FILTER(BG774:BR1553,(BR774:BR1553=2)),\"\")","v":""}]
[null,766,{"$f":"IF(F775<>0,MAX($C$10:$C774)+1,\"\")","v":""},null,null,null,null,null,null,null,null,null,null,null,null,null,null,null,null,null,null,null,null,null,null,null,null,0,0,0,null,0,0,"","","-","","",0,null,null,null,null,null,0,0,0,0,0,0,0,0,null,null,null,null,null,null,null,null,null,null,null,null,null,null,null,null,null,null,null,null,null,null,null,null,null,null,null,{"$f":"IFERROR(_xlfn._xlws.FILTER(BG775:BR1554,(BR775:BR1554=2)),\"\")","v":""}]
[null,767,{"$f":"IF(F776<>0,MAX($C$10:$C775)+1,\"\")","v":""},null,null,null,null,null,null,null,null,null,null,null,null,null,null,null,null,null,null,null,null,null,null,null,null,0,0,0,null,0,0,"","","-","","",0,null,null,null,null,null,0,0,0,0,0,0,0,0,null,null,null,null,null,null,null,null,null,null,null,null,null,null,null,null,null,null,null,null,null,null,null,null,null,null,null,{"$f":"IFERROR(_xlfn._xlws.FILTER(BG776:BR1555,(BR776:BR1555=2)),\"\")","v":""}]
[null,768,{"$f":"IF(F777<>0,MAX($C$10:$C776)+1,\"\")","v":""},null,null,null,null,null,null,null,null,null,null,null,null,null,null,null,null,null,null,null,null,null,null,null,null,0,0,0,null,0,0,"","","-","","",0,null,null,null,null,null,0,0,0,0,0,0,0,0,null,null,null,null,null,null,null,null,null,null,null,null,null,null,null,null,null,null,null,null,null,null,null,null,null,null,null,{"$f":"IFERROR(_xlfn._xlws.FILTER(BG777:BR1556,(BR777:BR1556=2)),\"\")","v":""}]
[null,769,{"$f":"IF(F778<>0,MAX($C$10:$C777)+1,\"\")","v":""},null,null,null,null,null,null,null,null,null,null,null,null,null,null,null,null,null,null,null,null,null,null,null,null,0,0,0,null,0,0,"","",{"$f":"IF(AG778=\"\",\"\",\"-\")","v":"-"},"","",0,null,null,null,null,null,0,0,0,0,0,0,0,0,null,null,null,null,null,null,null,null,null,null,null,null,null,null,null,null,null,null,null,null,null,null,null,null,null,null,null,{"$f":"IFERROR(_xlfn._xlws.FILTER(BG778:BR1557,(BR778:BR1557=2)),\"\")","v":""}]
[null,770,{"$f":"IF(F779<>0,MAX($C$10:$C778)+1,\"\")","v":""},null,null,null,null,null,null,null,null,null,null,null,null,null,null,null,null,null,null,null,null,null,null,null,null,0,0,0,null,{"$f":"_xlfn.XLOOKUP(AH779,$J$10:$J$49,$M$10:$M$49,\"\")+_xlfn.XLOOKUP(AL779,$J$10:$J$49,$M$10:$M$49,\"\")","v":0},{"$f":"AE779","v":0},"",{"$f":"IFERROR(IF(AH779=\"\",\"\",IF(OR($L$8=\"Nee\",AF779=0),_xlfn.XLOOKUP(AH779,$D$10:$D$49,$E$10:$E$49),ROUND(_xlfn.XLOOKUP(AH779,$D$10:$D$49,$E$10:$E$49)*AF779,0))),0)","v":""},"-",{"$f":"IFERROR(IF(AH779=\"\",\"\",IF(OR($L$8=\"Nee\",AF779=0),_xlfn.XLOOKUP(AL779,$D$10:$D$49,$E$10:$E$49)*1,ROUND(_xlfn.XLOOKUP(AL779,$D$10:$D$49,$E$10:$E$49)*AF779,0))),0)","v":""},"",0,null,null,null,null,null,0,0,0,0,0,0,0,0,null,null,null,null,null,null,null,null,null,null,null,null,null,null,null,null,null,null,null,null,null,null,null,null,null,null,null,{"$f":"IFERROR(_xlfn._xlws.FILTER(BG779:BR1558,(BR779:BR1558=2)),\"\")","v":""}]
[null,771,{"$f":"IF(F780<>0,MAX($C$10:$C779)+1,\"\")","v":""},null,null,null,null,null,null,null,null,null,null,null,null,null,null,null,null,null,null,null,null,null,null,null,null,0,0,0,null,0,0,"","","-","","",0,null,null,null,null,null,0,0,0,0,0,0,0,{"$f":"AW780","v":0},null,null,null,null,null,null,null,null,null,null,null,null,null,null,null,null,null,null,null,null,null,null,null,null,null,null,null,{"$f":"IFERROR(_xlfn._xlws.FILTER(BG780:BR1559,(BR780:BR1559=2)),\"\")","v":""}]
[null,772,{"$f":"IF(F781<>0,MAX($C$10:$C780)+1,\"\")","v":""},null,null,null,null,null,null,null,null,null,null,null,null,null,null,null,null,null,null,null,null,null,null,null,null,0,{"$f":"IFERROR(_xlfn.XLOOKUP(AG781,$AB$10:$AB$789,$AD$10:$AD$789),\"\")","v":0},0,null,0,0,"","","-","","",0,null,null,null,null,null,0,0,0,0,0,0,0,0,null,null,null,null,null,null,null,null,null,null,null,null,null,null,null,null,null,null,null,null,null,null,null,null,null,null,null,{"$f":"IFERROR(_xlfn._xlws.FILTER(BG781:BR1560,(BR781:BR1560=2)),\"\")","v":""}]
[null,773,{"$f":"IF(F782<>0,MAX($C$10:$C781)+1,\"\")","v":""},null,null,null,null,null,null,null,null,null,null,null,null,null,null,null,null,null,null,null,null,null,null,null,null,0,0,0,null,0,0,"","","-","","",0,null,null,null,null,null,0,0,0,0,0,0,0,0,null,null,null,null,null,null,null,null,null,null,null,null,null,null,null,null,null,null,null,null,null,null,null,null,null,null,null,{"$f":"IFERROR(_xlfn._xlws.FILTER(BG782:BR1561,(BR782:BR1561=2)),\"\")","v":""}]
[null,774,{"$f":"IF(F783<>0,MAX($C$10:$C782)+1,\"\")","v":""},null,null,null,null,null,null,null,null,null,null,null,null,null,null,null,null,null,null,null,null,null,null,null,null,0,0,0,null,0,0,"","","-","","",0,null,null,null,null,null,0,0,0,0,0,0,0,0,null,null,null,null,null,null,null,null,null,null,null,null,null,null,null,null,null,null,null,null,null,null,null,null,null,null,null,{"$f":"IFERROR(_xlfn._xlws.FILTER(BG783:BR1562,(BR783:BR1562=2)),\"\")","v":""}]
[null,775,{"$f":"IF(F784<>0,MAX($C$10:$C783)+1,\"\")","v":""},null,null,null,null,null,null,null,null,null,null,null,null,null,null,null,null,null,null,null,null,null,null,null,null,0,0,0,null,0,0,"","","-","","",0,null,null,null,null,null,0,0,0,0,0,0,0,0,null,null,null,null,null,null,null,null,null,null,null,null,null,null,null,null,null,null,null,null,null,null,null,null,null,null,null,{"$f":"IFERROR(_xlfn._xlws.FILTER(BG784:BR1563,(BR784:BR1563=2)),\"\")","v":""}]
[null,776,{"$f":"IF(F785<>0,MAX($C$10:$C784)+1,\"\")","v":""},null,null,null,null,null,null,null,null,null,null,null,null,null,null,null,null,null,null,null,null,null,null,null,null,0,0,0,null,0,0,"","","-","","",0,null,null,null,null,null,0,0,0,0,0,0,0,0,null,null,null,null,null,null,null,null,null,null,null,null,null,null,null,null,null,null,null,null,null,null,null,null,null,null,null,{"$f":"IFERROR(_xlfn._xlws.FILTER(BG785:BR1564,(BR785:BR1564=2)),\"\")","v":""}]
[null,777,{"$f":"IF(F786<>0,MAX($C$10:$C785)+1,\"\")","v":""},null,null,null,null,null,null,null,null,null,null,null,null,null,null,null,null,null,null,null,null,null,null,null,null,0,0,0,null,0,0,"","","-","","",0,null,null,null,null,null,0,0,0,0,0,0,0,0,null,null,null,null,null,null,null,null,null,null,null,null,null,null,null,null,null,null,null,null,null,null,null,null,null,null,null,{"$f":"IFERROR(_xlfn._xlws.FILTER(BG786:BR1565,(BR786:BR1565=2)),\"\")","v":""}]
[null,778,{"$f":"IF(F787<>0,MAX($C$10:$C786)+1,\"\")","v":""},null,null,null,null,null,null,null,null,null,null,null,null,null,null,null,null,null,null,null,null,null,null,null,null,0,0,0,null,0,0,"","","-","","",0,null,null,null,null,null,0,0,0,0,0,0,0,0,null,null,null,null,null,null,null,null,null,null,null,null,null,null,null,null,null,null,null,null,null,null,null,null,null,null,null,{"$f":"IFERROR(_xlfn._xlws.FILTER(BG787:BR1566,(BR787:BR1566=2)),\"\")","v":""}]
[null,779,{"$f":"IF(F788<>0,MAX($C$10:$C787)+1,\"\")","v":""},null,null,null,null,null,null,null,null,null,null,null,null,null,null,null,null,null,null,null,null,null,null,null,null,0,0,0,null,0,0,"","","-","","",0,null,null,null,null,null,0,0,0,0,0,0,0,0,null,null,null,null,null,null,null,null,null,null,null,null,null,null,null,null,null,null,null,null,null,null,null,null,null,null,null,{"$f":"IFERROR(_xlfn._xlws.FILTER(BG788:BR1567,(BR788:BR1567=2)),\"\")","v":""}]
[null,780,{"$f":"IF(F789<>0,MAX($C$10:$C788)+1,\"\")","v":""},null,null,null,null,null,null,null,null,null,null,null,null,null,null,null,null,null,null,null,null,null,null,null,null,0,0,0,null,0,0,"","","-","","",0,null,null,null,null,null,0,0,0,0,0,0,0,0,null,null,null,null,null,null,null,null,null,null,null,null,null,null,null,null,null,null,null,null,null,null,null,null,null,null,null,{"$f":"IFERROR(_xlfn._xlws.FILTER(BG789:BR1568,(BR789:BR1568=2)),\"\")","v":""}]

{"sheet":"Blad1","index":1,"n_rows":0,"n_cols":0,"rows_kept":0,"cut":false,"hidden":false,"merged":[]}